Workbook

Sheet Front

Sheet OutputTables
A1: Category | B1: Present Value (US$ Million) | C1: Udiscounted
A2: Mobility Outcome | B2: =Highway_BCA!$H$38 / 1000000 -> 11.05878794 | C2: =(Highway_BCA!H15+Highway_BCA!H28)/1000000 -> 39.17583999
A3: Economic Vitality | B3: =BCA!$H$13 / 1000000 -> 17.88506742 | C3: =(Highway_BCA!H47+Highway_BCA!H57)/1000000 -> 63.3579867
A4: Safety Outcome | B4: =BCA!H$17 / 1000000 -> 5.445011343 | C4: =(Highway_BCA!H81+Highway_BCA!H95+Highway_BCA!H109)/1000000 -> 19.28899389
A5: Environmental Sustainability Outcome | B5: =BCA!H$21 / 1000000 + Highway_BCA!H355/1000000 -> 4.679226779 | C5: =(Highway_BCA!H138+Highway_BCA!H153+Highway_BCA!H168+Highway_BCA!H183)/1000000 -> 9.36915787
A6: Total Benefits | B6: =SUM(B2:B5) -> 39.06809348 | C6: =SUM(C2:C5) -> 131.1919785
B10: Property Damage Only (PDO) | C10: Injuries | D10: Fatalties | E10: Total
A11: Incidents / 100 million miles | B11: =InpC!$F$72 -> 141 | C11: =InpC!$F$76 -> 85 | D11: =InpC!$F$80 -> 1.16
A12: Incidents avoided | B12: =Highway_BCA!$H$75 -> 90.4336943 | C12: =Highway_BCA!$H$89 -> 54.51676607 | D12: =Highway_BCA!$H$103 -> 0.7439935134 | E12: =SUM(B12:D12) -> 145.6944539
A13: $ / incident | B13: =InpC!$F$73 -> 4500 | C13: =InpC!$F$77 -> 197600 | D13: =InpC!$F$82 -> 10900000
A14: Reduced highway crash benefits (PV) | B14: =Highway_BCA!$H$83 -> 114876.7127 | C14: =Highway_BCA!$H$97 -> 3040928.711 | D14: =Highway_BCA!$H$111 -> 2289205.919 | E14: =SUM(B14:D14) -> 5445011.343
B16: Emission Savings in Tons Truck Mile Reduction
A17: Carbon Dioxide | B17: =Highway_BCA!H$196 -> 100448.9916
A18: NOx | B18: =Highway_BCA!H$199 -> 50.72215855
A19: Particulate Matter 2.5 | B19: =Highway_BCA!H$202 -> 1.374966109
A20: SO2 | B20: =Highway_BCA!H$204 -> 0.716633263
B22: Emission Savings in Tons - Electric Trucks
A23: =Highway_BCA!E331 -> CO2 emissions | B23: =Highway_BCA!H331 -> 5691.567119
A24: =Highway_BCA!E334 -> NOx emissions | B24: =Highway_BCA!H334 -> 2.858422753
A25: =Highway_BCA!E337 -> PM 2.5 emissions | B25: =Highway_BCA!H337 -> 0.1429606032

Sheet InpC
A1: Inputs - Constants | F1: =InpC!$F$9 -> Case 1
F2: =Check_Alert!F$2 -> 0 | G2: =Check_Alert!G$2 -> Error Checks
F3: =Check_Alert!F$3 -> 0 | G3: =Check_Alert!G$3 -> Alerts
F5: Constant | G5: Unit | H5: Notes
A7: SCENARIOS
E9: Active scenario name | F9: Case 1 | J9: Base Case | K9: Case 1 | L9: Case 2 | M9: Case 3 | N9: Case 4
E10: Scenario selector | F10: =IF(SCENARIO_COUNT = "", MATCH(ACTIVE_CASE, J9:N9, ), SCENARIO_COUNT) -> 2 | J10: 1 | K10: 2 | L10: 3 | M10: 4 | N10: 5
A13: TIMING ASSUMPTIONS
E15: 1st model column start date | F15: 2015-01-01 | G15: date
E16: Forecast start date | F16: 2021 | G16: year
E17: Length of BCA period (operating) | F17: 30 | G17: years
E18: Months per model period | F18: 12 | G18: months
E19: Financial year end month number | F19: 12 | G19: month #
E21: Project operation start year | F21: 2024 | G21: year
E23: Base year | F23: 2019 | G23: year
E24: Discount rate (excluding CO2 emissions) | F24: 0.07 | G24: percent
E25: Discount rate (for CO2 emissions) | F25: 0.03 | G25: percent
A28: PROJECT ASSUMUPTIONS
E30: Project design life | F30: 75 | G30: years
E31: ="Residual value - " & F21 + F17 - 1 & " US$" -> Residual value - 2053 US$ | F31: =ResidualValue!G$9 -> -1009993.412 | G31: US$
E33: Reduction in truck miles - Build | F33: =(1.73 - 0.73) -> 1 | G33: miles | H33: Saveing in truck miles between the ICTF and container terminal by switching from local roads to connector bridge
E35: Share of Truck to Distribution Centers | F35: 0.4 | G35: percent | H35: Assuming 50% import, 50% export and 80% of imports going to distribution centers
E36: Current Distribution Center Distance | F36: 36.25 | G36: miles
E37: Future Distribution Center Distance | F37: 0.75 | G37: miles
E38: TEU to domestic converstion factor | F38: =20/53 -> 0.3773584906 | G38: box/TEU
E39: International TEU to box conversion factor | F39: =1/1.8 -> 0.5555555556 | G39: box/TEU
A41: ECONOMIC BENEFITS
B43: Volumes
E44: Tons per container | F44: 14 | G44: tons / box
B46: Operating
E47: Vehicle operating cost - Truck - 2019 US$ | F47: 0.93 | G47: US$ / mile | H47: https://www.transportation.gov/sites/dot.gov/files/2021-02/Benefit%20Cost%20Analysis%20Guidance%202021.pdf
E48: Truck average speed | F48: 55 | G48: miles / hour
E49: Truck fuel efficiency - 2019 US$ | F49: 6.5 | G49: mpg | H49: https://truckingresearch.org/wp-content/uploads/2020/11/ATRI-Operational-Cost-of-Trucking-2020-FINAL.pdf
E50: Electric Truck Fuel Consumption | F50: 2 | G50: kWh / mile | H50: (Source)
B52: Travel time
E53: Average vehicle occupancy (AVO) - Truck | F53: 1 | G53: persons | H53: https://www.transportation.gov/sites/dot.gov/files/2021-02/Benefit%20Cost%20Analysis%20Guidance%202021.pdf
E54: Vehicle travel time savings - Truck operator - 2019 US$ | F54: 30.8 | G54: US$ / hr | H54: https://www.transportation.gov/sites/dot.gov/files/2021-02/Benefit%20Cost%20Analysis%20Guidance%202021.pdf
B56: Maintenance
E57: Pavement repair cost | F57: =FHWA_Study!$D$24 -> 5.784819027 | G57: cent / mile | H57: https://www.fhwa.dot.gov/policy/hcas/addendum.cfm
B59: Congestion
E60: Congestion cost | F60: =FHWA_Study!$E$24 -> 5.08114328 | G60: cent / mile | H60: https://www.fhwa.dot.gov/policy/hcas/addendum.cfm
A63: SAFETY BENEFITS
B65: Highway
C67: Highway Split
E68: Urban Highway | F68: 0.1 | G68: share
E69: Rural Highway | F69: 0.9 | G69: share
C71: Property Damage Only (PDO)
E72: PDO rate per VMT - Vehicle | F72: 141 | G72: incident / 100 million VMT | H72: https://crashstats.nhtsa.dot.gov/Api/Public/ViewPublication/812806
E73: Property damage only (PDO) crash monetized value - 2019 US$ | F73: 4500 | G73: US$ / crash | H73: https://www.transportation.gov/sites/dot.gov/files/2021-02/Benefit%20Cost%20Analysis%20Guidance%202021.pdf
C75: Injuries
E76: Injury rate per VMT - Vehicle | F76: 85 | G76: person / 100 million VMT | H76: https://crashstats.nhtsa.dot.gov/Api/Public/ViewPublication/812806
E77: Unknown severity injury monetized value - 2019 US$ | F77: 197600 | G77: US$ / injury | H77: https://www.transportation.gov/sites/dot.gov/files/2021-02/Benefit%20Cost%20Analysis%20Guidance%202021.pdf
C79: Fatality
E80: Fatality per VMT - Vehicle | F80: 1.16 | G80: person / 100 million VMT | H80: https://crashstats.nhtsa.dot.gov/Api/Public/ViewPublication/812806
E81: Fatal crash monitized value - 2019 US$ | F81: 12071000 | G81: US$ / crash | H81: https://www.transportation.gov/sites/dot.gov/files/2021-02/Benefit%20Cost%20Analysis%20Guidance%202021.pdf
E82: Fatality monitized value - 2019 US$ | F82: 10900000 | G82: US$ / fatality | H82: https://www.transportation.gov/sites/dot.gov/files/2021-02/Benefit%20Cost%20Analysis%20Guidance%202021.pdf
A85: EMISSIONS
E87: CO2 emissions per gallon of diesel | F87: 10180 | G87: g / gal | H87: https://www.epa.gov/energy/greenhouse-gases-equivalencies-calculator-calculations-and-references
E88: CO2 emissions per kwh of electricity (AL) | F88: =ElectricityEmission!$G$39 -> 356.334 | G88: g / kwh | H88: https://www.eia.gov/electricity/data/emissions/
E90: Nox emissions per kwh of electricity (AL) | F90: =ElectricityEmission!$I$39/1000 -> 0.181099 | G90: g / kwh | H90: https://www.eia.gov/electricity/data/emissions/
E91: SO2 emissions per kwh of electricity (AL) | F91: =ElectricityEmission!$H$39/1000 -> 0.221392 | G91: g / kwh | H91: https://www.eia.gov/electricity/data/emissions/
A93: NON CHANGEABLE MODEL TECHNICAL INPUTS
E95: Grams per metric ton | F95: 1000000 | G95: gram / metric ton
E96: Units in thousand | F96: 1000 | G96: units / 000s

Sheet InpV
A1: Input - Time Series | F1: =InpC!$F$9 -> Case 1
E2: Model Period Ending | F2: =Check_Alert!F$2 -> 0 | G2: =Check_Alert!G$2 -> Error Checks | J2: =Time!J$2 -> 2015-12-31 | K2: =Time!K$2 -> 2016-12-31 | L2: =Time!L$2 -> 2017-12-31 | M2: =Time!M$2 -> 2018-12-31 | N2: =Time!N$2 -> 2019-12-31 | O2: =Time!O$2 -> 2020-12-31 | P2: =Time!P$2 -> 2021-12-31 | Q2: =Time!Q$2 -> 2022-12-31 | R2: =Time!R$2 -> 2023-12-31 | S2: =Time!S$2 -> 2024-12-31 | T2: =Time!T$2 -> 2025-12-31 | U2: =Time!U$2 -> 2026-12-31 | V2: =Time!V$2 -> 2027-12-31 | W2: =Time!W$2 -> 2028-12-31 | X2: =Time!X$2 -> 2029-12-31 | Y2: =Time!Y$2 -> 2030-12-31 | Z2: =Time!Z$2 -> 2031-12-31 | AA2: =Time!AA$2 -> 2032-12-31 | AB2: =Time!AB$2 -> 2033-12-31 | AC2: =Time!AC$2 -> 2034-12-31 | AD2: =Time!AD$2 -> 2035-12-31 | AE2: =Time!AE$2 -> 2036-12-31 | AF2: =Time!AF$2 -> 2037-12-31 | AG2: =Time!AG$2 -> 2038-12-31 | AH2: =Time!AH$2 -> 2039-12-31 | AI2: =Time!AI$2 -> 2040-12-31 | AJ2: =Time!AJ$2 -> 2041-12-31 | AK2: =Time!AK$2 -> 2042-12-31 | AL2: =Time!AL$2 -> 2043-12-31 | AM2: =Time!AM$2 -> 2044-12-31 | AN2: =Time!AN$2 -> 2045-12-31 | AO2: =Time!AO$2 -> 2046-12-31 | AP2: =Time!AP$2 -> 2047-12-31 | AQ2: =Time!AQ$2 -> 2048-12-31 | AR2: =Time!AR$2 -> 2049-12-31 | AS2: =Time!AS$2 -> 2050-12-31 | AT2: =Time!AT$2 -> 2051-12-31 | AU2: =Time!AU$2 -> 2052-12-31 | AV2: =Time!AV$2 -> 2053-12-31 | AW2: =Time!AW$2 -> 2054-12-31 | AX2: =Time!AX$2 -> 2055-12-31 | AY2: =Time!AY$2 -> 2056-12-31 | AZ2: =Time!AZ$2 -> 2057-12-31 | BA2: =Time!BA$2 -> 2058-12-31 | BB2: =Time!BB$2 -> 2059-12-31 | BC2: =Time!BC$2 -> 2060-12-31
E3: Pre-forecast vs Forecast | F3: =Check_Alert!F$3 -> 0 | G3: =Check_Alert!G$3 -> Alerts | J3: =Time!J$3 -> Pre-forecast | K3: =Time!K$3 -> Pre-forecast | L3: =Time!L$3 -> Pre-forecast | M3: =Time!M$3 -> Pre-forecast | N3: =Time!N$3 -> Pre-forecast | O3: =Time!O$3 -> Pre-forecast | P3: =Time!P$3 -> Forecast | Q3: =Time!Q$3 -> Forecast | R3: =Time!R$3 -> Forecast | S3: =Time!S$3 -> Forecast | T3: =Time!T$3 -> Forecast | U3: =Time!U$3 -> Forecast | V3: =Time!V$3 -> Forecast | W3: =Time!W$3 -> Forecast | X3: =Time!X$3 -> Forecast | Y3: =Time!Y$3 -> Forecast | Z3: =Time!Z$3 -> Forecast | AA3: =Time!AA$3 -> Forecast | AB3: =Time!AB$3 -> Forecast | AC3: =Time!AC$3 -> Forecast | AD3: =Time!AD$3 -> Forecast | AE3: =Time!AE$3 -> Forecast | AF3: =Time!AF$3 -> Forecast | AG3: =Time!AG$3 -> Forecast | AH3: =Time!AH$3 -> Forecast | AI3: =Time!AI$3 -> Forecast | AJ3: =Time!AJ$3 -> Forecast | AK3: =Time!AK$3 -> Forecast | AL3: =Time!AL$3 -> Forecast | AM3: =Time!AM$3 -> Forecast | AN3: =Time!AN$3 -> Forecast | AO3: =Time!AO$3 -> Forecast | AP3: =Time!AP$3 -> Forecast | AQ3: =Time!AQ$3 -> Forecast | AR3: =Time!AR$3 -> Forecast | AS3: =Time!AS$3 -> Forecast | AT3: =Time!AT$3 -> Forecast | AU3: =Time!AU$3 -> Forecast | AV3: =Time!AV$3 -> Forecast | AW3: =Time!AW$3 -> Post-forecast | AX3: =Time!AX$3 -> Post-forecast | AY3: =Time!AY$3 -> Post-forecast | AZ3: =Time!AZ$3 -> Post-forecast | BA3: =Time!BA$3 -> Post-forecast | BB3: =Time!BB$3 -> Post-forecast | BC3: =Time!BC$3 -> Post-forecast
E4: Financial Year Ending | J4: =Time!J$4 -> 2015 | K4: =Time!K$4 -> 2016 | L4: =Time!L$4 -> 2017 | M4: =Time!M$4 -> 2018 | N4: =Time!N$4 -> 2019 | O4: =Time!O$4 -> 2020 | P4: =Time!P$4 -> 2021 | Q4: =Time!Q$4 -> 2022 | R4: =Time!R$4 -> 2023 | S4: =Time!S$4 -> 2024 | T4: =Time!T$4 -> 2025 | U4: =Time!U$4 -> 2026 | V4: =Time!V$4 -> 2027 | W4: =Time!W$4 -> 2028 | X4: =Time!X$4 -> 2029 | Y4: =Time!Y$4 -> 2030 | Z4: =Time!Z$4 -> 2031 | AA4: =Time!AA$4 -> 2032 | AB4: =Time!AB$4 -> 2033 | AC4: =Time!AC$4 -> 2034 | AD4: =Time!AD$4 -> 2035 | AE4: =Time!AE$4 -> 2036 | AF4: =Time!AF$4 -> 2037 | AG4: =Time!AG$4 -> 2038 | AH4: =Time!AH$4 -> 2039 | AI4: =Time!AI$4 -> 2040 | AJ4: =Time!AJ$4 -> 2041 | AK4: =Time!AK$4 -> 2042 | AL4: =Time!AL$4 -> 2043 | AM4: =Time!AM$4 -> 2044 | AN4: =Time!AN$4 -> 2045 | AO4: =Time!AO$4 -> 2046 | AP4: =Time!AP$4 -> 2047 | AQ4: =Time!AQ$4 -> 2048 | AR4: =Time!AR$4 -> 2049 | AS4: =Time!AS$4 -> 2050 | AT4: =Time!AT$4 -> 2051 | AU4: =Time!AU$4 -> 2052 | AV4: =Time!AV$4 -> 2053 | AW4: =Time!AW$4 -> 2054 | AX4: =Time!AX$4 -> 2055 | AY4: =Time!AY$4 -> 2056 | AZ4: =Time!AZ$4 -> 2057 | BA4: =Time!BA$4 -> 2058 | BB4: =Time!BB$4 -> 2059 | BC4: =Time!BC$4 -> 2060
E5: Model Column counter | F5: Constant | G5: Unit | H5: Total | J5: =Time!J$5 -> 1 | K5: =Time!K$5 -> 2 | L5: =Time!L$5 -> 3 | M5: =Time!M$5 -> 4 | N5: =Time!N$5 -> 5 | O5: =Time!O$5 -> 6 | P5: =Time!P$5 -> 7 | Q5: =Time!Q$5 -> 8 | R5: =Time!R$5 -> 9 | S5: =Time!S$5 -> 10 | T5: =Time!T$5 -> 11 | U5: =Time!U$5 -> 12 | V5: =Time!V$5 -> 13 | W5: =Time!W$5 -> 14 | X5: =Time!X$5 -> 15 | Y5: =Time!Y$5 -> 16 | Z5: =Time!Z$5 -> 17 | AA5: =Time!AA$5 -> 18 | AB5: =Time!AB$5 -> 19 | AC5: =Time!AC$5 -> 20 | AD5: =Time!AD$5 -> 21 | AE5: =Time!AE$5 -> 22 | AF5: =Time!AF$5 -> 23 | AG5: =Time!AG$5 -> 24 | AH5: =Time!AH$5 -> 25 | AI5: =Time!AI$5 -> 26 | AJ5: =Time!AJ$5 -> 27 | AK5: =Time!AK$5 -> 28 | AL5: =Time!AL$5 -> 29 | AM5: =Time!AM$5 -> 30 | AN5: =Time!AN$5 -> 31 | AO5: =Time!AO$5 -> 32 | AP5: =Time!AP$5 -> 33 | AQ5: =Time!AQ$5 -> 34 | AR5: =Time!AR$5 -> 35 | AS5: =Time!AS$5 -> 36 | AT5: =Time!AT$5 -> 37 | AU5: =Time!AU$5 -> 38 | AV5: =Time!AV$5 -> 39 | AW5: =Time!AW$5 -> 40 | AX5: =Time!AX$5 -> 41 | AY5: =Time!AY$5 -> 42 | AZ5: =Time!AZ$5 -> 43 | BA5: =Time!BA$5 -> 44 | BB5: =Time!BB$5 -> 45 | BC5: =Time!BC$5 -> 46
A7: MACRO
E9: CPI rate multiplier | G9: multiplier | J9: =1 / 1.073 -> 0.9319664492 | K9: =1 / 1.0619 -> 0.9417082588 | L9: =1 / 1.0423 -> 0.9594166747 | M9: =1 / 1.0179 -> 0.9824147755 | N9: 1 | O9: =N9 * 1.014 -> 1.014 | P9: =O9 * 1.02 -> 1.03428 | Q9: 1.0549656 | R9: 1.076064912 | S9: 1.09758621 | T9: 1.119537934 | U9: 1.141928693 | V9: 1.164767267 | W9: 1.188062612 | X9: 1.211823865 | Y9: 1.236060342 | Z9: 1.260781549 | AA9: 1.28599718 | AB9: 1.311717123 | AC9: 1.337951466 | AD9: 1.364710495 | AE9: 1.392004705 | AF9: 1.419844799 | AG9: 1.448241695 | AH9: 1.477206529 | AI9: 1.50675066 | AJ9: 1.536885673 | AK9: 1.567623386 | AL9: 1.598975854 | AM9: 1.630955371 | AN9: 1.663574478 | AO9: 1.696845968 | AP9: 1.730782887 | AQ9: 1.765398545 | AR9: 1.800706516 | AS9: 1.836720646 | AT9: 1.873455059 | AU9: 1.91092416 | AV9: 1.949142644 | AW9: 1.988125496 | AX9: 2.027888006 | AY9: 2.068445767 | AZ9: 2.109814682 | BA9: 2.152010975 | BB9: 2.195051195 | BC9: 2.238952219
A12: PROJECT COSTS
E14: Project approval/environmental document - Current dollars | G14: US$ | H14: =SUM(J14:BC14) -> 0 | J14: 0 | K14: 0 | L14: 0 | M14: 0 | N14: 0 | O14: 0 | P14: 0 | Q14: 0 | R14: 0 | S14: 0 | T14: 0 | U14: 0 | V14: 0 | W14: 0 | X14: 0 | Y14: 0 | Z14: 0 | AA14: 0 | AB14: 0 | AC14: 0 | AD14: 0 | AE14: 0 | AF14: 0 | AG14: 0 | AH14: 0 | AI14: 0 | AJ14: 0 | AK14: 0 | AL14: 0 | AM14: 0 | AN14: 0 | AO14: 0 | AP14: 0 | AQ14: 0 | AR14: 0 | AS14: 0 | AT14: 0 | AU14: 0 | AV14: 0 | AW14: 0 | AX14: 0 | AY14: 0 | AZ14: 0 | BA14: 0 | BB14: 0 | BC14: 0
E15: Final design - Current dollars | G15: US$ | H15: =SUM(J15:BC15) -> 0 | J15: 0 | K15: 0 | L15: 0 | M15: 0 | N15: 0 | O15: 0 | P15: 0 | Q15: 0 | S15: 0 | T15: 0 | U15: 0 | V15: 0 | W15: 0 | X15: 0 | Y15: 0 | Z15: 0 | AA15: 0 | AB15: 0 | AC15: 0 | AD15: 0 | AE15: 0 | AF15: 0 | AG15: 0 | AH15: 0 | AI15: 0 | AJ15: 0 | AK15: 0 | AL15: 0 | AM15: 0 | AN15: 0 | AO15: 0 | AP15: 0 | AQ15: 0 | AR15: 0 | AS15: 0 | AT15: 0 | AU15: 0 | AV15: 0 | AW15: 0 | AX15: 0 | AY15: 0 | AZ15: 0 | BA15: 0 | BB15: 0 | BC15: 0
E16: ROW/Utility - Current dollars | G16: US$ | H16: 0 | J16: 0 | K16: 0 | L16: 0 | M16: 0 | N16: 0 | O16: 0 | P16: 0 | Q16: 0 | R16: 0 | S16: 0 | T16: 0 | U16: 0 | V16: 0 | W16: 0 | X16: 0 | Y16: 0 | Z16: 0 | AA16: 0 | AB16: 0 | AC16: 0 | AD16: 0 | AE16: 0 | AF16: 0 | AG16: 0 | AH16: 0 | AI16: 0 | AJ16: 0 | AK16: 0 | AL16: 0 | AM16: 0 | AN16: 0 | AO16: 0 | AP16: 0 | AQ16: 0 | AR16: 0 | AS16: 0 | AT16: 0 | AU16: 0 | AV16: 0 | AW16: 0 | AX16: 0 | AY16: 0 | AZ16: 0 | BA16: 0 | BB16: 0 | BC16: 0
E17: Construction - Current dollars | G17: US$ | H17: 0 | J17: 0 | K17: 0 | L17: 0 | M17: 0 | N17: 0 | O17: 0 | Q17: 0 | R17: 0 | S17: 0 | T17: 0 | U17: 0 | V17: 0 | W17: 0 | X17: 0 | Y17: 0 | Z17: 0 | AA17: 0 | AB17: 0 | AC17: 0 | AD17: 0 | AE17: 0 | AF17: 0 | AG17: 0 | AH17: 0 | AI17: 0 | AJ17: 0 | AK17: 0 | AL17: 0 | AM17: 0 | AN17: 0 | AO17: 0 | AP17: 0 | AQ17: 0 | AR17: 0 | AS17: 0 | AT17: 0 | AU17: 0 | AV17: 0 | AW17: 0 | AX17: 0 | AY17: 0 | AZ17: 0 | BA17: 0 | BB17: 0 | BC17: 0
E19: Operations and maintenance costs - Build - Current dollars | G19: US$ | J19: 0 | K19: 0 | L19: 0 | M19: 0 | N19: 0 | O19: 0 | P19: 0 | Q19: 0 | R19: 0 | S19: 100000 | T19: 100000 | U19: 100000 | V19: 100000 | W19: 100000 | X19: 100000 | Y19: 100000 | Z19: 100000 | AA19: 100000 | AB19: 100000 | AC19: 100000 | AD19: 100000 | AE19: 100000 | AF19: 100000 | AG19: 100000 | AH19: 100000 | AI19: 100000 | AJ19: 100000 | AK19: 100000 | AL19: 100000 | AM19: 100000 | AN19: 100000 | AO19: 100000 | AP19: 100000 | AQ19: 100000 | AR19: 100000 | AS19: 100000 | AT19: 100000 | AU19: 100000 | AV19: 100000 | AW19: 0 | AX19: 0 | AY19: 0 | AZ19: 0 | BA19: 0 | BB19: 0 | BC19: 0
A22: VOLUMES
E24: Volume demand - Forecast | G24: TEU | J24: 228053.7519 | K24: 268502.4 | L24: 321928.2 | M24: 403430.9881 | N24: 485157.8991 | O24: 515516.0426 | P24: 544169.252 | Q24: 527400 | R24: 527960 | S24: 650471 | T24: 652494 | U24: 709491 | V24: 711595 | W24: 774169 | X24: 776358 | Y24: 845062 | Z24: 847339 | AA24: 864286 | AB24: 881572 | AC24: 899203 | AD24: 917188 | AE24: 935531 | AF24: 954242 | AG24: 973327 | AH24: 992793 | AI24: 1012649 | AJ24: 1032902 | AK24: 1053560 | AL24: 1074631 | AM24: 1096124 | AN24: 1118046 | AO24: 1140407 | AP24: 1163216 | AQ24: 1186480 | AR24: 1210209 | AS24: 1234414 | AT24: 1259102 | AU24: 1284284 | AV24: 1309970 | AW24: 1336169 | AX24: 1362892 | AY24: 1390150 | AZ24: 1417953 | BA24: 1446312 | BB24: 1475239
E25: Rail Share | G25: % | K25: =1425/K24*1.8 -> 0.009552987236 | L25: =2317/K24*1.8 -> 0.01553282205 | M25: =2377/K24*1.8 -> 0.01593505309 | N25: =1681/K24*1.8 -> 0.01126917301 | O25: =5457/K24*1.8 -> 0.03658291323 | P25: =($R$25-$O$25)/3+O25 -> 0.1029543019 | Q25: =($R$25-$O$25)/3+P25 -> 0.1693256906 | R25: 0.2356970792 | S25: 0.2356970792 | T25: 0.2356970792 | U25: 0.2356970792 | V25: 0.2356970792 | W25: 0.2356970792 | X25: 0.2356970792 | Y25: 0.2356970792 | Z25: 0.2356970792 | AA25: 0.2356970792 | AB25: 0.2356970792 | AC25: 0.2356970792 | AD25: 0.2356970792 | AE25: 0.2356970792 | AF25: 0.2356970792 | AG25: 0.2356970792 | AH25: 0.2356970792 | AI25: 0.2356970792 | AJ25: 0.2356970792 | AK25: 0.2356970792 | AL25: 0.2356970792 | AM25: 0.2356970792 | AN25: 0.2356970792 | AO25: 0.2356970792 | AP25: 0.2356970792 | AQ25: 0.2356970792 | AR25: 0.2356970792 | AS25: 0.2356970792 | AT25: 0.2356970792 | AU25: 0.2356970792 | AV25: 0.2356970792 | AW25: 0.2356970792 | AX25: 0.2356970792 | AY25: 0.2356970792 | AZ25: 0.2356970792 | BA25: 0.2356970792 | BB25: 0.2356970792
E26: Rail Capacity | G26: TEU | K26: =150000*1.8 -> 270000 | L26: =150000*1.8 -> 270000 | M26: 270000 | N26: 270000 | O26: 270000 | P26: 270000 | Q26: 270000 | R26: 270000 | S26: 270000 | T26: 270000 | U26: 270000 | V26: 270000 | W26: 270000 | X26: 270000 | Y26: 270000 | Z26: 270000 | AA26: 270000 | AB26: 270000 | AC26: 270000 | AD26: 270000 | AE26: 270000 | AF26: 270000 | AG26: 270000 | AH26: 270000 | AI26: 270000 | AJ26: 270000 | AK26: 270000 | AL26: 270000 | AM26: 270000 | AN26: 270000 | AO26: 270000 | AP26: 270000 | AQ26: 270000 | AR26: 270000 | AS26: 270000 | AT26: 270000 | AU26: 270000 | AV26: 270000 | AW26: 270000 | AX26: 270000 | AY26: 270000 | AZ26: 270000 | BA26: 270000 | BB26: 270000
E27: Terminal Capacity | G27: TEU | O27: 650000 | P27: 650000 | Q27: 650000 | R27: 650000 | S27: 650000 | T27: 1000000 | U27: 1000000 | V27: 1000000 | W27: 1000000 | X27: 1000000 | Y27: 1500000 | Z27: 1500000 | AA27: 1500000 | AB27: 1500000 | AC27: 1500000 | AD27: 1500000 | AE27: 1500000 | AF27: 1500000 | AG27: 1500000 | AH27: 1500000 | AI27: 1500000 | AJ27: 1500000 | AK27: 1500000 | AL27: 1500000 | AM27: 1500000 | AN27: 1500000 | AO27: 1500000 | AP27: 1500000 | AQ27: 1500000 | AR27: 1500000 | AS27: 1500000 | AT27: 1500000 | AU27: 1500000 | AV27: 1500000 | AW27: 1500000 | AX27: 1500000 | AY27: 1500000 | AZ27: 1500000 | BA27: 1500000 | BB27: 1500000
A29: ENVIRONEMNTAL BENEFITS
B31: Emissions
C33: Costs
E34: Damage costs for emissions - CO2 - 2019 US$ | G34: US$ / metric ton | H34: https://www.transportation.gov/sites/dot.gov/files/2021-02/Benefit%20Cost%20Analysis%20Guidance%202021.pdf | J34: 0 | K34: 0 | L34: 0 | M34: 0 | N34: 0 | O34: 50 | P34: 52 | Q34: 53 | R34: 54 | S34: 55 | T34: 56 | U34: 57 | V34: 58 | W34: 59 | X34: 60 | Y34: 61 | Z34: 62 | AA34: 63 | AB34: 64 | AC34: 66 | AD34: 67 | AE34: 68 | AF34: 69 | AG34: 70 | AH34: 71 | AI34: 72 | AJ34: 73 | AK34: 75 | AL34: 76 | AM34: 77 | AN34: 78 | AO34: 79 | AP34: 80 | AQ34: 81 | AR34: 83 | AS34: 84 | AT34: =AS34 -> 84 | AU34: 84 | AV34: 84 | AW34: 84 | AX34: 84 | AY34: 84 | AZ34: 84 | BA34: 84 | BB34: 84
E35: Damage costs for emissions - NOx - 2019 US$ | G35: US$ / metric ton | H35: https://www.transportation.gov/sites/dot.gov/files/2021-02/Benefit%20Cost%20Analysis%20Guidance%202021.pdf | J35: 0 | K35: 0 | L35: 0 | M35: 0 | N35: 0 | O35: 15700 | P35: 15900 | Q35: 16100 | R35: 16400 | S35: 16600 | T35: 16800 | U35: 17000 | V35: 17300 | W35: 17500 | X35: 17700 | Y35: 18000 | Z35: 18000 | AA35: 18000 | AB35: 18000 | AC35: 18000 | AD35: 18000 | AE35: 18000 | AF35: 18000 | AG35: 18000 | AH35: 18000 | AI35: 18000 | AJ35: 18000 | AK35: 18000 | AL35: 18000 | AM35: 18000 | AN35: 18000 | AO35: 18000 | AP35: 18000 | AQ35: 18000 | AR35: 18000 | AS35: 18000 | AT35: =AS35 -> 18000 | AU35: 18000 | AV35: 18000 | AW35: 18000 | AX35: 18000 | AY35: 18000 | AZ35: 18000 | BA35: 18000 | BB35: 18000
E36: Damage costs for emissions - PM 2.5 - 2019 US$ | G36: US$ / metric ton | H36: https://www.transportation.gov/sites/dot.gov/files/2021-02/Benefit%20Cost%20Analysis%20Guidance%202021.pdf | J36: 0 | K36: 0 | L36: 0 | M36: 0 | N36: 0 | O36: 729300 | P36: 742300 | Q36: 755500 | R36: 769000 | S36: 782700 | T36: 796600 | U36: 807500 | V36: 818600 | W36: 829800 | X36: 841200 | Y36: 852700 | Z36: 852700 | AA36: 852700 | AB36: 852700 | AC36: 852700 | AD36: 852700 | AE36: 852700 | AF36: 852700 | AG36: 852700 | AH36: 852700 | AI36: 852700 | AJ36: 852700 | AK36: 852700 | AL36: 852700 | AM36: 852700 | AN36: 852700 | AO36: 852700 | AP36: 852700 | AQ36: 852700 | AR36: 852700 | AS36: 852700 | AT36: =AS36 -> 852700 | AU36: 852700 | AV36: 852700 | AW36: 852700 | AX36: 852700 | AY36: 852700 | AZ36: 852700 | BA36: 852700 | BB36: 852700
E37: Damage costs for emissions - SO2 - 2019 US$ | G37: US$ / metric ton | H37: https://www.transportation.gov/sites/dot.gov/files/2021-02/Benefit%20Cost%20Analysis%20Guidance%202021.pdf | J37: 0 | K37: 0 | L37: 0 | M37: 0 | N37: 0 | O37: 40400 | P37: 41300 | Q37: 42100 | R37: 43000 | S37: 43900 | T37: 44900 | U37: 45500 | V37: 46200 | W37: 46900 | X37: 47600 | Y37: 48200 | Z37: 48200 | AA37: 48200 | AB37: 48200 | AC37: 48200 | AD37: 48200 | AE37: 48200 | AF37: 48200 | AG37: 48200 | AH37: 48200 | AI37: 48200 | AJ37: 48200 | AK37: 48200 | AL37: 48200 | AM37: 48200 | AN37: 48200 | AO37: 48200 | AP37: 48200 | AQ37: 48200 | AR37: 48200 | AS37: 48200 | AT37: =AS37 -> 48200 | AU37: 48200 | AV37: 48200 | AW37: 48200 | AX37: 48200 | AY37: 48200 | AZ37: 48200 | BA37: 48200 | BB37: 48200
C39: Highway
E40: NOx emission rate - Truck | G40: gram / mile | H40: EMFAC 2021 | J40: 0 | K40: 0 | L40: 0 | M40: 0 | N40: 3.060143973 | O40: 2.150938349 | P40: 1.634430482 | Q40: 1.344009622 | R40: 0.9857988693 | S40: 0.9332061524 | T40: 0.8935409048 | U40: 0.863991002 | V40: 0.8426515309 | W40: 0.8270444448 | X40: 0.8154638831 | Y40: 0.8067413974 | Z40: 0.8000090139 | AA40: 0.794694945 | AB40: 0.7906596226 | AC40: 0.7874977385 | AD40: 0.7851110908 | AE40: 0.7830307291 | AF40: 0.7813279437 | AG40: 0.779620482 | AH40: 0.7781981361 | AI40: 0.776887869 | AJ40: 0.7756664653 | AK40: 0.7746986254 | AL40: 0.773968949 | AM40: 0.773482062 | AN40: 0.7732570612 | AO40: 0.7732222238 | AP40: 0.7733177004 | AQ40: 0.7734964474 | AR40: 0.7736827013 | AS40: 0.7738574834 | AT40: =AS40 -> 0.7738574834 | AU40: 0.7738574834 | AV40: 0.7738574834 | AW40: 0.7738574834 | AX40: 0.7738574834 | AY40: 0.7738574834 | AZ40: 0.7738574834 | BA40: 0.7738574834 | BB40: 0.7738574834
E41: PM 2.5 emission rate - Truck | G41: gram / mile | H41: EMFAC 2021 | J41: 0 | K41: 0 | L41: 0 | M41: 0 | N41: 0.06076147619 | O41: 0.0411773705 | P41: 0.0310322708 | Q41: 0.02523896804 | R41: 0.02392365422 | S41: 0.02341398016 | T41: 0.02284414656 | U41: 0.02254002341 | V41: 0.02230795164 | W41: 0.02213352432 | X41: 0.02199000082 | Y41: 0.02187107204 | Z41: 0.02176732668 | AA41: 0.02167402438 | AB41: 0.02159694475 | AC41: 0.02152942641 | AD41: 0.02147557702 | AE41: 0.02142293528 | AF41: 0.02137536 | AG41: 0.02133025521 | AH41: 0.02128082721 | AI41: 0.02123190778 | AJ41: 0.02118338472 | AK41: 0.0211419052 | AL41: 0.0211086201 | AM41: 0.02108493213 | AN41: 0.02107252271 | AO41: 0.02106920337 | AP41: 0.02107265375 | AQ41: 0.0210807581 | AR41: 0.02109015646 | AS41: 0.0210994913 | AT41: =AS41 -> 0.0210994913 | AU41: 0.0210994913 | AV41: 0.0210994913 | AW41: 0.0210994913 | AX41: 0.0210994913 | AY41: 0.0210994913 | AZ41: 0.0210994913 | BA41: 0.0210994913 | BB41: 0.0210994913
E42: SO2 emission rate - Truck | G42: gram / mile | H42: EMFAC 2021 | J42: 0 | K42: 0 | L42: 0 | M42: 0 | N42: 0.01395255413 | O42: 0.0139393537 | P42: 0.01384248237 | Q42: 0.01374093108 | R42: 0.01357342648 | S42: 0.01337832458 | T42: 0.01316577728 | U42: 0.01293434088 | V42: 0.01265852744 | W42: 0.01237543218 | X42: 0.01210510478 | Y42: 0.01185605527 | Z42: 0.01163397967 | AA42: 0.01144286982 | AB42: 0.01128209112 | AC42: 0.01114964552 | AD42: 0.01104481028 | AE42: 0.01096407182 | AF42: 0.01090380126 | AG42: 0.010860089 | AH42: 0.01082753552 | AI42: 0.0108037806 | AJ42: 0.01078649413 | AK42: 0.01077393947 | AL42: 0.01076483488 | AM42: 0.01075825828 | AN42: 0.01075352816 | AO42: 0.01075012662 | AP42: 0.01074767917 | AQ42: 0.01074592074 | AR42: 0.01074466702 | AS42: 0.01074377689 | AT42: =AS42 -> 0.01074377689 | AU42: =AT42 -> 0.01074377689 | AV42: 0.01074377689 | AW42: 0.01074377689 | AX42: 0.01074377689 | AY42: 0.01074377689 | AZ42: 0.01074377689 | BA42: 0.01074377689 | BB42: 0.01074377689

Sheet Time
A1: Time and Escalation | F1: =InpC!$F$9 -> Case 1
E2: Model Period Ending | F2: =Check_Alert!F$2 -> 0 | G2: =Check_Alert!G$2 -> Error Checks | J2: =J$19 -> 2015-12-31 | K2: 2016-12-31 | L2: 2017-12-31 | M2: 2018-12-31 | N2: 2019-12-31 | O2: 2020-12-31 | P2: 2021-12-31 | Q2: 2022-12-31 | R2: 2023-12-31 | S2: 2024-12-31 | T2: 2025-12-31 | U2: 2026-12-31 | V2: 2027-12-31 | W2: 2028-12-31 | X2: 2029-12-31 | Y2: 2030-12-31 | Z2: 2031-12-31 | AA2: 2032-12-31 | AB2: 2033-12-31 | AC2: 2034-12-31 | AD2: 2035-12-31 | AE2: 2036-12-31 | AF2: 2037-12-31 | AG2: 2038-12-31 | AH2: 2039-12-31 | AI2: 2040-12-31 | AJ2: 2041-12-31 | AK2: 2042-12-31 | AL2: 2043-12-31 | AM2: 2044-12-31 | AN2: 2045-12-31 | AO2: 2046-12-31 | AP2: 2047-12-31 | AQ2: 2048-12-31 | AR2: 2049-12-31 | AS2: 2050-12-31 | AT2: 2051-12-31 | AU2: 2052-12-31 | AV2: 2053-12-31 | AW2: 2054-12-31 | AX2: 2055-12-31 | AY2: 2056-12-31 | AZ2: 2057-12-31 | BA2: 2058-12-31 | BB2: 2059-12-31 | BC2: 2060-12-31
E3: Pre-forecast vs Forecast | F3: =Check_Alert!F$3 -> 0 | G3: =Check_Alert!G$3 -> Alerts | J3: =J$54 -> Pre-forecast | K3: Pre-forecast | L3: Pre-forecast | M3: Pre-forecast | N3: Pre-forecast | O3: Pre-forecast | P3: Forecast | Q3: Forecast | R3: Forecast | S3: Forecast | T3: Forecast | U3: Forecast | V3: Forecast | W3: Forecast | X3: Forecast | Y3: Forecast | Z3: Forecast | AA3: Forecast | AB3: Forecast | AC3: Forecast | AD3: Forecast | AE3: Forecast | AF3: Forecast | AG3: Forecast | AH3: Forecast | AI3: Forecast | AJ3: Forecast | AK3: Forecast | AL3: Forecast | AM3: Forecast | AN3: Forecast | AO3: Forecast | AP3: Forecast | AQ3: Forecast | AR3: Forecast | AS3: Forecast | AT3: Forecast | AU3: Forecast | AV3: Forecast | AW3: Post-forecast | AX3: Post-forecast | AY3: Post-forecast | AZ3: Post-forecast | BA3: Post-forecast | BB3: Post-forecast | BC3: Post-forecast
E4: Financial Year Ending | J4: =J$28 -> 2015 | K4: 2016 | L4: 2017 | M4: 2018 | N4: 2019 | O4: 2020 | P4: 2021 | Q4: 2022 | R4: 2023 | S4: 2024 | T4: 2025 | U4: 2026 | V4: 2027 | W4: 2028 | X4: 2029 | Y4: 2030 | Z4: 2031 | AA4: 2032 | AB4: 2033 | AC4: 2034 | AD4: 2035 | AE4: 2036 | AF4: 2037 | AG4: 2038 | AH4: 2039 | AI4: 2040 | AJ4: 2041 | AK4: 2042 | AL4: 2043 | AM4: 2044 | AN4: 2045 | AO4: 2046 | AP4: 2047 | AQ4: 2048 | AR4: 2049 | AS4: 2050 | AT4: 2051 | AU4: 2052 | AV4: 2053 | AW4: 2054 | AX4: 2055 | AY4: 2056 | AZ4: 2057 | BA4: 2058 | BB4: 2059 | BC4: 2060
E5: Model Column counter | F5: Constant | G5: Unit | H5: Total | J5: =J$9 -> 1 | K5: 2 | L5: 3 | M5: 4 | N5: 5 | O5: 6 | P5: 7 | Q5: 8 | R5: 9 | S5: 10 | T5: 11 | U5: 12 | V5: 13 | W5: 14 | X5: 15 | Y5: 16 | Z5: 17 | AA5: 18 | AB5: 19 | AC5: 20 | AD5: 21 | AE5: 22 | AF5: 23 | AG5: 24 | AH5: 25 | AI5: 26 | AJ5: 27 | AK5: 28 | AL5: 29 | AM5: 30 | AN5: 31 | AO5: 32 | AP5: 33 | AQ5: 34 | AR5: 35 | AS5: 36 | AT5: 37 | AU5: 38 | AV5: 39 | AW5: 40 | AX5: 41 | AY5: 42 | AZ5: 43 | BA5: 44 | BB5: 45 | BC5: 46
A7: TIME RULER
E9: Model column counter | G9: counter | J9: =I9 + 1 -> 1 | K9: 2 | L9: 3 | M9: 4 | N9: 5 | O9: 6 | P9: 7 | Q9: 8 | R9: 9 | S9: 10 | T9: 11 | U9: 12 | V9: 13 | W9: 14 | X9: 15 | Y9: 16 | Z9: 17 | AA9: 18 | AB9: 19 | AC9: 20 | AD9: 21 | AE9: 22 | AF9: 23 | AG9: 24 | AH9: 25 | AI9: 26 | AJ9: 27 | AK9: 28 | AL9: 29 | AM9: 30 | AN9: 31 | AO9: 32 | AP9: =AO9 + 1 -> 33 | AQ9: 34 | AR9: 35 | AS9: 36 | AT9: 37 | AU9: 38 | AV9: 39 | AW9: 40 | AX9: 41 | AY9: 42 | AZ9: 43 | BA9: 44 | BB9: 45 | BC9: 46
E10: First model column flag | G10: flag | J10: =IF(J9 = 1, 1, 0) -> 1 | K10: 0 | L10: 0 | M10: 0 | N10: 0 | O10: 0 | P10: 0 | Q10: 0 | R10: 0 | S10: 0 | T10: 0 | U10: 0 | V10: 0 | W10: 0 | X10: 0 | Y10: 0 | Z10: 0 | AA10: 0 | AB10: 0 | AC10: 0 | AD10: 0 | AE10: 0 | AF10: 0 | AG10: 0 | AH10: 0 | AI10: 0 | AJ10: 0 | AK10: 0 | AL10: 0 | AM10: 0 | AN10: 0 | AO10: 0 | AP10: =IF(AP9 = 1, 1, 0) -> 0 | AQ10: 0 | AR10: 0 | AS10: 0 | AT10: 0 | AU10: 0 | AV10: 0 | AW10: 0 | AX10: 0 | AY10: 0 | AZ10: 0 | BA10: 0 | BB10: 0 | BC10: 0
E12: =InpC!E$15 -> 1st model column start date | F12: =InpC!F$15 -> 2015-01-01 | G12: =InpC!G$15 -> date
E13: =InpC!E$18 -> Months per model period | F13: =InpC!F$18 -> 12 | G13: =InpC!G$18 -> months
E14: =E10 -> First model column flag | F14: 0 | G14: flag | H14: 0 | I14: 0 | J14: 1 | K14: 0 | L14: 0 | M14: 0 | N14: 0 | O14: 0 | P14: 0 | Q14: 0 | R14: 0 | S14: 0 | T14: 0 | U14: 0 | V14: 0 | W14: 0 | X14: 0 | Y14: 0 | Z14: 0 | AA14: 0 | AB14: 0 | AC14: 0 | AD14: 0 | AE14: 0 | AF14: 0 | AG14: 0 | AH14: 0 | AI14: 0 | AJ14: 0 | AK14: =AK10 -> 0 | AL14: 0 | AM14: 0 | AN14: 0 | AO14: 0 | AP14: 0 | AQ14: 0 | AR14: 0 | AS14: 0 | AT14: 0 | AU14: 0 | AV14: 0 | AW14: 0 | AX14: 0 | AY14: 0 | AZ14: 0 | BA14: 0 | BB14: 0 | BC14: 0
E15: Model period beginning | G15: date | J15: =IF(J14 = 1, $F12, DATE(YEAR(I15), MONTH(I15) + $F13, DAY(I15))) -> 2015-01-01 | K15: 2016-01-01 | L15: 2017-01-01 | M15: 2018-01-01 | N15: 2019-01-01 | O15: 2020-01-01 | P15: 2021-01-01 | Q15: 2022-01-01 | R15: 2023-01-01 | S15: 2024-01-01 | T15: 2025-01-01 | U15: 2026-01-01 | V15: 2027-01-01 | W15: 2028-01-01 | X15: 2029-01-01 | Y15: 2030-01-01 | Z15: 2031-01-01 | AA15: 2032-01-01 | AB15: 2033-01-01 | AC15: 2034-01-01 | AD15: 2035-01-01 | AE15: 2036-01-01 | AF15: 2037-01-01 | AG15: 2038-01-01 | AH15: 2039-01-01 | AI15: 2040-01-01 | AJ15: 2041-01-01 | AK15: 2042-01-01 | AL15: 2043-01-01 | AM15: 2044-01-01 | AN15: 2045-01-01 | AO15: 2046-01-01 | AP15: =IF(AP14 = 1, $F12, DATE(YEAR(AO15), MONTH(AO15) + $F13, DAY(AO15))) -> 2047-01-01 | AQ15: 2048-01-01 | AR15: 2049-01-01 | AS15: 2050-01-01 | AT15: 2051-01-01 | AU15: 2052-01-01 | AV15: 2053-01-01 | AW15: 2054-01-01 | AX15: 2055-01-01 | AY15: 2056-01-01 | AZ15: 2057-01-01 | BA15: 2058-01-01 | BB15: 2059-01-01 | BC15: 2060-01-01
E17: =InpC!E$18 -> Months per model period | F17: =InpC!F$18 -> 12 | G17: =InpC!G$18 -> months
E18: =E15 -> Model period beginning | F18: 00:00:00 | G18: date | H18: 00:00:00 | I18: 00:00:00 | J18: 2015-01-01 | K18: 2016-01-01 | L18: 2017-01-01 | M18: 2018-01-01 | N18: 2019-01-01 | O18: 2020-01-01 | P18: 2021-01-01 | Q18: 2022-01-01 | R18: 2023-01-01 | S18: 2024-01-01 | T18: 2025-01-01 | U18: 2026-01-01 | V18: 2027-01-01 | W18: 2028-01-01 | X18: 2029-01-01 | Y18: 2030-01-01 | Z18: 2031-01-01 | AA18: 2032-01-01 | AB18: 2033-01-01 | AC18: 2034-01-01 | AD18: 2035-01-01 | AE18: 2036-01-01 | AF18: 2037-01-01 | AG18: 2038-01-01 | AH18: 2039-01-01 | AI18: 2040-01-01 | AJ18: 2041-01-01 | AK18: =AK15 -> 2042-01-01 | AL18: 2043-01-01 | AM18: 2044-01-01 | AN18: 2045-01-01 | AO18: 2046-01-01 | AP18: 2047-01-01 | AQ18: 2048-01-01 | AR18: 2049-01-01 | AS18: 2050-01-01 | AT18: 2051-01-01 | AU18: 2052-01-01 | AV18: 2053-01-01 | AW18: 2054-01-01 | AX18: 2055-01-01 | AY18: 2056-01-01 | AZ18: 2057-01-01 | BA18: 2058-01-01 | BB18: 2059-01-01 | BC18: 2060-01-01
E19: Model period ending | G19: date | J19: =DATE(YEAR(J18), MONTH(J18) + $F17, DAY(J18) - 1) -> 2015-12-31 | K19: 2016-12-31 | L19: 2017-12-31 | M19: 2018-12-31 | N19: 2019-12-31 | O19: 2020-12-31 | P19: 2021-12-31 | Q19: 2022-12-31 | R19: 2023-12-31 | S19: 2024-12-31 | T19: 2025-12-31 | U19: 2026-12-31 | V19: 2027-12-31 | W19: 2028-12-31 | X19: 2029-12-31 | Y19: 2030-12-31 | Z19: 2031-12-31 | AA19: 2032-12-31 | AB19: 2033-12-31 | AC19: 2034-12-31 | AD19: 2035-12-31 | AE19: 2036-12-31 | AF19: 2037-12-31 | AG19: 2038-12-31 | AH19: 2039-12-31 | AI19: 2040-12-31 | AJ19: 2041-12-31 | AK19: 2042-12-31 | AL19: 2043-12-31 | AM19: 2044-12-31 | AN19: 2045-12-31 | AO19: 2046-12-31 | AP19: =DATE(YEAR(AP18), MONTH(AP18) + $F17, DAY(AP18) - 1) -> 2047-12-31 | AQ19: 2048-12-31 | AR19: 2049-12-31 | AS19: 2050-12-31 | AT19: 2051-12-31 | AU19: 2052-12-31 | AV19: 2053-12-31 | AW19: 2054-12-31 | AX19: 2055-12-31 | AY19: 2056-12-31 | AZ19: 2057-12-31 | BA19: 2058-12-31 | BB19: 2059-12-31 | BC19: 2060-12-31
E21: =InpC!E$15 -> 1st model column start date | F21: =InpC!F$15 -> 2015-01-01 | G21: =InpC!G$15 -> date
E22: First modeling column financial year | F22: =YEAR(F21) -> 2015 | G22: year
E24: =E22 -> First modeling column financial year | F24: 2015 | G24: year
E25: =InpC!E$19 -> Financial year end month number | F25: =InpC!F$19 -> 12 | G25: =InpC!G$19 -> month #
E26: =E19 -> Model period ending | F26: 00:00:00 | G26: date | H26: 00:00:00 | I26: 00:00:00 | J26: 2015-12-31 | K26: 2016-12-31 | L26: 2017-12-31 | M26: 2018-12-31 | N26: 2019-12-31 | O26: 2020-12-31 | P26: 2021-12-31 | Q26: 2022-12-31 | R26: 2023-12-31 | S26: 2024-12-31 | T26: 2025-12-31 | U26: 2026-12-31 | V26: 2027-12-31 | W26: 2028-12-31 | X26: 2029-12-31 | Y26: 2030-12-31 | Z26: 2031-12-31 | AA26: 2032-12-31 | AB26: 2033-12-31 | AC26: 2034-12-31 | AD26: 2035-12-31 | AE26: 2036-12-31 | AF26: 2037-12-31 | AG26: 2038-12-31 | AH26: 2039-12-31 | AI26: 2040-12-31 | AJ26: 2041-12-31 | AK26: =AK19 -> 2042-12-31 | AL26: 2043-12-31 | AM26: 2044-12-31 | AN26: 2045-12-31 | AO26: 2046-12-31 | AP26: 2047-12-31 | AQ26: 2048-12-31 | AR26: 2049-12-31 | AS26: 2050-12-31 | AT26: 2051-12-31 | AU26: 2052-12-31 | AV26: 2053-12-31 | AW26: 2054-12-31 | AX26: 2055-12-31 | AY26: 2056-12-31 | AZ26: 2057-12-31 | BA26: 2058-12-31 | BB26: 2059-12-31 | BC26: 2060-12-31
E27: =E10 -> First model column flag | F27: 0 | G27: flag | H27: 0 | I27: 0 | J27: 1 | K27: 0 | L27: 0 | M27: 0 | N27: 0 | O27: 0 | P27: 0 | Q27: 0 | R27: 0 | S27: 0 | T27: 0 | U27: 0 | V27: 0 | W27: 0 | X27: 0 | Y27: 0 | Z27: 0 | AA27: 0 | AB27: 0 | AC27: 0 | AD27: 0 | AE27: 0 | AF27: 0 | AG27: 0 | AH27: 0 | AI27: 0 | AJ27: 0 | AK27: =AK10 -> 0 | AL27: 0 | AM27: 0 | AN27: 0 | AO27: 0 | AP27: 0 | AQ27: 0 | AR27: 0 | AS27: 0 | AT27: 0 | AU27: 0 | AV27: 0 | AW27: 0 | AX27: 0 | AY27: 0 | AZ27: 0 | BA27: 0 | BB27: 0 | BC27: 0
E28: Financial year ending | G28: year | J28: =IF(J27 = 1, $F24, IF(J26 > (DATE(I28, $F25 + 1, 1) - 1), I28 + 1, I28)) -> 2015 | K28: 2016 | L28: 2017 | M28: 2018 | N28: 2019 | O28: 2020 | P28: 2021 | Q28: 2022 | R28: 2023 | S28: 2024 | T28: 2025 | U28: 2026 | V28: 2027 | W28: 2028 | X28: 2029 | Y28: 2030 | Z28: 2031 | AA28: 2032 | AB28: 2033 | AC28: 2034 | AD28: 2035 | AE28: 2036 | AF28: 2037 | AG28: 2038 | AH28: 2039 | AI28: 2040 | AJ28: 2041 | AK28: 2042 | AL28: 2043 | AM28: 2044 | AN28: 2045 | AO28: 2046 | AP28: =IF(AP27 = 1, $F24, IF(AP26 > (DATE(AO28, $F25 + 1, 1) - 1), AO28 + 1, AO28)) -> 2047 | AQ28: 2048 | AR28: 2049 | AS28: 2050 | AT28: 2051 | AU28: 2052 | AV28: 2053 | AW28: 2054 | AX28: 2055 | AY28: 2056 | AZ28: 2057 | BA28: 2058 | BB28: 2059 | BC28: 2060
A31: FLAGS AND ESCALATIONS
B33: Timing Flags
E34: =InpC!E$16 -> Forecast start date | F34: =InpC!F$16 -> 2021 | G34: =InpC!G$16 -> year
E35: =InpC!E$21 -> Project operation start year | F35: =InpC!F$21 -> 2024 | G35: =InpC!G$21 -> year
E36: =InpC!E$17 -> Length of BCA period (operating) | F36: =InpC!F$17 -> 30 | G36: =InpC!G$17 -> years
E37: Length of forecast period | F37: =F35 - F34 + F36 - 1 -> 32 | G37: year #
E39: =InpC!E$16 -> Forecast start date | F39: =InpC!F$16 -> 2021 | G39: =InpC!G$16 -> year
E40: =E$37 -> Length of forecast period | F40: 32 | G40: year #
E41: Last forecast date | F41: =F39 + F40 -> 2053 | G41: date
E43: =E41 -> Last forecast date | F43: 2053 | G43: date
E44: =InpC!E$16 -> Forecast start date | F44: =InpC!F$16 -> 2021 | G44: =InpC!G$16 -> year
E45: =E$28 -> Financial year ending | F45: 0 | G45: year | H45: 0 | I45: 0 | J45: 2015 | K45: 2016 | L45: 2017 | M45: 2018 | N45: 2019 | O45: 2020 | P45: 2021 | Q45: 2022 | R45: 2023 | S45: 2024 | T45: 2025 | U45: 2026 | V45: 2027 | W45: 2028 | X45: 2029 | Y45: 2030 | Z45: 2031 | AA45: 2032 | AB45: 2033 | AC45: 2034 | AD45: 2035 | AE45: 2036 | AF45: 2037 | AG45: 2038 | AH45: 2039 | AI45: 2040 | AJ45: 2041 | AK45: =AK$28 -> 2042 | AL45: 2043 | AM45: 2044 | AN45: 2045 | AO45: 2046 | AP45: 2047 | AQ45: 2048 | AR45: 2049 | AS45: 2050 | AT45: 2051 | AU45: 2052 | AV45: 2053 | AW45: 2054 | AX45: 2055 | AY45: 2056 | AZ45: 2057 | BA45: 2058 | BB45: 2059 | BC45: 2060
E46: Forecast period flag | G46: flag | H46: =SUM(J46:BC46) -> 33 | J46: =IF(AND(J45 <= $F43, J45 >= $F44), 1, 0) -> 0 | K46: 0 | L46: 0 | M46: 0 | N46: 0 | O46: 0 | P46: 1 | Q46: 1 | R46: 1 | S46: 1 | T46: 1 | U46: 1 | V46: 1 | W46: 1 | X46: 1 | Y46: 1 | Z46: 1 | AA46: 1 | AB46: 1 | AC46: 1 | AD46: 1 | AE46: 1 | AF46: 1 | AG46: 1 | AH46: 1 | AI46: 1 | AJ46: 1 | AK46: 1 | AL46: 1 | AM46: 1 | AN46: 1 | AO46: 1 | AP46: =IF(AND(AP45 <= $F43, AP45 >= $F44), 1, 0) -> 1 | AQ46: 1 | AR46: 1 | AS46: 1 | AT46: 1 | AU46: 1 | AV46: 1 | AW46: 0 | AX46: 0 | AY46: 0 | AZ46: 0 | BA46: 0 | BB46: 0 | BC46: 0
E48: =InpC!E$16 -> Forecast start date | F48: =InpC!F$16 -> 2021 | G48: =InpC!G$16 -> year
E49: =E$28 -> Financial year ending | F49: 0 | G49: year | H49: 0 | I49: 0 | J49: 2015 | K49: 2016 | L49: 2017 | M49: 2018 | N49: 2019 | O49: 2020 | P49: 2021 | Q49: 2022 | R49: 2023 | S49: 2024 | T49: 2025 | U49: 2026 | V49: 2027 | W49: 2028 | X49: 2029 | Y49: 2030 | Z49: 2031 | AA49: 2032 | AB49: 2033 | AC49: 2034 | AD49: 2035 | AE49: 2036 | AF49: 2037 | AG49: 2038 | AH49: 2039 | AI49: 2040 | AJ49: 2041 | AK49: 2042 | AL49: 2043 | AM49: 2044 | AN49: 2045 | AO49: 2046 | AP49: 2047 | AQ49: 2048 | AR49: 2049 | AS49: 2050 | AT49: 2051 | AU49: 2052 | AV49: 2053 | AW49: 2054 | AX49: 2055 | AY49: 2056 | AZ49: 2057 | BA49: 2058 | BB49: 2059 | BC49: 2060
E50: Pre-forecast flag | G50: flag | H50: =SUM(J50:BC50) -> 6 | J50: =IF(J49 < $F48, 1, 0) -> 1 | K50: 1 | L50: 1 | M50: 1 | N50: 1 | O50: 1 | P50: 0 | Q50: 0 | R50: 0 | S50: 0 | T50: 0 | U50: 0 | V50: 0 | W50: 0 | X50: 0 | Y50: 0 | Z50: 0 | AA50: 0 | AB50: 0 | AC50: 0 | AD50: 0 | AE50: 0 | AF50: 0 | AG50: 0 | AH50: 0 | AI50: 0 | AJ50: 0 | AK50: 0 | AL50: 0 | AM50: 0 | AN50: 0 | AO50: 0 | AP50: =IF(AP49 < $F48, 1, 0) -> 0 | AQ50: 0 | AR50: 0 | AS50: 0 | AT50: 0 | AU50: 0 | AV50: 0 | AW50: 0 | AX50: 0 | AY50: 0 | AZ50: 0 | BA50: 0 | BB50: 0 | BC50: 0
E52: =E46 -> Forecast period flag | F52: 0 | G52: flag | H52: 33 | I52: 0 | J52: 0 | K52: 0 | L52: 0 | M52: 0 | N52: 0 | O52: 0 | P52: 1 | Q52: 1 | R52: 1 | S52: 1 | T52: 1 | U52: 1 | V52: 1 | W52: 1 | X52: 1 | Y52: 1 | Z52: 1 | AA52: 1 | AB52: 1 | AC52: 1 | AD52: 1 | AE52: 1 | AF52: 1 | AG52: 1 | AH52: 1 | AI52: 1 | AJ52: 1 | AK52: =AK46 -> 1 | AL52: 1 | AM52: 1 | AN52: 1 | AO52: 1 | AP52: 1 | AQ52: 1 | AR52: 1 | AS52: 1 | AT52: 1 | AU52: 1 | AV52: 1 | AW52: 0 | AX52: 0 | AY52: 0 | AZ52: 0 | BA52: 0 | BB52: 0 | BC52: 0
E53: =E$50 -> Pre-forecast flag | F53: 0 | G53: flag | H53: 6 | I53: 0 | J53: 1 | K53: 1 | L53: 1 | M53: 1 | N53: 1 | O53: 1 | P53: 0 | Q53: 0 | R53: 0 | S53: 0 | T53: 0 | U53: 0 | V53: 0 | W53: 0 | X53: 0 | Y53: 0 | Z53: 0 | AA53: 0 | AB53: 0 | AC53: 0 | AD53: 0 | AE53: 0 | AF53: 0 | AG53: 0 | AH53: 0 | AI53: 0 | AJ53: 0 | AK53: 0 | AL53: 0 | AM53: 0 | AN53: 0 | AO53: 0 | AP53: 0 | AQ53: 0 | AR53: 0 | AS53: 0 | AT53: 0 | AU53: 0 | AV53: 0 | AW53: 0 | AX53: 0 | AY53: 0 | AZ53: 0 | BA53: 0 | BB53: 0 | BC53: 0
E54: Pre-forecast vs forecast | G54: timeline label | J54: =IF(J53 = 1, "Pre-forecast", IF(J52 = 1, "Forecast", "Post-forecast")) -> Pre-forecast | K54: Pre-forecast | L54: Pre-forecast | M54: Pre-forecast | N54: Pre-forecast | O54: Pre-forecast | P54: Forecast | Q54: Forecast | R54: Forecast | S54: Forecast | T54: Forecast | U54: Forecast | V54: Forecast | W54: Forecast | X54: Forecast | Y54: Forecast | Z54: Forecast | AA54: Forecast | AB54: Forecast | AC54: Forecast | AD54: Forecast | AE54: Forecast | AF54: Forecast | AG54: Forecast | AH54: Forecast | AI54: Forecast | AJ54: Forecast | AK54: Forecast | AL54: Forecast | AM54: Forecast | AN54: Forecast | AO54: Forecast | AP54: =IF(AP53 = 1, "Pre-forecast", IF(AP52 = 1, "Forecast", "Post-forecast")) -> Forecast | AQ54: Forecast | AR54: Forecast | AS54: Forecast | AT54: Forecast | AU54: Forecast | AV54: Forecast | AW54: Post-forecast | AX54: Post-forecast | AY54: Post-forecast | AZ54: Post-forecast | BA54: Post-forecast | BB54: Post-forecast | BC54: Post-forecast
E56: =InpC!E$16 -> Forecast start date | F56: =InpC!F$16 -> 2021 | G56: =InpC!G$16 -> year
E57: =E$28 -> Financial year ending | F57: 0 | G57: year | H57: 0 | I57: 0 | J57: 2015 | K57: 2016 | L57: 2017 | M57: 2018 | N57: 2019 | O57: 2020 | P57: 2021 | Q57: 2022 | R57: 2023 | S57: 2024 | T57: 2025 | U57: 2026 | V57: 2027 | W57: 2028 | X57: 2029 | Y57: 2030 | Z57: 2031 | AA57: 2032 | AB57: 2033 | AC57: 2034 | AD57: 2035 | AE57: 2036 | AF57: 2037 | AG57: 2038 | AH57: 2039 | AI57: 2040 | AJ57: 2041 | AK57: 2042 | AL57: 2043 | AM57: 2044 | AN57: 2045 | AO57: 2046 | AP57: 2047 | AQ57: 2048 | AR57: 2049 | AS57: 2050 | AT57: 2051 | AU57: 2052 | AV57: 2053 | AW57: 2054 | AX57: 2055 | AY57: 2056 | AZ57: 2057 | BA57: 2058 | BB57: 2059 | BC57: 2060
E58: First forecast period flag | G58: flag | H58: =SUM(J58:BC58) -> 1 | J58: =IF(J57 = $F56, 1, 0) -> 0 | K58: 0 | L58: 0 | M58: 0 | N58: 0 | O58: 0 | P58: 1 | Q58: 0 | R58: 0 | S58: 0 | T58: 0 | U58: 0 | V58: 0 | W58: 0 | X58: 0 | Y58: 0 | Z58: 0 | AA58: 0 | AB58: 0 | AC58: 0 | AD58: 0 | AE58: 0 | AF58: 0 | AG58: 0 | AH58: 0 | AI58: 0 | AJ58: 0 | AK58: 0 | AL58: 0 | AM58: 0 | AN58: 0 | AO58: 0 | AP58: =IF(AP57 = $F56, 1, 0) -> 0 | AQ58: 0 | AR58: 0 | AS58: 0 | AT58: 0 | AU58: 0 | AV58: 0 | AW58: 0 | AX58: 0 | AY58: 0 | AZ58: 0 | BA58: 0 | BB58: 0 | BC58: 0
E60: =E$41 -> Last forecast date | F60: =F$41 -> 2053 | G60: date
E61: =E$28 -> Financial year ending | F61: 0 | G61: year | H61: 0 | I61: 0 | J61: 2015 | K61: 2016 | L61: 2017 | M61: 2018 | N61: 2019 | O61: 2020 | P61: 2021 | Q61: 2022 | R61: 2023 | S61: 2024 | T61: 2025 | U61: 2026 | V61: 2027 | W61: 2028 | X61: 2029 | Y61: 2030 | Z61: 2031 | AA61: 2032 | AB61: 2033 | AC61: 2034 | AD61: 2035 | AE61: 2036 | AF61: 2037 | AG61: 2038 | AH61: 2039 | AI61: 2040 | AJ61: 2041 | AK61: 2042 | AL61: 2043 | AM61: 2044 | AN61: 2045 | AO61: 2046 | AP61: 2047 | AQ61: 2048 | AR61: 2049 | AS61: 2050 | AT61: 2051 | AU61: 2052 | AV61: 2053 | AW61: 2054 | AX61: 2055 | AY61: 2056 | AZ61: 2057 | BA61: 2058 | BB61: 2059 | BC61: 2060
E62: Last forecast period flag | G62: flag | H62: =SUM(J62:BC62) -> 1 | J62: =IF(J61 = $F60, 1, 0) -> 0 | K62: 0 | L62: 0 | M62: 0 | N62: 0 | O62: 0 | P62: 0 | Q62: 0 | R62: 0 | S62: 0 | T62: 0 | U62: 0 | V62: 0 | W62: 0 | X62: 0 | Y62: 0 | Z62: 0 | AA62: 0 | AB62: 0 | AC62: 0 | AD62: 0 | AE62: 0 | AF62: 0 | AG62: 0 | AH62: 0 | AI62: 0 | AJ62: 0 | AK62: 0 | AL62: 0 | AM62: 0 | AN62: 0 | AO62: 0 | AP62: =IF(AP61 = $F60, 1, 0) -> 0 | AQ62: 0 | AR62: 0 | AS62: 0 | AT62: 0 | AU62: 0 | AV62: 1 | AW62: 0 | AX62: 0 | AY62: 0 | AZ62: 0 | BA62: 0 | BB62: 0 | BC62: 0
E64: =InpC!E$21 -> Project operation start year | F64: =InpC!F$21 -> 2024 | G64: =InpC!G$21 -> year
E65: =E$28 -> Financial year ending | F65: 0 | G65: year | H65: 0 | I65: 0 | J65: 2015 | K65: 2016 | L65: 2017 | M65: 2018 | N65: 2019 | O65: 2020 | P65: 2021 | Q65: 2022 | R65: 2023 | S65: 2024 | T65: 2025 | U65: 2026 | V65: 2027 | W65: 2028 | X65: 2029 | Y65: 2030 | Z65: 2031 | AA65: 2032 | AB65: 2033 | AC65: 2034 | AD65: 2035 | AE65: 2036 | AF65: 2037 | AG65: 2038 | AH65: 2039 | AI65: 2040 | AJ65: 2041 | AK65: 2042 | AL65: 2043 | AM65: 2044 | AN65: 2045 | AO65: 2046 | AP65: 2047 | AQ65: 2048 | AR65: 2049 | AS65: 2050 | AT65: 2051 | AU65: 2052 | AV65: 2053 | AW65: 2054 | AX65: 2055 | AY65: 2056 | AZ65: 2057 | BA65: 2058 | BB65: 2059 | BC65: 2060
E66: =E$46 -> Forecast period flag | F66: 0 | G66: flag | H66: 33 | I66: 0 | J66: 0 | K66: 0 | L66: 0 | M66: 0 | N66: 0 | O66: 0 | P66: 1 | Q66: 1 | R66: 1 | S66: 1 | T66: 1 | U66: 1 | V66: 1 | W66: 1 | X66: 1 | Y66: 1 | Z66: 1 | AA66: 1 | AB66: 1 | AC66: 1 | AD66: 1 | AE66: 1 | AF66: 1 | AG66: 1 | AH66: 1 | AI66: 1 | AJ66: 1 | AK66: =AK$46 -> 1 | AL66: 1 | AM66: 1 | AN66: 1 | AO66: 1 | AP66: 1 | AQ66: 1 | AR66: 1 | AS66: 1 | AT66: 1 | AU66: 1 | AV66: 1 | AW66: 0 | AX66: 0 | AY66: 0 | AZ66: 0 | BA66: 0 | BB66: 0 | BC66: 0
E67: Operating period flag | G67: flag | H67: =SUM(J67:BC67) -> 30 | J67: =IF(J65 >= $F64, 1 * J66, 0) -> 0 | K67: 0 | L67: 0 | M67: 0 | N67: 0 | O67: 0 | P67: 0 | Q67: 0 | R67: 0 | S67: 1 | T67: 1 | U67: 1 | V67: 1 | W67: 1 | X67: 1 | Y67: 1 | Z67: 1 | AA67: 1 | AB67: 1 | AC67: 1 | AD67: 1 | AE67: 1 | AF67: 1 | AG67: 1 | AH67: 1 | AI67: 1 | AJ67: 1 | AK67: 1 | AL67: 1 | AM67: 1 | AN67: 1 | AO67: 1 | AP67: =IF(AP65 >= $F64, 1 * AP66, 0) -> 1 | AQ67: 1 | AR67: 1 | AS67: 1 | AT67: 1 | AU67: 1 | AV67: 1 | AW67: 0 | AX67: 0 | AY67: 0 | AZ67: 0 | BA67: 0 | BB67: 0 | BC67: 0
B69: Escalations
E70: =InpC!E$23 -> Base year | F70: =InpC!F$23 -> 2019 | G70: =InpC!G$23 -> year
E71: =InpC!E$24 -> Discount rate (excluding CO2 emissions) | F71: =InpC!F$24 -> 0.07 | G71: =InpC!G$24 -> percent
E72: =E$28 -> Financial year ending | F72: 0 | G72: year | H72: 0 | I72: 0 | J72: 2015 | K72: 2016 | L72: 2017 | M72: 2018 | N72: 2019 | O72: 2020 | P72: 2021 | Q72: 2022 | R72: 2023 | S72: 2024 | T72: 2025 | U72: 2026 | V72: 2027 | W72: 2028 | X72: 2029 | Y72: 2030 | Z72: 2031 | AA72: 2032 | AB72: 2033 | AC72: 2034 | AD72: 2035 | AE72: 2036 | AF72: 2037 | AG72: 2038 | AH72: 2039 | AI72: 2040 | AJ72: 2041 | AK72: 2042 | AL72: 2043 | AM72: 2044 | AN72: 2045 | AO72: 2046 | AP72: 2047 | AQ72: 2048 | AR72: 2049 | AS72: 2050 | AT72: 2051 | AU72: 2052 | AV72: 2053 | AW72: 2054 | AX72: 2055 | AY72: 2056 | AZ72: 2057 | BA72: 2058 | BB72: 2059 | BC72: 2060
E73: Discount rate multiplier (excluding CO2 emissions) | G73: factor | J73: =((1 + $F71)^(J72 - $F70)) -> 0.762895212 | K73: 0.8162978769 | L73: 0.8734387283 | M73: 0.9345794393 | N73: 1 | O73: 1.07 | P73: 1.1449 | Q73: 1.225043 | R73: 1.31079601 | S73: 1.402551731 | T73: 1.500730352 | U73: 1.605781476 | V73: 1.71818618 | W73: 1.838459212 | X73: 1.967151357 | Y73: 2.104851952 | Z73: 2.252191589 | AA73: 2.409845 | AB73: 2.57853415 | AC73: 2.759031541 | AD73: 2.952163749 | AE73: 3.158815211 | AF73: 3.379932276 | AG73: 3.616527535 | AH73: 3.869684462 | AI73: 4.140562375 | AJ73: 4.430401741 | AK73: 4.740529863 | AL73: 5.072366953 | AM73: 5.42743264 | AN73: 5.807352925 | AO73: 6.21386763 | AP73: 6.648838364 | AQ73: 7.114257049 | AR73: 7.612255043 | AS73: 8.145112896 | AT73: 8.715270798 | AU73: 9.325339754 | AV73: 9.978113537 | AW73: 10.67658148 | AX73: 11.42394219 | AY73: 12.22361814 | AZ73: 13.07927141 | BA73: 13.99482041 | BB73: 14.97445784 | BC73: 16.02266989
E75: =InpC!E$23 -> Base year | F75: =InpC!F$23 -> 2019 | G75: =InpC!G$23 -> year
E76: =InpC!E$25 -> Discount rate (for CO2 emissions) | F76: =InpC!F$25 -> 0.03 | G76: =InpC!G$25 -> percent
E77: =E$28 -> Financial year ending | F77: 0 | G77: year | H77: 0 | I77: 0 | J77: 2015 | K77: 2016 | L77: 2017 | M77: 2018 | N77: 2019 | O77: 2020 | P77: 2021 | Q77: 2022 | R77: 2023 | S77: 2024 | T77: 2025 | U77: 2026 | V77: 2027 | W77: 2028 | X77: 2029 | Y77: 2030 | Z77: 2031 | AA77: 2032 | AB77: 2033 | AC77: 2034 | AD77: 2035 | AE77: 2036 | AF77: 2037 | AG77: 2038 | AH77: 2039 | AI77: 2040 | AJ77: 2041 | AK77: 2042 | AL77: 2043 | AM77: 2044 | AN77: 2045 | AO77: 2046 | AP77: 2047 | AQ77: 2048 | AR77: 2049 | AS77: 2050 | AT77: 2051 | AU77: 2052 | AV77: 2053 | AW77: 2054 | AX77: 2055 | AY77: 2056 | AZ77: 2057 | BA77: 2058 | BB77: 2059 | BC77: 2060
E78: Discount rate multiplier (for CO2 emissions) | G78: factor | J78: =((1 + $F76)^(J77 - $F75)) -> 0.8884870479 | K78: 0.9151416594 | L78: 0.9425959091 | M78: 0.9708737864 | N78: 1 | O78: 1.03 | P78: 1.0609 | Q78: 1.092727 | R78: 1.12550881 | S78: 1.159274074 | T78: 1.194052297 | U78: 1.229873865 | V78: 1.266770081 | W78: 1.304773184 | X78: 1.343916379 | Y78: 1.384233871 | Z78: 1.425760887 | AA78: 1.468533713 | AB78: 1.512589725 | AC78: 1.557967417 | AD78: 1.604706439 | AE78: 1.652847632 | AF78: 1.702433061 | AG78: 1.753506053 | AH78: 1.806111235 | AI78: 1.860294572 | AJ78: 1.916103409 | AK78: 1.973586511 | AL78: 2.032794106 | AM78: 2.09377793 | AN78: 2.156591268 | AO78: 2.221289006 | AP78: 2.287927676 | AQ78: 2.356565506 | AR78: 2.427262471 | AS78: 2.500080345 | AT78: 2.575082756 | AU78: 2.652335238 | AV78: 2.731905296 | AW78: 2.813862454 | AX78: 2.898278328 | AY78: 2.985226678 | AZ78: 3.074783478 | BA78: 3.167026983 | BB78: 3.262037792 | BC78: 3.359898926
E80: =InpC!E$23 -> Base year | F80: =InpC!F$23 -> 2019 | G80: =InpC!G$23 -> year
E81: =InpV!E$9 -> CPI rate multiplier | F81: =InpV!F$9 -> 0 | G81: =InpV!G$9 -> multiplier | H81: =InpV!H$9 -> 0 | I81: =InpV!I$9 -> 0 | J81: =InpV!J$9 -> 0.9319664492 | K81: =InpV!K$9 -> 0.9417082588 | L81: =InpV!L$9 -> 0.9594166747 | M81: =InpV!M$9 -> 0.9824147755 | N81: =InpV!N$9 -> 1 | O81: =InpV!O$9 -> 1.014 | P81: =InpV!P$9 -> 1.03428 | Q81: =InpV!Q$9 -> 1.0549656 | R81: =InpV!R$9 -> 1.076064912 | S81: =InpV!S$9 -> 1.09758621 | T81: =InpV!T$9 -> 1.119537934 | U81: =InpV!U$9 -> 1.141928693 | V81: =InpV!V$9 -> 1.164767267 | W81: =InpV!W$9 -> 1.188062612 | X81: =InpV!X$9 -> 1.211823865 | Y81: =InpV!Y$9 -> 1.236060342 | Z81: =InpV!Z$9 -> 1.260781549 | AA81: =InpV!AA$9 -> 1.28599718 | AB81: =InpV!AB$9 -> 1.311717123 | AC81: =InpV!AC$9 -> 1.337951466 | AD81: =InpV!AD$9 -> 1.364710495 | AE81: =InpV!AE$9 -> 1.392004705 | AF81: =InpV!AF$9 -> 1.419844799 | AG81: =InpV!AG$9 -> 1.448241695 | AH81: =InpV!AH$9 -> 1.477206529 | AI81: =InpV!AI$9 -> 1.50675066 | AJ81: =InpV!AJ$9 -> 1.536885673 | AK81: =InpV!AK$9 -> 1.567623386 | AL81: =InpV!AL$9 -> 1.598975854 | AM81: =InpV!AM$9 -> 1.630955371 | AN81: =InpV!AN$9 -> 1.663574478 | AO81: =InpV!AO$9 -> 1.696845968 | AP81: =InpV!AP$9 -> 1.730782887 | AQ81: =InpV!AQ$9 -> 1.765398545 | AR81: =InpV!AR$9 -> 1.800706516 | AS81: =InpV!AS$9 -> 1.836720646 | AT81: =InpV!AT$9 -> 1.873455059 | AU81: =InpV!AU$9 -> 1.91092416 | AV81: =InpV!AV$9 -> 1.949142644 | AW81: =InpV!AW$9 -> 1.988125496 | AX81: =InpV!AX$9 -> 2.027888006 | AY81: =InpV!AY$9 -> 2.068445767 | AZ81: =InpV!AZ$9 -> 2.109814682 | BA81: =InpV!BA$9 -> 2.152010975 | BB81: =InpV!BB$9 -> 2.195051195 | BC81: =InpV!BC$9 -> 2.238952219
E82: =E$28 -> Financial year ending | F82: 0 | G82: year | H82: 0 | I82: 0 | J82: 2015 | K82: 2016 | L82: 2017 | M82: 2018 | N82: 2019 | O82: 2020 | P82: 2021 | Q82: 2022 | R82: 2023 | S82: 2024 | T82: 2025 | U82: 2026 | V82: 2027 | W82: 2028 | X82: 2029 | Y82: 2030 | Z82: 2031 | AA82: 2032 | AB82: 2033 | AC82: 2034 | AD82: 2035 | AE82: 2036 | AF82: 2037 | AG82: 2038 | AH82: 2039 | AI82: 2040 | AJ82: 2041 | AK82: 2042 | AL82: 2043 | AM82: 2044 | AN82: 2045 | AO82: 2046 | AP82: 2047 | AQ82: 2048 | AR82: 2049 | AS82: 2050 | AT82: 2051 | AU82: 2052 | AV82: 2053 | AW82: 2054 | AX82: 2055 | AY82: 2056 | AZ82: 2057 | BA82: 2058 | BB82: 2059 | BC82: 2060
E83: CPI rate multiplier | G83: factor | J83: =((1 + J81)^(J82 - $F80)) -> 0.07177970671 | K83: 0.1365991719 | L83: 0.2604632173 | M83: 0.504435304 | N83: 1 | O83: 2.014 | P83: 4.138295118 | Q83: 8.677880566 | R83: 18.57649237 | S83: 40.60683084 | T83: 90.66656505 | U83: 206.8402531 | V83: 482.2693918 | W83: 1149.576053 | X83: 2802.240438 | Y83: 6987.44996 | Z83: 17828.02361 | AA83: 46556.89124 | AB83: 124476.01 | AC83: 340825.7264 | AD83: 955977.4802 | AE83: 2747606.293 | AF83: 8094224.162 | AG83: 24447334.19 | AH83: 75725878.34 | AI83: 240621203.9 | AJ83: 784548337.5 | AK83: 2625550769 | AL83: 9020983151 | AM83: 3.183002866e+10 | AN83: 1.153681607e+11 | AO83: 4.296510113e+11 | AP83: 1.644526341e+12 | AQ83: 6.471041283e+12 | AR83: 2.61835214e+13 | AS83: 1.089716827e+14 | AT83: 4.665960879e+14 | AU83: 2.055982405e+15 | AV83: 9325164116901662 | AW83: 4.35470923e+16 | AX83: 2.094271959e+17 | AY83: 1.037487119e+18 | AZ83: 5.295553555e+18 | BA83: 2.785615186e+19 | BB83: 1.510472608e+20 | BC83: 8.444738287e+20

Sheet Volume
A1: Volume | F1: =InpC!$F$9 -> Case 1
E2: Model Period Ending | F2: =Check_Alert!F$2 -> 0 | G2: =Check_Alert!G$2 -> Error Checks | J2: =Time!J$2 -> 2015-12-31 | K2: =Time!K$2 -> 2016-12-31 | L2: =Time!L$2 -> 2017-12-31 | M2: =Time!M$2 -> 2018-12-31 | N2: =Time!N$2 -> 2019-12-31 | O2: =Time!O$2 -> 2020-12-31 | P2: =Time!P$2 -> 2021-12-31 | Q2: =Time!Q$2 -> 2022-12-31 | R2: =Time!R$2 -> 2023-12-31 | S2: =Time!S$2 -> 2024-12-31 | T2: =Time!T$2 -> 2025-12-31 | U2: =Time!U$2 -> 2026-12-31 | V2: =Time!V$2 -> 2027-12-31 | W2: =Time!W$2 -> 2028-12-31 | X2: =Time!X$2 -> 2029-12-31 | Y2: =Time!Y$2 -> 2030-12-31 | Z2: =Time!Z$2 -> 2031-12-31 | AA2: =Time!AA$2 -> 2032-12-31 | AB2: =Time!AB$2 -> 2033-12-31 | AC2: =Time!AC$2 -> 2034-12-31 | AD2: =Time!AD$2 -> 2035-12-31 | AE2: =Time!AE$2 -> 2036-12-31 | AF2: =Time!AF$2 -> 2037-12-31 | AG2: =Time!AG$2 -> 2038-12-31 | AH2: =Time!AH$2 -> 2039-12-31 | AI2: =Time!AI$2 -> 2040-12-31 | AJ2: =Time!AJ$2 -> 2041-12-31 | AK2: =Time!AK$2 -> 2042-12-31 | AL2: =Time!AL$2 -> 2043-12-31 | AM2: =Time!AM$2 -> 2044-12-31 | AN2: =Time!AN$2 -> 2045-12-31 | AO2: =Time!AO$2 -> 2046-12-31 | AP2: =Time!AP$2 -> 2047-12-31 | AQ2: =Time!AQ$2 -> 2048-12-31 | AR2: =Time!AR$2 -> 2049-12-31 | AS2: =Time!AS$2 -> 2050-12-31 | AT2: =Time!AT$2 -> 2051-12-31 | AU2: =Time!AU$2 -> 2052-12-31 | AV2: =Time!AV$2 -> 2053-12-31 | AW2: =Time!AW$2 -> 2054-12-31 | AX2: =Time!AX$2 -> 2055-12-31 | AY2: =Time!AY$2 -> 2056-12-31 | AZ2: =Time!AZ$2 -> 2057-12-31 | BA2: =Time!BA$2 -> 2058-12-31 | BB2: =Time!BB$2 -> 2059-12-31 | BC2: =Time!BC$2 -> 2060-12-31
E3: Pre-forecast vs Forecast | F3: =Check_Alert!F$3 -> 0 | G3: =Check_Alert!G$3 -> Alerts | J3: =Time!J$3 -> Pre-forecast | K3: =Time!K$3 -> Pre-forecast | L3: =Time!L$3 -> Pre-forecast | M3: =Time!M$3 -> Pre-forecast | N3: =Time!N$3 -> Pre-forecast | O3: =Time!O$3 -> Pre-forecast | P3: =Time!P$3 -> Forecast | Q3: =Time!Q$3 -> Forecast | R3: =Time!R$3 -> Forecast | S3: =Time!S$3 -> Forecast | T3: =Time!T$3 -> Forecast | U3: =Time!U$3 -> Forecast | V3: =Time!V$3 -> Forecast | W3: =Time!W$3 -> Forecast | X3: =Time!X$3 -> Forecast | Y3: =Time!Y$3 -> Forecast | Z3: =Time!Z$3 -> Forecast | AA3: =Time!AA$3 -> Forecast | AB3: =Time!AB$3 -> Forecast | AC3: =Time!AC$3 -> Forecast | AD3: =Time!AD$3 -> Forecast | AE3: =Time!AE$3 -> Forecast | AF3: =Time!AF$3 -> Forecast | AG3: =Time!AG$3 -> Forecast | AH3: =Time!AH$3 -> Forecast | AI3: =Time!AI$3 -> Forecast | AJ3: =Time!AJ$3 -> Forecast | AK3: =Time!AK$3 -> Forecast | AL3: =Time!AL$3 -> Forecast | AM3: =Time!AM$3 -> Forecast | AN3: =Time!AN$3 -> Forecast | AO3: =Time!AO$3 -> Forecast | AP3: =Time!AP$3 -> Forecast | AQ3: =Time!AQ$3 -> Forecast | AR3: =Time!AR$3 -> Forecast | AS3: =Time!AS$3 -> Forecast | AT3: =Time!AT$3 -> Forecast | AU3: =Time!AU$3 -> Forecast | AV3: =Time!AV$3 -> Forecast | AW3: =Time!AW$3 -> Post-forecast | AX3: =Time!AX$3 -> Post-forecast | AY3: =Time!AY$3 -> Post-forecast | AZ3: =Time!AZ$3 -> Post-forecast | BA3: =Time!BA$3 -> Post-forecast | BB3: =Time!BB$3 -> Post-forecast | BC3: =Time!BC$3 -> Post-forecast
E4: Financial Year Ending | J4: =Time!J$4 -> 2015 | K4: =Time!K$4 -> 2016 | L4: =Time!L$4 -> 2017 | M4: =Time!M$4 -> 2018 | N4: =Time!N$4 -> 2019 | O4: =Time!O$4 -> 2020 | P4: =Time!P$4 -> 2021 | Q4: =Time!Q$4 -> 2022 | R4: =Time!R$4 -> 2023 | S4: =Time!S$4 -> 2024 | T4: =Time!T$4 -> 2025 | U4: =Time!U$4 -> 2026 | V4: =Time!V$4 -> 2027 | W4: =Time!W$4 -> 2028 | X4: =Time!X$4 -> 2029 | Y4: =Time!Y$4 -> 2030 | Z4: =Time!Z$4 -> 2031 | AA4: =Time!AA$4 -> 2032 | AB4: =Time!AB$4 -> 2033 | AC4: =Time!AC$4 -> 2034 | AD4: =Time!AD$4 -> 2035 | AE4: =Time!AE$4 -> 2036 | AF4: =Time!AF$4 -> 2037 | AG4: =Time!AG$4 -> 2038 | AH4: =Time!AH$4 -> 2039 | AI4: =Time!AI$4 -> 2040 | AJ4: =Time!AJ$4 -> 2041 | AK4: =Time!AK$4 -> 2042 | AL4: =Time!AL$4 -> 2043 | AM4: =Time!AM$4 -> 2044 | AN4: =Time!AN$4 -> 2045 | AO4: =Time!AO$4 -> 2046 | AP4: =Time!AP$4 -> 2047 | AQ4: =Time!AQ$4 -> 2048 | AR4: =Time!AR$4 -> 2049 | AS4: =Time!AS$4 -> 2050 | AT4: =Time!AT$4 -> 2051 | AU4: =Time!AU$4 -> 2052 | AV4: =Time!AV$4 -> 2053 | AW4: =Time!AW$4 -> 2054 | AX4: =Time!AX$4 -> 2055 | AY4: =Time!AY$4 -> 2056 | AZ4: =Time!AZ$4 -> 2057 | BA4: =Time!BA$4 -> 2058 | BB4: =Time!BB$4 -> 2059 | BC4: =Time!BC$4 -> 2060
E5: Model Column counter | F5: Constant | G5: Unit | H5: Total | J5: =Time!J$5 -> 1 | K5: =Time!K$5 -> 2 | L5: =Time!L$5 -> 3 | M5: =Time!M$5 -> 4 | N5: =Time!N$5 -> 5 | O5: =Time!O$5 -> 6 | P5: =Time!P$5 -> 7 | Q5: =Time!Q$5 -> 8 | R5: =Time!R$5 -> 9 | S5: =Time!S$5 -> 10 | T5: =Time!T$5 -> 11 | U5: =Time!U$5 -> 12 | V5: =Time!V$5 -> 13 | W5: =Time!W$5 -> 14 | X5: =Time!X$5 -> 15 | Y5: =Time!Y$5 -> 16 | Z5: =Time!Z$5 -> 17 | AA5: =Time!AA$5 -> 18 | AB5: =Time!AB$5 -> 19 | AC5: =Time!AC$5 -> 20 | AD5: =Time!AD$5 -> 21 | AE5: =Time!AE$5 -> 22 | AF5: =Time!AF$5 -> 23 | AG5: =Time!AG$5 -> 24 | AH5: =Time!AH$5 -> 25 | AI5: =Time!AI$5 -> 26 | AJ5: =Time!AJ$5 -> 27 | AK5: =Time!AK$5 -> 28 | AL5: =Time!AL$5 -> 29 | AM5: =Time!AM$5 -> 30 | AN5: =Time!AN$5 -> 31 | AO5: =Time!AO$5 -> 32 | AP5: =Time!AP$5 -> 33 | AQ5: =Time!AQ$5 -> 34 | AR5: =Time!AR$5 -> 35 | AS5: =Time!AS$5 -> 36 | AT5: =Time!AT$5 -> 37 | AU5: =Time!AU$5 -> 38 | AV5: =Time!AV$5 -> 39 | AW5: =Time!AW$5 -> 40 | AX5: =Time!AX$5 -> 41 | AY5: =Time!AY$5 -> 42 | AZ5: =Time!AZ$5 -> 43 | BA5: =Time!BA$5 -> 44 | BB5: =Time!BB$5 -> 45 | BC5: =Time!BC$5 -> 46
A7: VOLUME FORECAST
E9: =InpV!E$24 -> Volume demand - Forecast | F9: =InpV!F$24 -> 0 | G9: =InpV!G$24 -> TEU | H9: =InpV!H$24 -> 0 | I9: =InpV!I$24 -> 0 | J9: =InpV!J$24 -> 228053.7519 | K9: =InpV!K$24 -> 268502.4 | L9: =InpV!L$24 -> 321928.2 | M9: =InpV!M$24 -> 403430.9881 | N9: =InpV!N$24 -> 485157.8991 | O9: =InpV!O$24 -> 515516.0426 | P9: =InpV!P$24 -> 544169.252 | Q9: =InpV!Q$24 -> 527400 | R9: =InpV!R$24 -> 527960 | S9: =InpV!S$24 -> 650471 | T9: =InpV!T$24 -> 652494 | U9: =InpV!U$24 -> 709491 | V9: =InpV!V$24 -> 711595 | W9: =InpV!W$24 -> 774169 | X9: =InpV!X$24 -> 776358 | Y9: =InpV!Y$24 -> 845062 | Z9: =InpV!Z$24 -> 847339 | AA9: =InpV!AA$24 -> 864286 | AB9: =InpV!AB$24 -> 881572 | AC9: =InpV!AC$24 -> 899203 | AD9: =InpV!AD$24 -> 917188 | AE9: =InpV!AE$24 -> 935531 | AF9: =InpV!AF$24 -> 954242 | AG9: =InpV!AG$24 -> 973327 | AH9: =InpV!AH$24 -> 992793 | AI9: =InpV!AI$24 -> 1012649 | AJ9: =InpV!AJ$24 -> 1032902 | AK9: =InpV!AK$24 -> 1053560 | AL9: =InpV!AL$24 -> 1074631 | AM9: =InpV!AM$24 -> 1096124 | AN9: =InpV!AN$24 -> 1118046 | AO9: =InpV!AO$24 -> 1140407 | AP9: =InpV!AP$24 -> 1163216 | AQ9: =InpV!AQ$24 -> 1186480 | AR9: =InpV!AR$24 -> 1210209 | AS9: =InpV!AS$24 -> 1234414 | AT9: =InpV!AT$24 -> 1259102 | AU9: =InpV!AU$24 -> 1284284 | AV9: =InpV!AV$24 -> 1309970 | AW9: =InpV!AW$24 -> 1336169 | AX9: =InpV!AX$24 -> 1362892 | AY9: =InpV!AY$24 -> 1390150 | AZ9: =InpV!AZ$24 -> 1417953 | BA9: =InpV!BA$24 -> 1446312 | BB9: =InpV!BB$24 -> 1475239 | BC9: =InpV!BC$24 -> 0
E10: =InpV!E$27 -> Terminal Capacity | F10: =InpV!F$27 -> 0 | G10: =InpV!G$27 -> TEU | H10: =InpV!H$27 -> 0 | I10: =InpV!I$27 -> 0 | J10: =InpV!J$27 -> 0 | K10: =InpV!K$27 -> 0 | L10: =InpV!L$27 -> 0 | M10: =InpV!M$27 -> 0 | N10: =InpV!N$27 -> 0 | O10: =InpV!O$27 -> 650000 | P10: =InpV!P$27 -> 650000 | Q10: =InpV!Q$27 -> 650000 | R10: =InpV!R$27 -> 650000 | S10: =InpV!S$27 -> 650000 | T10: =InpV!T$27 -> 1000000 | U10: =InpV!U$27 -> 1000000 | V10: =InpV!V$27 -> 1000000 | W10: =InpV!W$27 -> 1000000 | X10: =InpV!X$27 -> 1000000 | Y10: =InpV!Y$27 -> 1500000 | Z10: =InpV!Z$27 -> 1500000 | AA10: =InpV!AA$27 -> 1500000 | AB10: =InpV!AB$27 -> 1500000 | AC10: =InpV!AC$27 -> 1500000 | AD10: =InpV!AD$27 -> 1500000 | AE10: =InpV!AE$27 -> 1500000 | AF10: =InpV!AF$27 -> 1500000 | AG10: =InpV!AG$27 -> 1500000 | AH10: =InpV!AH$27 -> 1500000 | AI10: =InpV!AI$27 -> 1500000 | AJ10: =InpV!AJ$27 -> 1500000 | AK10: =InpV!AK$27 -> 1500000 | AL10: =InpV!AL$27 -> 1500000 | AM10: =InpV!AM$27 -> 1500000 | AN10: =InpV!AN$27 -> 1500000 | AO10: =InpV!AO$27 -> 1500000 | AP10: =InpV!AP$27 -> 1500000 | AQ10: =InpV!AQ$27 -> 1500000 | AR10: =InpV!AR$27 -> 1500000 | AS10: =InpV!AS$27 -> 1500000 | AT10: =InpV!AT$27 -> 1500000 | AU10: =InpV!AU$27 -> 1500000 | AV10: =InpV!AV$27 -> 1500000 | AW10: =InpV!AW$27 -> 1500000 | AX10: =InpV!AX$27 -> 1500000 | AY10: =InpV!AY$27 -> 1500000 | AZ10: =InpV!AZ$27 -> 1500000 | BA10: =InpV!BA$27 -> 1500000 | BB10: =InpV!BB$27 -> 1500000 | BC10: =InpV!BC$27 -> 0
E11: =Time!E$67 -> Operating period flag | F11: =Time!F$67 -> 0 | G11: =Time!G$67 -> flag | H11: =Time!H$67 -> 30 | I11: =Time!I$67 -> 0 | J11: =Time!J$67 -> 0 | K11: =Time!K$67 -> 0 | L11: =Time!L$67 -> 0 | M11: =Time!M$67 -> 0 | N11: =Time!N$67 -> 0 | O11: =Time!O$67 -> 0 | P11: =Time!P$67 -> 0 | Q11: =Time!Q$67 -> 0 | R11: =Time!R$67 -> 0 | S11: =Time!S$67 -> 1 | T11: =Time!T$67 -> 1 | U11: =Time!U$67 -> 1 | V11: =Time!V$67 -> 1 | W11: =Time!W$67 -> 1 | X11: =Time!X$67 -> 1 | Y11: =Time!Y$67 -> 1 | Z11: =Time!Z$67 -> 1 | AA11: =Time!AA$67 -> 1 | AB11: =Time!AB$67 -> 1 | AC11: =Time!AC$67 -> 1 | AD11: =Time!AD$67 -> 1 | AE11: =Time!AE$67 -> 1 | AF11: =Time!AF$67 -> 1 | AG11: =Time!AG$67 -> 1 | AH11: =Time!AH$67 -> 1 | AI11: =Time!AI$67 -> 1 | AJ11: =Time!AJ$67 -> 1 | AK11: =Time!AK$67 -> 1 | AL11: =Time!AL$67 -> 1 | AM11: =Time!AM$67 -> 1 | AN11: =Time!AN$67 -> 1 | AO11: =Time!AO$67 -> 1 | AP11: =Time!AP$67 -> 1 | AQ11: =Time!AQ$67 -> 1 | AR11: =Time!AR$67 -> 1 | AS11: =Time!AS$67 -> 1 | AT11: =Time!AT$67 -> 1 | AU11: =Time!AU$67 -> 1 | AV11: =Time!AV$67 -> 1 | AW11: =Time!AW$67 -> 0 | AX11: =Time!AX$67 -> 0 | AY11: =Time!AY$67 -> 0 | AZ11: =Time!AZ$67 -> 0 | BA11: =Time!BA$67 -> 0 | BB11: =Time!BB$67 -> 0 | BC11: =Time!BC$67 -> 0
E12: =E9 & " - Forecast" -> Volume demand - Forecast - Forecast | G12: TEU | H12: =SUM(J12:BC12) -> 29560644 | J12: =J11 * MAX(J9:J10) -> 0 | K12: =K11 * MIN(K9:K10) -> 0 | L12: =L11 * MIN(L9:L10) -> 0 | M12: 0 | N12: 0 | O12: 0 | P12: 0 | Q12: 0 | R12: 0 | S12: 650000 | T12: 652494 | U12: 709491 | V12: 711595 | W12: 774169 | X12: 776358 | Y12: 845062 | Z12: 847339 | AA12: 864286 | AB12: 881572 | AC12: 899203 | AD12: 917188 | AE12: 935531 | AF12: 954242 | AG12: 973327 | AH12: 992793 | AI12: 1012649 | AJ12: 1032902 | AK12: 1053560 | AL12: 1074631 | AM12: 1096124 | AN12: 1118046 | AO12: 1140407 | AP12: 1163216 | AQ12: 1186480 | AR12: 1210209 | AS12: 1234414 | AT12: 1259102 | AU12: 1284284 | AV12: 1309970 | AW12: 0 | AX12: 0 | AY12: 0 | AZ12: 0 | BA12: 0 | BB12: 0 | BC12: 0
E14: =E12 -> Volume demand - Forecast - Forecast | F14: =F12 -> 0 | G14: TEU | H14: 29560644 | I14: 0 | J14: 0 | K14: 0 | L14: 0 | M14: 0 | N14: 0 | O14: 0 | P14: 0 | Q14: 0 | R14: 0 | S14: 650000 | T14: 652494 | U14: 709491 | V14: 711595 | W14: 774169 | X14: 776358 | Y14: 845062 | Z14: 847339 | AA14: 864286 | AB14: 881572 | AC14: 899203 | AD14: 917188 | AE14: 935531 | AF14: 954242 | AG14: 973327 | AH14: 992793 | AI14: 1012649 | AJ14: 1032902 | AK14: 1053560 | AL14: 1074631 | AM14: 1096124 | AN14: 1118046 | AO14: 1140407 | AP14: 1163216 | AQ14: 1186480 | AR14: 1210209 | AS14: 1234414 | AT14: 1259102 | AU14: 1284284 | AV14: 1309970 | AW14: 0 | AX14: 0 | AY14: 0 | AZ14: 0 | BA14: 0 | BB14: 0 | BC14: 0
E15: =InpV!E$25 -> Rail Share | F15: =InpV!F$25 -> 0 | G15: =InpV!G$25 -> % | H15: =InpV!H$25 -> 0 | I15: =InpV!I$25 -> 0 | J15: =InpV!J$25 -> 0 | K15: =InpV!K$25 -> 0.009552987236 | L15: =InpV!L$25 -> 0.01553282205 | M15: =InpV!M$25 -> 0.01593505309 | N15: =InpV!N$25 -> 0.01126917301 | O15: =InpV!O$25 -> 0.03658291323 | P15: =InpV!P$25 -> 0.1029543019 | Q15: =InpV!Q$25 -> 0.1693256906 | R15: =InpV!R$25 -> 0.2356970792 | S15: =InpV!S$25 -> 0.2356970792 | T15: =InpV!T$25 -> 0.2356970792 | U15: =InpV!U$25 -> 0.2356970792 | V15: =InpV!V$25 -> 0.2356970792 | W15: =InpV!W$25 -> 0.2356970792 | X15: =InpV!X$25 -> 0.2356970792 | Y15: =InpV!Y$25 -> 0.2356970792 | Z15: =InpV!Z$25 -> 0.2356970792 | AA15: =InpV!AA$25 -> 0.2356970792 | AB15: =InpV!AB$25 -> 0.2356970792 | AC15: =InpV!AC$25 -> 0.2356970792 | AD15: =InpV!AD$25 -> 0.2356970792 | AE15: =InpV!AE$25 -> 0.2356970792 | AF15: =InpV!AF$25 -> 0.2356970792 | AG15: =InpV!AG$25 -> 0.2356970792 | AH15: =InpV!AH$25 -> 0.2356970792 | AI15: =InpV!AI$25 -> 0.2356970792 | AJ15: =InpV!AJ$25 -> 0.2356970792 | AK15: =InpV!AK$25 -> 0.2356970792 | AL15: =InpV!AL$25 -> 0.2356970792 | AM15: =InpV!AM$25 -> 0.2356970792 | AN15: =InpV!AN$25 -> 0.2356970792 | AO15: =InpV!AO$25 -> 0.2356970792 | AP15: =InpV!AP$25 -> 0.2356970792 | AQ15: =InpV!AQ$25 -> 0.2356970792 | AR15: =InpV!AR$25 -> 0.2356970792 | AS15: =InpV!AS$25 -> 0.2356970792 | AT15: =InpV!AT$25 -> 0.2356970792 | AU15: =InpV!AU$25 -> 0.2356970792 | AV15: =InpV!AV$25 -> 0.2356970792 | AW15: =InpV!AW$25 -> 0.2356970792 | AX15: =InpV!AX$25 -> 0.2356970792 | AY15: =InpV!AY$25 -> 0.2356970792 | AZ15: =InpV!AZ$25 -> 0.2356970792 | BA15: =InpV!BA$25 -> 0.2356970792 | BB15: =InpV!BB$25 -> 0.2356970792 | BC15: =InpV!BC$25 -> 0
E16: Rail Demand - Forecast | F16: 0 | G16: TEU | H16: =SUM(J16:BC16) -> 6967357.451 | J16: =J14 * J15 -> 0 | K16: =K14 * K15 -> 0 | L16: 0 | M16: 0 | N16: 0 | O16: 0 | P16: 0 | Q16: 0 | R16: 0 | S16: 153203.1015 | T16: 153790.93 | U16: 167224.9564 | V16: 167720.8631 | W16: 182469.3721 | X16: 182985.313 | Y16: 199178.6452 | Z16: 199715.3274 | AA16: 203709.6858 | AB16: 207783.9455 | AC16: 211939.5207 | AD16: 216178.5327 | AE16: 220501.9242 | AF16: 224912.0523 | AG16: 229410.331 | AH16: 233998.4104 | AI16: 238678.4116 | AJ16: 243451.9845 | AK16: 248321.0148 | AL16: 253287.388 | AM16: 258353.2253 | AN16: 263520.1767 | AO16: 268790.599 | AP16: 274166.6137 | AQ16: 279649.8706 | AR16: 285242.7266 | AS16: 290947.7744 | AT16: 296766.6639 | AU16: 302701.9877 | AV16: 308756.1029 | AW16: 0 | AX16: 0 | AY16: 0 | AZ16: 0 | BA16: 0 | BB16: 0 | BC16: 0
E18: =E12 -> Volume demand - Forecast - Forecast | F18: =F12 -> 0 | G18: TEU | H18: 29560644 | I18: 0 | J18: 0 | K18: 0 | L18: 0 | M18: 0 | N18: 0 | O18: 0 | P18: 0 | Q18: 0 | R18: 0 | S18: 650000 | T18: 652494 | U18: 709491 | V18: 711595 | W18: 774169 | X18: 776358 | Y18: 845062 | Z18: 847339 | AA18: 864286 | AB18: 881572 | AC18: 899203 | AD18: 917188 | AE18: 935531 | AF18: 954242 | AG18: 973327 | AH18: 992793 | AI18: 1012649 | AJ18: 1032902 | AK18: 1053560 | AL18: 1074631 | AM18: 1096124 | AN18: 1118046 | AO18: 1140407 | AP18: 1163216 | AQ18: 1186480 | AR18: 1210209 | AS18: 1234414 | AT18: 1259102 | AU18: 1284284 | AV18: 1309970 | AW18: 0 | AX18: 0 | AY18: 0 | AZ18: 0 | BA18: 0 | BB18: 0 | BC18: 0
E19: =E16 -> Rail Demand - Forecast | F19: =F16 -> 0 | G19: TEU | H19: 6967357.451 | I19: 0 | J19: 0 | K19: 0 | L19: 0 | M19: 0 | N19: 0 | O19: 0 | P19: 0 | Q19: 0 | R19: 0 | S19: 153203.1015 | T19: 153790.93 | U19: 167224.9564 | V19: 167720.8631 | W19: 182469.3721 | X19: 182985.313 | Y19: 199178.6452 | Z19: 199715.3274 | AA19: 203709.6858 | AB19: 207783.9455 | AC19: 211939.5207 | AD19: 216178.5327 | AE19: 220501.9242 | AF19: 224912.0523 | AG19: 229410.331 | AH19: 233998.4104 | AI19: 238678.4116 | AJ19: 243451.9845 | AK19: 248321.0148 | AL19: 253287.388 | AM19: 258353.2253 | AN19: 263520.1767 | AO19: 268790.599 | AP19: 274166.6137 | AQ19: 279649.8706 | AR19: 285242.7266 | AS19: 290947.7744 | AT19: 296766.6639 | AU19: 302701.9877 | AV19: 308756.1029 | AW19: 0 | AX19: 0 | AY19: 0 | AZ19: 0 | BA19: 0 | BB19: 0 | BC19: 0
E20: Truck Demand - Forecast | F20: 0 | G20: TEU | H20: =SUM(J20:BC20) -> 22593286.55 | J20: =J18 - J19 -> 0 | K20: =K18 - K19 -> 0 | L20: 0 | M20: 0 | N20: 0 | O20: 0 | P20: 0 | Q20: 0 | R20: 0 | S20: 496796.8985 | T20: 498703.07 | U20: 542266.0436 | V20: 543874.1369 | W20: 591699.6279 | X20: 593372.687 | Y20: 645883.3548 | Z20: 647623.6726 | AA20: 660576.3142 | AB20: 673788.0545 | AC20: 687263.4793 | AD20: 701009.4673 | AE20: 715029.0758 | AF20: 729329.9477 | AG20: 743916.669 | AH20: 758794.5896 | AI20: 773970.5884 | AJ20: 789450.0155 | AK20: 805238.9852 | AL20: 821343.612 | AM20: 837770.7747 | AN20: 854525.8233 | AO20: 871616.401 | AP20: 889049.3863 | AQ20: 906830.1294 | AR20: 924966.2734 | AS20: 943466.2256 | AT20: 962335.3361 | AU20: 981582.0123 | AV20: 1001213.897 | AW20: 0 | AX20: 0 | AY20: 0 | AZ20: 0 | BA20: 0 | BB20: 0 | BC20: 0
A22: REDUCTION IN HIGHWAY MILES
B24: Reduction Due to Relocation of Logisitcs Center
E25: =InpC!E$35 -> Share of Truck to Distribution Centers | F25: =InpC!F$35 -> 0.4 | G25: =InpC!G$35 -> percent
E26: =E20 -> Truck Demand - Forecast | F26: =F20 -> 0 | G26: TEU | H26: 22593286.55 | I26: 0 | J26: 0 | K26: 0 | L26: 0 | M26: 0 | N26: 0 | O26: 0 | P26: 0 | Q26: 0 | R26: 0 | S26: 496796.8985 | T26: 498703.07 | U26: 542266.0436 | V26: 543874.1369 | W26: 591699.6279 | X26: 593372.687 | Y26: 645883.3548 | Z26: 647623.6726 | AA26: 660576.3142 | AB26: 673788.0545 | AC26: 687263.4793 | AD26: 701009.4673 | AE26: 715029.0758 | AF26: 729329.9477 | AG26: 743916.669 | AH26: 758794.5896 | AI26: 773970.5884 | AJ26: 789450.0155 | AK26: 805238.9852 | AL26: 821343.612 | AM26: 837770.7747 | AN26: 854525.8233 | AO26: 871616.401 | AP26: 889049.3863 | AQ26: 906830.1294 | AR26: 924966.2734 | AS26: 943466.2256 | AT26: 962335.3361 | AU26: 981582.0123 | AV26: 1001213.897 | AW26: 0 | AX26: 0 | AY26: 0 | AZ26: 0 | BA26: 0 | BB26: 0 | BC26: 0
E27: Distribution Center Demand | F27: 0 | G27: TEU | H27: =SUM(J27:BC27) -> 9037314.619 | J27: =$F25 * J26 -> 0 | K27: =$F25 * K26 -> 0 | L27: 0 | M27: 0 | N27: 0 | O27: 0 | P27: 0 | Q27: 0 | R27: 0 | S27: 198718.7594 | T27: 199481.228 | U27: 216906.4174 | V27: 217549.6548 | W27: 236679.8511 | X27: 237349.0748 | Y27: 258353.3419 | Z27: 259049.469 | AA27: 264230.5257 | AB27: 269515.2218 | AC27: 274905.3917 | AD27: 280403.7869 | AE27: 286011.6303 | AF27: 291731.9791 | AG27: 297566.6676 | AH27: 303517.8358 | AI27: 309588.2354 | AJ27: 315780.0062 | AK27: 322095.5941 | AL27: 328537.4448 | AM27: 335108.3099 | AN27: 341810.3293 | AO27: 348646.5604 | AP27: 355619.7545 | AQ27: 362732.0518 | AR27: 369986.5094 | AS27: 377386.4902 | AT27: 384934.1345 | AU27: 392632.8049 | AV27: 400485.5588 | AW27: 0 | AX27: 0 | AY27: 0 | AZ27: 0 | BA27: 0 | BB27: 0 | BC27: 0
E29: =InpC!E$36 -> Current Distribution Center Distance | F29: =InpC!F$36 -> 36.25 | G29: =InpC!G$36 -> miles
E30: =InpC!E$37 -> Future Distribution Center Distance | F30: =InpC!F$37 -> 0.75 | G30: =InpC!G$37 -> miles
E31: Distance switched from International to Domestic | F31: =F29-F30 -> 35.5 | G31: miles
E33: =InpC!E$39 -> International TEU to box conversion factor | F33: =InpC!F$39 -> 0.5555555556 | G33: =InpC!G$39 -> box/TEU
E34: =E31 -> Distance switched from International to Domestic | F34: =F31 -> 35.5 | G34: miles
E35: =E27 -> Distribution Center Demand | F35: =F27 -> 0 | G35: TEU | H35: 9037314.619 | I35: 0 | J35: 0 | K35: 0 | L35: 0 | M35: 0 | N35: 0 | O35: 0 | P35: 0 | Q35: 0 | R35: 0 | S35: 198718.7594 | T35: 199481.228 | U35: 216906.4174 | V35: 217549.6548 | W35: 236679.8511 | X35: 237349.0748 | Y35: 258353.3419 | Z35: 259049.469 | AA35: 264230.5257 | AB35: 269515.2218 | AC35: 274905.3917 | AD35: 280403.7869 | AE35: 286011.6303 | AF35: 291731.9791 | AG35: 297566.6676 | AH35: 303517.8358 | AI35: 309588.2354 | AJ35: 315780.0062 | AK35: 322095.5941 | AL35: 328537.4448 | AM35: 335108.3099 | AN35: 341810.3293 | AO35: 348646.5604 | AP35: 355619.7545 | AQ35: 362732.0518 | AR35: 369986.5094 | AS35: 377386.4902 | AT35: 384934.1345 | AU35: 392632.8049 | AV35: 400485.5588 | AW35: 0 | AX35: 0 | AY35: 0 | AZ35: 0 | BA35: 0 | BB35: 0 | BC35: 0
E36: Truck Mile Travelled in International Boxes | F36: 0 | G36: miles | H36: =SUM(J36:BC36) -> 178235927.2 | J36: =$F33 * $F34 * J35 -> 0 | K36: =$F33 * $F34 * K35 -> 0 | L36: 0 | M36: 0 | N36: 0 | O36: 0 | P36: 0 | Q36: 0 | R36: 0 | S36: 3919175.533 | T36: 3934213.108 | U36: 4277876.566 | V36: 4290562.636 | W36: 4667852.62 | X36: 4681051.197 | Y36: 5095302.021 | Z36: 5109031.195 | AA36: 5211213.145 | AB36: 5315439.096 | AC36: 5421745.225 | AD36: 5530185.797 | AE36: 5640784.931 | AF36: 5753602.921 | AG36: 5868675.944 | AH36: 5986046.207 | AI36: 6105767.975 | AJ36: 6227883.455 | AK36: 6352440.883 | AL36: 6479488.495 | AM36: 6609080.556 | AN36: 6741259.273 | AO36: 6876084.941 | AP36: 7013611.825 | AQ36: 7153882.132 | AR36: 7296956.157 | AS36: 7442900.224 | AT36: 7591756.541 | AU36: 7743591.43 | AV36: 7898465.188 | AW36: 0 | AX36: 0 | AY36: 0 | AZ36: 0 | BA36: 0 | BB36: 0 | BC36: 0
E38: =InpC!E$38 -> TEU to domestic converstion factor | F38: =InpC!F$38 -> 0.3773584906 | G38: =InpC!G$38 -> box/TEU
E39: =E34 -> Distance switched from International to Domestic | F39: =F34 -> 35.5 | G39: miles
E40: =E35 -> Distribution Center Demand | F40: =F35 -> 0 | G40: TEU | H40: 9037314.619 | I40: 0 | J40: 0 | K40: 0 | L40: 0 | M40: 0 | N40: 0 | O40: 0 | P40: 0 | Q40: 0 | R40: 0 | S40: 198718.7594 | T40: 199481.228 | U40: 216906.4174 | V40: 217549.6548 | W40: 236679.8511 | X40: 237349.0748 | Y40: 258353.3419 | Z40: 259049.469 | AA40: 264230.5257 | AB40: 269515.2218 | AC40: 274905.3917 | AD40: 280403.7869 | AE40: 286011.6303 | AF40: 291731.9791 | AG40: 297566.6676 | AH40: 303517.8358 | AI40: 309588.2354 | AJ40: 315780.0062 | AK40: 322095.5941 | AL40: 328537.4448 | AM40: 335108.3099 | AN40: 341810.3293 | AO40: 348646.5604 | AP40: 355619.7545 | AQ40: 362732.0518 | AR40: 369986.5094 | AS40: 377386.4902 | AT40: 384934.1345 | AU40: 392632.8049 | AV40: 400485.5588 | AW40: 0 | AX40: 0 | AY40: 0 | AZ40: 0 | BA40: 0 | BB40: 0 | BC40: 0
E41: Truck Mile Travelled in Domestic Boxes | F41: 0 | G41: miles | H41: =SUM(J41:BC41) -> 121065912.8 | J41: =$F38 * $F39 * J40 -> 0 | K41: =$F38 * $F39 * K40 -> 0 | L41: =$F38 * $F39 * L40 -> 0 | M41: =$F38 * $F39 * M40 -> 0 | N41: =$F38 * $F39 * N40 -> 0 | O41: =$F38 * $F39 * O40 -> 0 | P41: =$F38 * $F39 * P40 -> 0 | Q41: =$F38 * $F39 * Q40 -> 0 | R41: =$F38 * $F39 * R40 -> 0 | S41: =$F38 * $F39 * S40 -> 2662081.494 | T41: =$F38 * $F39 * T40 -> 2672295.696 | U41: =$F38 * $F39 * U40 -> 2905727.479 | V41: =$F38 * $F39 * V40 -> 2914344.432 | W41: =$F38 * $F39 * W40 -> 3170616.874 | X41: =$F38 * $F39 * X40 -> 3179581.945 | Y41: =$F38 * $F39 * Y40 -> 3460959.864 | Z41: =$F38 * $F39 * Z40 -> 3470285.34 | AA41: =$F38 * $F39 * AA40 -> 3539691.948 | AB41: =$F38 * $F39 * AB40 -> 3610486.933 | AC41: =$F38 * $F39 * AC40 -> 3682694.87 | AD41: =$F38 * $F39 * AD40 -> 3756352.617 | AE41: =$F38 * $F39 * AE40 -> 3831476.557 | AF41: =$F38 * $F39 * AF40 -> 3908107.644 | AG41: =$F38 * $F39 * AG40 -> 3986270.452 | AH41: =$F38 * $F39 * AH40 -> 4065993.65 | AI41: =$F38 * $F39 * AI40 -> 4147314.096 | AJ41: =$F38 * $F39 * AJ40 -> 4230260.46 | AK41: =$F38 * $F39 * AK40 -> 4314865.506 | AL41: =$F38 * $F39 * AL40 -> 4401161.997 | AM41: =$F38 * $F39 * AM40 -> 4489186.793 | AN41: =$F38 * $F39 * AN40 -> 4578968.563 | AO41: =$F38 * $F39 * AO40 -> 4670548.262 | AP41: =$F38 * $F39 * AP40 -> 4763962.749 | AQ41: =$F38 * $F39 * AQ40 -> 4859240.693 | AR41: =$F38 * $F39 * AR40 -> 4956423.05 | AS41: =$F38 * $F39 * AS40 -> 5055554.869 | AT41: =$F38 * $F39 * AT40 -> 5156664.82 | AU41: =$F38 * $F39 * AU40 -> 5259797.953 | AV41: =$F38 * $F39 * AV40 -> 5364995.222 | AW41: =$F38 * $F39 * AW40 -> 0 | AX41: =$F38 * $F39 * AX40 -> 0 | AY41: =$F38 * $F39 * AY40 -> 0 | AZ41: =$F38 * $F39 * AZ40 -> 0 | BA41: =$F38 * $F39 * BA40 -> 0 | BB41: =$F38 * $F39 * BB40 -> 0 | BC41: =$F38 * $F39 * BC40 -> 0
E43: =E36 -> Truck Mile Travelled in International Boxes | F43: =F36 -> 0 | G43: miles | H43: 178235927.2 | I43: 0 | J43: 0 | K43: 0 | L43: 0 | M43: 0 | N43: 0 | O43: 0 | P43: 0 | Q43: 0 | R43: 0 | S43: 3919175.533 | T43: 3934213.108 | U43: 4277876.566 | V43: 4290562.636 | W43: 4667852.62 | X43: 4681051.197 | Y43: 5095302.021 | Z43: 5109031.195 | AA43: 5211213.145 | AB43: 5315439.096 | AC43: 5421745.225 | AD43: 5530185.797 | AE43: 5640784.931 | AF43: 5753602.921 | AG43: 5868675.944 | AH43: 5986046.207 | AI43: 6105767.975 | AJ43: 6227883.455 | AK43: 6352440.883 | AL43: 6479488.495 | AM43: 6609080.556 | AN43: 6741259.273 | AO43: 6876084.941 | AP43: 7013611.825 | AQ43: 7153882.132 | AR43: 7296956.157 | AS43: 7442900.224 | AT43: 7591756.541 | AU43: 7743591.43 | AV43: 7898465.188 | AW43: 0 | AX43: 0 | AY43: 0 | AZ43: 0 | BA43: 0 | BB43: 0 | BC43: 0
E44: =E41 -> Truck Mile Travelled in Domestic Boxes | F44: =F41 -> 0 | G44: miles | H44: 121065912.8 | I44: 0 | J44: 0 | K44: 0 | L44: 0 | M44: 0 | N44: 0 | O44: 0 | P44: 0 | Q44: 0 | R44: 0 | S44: 2662081.494 | T44: 2672295.696 | U44: 2905727.479 | V44: 2914344.432 | W44: 3170616.874 | X44: 3179581.945 | Y44: 3460959.864 | Z44: 3470285.34 | AA44: 3539691.948 | AB44: 3610486.933 | AC44: 3682694.87 | AD44: 3756352.617 | AE44: 3831476.557 | AF44: 3908107.644 | AG44: 3986270.452 | AH44: 4065993.65 | AI44: 4147314.096 | AJ44: 4230260.46 | AK44: 4314865.506 | AL44: 4401161.997 | AM44: 4489186.793 | AN44: 4578968.563 | AO44: 4670548.262 | AP44: 4763962.749 | AQ44: 4859240.693 | AR44: 4956423.05 | AS44: 5055554.869 | AT44: 5156664.82 | AU44: 5259797.953 | AV44: 5364995.222 | AW44: 0 | AX44: 0 | AY44: 0 | AZ44: 0 | BA44: 0 | BB44: 0 | BC44: 0
E45: Truck Mile Saved by bringing the logistics centers close to the port | F45: 0 | G45: miles | H45: =SUM(J45:BC45) -> 57170014.39 | J45: =J43 - J44 -> 0 | K45: =K43 - K44 -> 0 | L45: 0 | M45: 0 | N45: 0 | O45: 0 | P45: 0 | Q45: 0 | R45: 0 | S45: 1257094.039 | T45: 1261917.412 | U45: 1372149.087 | V45: 1376218.204 | W45: 1497235.746 | X45: 1501469.252 | Y45: 1634342.158 | Z45: 1638745.855 | AA45: 1671521.197 | AB45: 1704952.163 | AC45: 1739050.355 | AD45: 1773833.18 | AE45: 1809308.374 | AF45: 1845495.276 | AG45: 1882405.491 | AH45: 1920052.557 | AI45: 1958453.879 | AJ45: 1997622.995 | AK45: 2037575.378 | AL45: 2078326.498 | AM45: 2119893.763 | AN45: 2162290.71 | AO45: 2205536.679 | AP45: 2249649.076 | AQ45: 2294641.439 | AR45: 2340533.107 | AS45: 2387345.355 | AT45: 2435091.721 | AU45: 2483793.478 | AV45: 2533469.966 | AW45: 0 | AX45: 0 | AY45: 0 | AZ45: 0 | BA45: 0 | BB45: 0 | BC45: 0
S46: =S45/S43 -> 0.320754717 | T46: =T45/T43 -> 0.320754717 | U46: 0.320754717 | V46: 0.320754717 | W46: 0.320754717
B47: Reduction due to connector bridge
E48: =InpC!E$33 -> Reduction in truck miles - Build | F48: =InpC!F$33 -> 1 | G48: =InpC!G$33 -> miles
E49: =E16 -> Rail Demand - Forecast | F49: =F16 -> 0 | G49: TEU | H49: 6967357.451 | I49: 0 | J49: 0 | K49: 0 | L49: 0 | M49: 0 | N49: 0 | O49: 0 | P49: 0 | Q49: 0 | R49: 0 | S49: 153203.1015 | T49: 153790.93 | U49: 167224.9564 | V49: 167720.8631 | W49: 182469.3721 | X49: 182985.313 | Y49: 199178.6452 | Z49: 199715.3274 | AA49: 203709.6858 | AB49: 207783.9455 | AC49: 211939.5207 | AD49: 216178.5327 | AE49: 220501.9242 | AF49: 224912.0523 | AG49: 229410.331 | AH49: 233998.4104 | AI49: 238678.4116 | AJ49: 243451.9845 | AK49: 248321.0148 | AL49: 253287.388 | AM49: 258353.2253 | AN49: 263520.1767 | AO49: 268790.599 | AP49: 274166.6137 | AQ49: 279649.8706 | AR49: 285242.7266 | AS49: 290947.7744 | AT49: 296766.6639 | AU49: 302701.9877 | AV49: 308756.1029 | AW49: 0 | AX49: 0 | AY49: 0 | AZ49: 0 | BA49: 0 | BB49: 0 | BC49: 0
E50: =Time!E$67 -> Operating period flag | F50: =Time!F$67 -> 0 | G50: =Time!G$67 -> flag | H50: =Time!H$67 -> 30 | I50: =Time!I$67 -> 0 | J50: =Time!J$67 -> 0 | K50: =Time!K$67 -> 0 | L50: =Time!L$67 -> 0 | M50: =Time!M$67 -> 0 | N50: =Time!N$67 -> 0 | O50: =Time!O$67 -> 0 | P50: =Time!P$67 -> 0 | Q50: =Time!Q$67 -> 0 | R50: =Time!R$67 -> 0 | S50: =Time!S$67 -> 1 | T50: =Time!T$67 -> 1 | U50: =Time!U$67 -> 1 | V50: =Time!V$67 -> 1 | W50: =Time!W$67 -> 1 | X50: =Time!X$67 -> 1 | Y50: =Time!Y$67 -> 1 | Z50: =Time!Z$67 -> 1 | AA50: =Time!AA$67 -> 1 | AB50: =Time!AB$67 -> 1 | AC50: =Time!AC$67 -> 1 | AD50: =Time!AD$67 -> 1 | AE50: =Time!AE$67 -> 1 | AF50: =Time!AF$67 -> 1 | AG50: =Time!AG$67 -> 1 | AH50: =Time!AH$67 -> 1 | AI50: =Time!AI$67 -> 1 | AJ50: =Time!AJ$67 -> 1 | AK50: =Time!AK$67 -> 1 | AL50: =Time!AL$67 -> 1 | AM50: =Time!AM$67 -> 1 | AN50: =Time!AN$67 -> 1 | AO50: =Time!AO$67 -> 1 | AP50: =Time!AP$67 -> 1 | AQ50: =Time!AQ$67 -> 1 | AR50: =Time!AR$67 -> 1 | AS50: =Time!AS$67 -> 1 | AT50: =Time!AT$67 -> 1 | AU50: =Time!AU$67 -> 1 | AV50: =Time!AV$67 -> 1 | AW50: =Time!AW$67 -> 0 | AX50: =Time!AX$67 -> 0 | AY50: =Time!AY$67 -> 0 | AZ50: =Time!AZ$67 -> 0 | BA50: =Time!BA$67 -> 0 | BB50: =Time!BB$67 -> 0 | BC50: =Time!BC$67 -> 0
E51: Truck Miles Saved by /using the Connector Bridge | F51: 0 | G51: miles | H51: =SUM(J51:BC51) -> 6967357.451 | J51: =$F48 * J49 * J50 -> 0 | K51: =$F48 * K49 * K50 -> 0 | L51: 0 | M51: 0 | N51: 0 | O51: 0 | P51: 0 | Q51: 0 | R51: 0 | S51: 153203.1015 | T51: 153790.93 | U51: 167224.9564 | V51: 167720.8631 | W51: 182469.3721 | X51: 182985.313 | Y51: 199178.6452 | Z51: 199715.3274 | AA51: 203709.6858 | AB51: 207783.9455 | AC51: 211939.5207 | AD51: 216178.5327 | AE51: 220501.9242 | AF51: 224912.0523 | AG51: 229410.331 | AH51: 233998.4104 | AI51: 238678.4116 | AJ51: 243451.9845 | AK51: 248321.0148 | AL51: 253287.388 | AM51: 258353.2253 | AN51: 263520.1767 | AO51: 268790.599 | AP51: 274166.6137 | AQ51: 279649.8706 | AR51: 285242.7266 | AS51: 290947.7744 | AT51: 296766.6639 | AU51: 302701.9877 | AV51: 308756.1029 | AW51: 0 | AX51: 0 | AY51: 0 | AZ51: 0 | BA51: 0 | BB51: 0 | BC51: 0
B54: Total Savings
E55: =E45 -> Truck Mile Saved by bringing the logistics centers close to the port | F55: =F45 -> 0 | G55: miles | H55: 57170014.39 | I55: 0 | J55: 0 | K55: 0 | L55: 0 | M55: 0 | N55: 0 | O55: 0 | P55: 0 | Q55: 0 | R55: 0 | S55: 1257094.039 | T55: 1261917.412 | U55: 1372149.087 | V55: 1376218.204 | W55: 1497235.746 | X55: 1501469.252 | Y55: 1634342.158 | Z55: 1638745.855 | AA55: 1671521.197 | AB55: 1704952.163 | AC55: 1739050.355 | AD55: 1773833.18 | AE55: 1809308.374 | AF55: 1845495.276 | AG55: 1882405.491 | AH55: 1920052.557 | AI55: 1958453.879 | AJ55: 1997622.995 | AK55: 2037575.378 | AL55: 2078326.498 | AM55: 2119893.763 | AN55: 2162290.71 | AO55: 2205536.679 | AP55: 2249649.076 | AQ55: 2294641.439 | AR55: 2340533.107 | AS55: 2387345.355 | AT55: 2435091.721 | AU55: 2483793.478 | AV55: 2533469.966 | AW55: 0 | AX55: 0 | AY55: 0 | AZ55: 0 | BA55: 0 | BB55: 0 | BC55: 0
E56: =E51 -> Truck Miles Saved by /using the Connector Bridge | F56: =F51 -> 0 | G56: miles | H56: 6967357.451 | I56: 0 | J56: 0 | K56: 0 | L56: 0 | M56: 0 | N56: 0 | O56: 0 | P56: 0 | Q56: 0 | R56: 0 | S56: 153203.1015 | T56: 153790.93 | U56: 167224.9564 | V56: 167720.8631 | W56: 182469.3721 | X56: 182985.313 | Y56: 199178.6452 | Z56: 199715.3274 | AA56: 203709.6858 | AB56: 207783.9455 | AC56: 211939.5207 | AD56: 216178.5327 | AE56: 220501.9242 | AF56: 224912.0523 | AG56: 229410.331 | AH56: 233998.4104 | AI56: 238678.4116 | AJ56: 243451.9845 | AK56: 248321.0148 | AL56: 253287.388 | AM56: 258353.2253 | AN56: 263520.1767 | AO56: 268790.599 | AP56: 274166.6137 | AQ56: 279649.8706 | AR56: 285242.7266 | AS56: 290947.7744 | AT56: 296766.6639 | AU56: 302701.9877 | AV56: 308756.1029 | AW56: 0 | AX56: 0 | AY56: 0 | AZ56: 0 | BA56: 0 | BB56: 0 | BC56: 0
E57: Reduction in truck miles - Build | G57: miles | H57: =SUM(J57:BC57) -> 64137371.84 | J57: =SUM(J55:J56) -> 0 | K57: =SUM(K55:K56) -> 0 | L57: 0 | M57: 0 | N57: 0 | O57: 0 | P57: 0 | Q57: 0 | R57: 0 | S57: 1410297.14 | T57: 1415708.342 | U57: 1539374.044 | V57: 1543939.067 | W57: 1679705.118 | X57: 1684454.565 | Y57: 1833520.803 | Z57: 1838461.182 | AA57: 1875230.883 | AB57: 1912736.108 | AC57: 1950989.876 | AD57: 1990011.713 | AE57: 2029810.298 | AF57: 2070407.329 | AG57: 2111815.823 | AH57: 2154050.967 | AI57: 2197132.29 | AJ57: 2241074.98 | AK57: 2285896.392 | AL57: 2331613.886 | AM57: 2378246.989 | AN57: 2425810.887 | AO57: 2474327.278 | AP57: 2523815.69 | AQ57: 2574291.309 | AR57: 2625775.834 | AS57: 2678293.129 | AT57: 2731858.384 | AU57: 2786495.465 | AV57: 2842226.069 | AW57: 0 | AX57: 0 | AY57: 0 | AZ57: 0 | BA57: 0 | BB57: 0 | BC57: 0
E59: =InpC!E$44 -> Tons per container | F59: =InpC!F$44 -> 14 | G59: =InpC!G$44 -> tons / box
E60: =E51 -> Truck Miles Saved by /using the Connector Bridge | F60: =F51 -> 0 | G60: miles | H60: 6967357.451 | I60: 0 | J60: 0 | K60: 0 | L60: 0 | M60: 0 | N60: 0 | O60: 0 | P60: 0 | Q60: 0 | R60: 0 | S60: 153203.1015 | T60: 153790.93 | U60: 167224.9564 | V60: 167720.8631 | W60: 182469.3721 | X60: 182985.313 | Y60: 199178.6452 | Z60: 199715.3274 | AA60: 203709.6858 | AB60: 207783.9455 | AC60: 211939.5207 | AD60: 216178.5327 | AE60: 220501.9242 | AF60: 224912.0523 | AG60: 229410.331 | AH60: 233998.4104 | AI60: 238678.4116 | AJ60: 243451.9845 | AK60: 248321.0148 | AL60: 253287.388 | AM60: 258353.2253 | AN60: 263520.1767 | AO60: 268790.599 | AP60: 274166.6137 | AQ60: 279649.8706 | AR60: 285242.7266 | AS60: 290947.7744 | AT60: 296766.6639 | AU60: 302701.9877 | AV60: 308756.1029 | AW60: 0 | AX60: 0 | AY60: 0 | AZ60: 0 | BA60: 0 | BB60: 0 | BC60: 0
E61: Reduction in truck ton miles - Build | G61: ton miles | H61: =SUM(J61:BC61) -> 97543004.32 | J61: =J60 * $F59 -> 0 | K61: 0 | L61: 0 | M61: 0 | N61: 0 | O61: 0 | P61: 0 | Q61: 0 | R61: 0 | S61: 2144843.421 | T61: 2153073.02 | U61: 2341149.39 | V61: 2348092.083 | W61: 2554571.21 | X61: 2561794.383 | Y61: 2788501.033 | Z61: 2796014.584 | AA61: 2851935.602 | AB61: 2908975.238 | AC61: 2967153.29 | AD61: 3026499.458 | AE61: 3087026.939 | AF61: 3148768.732 | AG61: 3211744.635 | AH61: 3275977.746 | AI61: 3341497.762 | AJ61: 3408327.784 | AK61: 3476494.207 | AL61: 3546023.431 | AM61: 3616945.154 | AN61: 3689282.473 | AO61: 3763068.387 | AP61: =AP60 * $F59 -> 3838332.592 | AQ61: 3915098.188 | AR61: 3993398.172 | AS61: 4073268.841 | AT61: 4154733.294 | AU61: 4237827.828 | AV61: 4322585.441 | AW61: 0 | AX61: 0 | AY61: 0 | AZ61: 0 | BA61: 0 | BB61: 0 | BC61: 0
A65: MILE SWITHED FROM DIESEL TO ELECTRIC TRUCKS
E67: =InpC!E$37 -> Future Distribution Center Distance | F67: =InpC!F$37 -> 0.75 | G67: =InpC!G$37 -> miles
E68: =InpC!E$39 -> International TEU to box conversion factor | F68: =InpC!F$39 -> 0.5555555556 | G68: =InpC!G$39 -> box/TEU
E69: =E19 -> Rail Demand - Forecast | F69: =F19 -> 0 | G69: TEU | H69: 6967357.451 | I69: 0 | J69: 0 | K69: 0 | L69: 0 | M69: 0 | N69: 0 | O69: 0 | P69: 0 | Q69: 0 | R69: 0 | S69: 153203.1015 | T69: 153790.93 | U69: 167224.9564 | V69: 167720.8631 | W69: 182469.3721 | X69: 182985.313 | Y69: 199178.6452 | Z69: 199715.3274 | AA69: 203709.6858 | AB69: 207783.9455 | AC69: 211939.5207 | AD69: 216178.5327 | AE69: 220501.9242 | AF69: 224912.0523 | AG69: 229410.331 | AH69: 233998.4104 | AI69: 238678.4116 | AJ69: 243451.9845 | AK69: 248321.0148 | AL69: 253287.388 | AM69: 258353.2253 | AN69: 263520.1767 | AO69: 268790.599 | AP69: 274166.6137 | AQ69: 279649.8706 | AR69: 285242.7266 | AS69: 290947.7744 | AT69: 296766.6639 | AU69: 302701.9877 | AV69: 308756.1029 | AW69: 0 | AX69: 0 | AY69: 0 | AZ69: 0 | BA69: 0 | BB69: 0 | BC69: 0
E70: =E27 -> Distribution Center Demand | F70: =F27 -> 0 | G70: TEU | H70: 9037314.619 | I70: 0 | J70: 0 | K70: 0 | L70: 0 | M70: 0 | N70: 0 | O70: 0 | P70: 0 | Q70: 0 | R70: 0 | S70: 198718.7594 | T70: 199481.228 | U70: 216906.4174 | V70: 217549.6548 | W70: 236679.8511 | X70: 237349.0748 | Y70: 258353.3419 | Z70: 259049.469 | AA70: 264230.5257 | AB70: 269515.2218 | AC70: 274905.3917 | AD70: 280403.7869 | AE70: 286011.6303 | AF70: 291731.9791 | AG70: 297566.6676 | AH70: 303517.8358 | AI70: 309588.2354 | AJ70: 315780.0062 | AK70: 322095.5941 | AL70: 328537.4448 | AM70: 335108.3099 | AN70: 341810.3293 | AO70: 348646.5604 | AP70: 355619.7545 | AQ70: 362732.0518 | AR70: 369986.5094 | AS70: 377386.4902 | AT70: 384934.1345 | AU70: 392632.8049 | AV70: 400485.5588 | AW70: 0 | AX70: 0 | AY70: 0 | AZ70: 0 | BA70: 0 | BB70: 0 | BC70: 0
E71: Truck Miles Switched from Diesel to Electric | F71: 0 | G71: miles | H71: =SUM(J71:BC71) -> 6668613.363 | J71: =SUM(J69:J70) * $F68 * $F67 -> 0 | K71: =SUM(K69:K70) * $F68 * $F67 -> 0 | L71: 0 | M71: 0 | N71: 0 | O71: 0 | P71: 0 | Q71: 0 | R71: 0 | S71: 146634.1087 | T71: 147196.7325 | U71: 160054.7391 | V71: 160529.3824 | W71: 174645.5097 | X71: 175139.3283 | Y71: 190638.328 | Z71: 191151.9985 | AA71: 194975.0881 | AB71: 198874.6531 | AC71: 202852.0469 | AD71: 206909.2998 | AE71: 211047.3144 | AF71: 215268.3464 | AG71: 219573.7494 | AH71: 223965.1026 | AI71: 228444.4362 | AJ71: 233013.3295 | AK71: 237673.587 | AL71: 242427.0137 | AM71: 247275.6397 | AN71: 252221.0442 | AO71: 257265.4831 | AP71: 262410.9868 | AQ71: 267659.1343 | AR71: 273012.1816 | AS71: 278472.6103 | AT71: 284041.9993 | AU71: 289722.8303 | AV71: 295517.3591 | AW71: 0 | AX71: 0 | AY71: 0 | AZ71: 0 | BA71: 0 | BB71: 0 | BC71: 0

Sheet Highway_BCA
A1: Benefit-Cost Analysis - Highway | F1: =InpC!$F$9 -> Case 1
E2: Model Period Ending | F2: =Check_Alert!F$2 -> 0 | G2: =Check_Alert!G$2 -> Error Checks | J2: =Time!J$2 -> 2015-12-31 | K2: =Time!K$2 -> 2016-12-31 | L2: =Time!L$2 -> 2017-12-31 | M2: =Time!M$2 -> 2018-12-31 | N2: =Time!N$2 -> 2019-12-31 | O2: =Time!O$2 -> 2020-12-31 | P2: =Time!P$2 -> 2021-12-31 | Q2: =Time!Q$2 -> 2022-12-31 | R2: =Time!R$2 -> 2023-12-31 | S2: =Time!S$2 -> 2024-12-31 | T2: =Time!T$2 -> 2025-12-31 | U2: =Time!U$2 -> 2026-12-31 | V2: =Time!V$2 -> 2027-12-31 | W2: =Time!W$2 -> 2028-12-31 | X2: =Time!X$2 -> 2029-12-31 | Y2: =Time!Y$2 -> 2030-12-31 | Z2: =Time!Z$2 -> 2031-12-31 | AA2: =Time!AA$2 -> 2032-12-31 | AB2: =Time!AB$2 -> 2033-12-31 | AC2: =Time!AC$2 -> 2034-12-31 | AD2: =Time!AD$2 -> 2035-12-31 | AE2: =Time!AE$2 -> 2036-12-31 | AF2: =Time!AF$2 -> 2037-12-31 | AG2: =Time!AG$2 -> 2038-12-31 | AH2: =Time!AH$2 -> 2039-12-31 | AI2: =Time!AI$2 -> 2040-12-31 | AJ2: =Time!AJ$2 -> 2041-12-31 | AK2: =Time!AK$2 -> 2042-12-31 | AL2: =Time!AL$2 -> 2043-12-31 | AM2: =Time!AM$2 -> 2044-12-31 | AN2: =Time!AN$2 -> 2045-12-31 | AO2: =Time!AO$2 -> 2046-12-31 | AP2: =Time!AP$2 -> 2047-12-31 | AQ2: =Time!AQ$2 -> 2048-12-31 | AR2: =Time!AR$2 -> 2049-12-31 | AS2: =Time!AS$2 -> 2050-12-31 | AT2: =Time!AT$2 -> 2051-12-31 | AU2: =Time!AU$2 -> 2052-12-31 | AV2: =Time!AV$2 -> 2053-12-31 | AW2: =Time!AW$2 -> 2054-12-31 | AX2: =Time!AX$2 -> 2055-12-31 | AY2: =Time!AY$2 -> 2056-12-31 | AZ2: =Time!AZ$2 -> 2057-12-31 | BA2: =Time!BA$2 -> 2058-12-31 | BB2: =Time!BB$2 -> 2059-12-31 | BC2: =Time!BC$2 -> 2060-12-31
E3: Pre-forecast vs Forecast | F3: =Check_Alert!F$3 -> 0 | G3: =Check_Alert!G$3 -> Alerts | J3: =Time!J$3 -> Pre-forecast | K3: =Time!K$3 -> Pre-forecast | L3: =Time!L$3 -> Pre-forecast | M3: =Time!M$3 -> Pre-forecast | N3: =Time!N$3 -> Pre-forecast | O3: =Time!O$3 -> Pre-forecast | P3: =Time!P$3 -> Forecast | Q3: =Time!Q$3 -> Forecast | R3: =Time!R$3 -> Forecast | S3: =Time!S$3 -> Forecast | T3: =Time!T$3 -> Forecast | U3: =Time!U$3 -> Forecast | V3: =Time!V$3 -> Forecast | W3: =Time!W$3 -> Forecast | X3: =Time!X$3 -> Forecast | Y3: =Time!Y$3 -> Forecast | Z3: =Time!Z$3 -> Forecast | AA3: =Time!AA$3 -> Forecast | AB3: =Time!AB$3 -> Forecast | AC3: =Time!AC$3 -> Forecast | AD3: =Time!AD$3 -> Forecast | AE3: =Time!AE$3 -> Forecast | AF3: =Time!AF$3 -> Forecast | AG3: =Time!AG$3 -> Forecast | AH3: =Time!AH$3 -> Forecast | AI3: =Time!AI$3 -> Forecast | AJ3: =Time!AJ$3 -> Forecast | AK3: =Time!AK$3 -> Forecast | AL3: =Time!AL$3 -> Forecast | AM3: =Time!AM$3 -> Forecast | AN3: =Time!AN$3 -> Forecast | AO3: =Time!AO$3 -> Forecast | AP3: =Time!AP$3 -> Forecast | AQ3: =Time!AQ$3 -> Forecast | AR3: =Time!AR$3 -> Forecast | AS3: =Time!AS$3 -> Forecast | AT3: =Time!AT$3 -> Forecast | AU3: =Time!AU$3 -> Forecast | AV3: =Time!AV$3 -> Forecast | AW3: =Time!AW$3 -> Post-forecast | AX3: =Time!AX$3 -> Post-forecast | AY3: =Time!AY$3 -> Post-forecast | AZ3: =Time!AZ$3 -> Post-forecast | BA3: =Time!BA$3 -> Post-forecast | BB3: =Time!BB$3 -> Post-forecast | BC3: =Time!BC$3 -> Post-forecast
E4: Financial Year Ending | J4: =Time!J$4 -> 2015 | K4: =Time!K$4 -> 2016 | L4: =Time!L$4 -> 2017 | M4: =Time!M$4 -> 2018 | N4: =Time!N$4 -> 2019 | O4: =Time!O$4 -> 2020 | P4: =Time!P$4 -> 2021 | Q4: =Time!Q$4 -> 2022 | R4: =Time!R$4 -> 2023 | S4: =Time!S$4 -> 2024 | T4: =Time!T$4 -> 2025 | U4: =Time!U$4 -> 2026 | V4: =Time!V$4 -> 2027 | W4: =Time!W$4 -> 2028 | X4: =Time!X$4 -> 2029 | Y4: =Time!Y$4 -> 2030 | Z4: =Time!Z$4 -> 2031 | AA4: =Time!AA$4 -> 2032 | AB4: =Time!AB$4 -> 2033 | AC4: =Time!AC$4 -> 2034 | AD4: =Time!AD$4 -> 2035 | AE4: =Time!AE$4 -> 2036 | AF4: =Time!AF$4 -> 2037 | AG4: =Time!AG$4 -> 2038 | AH4: =Time!AH$4 -> 2039 | AI4: =Time!AI$4 -> 2040 | AJ4: =Time!AJ$4 -> 2041 | AK4: =Time!AK$4 -> 2042 | AL4: =Time!AL$4 -> 2043 | AM4: =Time!AM$4 -> 2044 | AN4: =Time!AN$4 -> 2045 | AO4: =Time!AO$4 -> 2046 | AP4: =Time!AP$4 -> 2047 | AQ4: =Time!AQ$4 -> 2048 | AR4: =Time!AR$4 -> 2049 | AS4: =Time!AS$4 -> 2050 | AT4: =Time!AT$4 -> 2051 | AU4: =Time!AU$4 -> 2052 | AV4: =Time!AV$4 -> 2053 | AW4: =Time!AW$4 -> 2054 | AX4: =Time!AX$4 -> 2055 | AY4: =Time!AY$4 -> 2056 | AZ4: =Time!AZ$4 -> 2057 | BA4: =Time!BA$4 -> 2058 | BB4: =Time!BB$4 -> 2059 | BC4: =Time!BC$4 -> 2060
E5: Model Column counter | F5: Constant | G5: Unit | H5: Total | J5: =Time!J$5 -> 1 | K5: =Time!K$5 -> 2 | L5: =Time!L$5 -> 3 | M5: =Time!M$5 -> 4 | N5: =Time!N$5 -> 5 | O5: =Time!O$5 -> 6 | P5: =Time!P$5 -> 7 | Q5: =Time!Q$5 -> 8 | R5: =Time!R$5 -> 9 | S5: =Time!S$5 -> 10 | T5: =Time!T$5 -> 11 | U5: =Time!U$5 -> 12 | V5: =Time!V$5 -> 13 | W5: =Time!W$5 -> 14 | X5: =Time!X$5 -> 15 | Y5: =Time!Y$5 -> 16 | Z5: =Time!Z$5 -> 17 | AA5: =Time!AA$5 -> 18 | AB5: =Time!AB$5 -> 19 | AC5: =Time!AC$5 -> 20 | AD5: =Time!AD$5 -> 21 | AE5: =Time!AE$5 -> 22 | AF5: =Time!AF$5 -> 23 | AG5: =Time!AG$5 -> 24 | AH5: =Time!AH$5 -> 25 | AI5: =Time!AI$5 -> 26 | AJ5: =Time!AJ$5 -> 27 | AK5: =Time!AK$5 -> 28 | AL5: =Time!AL$5 -> 29 | AM5: =Time!AM$5 -> 30 | AN5: =Time!AN$5 -> 31 | AO5: =Time!AO$5 -> 32 | AP5: =Time!AP$5 -> 33 | AQ5: =Time!AQ$5 -> 34 | AR5: =Time!AR$5 -> 35 | AS5: =Time!AS$5 -> 36 | AT5: =Time!AT$5 -> 37 | AU5: =Time!AU$5 -> 38 | AV5: =Time!AV$5 -> 39 | AW5: =Time!AW$5 -> 40 | AX5: =Time!AX$5 -> 41 | AY5: =Time!AY$5 -> 42 | AZ5: =Time!AZ$5 -> 43 | BA5: =Time!BA$5 -> 44 | BB5: =Time!BB$5 -> 45 | BC5: =Time!BC$5 -> 46
A7: MOBILITY BENEFITS - TRUCK MILE REDUCTIONS
B9: Highway Congestion
E10: =InpC!E$60 -> Congestion cost | F10: =InpC!F$60 -> 5.08114328 | G10: =InpC!G$60 -> cent / mile
E11: =Volume!E$57 -> Reduction in truck miles - Build | F11: =Volume!F$57 -> 0 | G11: =Volume!G$57 -> miles | H11: =Volume!H$57 -> 64137371.84 | I11: =Volume!I$57 -> 0 | J11: =Volume!J$57 -> 0 | K11: =Volume!K$57 -> 0 | L11: =Volume!L$57 -> 0 | M11: =Volume!M$57 -> 0 | N11: =Volume!N$57 -> 0 | O11: =Volume!O$57 -> 0 | P11: =Volume!P$57 -> 0 | Q11: =Volume!Q$57 -> 0 | R11: =Volume!R$57 -> 0 | S11: =Volume!S$57 -> 1410297.14 | T11: =Volume!T$57 -> 1415708.342 | U11: =Volume!U$57 -> 1539374.044 | V11: =Volume!V$57 -> 1543939.067 | W11: =Volume!W$57 -> 1679705.118 | X11: =Volume!X$57 -> 1684454.565 | Y11: =Volume!Y$57 -> 1833520.803 | Z11: =Volume!Z$57 -> 1838461.182 | AA11: =Volume!AA$57 -> 1875230.883 | AB11: =Volume!AB$57 -> 1912736.108 | AC11: =Volume!AC$57 -> 1950989.876 | AD11: =Volume!AD$57 -> 1990011.713 | AE11: =Volume!AE$57 -> 2029810.298 | AF11: =Volume!AF$57 -> 2070407.329 | AG11: =Volume!AG$57 -> 2111815.823 | AH11: =Volume!AH$57 -> 2154050.967 | AI11: =Volume!AI$57 -> 2197132.29 | AJ11: =Volume!AJ$57 -> 2241074.98 | AK11: =Volume!AK$57 -> 2285896.392 | AL11: =Volume!AL$57 -> 2331613.886 | AM11: =Volume!AM$57 -> 2378246.989 | AN11: =Volume!AN$57 -> 2425810.887 | AO11: =Volume!AO$57 -> 2474327.278 | AP11: =Volume!AP$57 -> 2523815.69 | AQ11: =Volume!AQ$57 -> 2574291.309 | AR11: =Volume!AR$57 -> 2625775.834 | AS11: =Volume!AS$57 -> 2678293.129 | AT11: =Volume!AT$57 -> 2731858.384 | AU11: =Volume!AU$57 -> 2786495.465 | AV11: =Volume!AV$57 -> 2842226.069 | AW11: =Volume!AW$57 -> 0 | AX11: =Volume!AX$57 -> 0 | AY11: =Volume!AY$57 -> 0 | AZ11: =Volume!AZ$57 -> 0 | BA11: =Volume!BA$57 -> 0 | BB11: =Volume!BB$57 -> 0 | BC11: =Volume!BC$57 -> 0
E12: =Time!E$46 -> Forecast period flag | F12: =Time!F$46 -> 0 | G12: =Time!G$46 -> flag | H12: =Time!H$46 -> 33 | I12: =Time!I$46 -> 0 | J12: =Time!J$46 -> 0 | K12: =Time!K$46 -> 0 | L12: =Time!L$46 -> 0 | M12: =Time!M$46 -> 0 | N12: =Time!N$46 -> 0 | O12: =Time!O$46 -> 0 | P12: =Time!P$46 -> 1 | Q12: =Time!Q$46 -> 1 | R12: =Time!R$46 -> 1 | S12: =Time!S$46 -> 1 | T12: =Time!T$46 -> 1 | U12: =Time!U$46 -> 1 | V12: =Time!V$46 -> 1 | W12: =Time!W$46 -> 1 | X12: =Time!X$46 -> 1 | Y12: =Time!Y$46 -> 1 | Z12: =Time!Z$46 -> 1 | AA12: =Time!AA$46 -> 1 | AB12: =Time!AB$46 -> 1 | AC12: =Time!AC$46 -> 1 | AD12: =Time!AD$46 -> 1 | AE12: =Time!AE$46 -> 1 | AF12: =Time!AF$46 -> 1 | AG12: =Time!AG$46 -> 1 | AH12: =Time!AH$46 -> 1 | AI12: =Time!AI$46 -> 1 | AJ12: =Time!AJ$46 -> 1 | AK12: =Time!AK$46 -> 1 | AL12: =Time!AL$46 -> 1 | AM12: =Time!AM$46 -> 1 | AN12: =Time!AN$46 -> 1 | AO12: =Time!AO$46 -> 1 | AP12: =Time!AP$46 -> 1 | AQ12: =Time!AQ$46 -> 1 | AR12: =Time!AR$46 -> 1 | AS12: =Time!AS$46 -> 1 | AT12: =Time!AT$46 -> 1 | AU12: =Time!AU$46 -> 1 | AV12: =Time!AV$46 -> 1 | AW12: =Time!AW$46 -> 0 | AX12: =Time!AX$46 -> 0 | AY12: =Time!AY$46 -> 0 | AZ12: =Time!AZ$46 -> 0 | BA12: =Time!BA$46 -> 0 | BB12: =Time!BB$46 -> 0 | BC12: =Time!BC$46 -> 0
E13: Reduction in highway congestion - Build | G13: US$ | H13: =SUM(J13:BC13) -> 3258911.759 | J13: =$F10 / 100 * J11 * J12 -> 0 | K13: 0 | L13: 0 | M13: 0 | N13: 0 | O13: 0 | P13: 0 | Q13: 0 | R13: 0 | S13: 71659.21837 | T13: 71934.16928 | U13: 78217.80077 | V13: 78449.75614 | W13: 85348.22373 | X13: 85589.54993 | Y13: 93163.81906 | Z13: 93414.84682 | AA13: 95283.16801 | AB13: 97188.86224 | AC13: 99132.59097 | AD13: 101115.3464 | AE13: 103137.5696 | AF13: 105200.3629 | AG13: 107304.3877 | AH13: 109450.416 | AI13: 111639.4397 | AJ13: 113872.2307 | AK13: 116149.6709 | AL13: 118472.6423 | AM13: 120842.137 | AN13: 123258.9269 | AO13: 125724.1142 | AP13: =$F10 / 100 * AP11 * AP12 -> 128238.6913 | AQ13: 130803.4299 | AR13: 133419.4323 | AS13: 136087.9114 | AT13: 138809.6387 | AU13: 141585.8271 | AV13: 144417.5789 | AW13: 0 | AX13: 0 | AY13: 0 | AZ13: 0 | BA13: 0 | BB13: 0 | BC13: 0
E15: =E13 -> Reduction in highway congestion - Build | F15: 0 | G15: US$ | H15: 3258911.759 | I15: 0 | J15: 0 | K15: 0 | L15: 0 | M15: 0 | N15: 0 | O15: 0 | P15: 0 | Q15: 0 | R15: 0 | S15: 71659.21837 | T15: 71934.16928 | U15: 78217.80077 | V15: 78449.75614 | W15: 85348.22373 | X15: 85589.54993 | Y15: 93163.81906 | Z15: 93414.84682 | AA15: 95283.16801 | AB15: 97188.86224 | AC15: 99132.59097 | AD15: 101115.3464 | AE15: 103137.5696 | AF15: 105200.3629 | AG15: 107304.3877 | AH15: 109450.416 | AI15: 111639.4397 | AJ15: 113872.2307 | AK15: =AK13 -> 116149.6709 | AL15: 118472.6423 | AM15: 120842.137 | AN15: 123258.9269 | AO15: 125724.1142 | AP15: 128238.6913 | AQ15: 130803.4299 | AR15: 133419.4323 | AS15: 136087.9114 | AT15: 138809.6387 | AU15: 141585.8271 | AV15: 144417.5789 | AW15: 0 | AX15: 0 | AY15: 0 | AZ15: 0 | BA15: 0 | BB15: 0 | BC15: 0
E16: =Time!E$73 -> Discount rate multiplier (excluding CO2 emissions) | F16: =Time!F$73 -> 0 | G16: =Time!G$73 -> factor | H16: =Time!H$73 -> 0 | I16: =Time!I$73 -> 0 | J16: =Time!J$73 -> 0.762895212 | K16: =Time!K$73 -> 0.8162978769 | L16: =Time!L$73 -> 0.8734387283 | M16: =Time!M$73 -> 0.9345794393 | N16: =Time!N$73 -> 1 | O16: =Time!O$73 -> 1.07 | P16: =Time!P$73 -> 1.1449 | Q16: =Time!Q$73 -> 1.225043 | R16: =Time!R$73 -> 1.31079601 | S16: =Time!S$73 -> 1.402551731 | T16: =Time!T$73 -> 1.500730352 | U16: =Time!U$73 -> 1.605781476 | V16: =Time!V$73 -> 1.71818618 | W16: =Time!W$73 -> 1.838459212 | X16: =Time!X$73 -> 1.967151357 | Y16: =Time!Y$73 -> 2.104851952 | Z16: =Time!Z$73 -> 2.252191589 | AA16: =Time!AA$73 -> 2.409845 | AB16: =Time!AB$73 -> 2.57853415 | AC16: =Time!AC$73 -> 2.759031541 | AD16: =Time!AD$73 -> 2.952163749 | AE16: =Time!AE$73 -> 3.158815211 | AF16: =Time!AF$73 -> 3.379932276 | AG16: =Time!AG$73 -> 3.616527535 | AH16: =Time!AH$73 -> 3.869684462 | AI16: =Time!AI$73 -> 4.140562375 | AJ16: =Time!AJ$73 -> 4.430401741 | AK16: =Time!AK$73 -> 4.740529863 | AL16: =Time!AL$73 -> 5.072366953 | AM16: =Time!AM$73 -> 5.42743264 | AN16: =Time!AN$73 -> 5.807352925 | AO16: =Time!AO$73 -> 6.21386763 | AP16: =Time!AP$73 -> 6.648838364 | AQ16: =Time!AQ$73 -> 7.114257049 | AR16: =Time!AR$73 -> 7.612255043 | AS16: =Time!AS$73 -> 8.145112896 | AT16: =Time!AT$73 -> 8.715270798 | AU16: =Time!AU$73 -> 9.325339754 | AV16: =Time!AV$73 -> 9.978113537 | AW16: =Time!AW$73 -> 10.67658148 | AX16: =Time!AX$73 -> 11.42394219 | AY16: =Time!AY$73 -> 12.22361814 | AZ16: =Time!AZ$73 -> 13.07927141 | BA16: =Time!BA$73 -> 13.99482041 | BB16: =Time!BB$73 -> 14.97445784 | BC16: =Time!BC$73 -> 16.02266989
E17: =E15 & " - PV" -> Reduction in highway congestion - Build - PV | G17: US$ | H17: =SUM(J17:BC17) -> 919944.8966 | J17: =IF(J15 > 0, J15 / J16, 0) -> 0 | K17: 0 | L17: 0 | M17: 0 | N17: 0 | O17: 0 | P17: 0 | Q17: 0 | R17: 0 | S17: 51092.03233 | T17: 47932.77432 | U17: 48710.11524 | V17: 45658.47233 | W17: 46423.77876 | X17: 43509.38712 | Y17: 44261.45932 | Z17: 41477.30916 | AA17: 39539.12721 | AB17: 37691.51641 | AC17: 35930.21302 | AD17: 34251.2662 | AE17: 32650.71322 | AF17: 31124.99135 | AG17: 29670.55738 | AH17: 28284.06735 | AI17: 26962.38569 | AJ17: 25702.46162 | AK17: 24501.41108 | AL17: 23356.48099 | AM17: 22265.06436 | AN17: 21224.63168 | AO17: 20232.82788 | AP17: =IF(AP15 > 0, AP15 / AP16, 0) -> 19287.38289 | AQ17: 18386.09836 | AR17: 17526.92619 | AS17: 16707.92205 | AT17: 15927.17449 | AU17: 15182.91352 | AV17: 14473.43512 | AW17: 0 | AX17: 0 | AY17: 0 | AZ17: 0 | BA17: 0 | BB17: 0 | BC17: 0
B19: Highway Travel Time
E20: =InpC!E$48 -> Truck average speed | F20: =InpC!F$48 -> 55 | G20: =InpC!G$48 -> miles / hour
E21: =Volume!E$57 -> Reduction in truck miles - Build | F21: =Volume!F$57 -> 0 | G21: =Volume!G$57 -> miles | H21: =Volume!H$57 -> 64137371.84 | I21: =Volume!I$57 -> 0 | J21: =Volume!J$57 -> 0 | K21: =Volume!K$57 -> 0 | L21: =Volume!L$57 -> 0 | M21: =Volume!M$57 -> 0 | N21: =Volume!N$57 -> 0 | O21: =Volume!O$57 -> 0 | P21: =Volume!P$57 -> 0 | Q21: =Volume!Q$57 -> 0 | R21: =Volume!R$57 -> 0 | S21: =Volume!S$57 -> 1410297.14 | T21: =Volume!T$57 -> 1415708.342 | U21: =Volume!U$57 -> 1539374.044 | V21: =Volume!V$57 -> 1543939.067 | W21: =Volume!W$57 -> 1679705.118 | X21: =Volume!X$57 -> 1684454.565 | Y21: =Volume!Y$57 -> 1833520.803 | Z21: =Volume!Z$57 -> 1838461.182 | AA21: =Volume!AA$57 -> 1875230.883 | AB21: =Volume!AB$57 -> 1912736.108 | AC21: =Volume!AC$57 -> 1950989.876 | AD21: =Volume!AD$57 -> 1990011.713 | AE21: =Volume!AE$57 -> 2029810.298 | AF21: =Volume!AF$57 -> 2070407.329 | AG21: =Volume!AG$57 -> 2111815.823 | AH21: =Volume!AH$57 -> 2154050.967 | AI21: =Volume!AI$57 -> 2197132.29 | AJ21: =Volume!AJ$57 -> 2241074.98 | AK21: =Volume!AK$57 -> 2285896.392 | AL21: =Volume!AL$57 -> 2331613.886 | AM21: =Volume!AM$57 -> 2378246.989 | AN21: =Volume!AN$57 -> 2425810.887 | AO21: =Volume!AO$57 -> 2474327.278 | AP21: =Volume!AP$57 -> 2523815.69 | AQ21: =Volume!AQ$57 -> 2574291.309 | AR21: =Volume!AR$57 -> 2625775.834 | AS21: =Volume!AS$57 -> 2678293.129 | AT21: =Volume!AT$57 -> 2731858.384 | AU21: =Volume!AU$57 -> 2786495.465 | AV21: =Volume!AV$57 -> 2842226.069 | AW21: =Volume!AW$57 -> 0 | AX21: =Volume!AX$57 -> 0 | AY21: =Volume!AY$57 -> 0 | AZ21: =Volume!AZ$57 -> 0 | BA21: =Volume!BA$57 -> 0 | BB21: =Volume!BB$57 -> 0 | BC21: =Volume!BC$57 -> 0
E22: =Time!E$46 -> Forecast period flag | F22: =Time!F$46 -> 0 | G22: =Time!G$46 -> flag | H22: =Time!H$46 -> 33 | I22: =Time!I$46 -> 0 | J22: =Time!J$46 -> 0 | K22: =Time!K$46 -> 0 | L22: =Time!L$46 -> 0 | M22: =Time!M$46 -> 0 | N22: =Time!N$46 -> 0 | O22: =Time!O$46 -> 0 | P22: =Time!P$46 -> 1 | Q22: =Time!Q$46 -> 1 | R22: =Time!R$46 -> 1 | S22: =Time!S$46 -> 1 | T22: =Time!T$46 -> 1 | U22: =Time!U$46 -> 1 | V22: =Time!V$46 -> 1 | W22: =Time!W$46 -> 1 | X22: =Time!X$46 -> 1 | Y22: =Time!Y$46 -> 1 | Z22: =Time!Z$46 -> 1 | AA22: =Time!AA$46 -> 1 | AB22: =Time!AB$46 -> 1 | AC22: =Time!AC$46 -> 1 | AD22: =Time!AD$46 -> 1 | AE22: =Time!AE$46 -> 1 | AF22: =Time!AF$46 -> 1 | AG22: =Time!AG$46 -> 1 | AH22: =Time!AH$46 -> 1 | AI22: =Time!AI$46 -> 1 | AJ22: =Time!AJ$46 -> 1 | AK22: =Time!AK$46 -> 1 | AL22: =Time!AL$46 -> 1 | AM22: =Time!AM$46 -> 1 | AN22: =Time!AN$46 -> 1 | AO22: =Time!AO$46 -> 1 | AP22: =Time!AP$46 -> 1 | AQ22: =Time!AQ$46 -> 1 | AR22: =Time!AR$46 -> 1 | AS22: =Time!AS$46 -> 1 | AT22: =Time!AT$46 -> 1 | AU22: =Time!AU$46 -> 1 | AV22: =Time!AV$46 -> 1 | AW22: =Time!AW$46 -> 0 | AX22: =Time!AX$46 -> 0 | AY22: =Time!AY$46 -> 0 | AZ22: =Time!AZ$46 -> 0 | BA22: =Time!BA$46 -> 0 | BB22: =Time!BB$46 -> 0 | BC22: =Time!BC$46 -> 0
E23: Reduction in highway truck travel time - Build | G23: hours | H23: =SUM(J23:BC23) -> 1166134.033 | J23: =J21 / $F20 * J22 -> 0 | K23: 0 | L23: 0 | M23: 0 | N23: 0 | O23: 0 | P23: 0 | Q23: 0 | R23: 0 | S23: 25641.76619 | T23: 25740.15167 | U23: 27988.61897 | V23: 28071.6194 | W23: 30540.09306 | X23: 30626.44664 | Y23: 33336.74187 | Z23: 33426.56695 | AA23: 34095.10697 | AB23: 34777.02015 | AC23: 35472.5432 | AD23: 36182.03115 | AE23: 36905.64179 | AF23: 37643.76961 | AG23: 38396.65132 | AH23: 39164.56304 | AI23: 39947.85983 | AJ23: 40746.81781 | AK23: 41561.75259 | AL23: 42392.97975 | AM23: 43240.85434 | AN23: 44105.65249 | AO23: 44987.76869 | AP23: =AP21 / $F20 * AP22 -> 45887.55799 | AQ23: 46805.29653 | AR23: 47741.37879 | AS23: 48696.23872 | AT23: 49670.15244 | AU23: 50663.55392 | AV23: 51676.83762 | AW23: 0 | AX23: 0 | AY23: 0 | AZ23: 0 | BA23: 0 | BB23: 0 | BC23: 0
E25: =InpC!E$53 -> Average vehicle occupancy (AVO) - Truck | F25: =InpC!F$53 -> 1 | G25: =InpC!G$53 -> persons
E26: =InpC!E$54 -> Vehicle travel time savings - Truck operator - 2019 US$ | F26: =InpC!F$54 -> 30.8 | G26: =InpC!G$54 -> US$ / hr
E27: =E23 -> Reduction in highway truck travel time - Build | F27: 0 | G27: hours | H27: 1166134.033 | I27: 0 | J27: 0 | K27: 0 | L27: 0 | M27: 0 | N27: 0 | O27: 0 | P27: 0 | Q27: 0 | R27: 0 | S27: 25641.76619 | T27: 25740.15167 | U27: 27988.61897 | V27: 28071.6194 | W27: 30540.09306 | X27: 30626.44664 | Y27: 33336.74187 | Z27: 33426.56695 | AA27: 34095.10697 | AB27: 34777.02015 | AC27: 35472.5432 | AD27: 36182.03115 | AE27: 36905.64179 | AF27: 37643.76961 | AG27: 38396.65132 | AH27: 39164.56304 | AI27: 39947.85983 | AJ27: 40746.81781 | AK27: =AK23 -> 41561.75259 | AL27: 42392.97975 | AM27: 43240.85434 | AN27: 44105.65249 | AO27: 44987.76869 | AP27: 45887.55799 | AQ27: 46805.29653 | AR27: 47741.37879 | AS27: 48696.23872 | AT27: 49670.15244 | AU27: 50663.55392 | AV27: 51676.83762 | AW27: 0 | AX27: 0 | AY27: 0 | AZ27: 0 | BA27: 0 | BB27: 0 | BC27: 0
E28: Reduction in highway truck travel time costs - Build | G28: US$ | H28: =SUM(J28:BC28) -> 35916928.23 | J28: =J27 * $F25 * $F26 -> 0 | K28: 0 | L28: 0 | M28: 0 | N28: 0 | O28: 0 | P28: 0 | Q28: 0 | R28: 0 | S28: 789766.3985 | T28: 792796.6715 | U28: 862049.4644 | V28: 864605.8775 | W28: 940634.8661 | X28: 943294.5564 | Y28: 1026771.65 | Z28: 1029538.262 | AA28: 1050129.295 | AB28: 1071132.221 | AC28: 1092554.331 | AD28: 1114406.559 | AE28: 1136693.767 | AF28: 1159428.104 | AG28: 1182616.861 | AH28: 1206268.542 | AI28: 1230394.083 | AJ28: 1255001.989 | AK28: 1280101.98 | AL28: 1305703.776 | AM28: 1331818.314 | AN28: 1358454.097 | AO28: 1385623.276 | AP28: =AP27 * $F25 * $F26 -> 1413336.786 | AQ28: 1441603.133 | AR28: 1470434.467 | AS28: 1499844.152 | AT28: 1529840.695 | AU28: 1560437.461 | AV28: 1591646.599 | AW28: 0 | AX28: 0 | AY28: 0 | AZ28: 0 | BA28: 0 | BB28: 0 | BC28: 0
E30: =E28 -> Reduction in highway truck travel time costs - Build | F30: 0 | G30: US$ | H30: 35916928.23 | I30: 0 | J30: 0 | K30: 0 | L30: 0 | M30: 0 | N30: 0 | O30: 0 | P30: 0 | Q30: 0 | R30: 0 | S30: 789766.3985 | T30: 792796.6715 | U30: 862049.4644 | V30: 864605.8775 | W30: 940634.8661 | X30: 943294.5564 | Y30: 1026771.65 | Z30: 1029538.262 | AA30: 1050129.295 | AB30: 1071132.221 | AC30: 1092554.331 | AD30: 1114406.559 | AE30: 1136693.767 | AF30: 1159428.104 | AG30: 1182616.861 | AH30: 1206268.542 | AI30: 1230394.083 | AJ30: 1255001.989 | AK30: =AK28 -> 1280101.98 | AL30: 1305703.776 | AM30: 1331818.314 | AN30: 1358454.097 | AO30: 1385623.276 | AP30: 1413336.786 | AQ30: 1441603.133 | AR30: 1470434.467 | AS30: 1499844.152 | AT30: 1529840.695 | AU30: 1560437.461 | AV30: 1591646.599 | AW30: 0 | AX30: 0 | AY30: 0 | AZ30: 0 | BA30: 0 | BB30: 0 | BC30: 0
E31: =Time!E$73 -> Discount rate multiplier (excluding CO2 emissions) | F31: =Time!F$73 -> 0 | G31: =Time!G$73 -> factor | H31: =Time!H$73 -> 0 | I31: =Time!I$73 -> 0 | J31: =Time!J$73 -> 0.762895212 | K31: =Time!K$73 -> 0.8162978769 | L31: =Time!L$73 -> 0.8734387283 | M31: =Time!M$73 -> 0.9345794393 | N31: =Time!N$73 -> 1 | O31: =Time!O$73 -> 1.07 | P31: =Time!P$73 -> 1.1449 | Q31: =Time!Q$73 -> 1.225043 | R31: =Time!R$73 -> 1.31079601 | S31: =Time!S$73 -> 1.402551731 | T31: =Time!T$73 -> 1.500730352 | U31: =Time!U$73 -> 1.605781476 | V31: =Time!V$73 -> 1.71818618 | W31: =Time!W$73 -> 1.838459212 | X31: =Time!X$73 -> 1.967151357 | Y31: =Time!Y$73 -> 2.104851952 | Z31: =Time!Z$73 -> 2.252191589 | AA31: =Time!AA$73 -> 2.409845 | AB31: =Time!AB$73 -> 2.57853415 | AC31: =Time!AC$73 -> 2.759031541 | AD31: =Time!AD$73 -> 2.952163749 | AE31: =Time!AE$73 -> 3.158815211 | AF31: =Time!AF$73 -> 3.379932276 | AG31: =Time!AG$73 -> 3.616527535 | AH31: =Time!AH$73 -> 3.869684462 | AI31: =Time!AI$73 -> 4.140562375 | AJ31: =Time!AJ$73 -> 4.430401741 | AK31: =Time!AK$73 -> 4.740529863 | AL31: =Time!AL$73 -> 5.072366953 | AM31: =Time!AM$73 -> 5.42743264 | AN31: =Time!AN$73 -> 5.807352925 | AO31: =Time!AO$73 -> 6.21386763 | AP31: =Time!AP$73 -> 6.648838364 | AQ31: =Time!AQ$73 -> 7.114257049 | AR31: =Time!AR$73 -> 7.612255043 | AS31: =Time!AS$73 -> 8.145112896 | AT31: =Time!AT$73 -> 8.715270798 | AU31: =Time!AU$73 -> 9.325339754 | AV31: =Time!AV$73 -> 9.978113537 | AW31: =Time!AW$73 -> 10.67658148 | AX31: =Time!AX$73 -> 11.42394219 | AY31: =Time!AY$73 -> 12.22361814 | AZ31: =Time!AZ$73 -> 13.07927141 | BA31: =Time!BA$73 -> 13.99482041 | BB31: =Time!BB$73 -> 14.97445784 | BC31: =Time!BC$73 -> 16.02266989
E32: =E30 & " - PV" -> Reduction in highway truck travel time costs - Build - PV | G32: US$ | H32: =SUM(J32:BC32) -> 10138843.05 | J32: =IF(J30 > 0, J30 / J31, 0) -> 0 | K32: =IF(K30 > 0, K30 / K31, 0) -> 0 | L32: =IF(L30 > 0, L30 / L31, 0) -> 0 | M32: =IF(M30 > 0, M30 / M31, 0) -> 0 | N32: =IF(N30 > 0, N30 / N31, 0) -> 0 | O32: =IF(O30 > 0, O30 / O31, 0) -> 0 | P32: =IF(P30 > 0, P30 / P31, 0) -> 0 | Q32: =IF(Q30 > 0, Q30 / Q31, 0) -> 0 | R32: =IF(R30 > 0, R30 / R31, 0) -> 0 | S32: =IF(S30 > 0, S30 / S31, 0) -> 563092.5272 | T32: =IF(T30 > 0, T30 / T31, 0) -> 528273.8971 | U32: =IF(U30 > 0, U30 / U31, 0) -> 536841.0815 | V32: =IF(V30 > 0, V30 / V31, 0) -> 503208.4926 | W32: =IF(W30 > 0, W30 / W31, 0) -> 511643.0431 | X32: =IF(X30 > 0, X30 / X31, 0) -> 479523.12 | Y32: =IF(Y30 > 0, Y30 / Y31, 0) -> 487811.8143 | Z32: =IF(Z30 > 0, Z30 / Z31, 0) -> 457127.3009 | AA32: =IF(AA30 > 0, AA30 / AA31, 0) -> 435766.323 | AB32: =IF(AB30 > 0, AB30 / AB31, 0) -> 415403.5426 | AC32: =IF(AC30 > 0, AC30 / AC31, 0) -> 395991.9684 | AD32: =IF(AD30 > 0, AD30 / AD31, 0) -> 377488.0576 | AE32: =IF(AE30 > 0, AE30 / AE31, 0) -> 359848.1365 | AF32: =IF(AF30 > 0, AF30 / AF31, 0) -> 343032.9396 | AG32: =IF(AG30 > 0, AG30 / AG31, 0) -> 327003.4167 | AH32: =IF(AH30 > 0, AH30 / AH31, 0) -> 311722.7137 | AI32: =IF(AI30 > 0, AI30 / AI31, 0) -> 297156.2728 | AJ32: =IF(AJ30 > 0, AJ30 / AJ31, 0) -> 283270.4712 | AK32: =IF(AK30 > 0, AK30 / AK31, 0) -> 270033.523 | AL32: =IF(AL30 > 0, AL30 / AL31, 0) -> 257415.0862 | AM32: =IF(AM30 > 0, AM30 / AM31, 0) -> 245386.4289 | AN32: =IF(AN30 > 0, AN30 / AN31, 0) -> 233919.6729 | AO32: =IF(AO30 > 0, AO30 / AO31, 0) -> 222988.8627 | AP32: =IF(AP30 > 0, AP30 / AP31, 0) -> 212568.9796 | AQ32: =IF(AQ30 > 0, AQ30 / AQ31, 0) -> 202635.795 | AR32: =IF(AR30 > 0, AR30 / AR31, 0) -> 193166.7369 | AS32: =IF(AS30 > 0, AS30 / AS31, 0) -> 184140.3762 | AT32: =IF(AT30 > 0, AT30 / AT31, 0) -> 175535.6466 | AU32: =IF(AU30 > 0, AU30 / AU31, 0) -> 167333.0411 | AV32: =IF(AV30 > 0, AV30 / AV31, 0) -> 159513.7791 | AW32: =IF(AW30 > 0, AW30 / AW31, 0) -> 0 | AX32: =IF(AX30 > 0, AX30 / AX31, 0) -> 0 | AY32: =IF(AY30 > 0, AY30 / AY31, 0) -> 0 | AZ32: =IF(AZ30 > 0, AZ30 / AZ31, 0) -> 0 | BA32: =IF(BA30 > 0, BA30 / BA31, 0) -> 0 | BB32: =IF(BB30 > 0, BB30 / BB31, 0) -> 0 | BC32: =IF(BC30 > 0, BC30 / BC31, 0) -> 0
B35: Mobility Project Benefits
E36: =E$17 -> Reduction in highway congestion - Build - PV | F36: 0 | G36: US$ | H36: 919944.8966 | I36: 0 | J36: 0 | K36: 0 | L36: 0 | M36: 0 | N36: 0 | O36: 0 | P36: 0 | Q36: 0 | R36: 0 | S36: 51092.03233 | T36: 47932.77432 | U36: 48710.11524 | V36: 45658.47233 | W36: 46423.77876 | X36: 43509.38712 | Y36: 44261.45932 | Z36: 41477.30916 | AA36: 39539.12721 | AB36: 37691.51641 | AC36: 35930.21302 | AD36: 34251.2662 | AE36: 32650.71322 | AF36: 31124.99135 | AG36: 29670.55738 | AH36: 28284.06735 | AI36: 26962.38569 | AJ36: 25702.46162 | AK36: =AK$17 -> 24501.41108 | AL36: 23356.48099 | AM36: 22265.06436 | AN36: 21224.63168 | AO36: 20232.82788 | AP36: 19287.38289 | AQ36: 18386.09836 | AR36: 17526.92619 | AS36: 16707.92205 | AT36: 15927.17449 | AU36: 15182.91352 | AV36: 14473.43512 | AW36: 0 | AX36: 0 | AY36: 0 | AZ36: 0 | BA36: 0 | BB36: 0 | BC36: 0
E37: =E$32 -> Reduction in highway truck travel time costs - Build - PV | F37: 0 | G37: US$ | H37: 10138843.05 | I37: 0 | J37: 0 | K37: 0 | L37: 0 | M37: 0 | N37: 0 | O37: 0 | P37: 0 | Q37: 0 | R37: 0 | S37: 563092.5272 | T37: 528273.8971 | U37: 536841.0815 | V37: 503208.4926 | W37: 511643.0431 | X37: 479523.12 | Y37: 487811.8143 | Z37: 457127.3009 | AA37: 435766.323 | AB37: 415403.5426 | AC37: 395991.9684 | AD37: 377488.0576 | AE37: 359848.1365 | AF37: 343032.9396 | AG37: 327003.4167 | AH37: 311722.7137 | AI37: 297156.2728 | AJ37: 283270.4712 | AK37: =AK$32 -> 270033.523 | AL37: 257415.0862 | AM37: 245386.4289 | AN37: 233919.6729 | AO37: 222988.8627 | AP37: 212568.9796 | AQ37: 202635.795 | AR37: 193166.7369 | AS37: 184140.3762 | AT37: 175535.6466 | AU37: 167333.0411 | AV37: 159513.7791 | AW37: 0 | AX37: 0 | AY37: 0 | AZ37: 0 | BA37: 0 | BB37: 0 | BC37: 0
E38: Mobility benefits - Truck mile reduction - Build - PV | G38: US$ | H38: =SUM(J38:BC38) -> 11058787.94 | J38: =SUM(J36:J37) -> 0 | K38: 0 | L38: 0 | M38: 0 | N38: 0 | O38: 0 | P38: 0 | Q38: 0 | R38: 0 | S38: 614184.5595 | T38: 576206.6714 | U38: 585551.1967 | V38: 548866.9649 | W38: 558066.8219 | X38: 523032.5071 | Y38: 532073.2736 | Z38: 498604.61 | AA38: 475305.4502 | AB38: 453095.059 | AC38: 431922.1814 | AD38: 411739.3238 | AE38: 392498.8497 | AF38: 374157.9309 | AG38: 356673.9741 | AH38: 340006.781 | AI38: 324118.6585 | AJ38: 308972.9328 | AK38: 294534.9341 | AL38: 280771.5671 | AM38: 267651.4932 | AN38: 255144.3046 | AO38: 243221.6906 | AP38: =SUM(AP36:AP37) -> 231856.3624 | AQ38: 221021.8934 | AR38: 210693.6631 | AS38: 200848.2982 | AT38: 191462.8211 | AU38: 182515.9546 | AV38: 173987.2142 | AW38: 0 | AX38: 0 | AY38: 0 | AZ38: 0 | BA38: 0 | BB38: 0 | BC38: 0
A41: OPERATING BENEFITS - TRUCK MILE REDUCTIONS
B43: Truck Operating Cost
E44: =InpC!E$47 -> Vehicle operating cost - Truck - 2019 US$ | F44: =InpC!F$47 -> 0.93 | G44: =InpC!G$47 -> US$ / mile
E45: =Volume!E$57 -> Reduction in truck miles - Build | F45: =Volume!F$57 -> 0 | G45: =Volume!G$57 -> miles | H45: =Volume!H$57 -> 64137371.84 | I45: =Volume!I$57 -> 0 | J45: =Volume!J$57 -> 0 | K45: =Volume!K$57 -> 0 | L45: =Volume!L$57 -> 0 | M45: =Volume!M$57 -> 0 | N45: =Volume!N$57 -> 0 | O45: =Volume!O$57 -> 0 | P45: =Volume!P$57 -> 0 | Q45: =Volume!Q$57 -> 0 | R45: =Volume!R$57 -> 0 | S45: =Volume!S$57 -> 1410297.14 | T45: =Volume!T$57 -> 1415708.342 | U45: =Volume!U$57 -> 1539374.044 | V45: =Volume!V$57 -> 1543939.067 | W45: =Volume!W$57 -> 1679705.118 | X45: =Volume!X$57 -> 1684454.565 | Y45: =Volume!Y$57 -> 1833520.803 | Z45: =Volume!Z$57 -> 1838461.182 | AA45: =Volume!AA$57 -> 1875230.883 | AB45: =Volume!AB$57 -> 1912736.108 | AC45: =Volume!AC$57 -> 1950989.876 | AD45: =Volume!AD$57 -> 1990011.713 | AE45: =Volume!AE$57 -> 2029810.298 | AF45: =Volume!AF$57 -> 2070407.329 | AG45: =Volume!AG$57 -> 2111815.823 | AH45: =Volume!AH$57 -> 2154050.967 | AI45: =Volume!AI$57 -> 2197132.29 | AJ45: =Volume!AJ$57 -> 2241074.98 | AK45: =Volume!AK$57 -> 2285896.392 | AL45: =Volume!AL$57 -> 2331613.886 | AM45: =Volume!AM$57 -> 2378246.989 | AN45: =Volume!AN$57 -> 2425810.887 | AO45: =Volume!AO$57 -> 2474327.278 | AP45: =Volume!AP$57 -> 2523815.69 | AQ45: =Volume!AQ$57 -> 2574291.309 | AR45: =Volume!AR$57 -> 2625775.834 | AS45: =Volume!AS$57 -> 2678293.129 | AT45: =Volume!AT$57 -> 2731858.384 | AU45: =Volume!AU$57 -> 2786495.465 | AV45: =Volume!AV$57 -> 2842226.069 | AW45: =Volume!AW$57 -> 0 | AX45: =Volume!AX$57 -> 0 | AY45: =Volume!AY$57 -> 0 | AZ45: =Volume!AZ$57 -> 0 | BA45: =Volume!BA$57 -> 0 | BB45: =Volume!BB$57 -> 0 | BC45: =Volume!BC$57 -> 0
E46: =Time!E$46 -> Forecast period flag | F46: =Time!F$46 -> 0 | G46: =Time!G$46 -> flag | H46: =Time!H$46 -> 33 | I46: =Time!I$46 -> 0 | J46: =Time!J$46 -> 0 | K46: =Time!K$46 -> 0 | L46: =Time!L$46 -> 0 | M46: =Time!M$46 -> 0 | N46: =Time!N$46 -> 0 | O46: =Time!O$46 -> 0 | P46: =Time!P$46 -> 1 | Q46: =Time!Q$46 -> 1 | R46: =Time!R$46 -> 1 | S46: =Time!S$46 -> 1 | T46: =Time!T$46 -> 1 | U46: =Time!U$46 -> 1 | V46: =Time!V$46 -> 1 | W46: =Time!W$46 -> 1 | X46: =Time!X$46 -> 1 | Y46: =Time!Y$46 -> 1 | Z46: =Time!Z$46 -> 1 | AA46: =Time!AA$46 -> 1 | AB46: =Time!AB$46 -> 1 | AC46: =Time!AC$46 -> 1 | AD46: =Time!AD$46 -> 1 | AE46: =Time!AE$46 -> 1 | AF46: =Time!AF$46 -> 1 | AG46: =Time!AG$46 -> 1 | AH46: =Time!AH$46 -> 1 | AI46: =Time!AI$46 -> 1 | AJ46: =Time!AJ$46 -> 1 | AK46: =Time!AK$46 -> 1 | AL46: =Time!AL$46 -> 1 | AM46: =Time!AM$46 -> 1 | AN46: =Time!AN$46 -> 1 | AO46: =Time!AO$46 -> 1 | AP46: =Time!AP$46 -> 1 | AQ46: =Time!AQ$46 -> 1 | AR46: =Time!AR$46 -> 1 | AS46: =Time!AS$46 -> 1 | AT46: =Time!AT$46 -> 1 | AU46: =Time!AU$46 -> 1 | AV46: =Time!AV$46 -> 1 | AW46: =Time!AW$46 -> 0 | AX46: =Time!AX$46 -> 0 | AY46: =Time!AY$46 -> 0 | AZ46: =Time!AZ$46 -> 0 | BA46: =Time!BA$46 -> 0 | BB46: =Time!BB$46 -> 0 | BC46: =Time!BC$46 -> 0
E47: Reduction in highway truck operating costs - Build | G47: US$ | H47: =SUM(J47:BC47) -> 59647755.81 | J47: =$F44 * J45 * J46 -> 0 | K47: 0 | L47: 0 | M47: 0 | N47: 0 | O47: 0 | P47: 0 | Q47: 0 | R47: 0 | S47: 1311576.34 | T47: 1316608.758 | U47: 1431617.861 | V47: 1435863.332 | W47: 1562125.76 | X47: 1566542.745 | Y47: 1705174.347 | Z47: 1709768.9 | AA47: 1743964.721 | AB47: 1778844.581 | AC47: 1814420.585 | AD47: 1850710.893 | AE47: 1887723.577 | AF47: 1925478.816 | AG47: 1963988.715 | AH47: 2003267.4 | AI47: 2043333.03 | AJ47: 2084199.731 | AK47: 2125883.645 | AL47: 2168400.914 | AM47: 2211769.699 | AN47: 2256004.125 | AO47: 2301124.369 | AP47: =$F44 * AP45 * AP46 -> 2347148.591 | AQ47: 2394090.918 | AR47: 2441971.525 | AS47: 2490812.61 | AT47: 2540628.298 | AU47: 2591440.783 | AV47: 2643270.244 | AW47: 0 | AX47: 0 | AY47: 0 | AZ47: 0 | BA47: 0 | BB47: 0 | BC47: 0
E49: =E47 -> Reduction in highway truck operating costs - Build | F49: 0 | G49: US$ | H49: 59647755.81 | I49: 0 | J49: 0 | K49: 0 | L49: 0 | M49: 0 | N49: 0 | O49: 0 | P49: 0 | Q49: 0 | R49: 0 | S49: 1311576.34 | T49: 1316608.758 | U49: 1431617.861 | V49: 1435863.332 | W49: 1562125.76 | X49: 1566542.745 | Y49: 1705174.347 | Z49: 1709768.9 | AA49: 1743964.721 | AB49: 1778844.581 | AC49: 1814420.585 | AD49: 1850710.893 | AE49: 1887723.577 | AF49: 1925478.816 | AG49: 1963988.715 | AH49: 2003267.4 | AI49: 2043333.03 | AJ49: 2084199.731 | AK49: 2125883.645 | AL49: 2168400.914 | AM49: 2211769.699 | AN49: 2256004.125 | AO49: 2301124.369 | AP49: 2347148.591 | AQ49: 2394090.918 | AR49: 2441971.525 | AS49: 2490812.61 | AT49: 2540628.298 | AU49: 2591440.783 | AV49: 2643270.244 | AW49: 0 | AX49: 0 | AY49: 0 | AZ49: 0 | BA49: 0 | BB49: 0 | BC49: 0
E50: =Time!E$73 -> Discount rate multiplier (excluding CO2 emissions) | F50: =Time!F$73 -> 0 | G50: =Time!G$73 -> factor | H50: =Time!H$73 -> 0 | I50: =Time!I$73 -> 0 | J50: =Time!J$73 -> 0.762895212 | K50: =Time!K$73 -> 0.8162978769 | L50: =Time!L$73 -> 0.8734387283 | M50: =Time!M$73 -> 0.9345794393 | N50: =Time!N$73 -> 1 | O50: =Time!O$73 -> 1.07 | P50: =Time!P$73 -> 1.1449 | Q50: =Time!Q$73 -> 1.225043 | R50: =Time!R$73 -> 1.31079601 | S50: =Time!S$73 -> 1.402551731 | T50: =Time!T$73 -> 1.500730352 | U50: =Time!U$73 -> 1.605781476 | V50: =Time!V$73 -> 1.71818618 | W50: =Time!W$73 -> 1.838459212 | X50: =Time!X$73 -> 1.967151357 | Y50: =Time!Y$73 -> 2.104851952 | Z50: =Time!Z$73 -> 2.252191589 | AA50: =Time!AA$73 -> 2.409845 | AB50: =Time!AB$73 -> 2.57853415 | AC50: =Time!AC$73 -> 2.759031541 | AD50: =Time!AD$73 -> 2.952163749 | AE50: =Time!AE$73 -> 3.158815211 | AF50: =Time!AF$73 -> 3.379932276 | AG50: =Time!AG$73 -> 3.616527535 | AH50: =Time!AH$73 -> 3.869684462 | AI50: =Time!AI$73 -> 4.140562375 | AJ50: =Time!AJ$73 -> 4.430401741 | AK50: =Time!AK$73 -> 4.740529863 | AL50: =Time!AL$73 -> 5.072366953 | AM50: =Time!AM$73 -> 5.42743264 | AN50: =Time!AN$73 -> 5.807352925 | AO50: =Time!AO$73 -> 6.21386763 | AP50: =Time!AP$73 -> 6.648838364 | AQ50: =Time!AQ$73 -> 7.114257049 | AR50: =Time!AR$73 -> 7.612255043 | AS50: =Time!AS$73 -> 8.145112896 | AT50: =Time!AT$73 -> 8.715270798 | AU50: =Time!AU$73 -> 9.325339754 | AV50: =Time!AV$73 -> 9.978113537 | AW50: =Time!AW$73 -> 10.67658148 | AX50: =Time!AX$73 -> 11.42394219 | AY50: =Time!AY$73 -> 12.22361814 | AZ50: =Time!AZ$73 -> 13.07927141 | BA50: =Time!BA$73 -> 13.99482041 | BB50: =Time!BB$73 -> 14.97445784 | BC50: =Time!BC$73 -> 16.02266989
E51: =E49 & " - PV" -> Reduction in highway truck operating costs - Build - PV | G51: US$ | H51: =SUM(J51:BC51) -> 16837721.49 | J51: =IF(J49 > 0, J49 / J50, 0) -> 0 | K51: =IF(K49 > 0, K49 / K50, 0) -> 0 | L51: =IF(L49 > 0, L49 / L50, 0) -> 0 | M51: =IF(M49 > 0, M49 / M50, 0) -> 0 | N51: =IF(N49 > 0, N49 / N50, 0) -> 0 | O51: =IF(O49 > 0, O49 / O50, 0) -> 0 | P51: =IF(P49 > 0, P49 / P50, 0) -> 0 | Q51: =IF(Q49 > 0, Q49 / Q50, 0) -> 0 | R51: =IF(R49 > 0, R49 / R50, 0) -> 0 | S51: =IF(S49 > 0, S49 / S50, 0) -> 935135.8041 | T51: =IF(T49 > 0, T49 / T50, 0) -> 877312.0077 | U51: =IF(U49 > 0, U49 / U50, 0) -> 891539.6531 | V51: =IF(V49 > 0, V49 / V50, 0) -> 835685.5323 | W51: =IF(W49 > 0, W49 / W50, 0) -> 849692.9109 | X51: =IF(X49 > 0, X49 / X50, 0) -> 796350.8957 | Y51: =IF(Y49 > 0, Y49 / Y50, 0) -> 810116.0487 | Z51: =IF(Z49 > 0, Z49 / Z50, 0) -> 759157.839 | AA51: =IF(AA49 > 0, AA49 / AA50, 0) -> 723683.3578 | AB51: =IF(AB49 > 0, AB49 / AB50, 0) -> 689866.5976 | AC51: =IF(AC49 > 0, AC49 / AC50, 0) -> 657629.5189 | AD51: =IF(AD49 > 0, AD49 / AD50, 0) -> 626899.81 | AE51: =IF(AE49 > 0, AE49 / AE50, 0) -> 597604.9409 | AF51: =IF(AF49 > 0, AF49 / AF50, 0) -> 569679.7032 | AG51: =IF(AG49 > 0, AG49 / AG50, 0) -> 543059.2456 | AH51: =IF(AH49 > 0, AH49 / AH50, 0) -> 517682.3638 | AI51: =IF(AI49 > 0, AI49 / AI50, 0) -> 493491.6673 | AJ51: =IF(AJ49 > 0, AJ49 / AJ50, 0) -> 470431.3182 | AK51: =IF(AK49 > 0, AK49 / AK50, 0) -> 448448.5293 | AL51: =IF(AL49 > 0, AL49 / AL50, 0) -> 427492.9109 | AM51: =IF(AM49 > 0, AM49 / AM50, 0) -> 407516.748 | AN51: =IF(AN49 > 0, AN49 / AN50, 0) -> 388473.7425 | AO51: =IF(AO49 > 0, AO49 / AO50, 0) -> 370320.7899 | AP51: =IF(AP49 > 0, AP49 / AP50, 0) -> 353016.341 | AQ51: =IF(AQ49 > 0, AQ49 / AQ50, 0) -> 336520.1596 | AR51: =IF(AR49 > 0, AR49 / AR50, 0) -> 320794.7594 | AS51: =IF(AS49 > 0, AS49 / AS50, 0) -> 305804.5533 | AT51: =IF(AT49 > 0, AT49 / AT50, 0) -> 291514.556 | AU51: =IF(AU49 > 0, AU49 / AU50, 0) -> 277892.3719 | AV51: =IF(AV49 > 0, AV49 / AV50, 0) -> 264906.8117 | AW51: =IF(AW49 > 0, AW49 / AW50, 0) -> 0 | AX51: =IF(AX49 > 0, AX49 / AX50, 0) -> 0 | AY51: =IF(AY49 > 0, AY49 / AY50, 0) -> 0 | AZ51: =IF(AZ49 > 0, AZ49 / AZ50, 0) -> 0 | BA51: =IF(BA49 > 0, BA49 / BA50, 0) -> 0 | BB51: =IF(BB49 > 0, BB49 / BB50, 0) -> 0 | BC51: =IF(BC49 > 0, BC49 / BC50, 0) -> 0
B53: Highway Maintenance
E54: =InpC!E$57 -> Pavement repair cost | F54: =InpC!F$57 -> 5.784819027 | G54: =InpC!G$57 -> cent / mile
E55: =Volume!E$57 -> Reduction in truck miles - Build | F55: =Volume!F$57 -> 0 | G55: =Volume!G$57 -> miles | H55: =Volume!H$57 -> 64137371.84 | I55: =Volume!I$57 -> 0 | J55: =Volume!J$57 -> 0 | K55: =Volume!K$57 -> 0 | L55: =Volume!L$57 -> 0 | M55: =Volume!M$57 -> 0 | N55: =Volume!N$57 -> 0 | O55: =Volume!O$57 -> 0 | P55: =Volume!P$57 -> 0 | Q55: =Volume!Q$57 -> 0 | R55: =Volume!R$57 -> 0 | S55: =Volume!S$57 -> 1410297.14 | T55: =Volume!T$57 -> 1415708.342 | U55: =Volume!U$57 -> 1539374.044 | V55: =Volume!V$57 -> 1543939.067 | W55: =Volume!W$57 -> 1679705.118 | X55: =Volume!X$57 -> 1684454.565 | Y55: =Volume!Y$57 -> 1833520.803 | Z55: =Volume!Z$57 -> 1838461.182 | AA55: =Volume!AA$57 -> 1875230.883 | AB55: =Volume!AB$57 -> 1912736.108 | AC55: =Volume!AC$57 -> 1950989.876 | AD55: =Volume!AD$57 -> 1990011.713 | AE55: =Volume!AE$57 -> 2029810.298 | AF55: =Volume!AF$57 -> 2070407.329 | AG55: =Volume!AG$57 -> 2111815.823 | AH55: =Volume!AH$57 -> 2154050.967 | AI55: =Volume!AI$57 -> 2197132.29 | AJ55: =Volume!AJ$57 -> 2241074.98 | AK55: =Volume!AK$57 -> 2285896.392 | AL55: =Volume!AL$57 -> 2331613.886 | AM55: =Volume!AM$57 -> 2378246.989 | AN55: =Volume!AN$57 -> 2425810.887 | AO55: =Volume!AO$57 -> 2474327.278 | AP55: =Volume!AP$57 -> 2523815.69 | AQ55: =Volume!AQ$57 -> 2574291.309 | AR55: =Volume!AR$57 -> 2625775.834 | AS55: =Volume!AS$57 -> 2678293.129 | AT55: =Volume!AT$57 -> 2731858.384 | AU55: =Volume!AU$57 -> 2786495.465 | AV55: =Volume!AV$57 -> 2842226.069 | AW55: =Volume!AW$57 -> 0 | AX55: =Volume!AX$57 -> 0 | AY55: =Volume!AY$57 -> 0 | AZ55: =Volume!AZ$57 -> 0 | BA55: =Volume!BA$57 -> 0 | BB55: =Volume!BB$57 -> 0 | BC55: =Volume!BC$57 -> 0
E56: =Time!E$46 -> Forecast period flag | F56: =Time!F$46 -> 0 | G56: =Time!G$46 -> flag | H56: =Time!H$46 -> 33 | I56: =Time!I$46 -> 0 | J56: =Time!J$46 -> 0 | K56: =Time!K$46 -> 0 | L56: =Time!L$46 -> 0 | M56: =Time!M$46 -> 0 | N56: =Time!N$46 -> 0 | O56: =Time!O$46 -> 0 | P56: =Time!P$46 -> 1 | Q56: =Time!Q$46 -> 1 | R56: =Time!R$46 -> 1 | S56: =Time!S$46 -> 1 | T56: =Time!T$46 -> 1 | U56: =Time!U$46 -> 1 | V56: =Time!V$46 -> 1 | W56: =Time!W$46 -> 1 | X56: =Time!X$46 -> 1 | Y56: =Time!Y$46 -> 1 | Z56: =Time!Z$46 -> 1 | AA56: =Time!AA$46 -> 1 | AB56: =Time!AB$46 -> 1 | AC56: =Time!AC$46 -> 1 | AD56: =Time!AD$46 -> 1 | AE56: =Time!AE$46 -> 1 | AF56: =Time!AF$46 -> 1 | AG56: =Time!AG$46 -> 1 | AH56: =Time!AH$46 -> 1 | AI56: =Time!AI$46 -> 1 | AJ56: =Time!AJ$46 -> 1 | AK56: =Time!AK$46 -> 1 | AL56: =Time!AL$46 -> 1 | AM56: =Time!AM$46 -> 1 | AN56: =Time!AN$46 -> 1 | AO56: =Time!AO$46 -> 1 | AP56: =Time!AP$46 -> 1 | AQ56: =Time!AQ$46 -> 1 | AR56: =Time!AR$46 -> 1 | AS56: =Time!AS$46 -> 1 | AT56: =Time!AT$46 -> 1 | AU56: =Time!AU$46 -> 1 | AV56: =Time!AV$46 -> 1 | AW56: =Time!AW$46 -> 0 | AX56: =Time!AX$46 -> 0 | AY56: =Time!AY$46 -> 0 | AZ56: =Time!AZ$46 -> 0 | BA56: =Time!BA$46 -> 0 | BB56: =Time!BB$46 -> 0 | BC56: =Time!BC$46 -> 0
E57: Reduction in highway maintenance costs - Build | G57: US$ | H57: =SUM(J57:BC57) -> 3710230.89 | J57: =$F54 / 100 * J55 * J56 -> 0 | K57: =$F54 / 100 * K55 * K56 -> 0 | L57: =$F54 / 100 * L55 * L56 -> 0 | M57: =$F54 / 100 * M55 * M56 -> 0 | N57: =$F54 / 100 * N55 * N56 -> 0 | O57: =$F54 / 100 * O55 * O56 -> 0 | P57: =$F54 / 100 * P55 * P56 -> 0 | Q57: =$F54 / 100 * Q55 * Q56 -> 0 | R57: =$F54 / 100 * R55 * R56 -> 0 | S57: =$F54 / 100 * S55 * S56 -> 81583.13731 | T57: =$F54 / 100 * T55 * T56 -> 81896.16553 | U57: =$F54 / 100 * U55 * U56 -> 89050.00257 | V57: =$F54 / 100 * V55 * V56 -> 89314.08091 | W57: =$F54 / 100 * W55 * W56 -> 97167.90127 | X57: =$F54 / 100 * X55 * X56 -> 97442.64818 | Y57: =$F54 / 100 * Y55 * Y56 -> 106065.8603 | Z57: =$F54 / 100 * Z55 * Z56 -> 106351.6523 | AA57: =$F54 / 100 * AA55 * AA56 -> 108478.7129 | AB57: =$F54 / 100 * AB55 * AB56 -> 110648.3223 | AC57: =$F54 / 100 * AC55 * AC56 -> 112861.2336 | AD57: =$F54 / 100 * AD55 * AD56 -> 115118.5762 | AE57: =$F54 / 100 * AE55 * AE56 -> 117420.8524 | AF57: =$F54 / 100 * AF55 * AF56 -> 119769.3171 | AG57: =$F54 / 100 * AG55 * AG56 -> 122164.7235 | AH57: =$F54 / 100 * AH55 * AH56 -> 124607.9502 | AI57: =$F54 / 100 * AI55 * AI56 -> 127100.1268 | AJ57: =$F54 / 100 * AJ55 * AJ56 -> 129642.1318 | AK57: =$F54 / 100 * AK55 * AK56 -> 132234.9694 | AL57: =$F54 / 100 * AL55 * AL56 -> 134879.6437 | AM57: =$F54 / 100 * AM55 * AM56 -> 137577.2843 | AN57: =$F54 / 100 * AN55 * AN56 -> 140328.7697 | AO57: =$F54 / 100 * AO55 * AO56 -> 143135.3552 | AP57: =$F54 / 100 * AP55 * AP56 -> 145998.1702 | AQ57: =$F54 / 100 * AQ55 * AQ56 -> 148918.0935 | AR57: =$F54 / 100 * AR55 * AR56 -> 151896.38 | AS57: =$F54 / 100 * AS55 * AS56 -> 154934.4105 | AT57: =$F54 / 100 * AT55 * AT56 -> 158033.0636 | AU57: =$F54 / 100 * AU55 * AU56 -> 161193.7199 | AV57: =$F54 / 100 * AV55 * AV56 -> 164417.6344 | AW57: =$F54 / 100 * AW55 * AW56 -> 0 | AX57: =$F54 / 100 * AX55 * AX56 -> 0 | AY57: =$F54 / 100 * AY55 * AY56 -> 0 | AZ57: =$F54 / 100 * AZ55 * AZ56 -> 0 | BA57: =$F54 / 100 * BA55 * BA56 -> 0 | BB57: =$F54 / 100 * BB55 * BB56 -> 0 | BC57: =$F54 / 100 * BC55 * BC56 -> 0
E59: =E57 -> Reduction in highway maintenance costs - Build | F59: 0 | G59: US$ | H59: 3710230.89 | I59: 0 | J59: 0 | K59: 0 | L59: 0 | M59: 0 | N59: 0 | O59: 0 | P59: 0 | Q59: 0 | R59: 0 | S59: 81583.13731 | T59: 81896.16553 | U59: 89050.00257 | V59: 89314.08091 | W59: 97167.90127 | X59: 97442.64818 | Y59: 106065.8603 | Z59: 106351.6523 | AA59: 108478.7129 | AB59: 110648.3223 | AC59: 112861.2336 | AD59: 115118.5762 | AE59: 117420.8524 | AF59: 119769.3171 | AG59: 122164.7235 | AH59: 124607.9502 | AI59: 127100.1268 | AJ59: 129642.1318 | AK59: 132234.9694 | AL59: 134879.6437 | AM59: 137577.2843 | AN59: 140328.7697 | AO59: 143135.3552 | AP59: 145998.1702 | AQ59: 148918.0935 | AR59: 151896.38 | AS59: 154934.4105 | AT59: 158033.0636 | AU59: 161193.7199 | AV59: 164417.6344 | AW59: 0 | AX59: 0 | AY59: 0 | AZ59: 0 | BA59: 0 | BB59: 0 | BC59: 0
E60: =Time!E$73 -> Discount rate multiplier (excluding CO2 emissions) | F60: =Time!F$73 -> 0 | G60: =Time!G$73 -> factor | H60: =Time!H$73 -> 0 | I60: =Time!I$73 -> 0 | J60: =Time!J$73 -> 0.762895212 | K60: =Time!K$73 -> 0.8162978769 | L60: =Time!L$73 -> 0.8734387283 | M60: =Time!M$73 -> 0.9345794393 | N60: =Time!N$73 -> 1 | O60: =Time!O$73 -> 1.07 | P60: =Time!P$73 -> 1.1449 | Q60: =Time!Q$73 -> 1.225043 | R60: =Time!R$73 -> 1.31079601 | S60: =Time!S$73 -> 1.402551731 | T60: =Time!T$73 -> 1.500730352 | U60: =Time!U$73 -> 1.605781476 | V60: =Time!V$73 -> 1.71818618 | W60: =Time!W$73 -> 1.838459212 | X60: =Time!X$73 -> 1.967151357 | Y60: =Time!Y$73 -> 2.104851952 | Z60: =Time!Z$73 -> 2.252191589 | AA60: =Time!AA$73 -> 2.409845 | AB60: =Time!AB$73 -> 2.57853415 | AC60: =Time!AC$73 -> 2.759031541 | AD60: =Time!AD$73 -> 2.952163749 | AE60: =Time!AE$73 -> 3.158815211 | AF60: =Time!AF$73 -> 3.379932276 | AG60: =Time!AG$73 -> 3.616527535 | AH60: =Time!AH$73 -> 3.869684462 | AI60: =Time!AI$73 -> 4.140562375 | AJ60: =Time!AJ$73 -> 4.430401741 | AK60: =Time!AK$73 -> 4.740529863 | AL60: =Time!AL$73 -> 5.072366953 | AM60: =Time!AM$73 -> 5.42743264 | AN60: =Time!AN$73 -> 5.807352925 | AO60: =Time!AO$73 -> 6.21386763 | AP60: =Time!AP$73 -> 6.648838364 | AQ60: =Time!AQ$73 -> 7.114257049 | AR60: =Time!AR$73 -> 7.612255043 | AS60: =Time!AS$73 -> 8.145112896 | AT60: =Time!AT$73 -> 8.715270798 | AU60: =Time!AU$73 -> 9.325339754 | AV60: =Time!AV$73 -> 9.978113537 | AW60: =Time!AW$73 -> 10.67658148 | AX60: =Time!AX$73 -> 11.42394219 | AY60: =Time!AY$73 -> 12.22361814 | AZ60: =Time!AZ$73 -> 13.07927141 | BA60: =Time!BA$73 -> 13.99482041 | BB60: =Time!BB$73 -> 14.97445784 | BC60: =Time!BC$73 -> 16.02266989
E61: =E59 & " - PV" -> Reduction in highway maintenance costs - Build - PV | G61: US$ | H61: =SUM(J61:BC61) -> 1047345.932 | J61: =IF(J59 > 0, J59 / J60, 0) -> 0 | K61: =IF(K59 > 0, K59 / K60, 0) -> 0 | L61: =IF(L59 > 0, L59 / L60, 0) -> 0 | M61: =IF(M59 > 0, M59 / M60, 0) -> 0 | N61: =IF(N59 > 0, N59 / N60, 0) -> 0 | O61: =IF(O59 > 0, O59 / O60, 0) -> 0 | P61: =IF(P59 > 0, P59 / P60, 0) -> 0 | Q61: =IF(Q59 > 0, Q59 / Q60, 0) -> 0 | R61: =IF(R59 > 0, R59 / R60, 0) -> 0 | S61: =IF(S59 > 0, S59 / S60, 0) -> 58167.64938 | T61: =IF(T59 > 0, T59 / T60, 0) -> 54570.87306 | U61: =IF(U59 > 0, U59 / U60, 0) -> 55455.86612 | V61: =IF(V59 > 0, V59 / V60, 0) -> 51981.60826 | W61: =IF(W59 > 0, W59 / W60, 0) -> 52852.9002 | X61: =IF(X59 > 0, X59 / X60, 0) -> 49534.90122 | Y61: =IF(Y59 > 0, Y59 / Y60, 0) -> 50391.12616 | Z61: =IF(Z59 > 0, Z59 / Z60, 0) -> 47221.4055 | AA61: =IF(AA59 > 0, AA59 / AA60, 0) -> 45014.80922 | AB61: =IF(AB59 > 0, AB59 / AB60, 0) -> 42911.32709 | AC61: =IF(AC59 > 0, AC59 / AC60, 0) -> 40906.10488 | AD61: =IF(AD59 > 0, AD59 / AD60, 0) -> 38994.64461 | AE61: =IF(AE59 > 0, AE59 / AE60, 0) -> 37172.43476 | AF61: =IF(AF59 > 0, AF59 / AF60, 0) -> 35435.41921 | AG61: =IF(AG59 > 0, AG59 / AG60, 0) -> 33779.56405 | AH61: =IF(AH59 > 0, AH59 / AH60, 0) -> 32201.06224 | AI61: =IF(AI59 > 0, AI59 / AI60, 0) -> 30696.34395 | AJ61: =IF(AJ59 > 0, AJ59 / AJ60, 0) -> 29261.93592 | AK61: =IF(AK59 > 0, AK59 / AK60, 0) -> 27894.55467 | AL61: =IF(AL59 > 0, AL59 / AL60, 0) -> 26591.06586 | AM61: =IF(AM59 > 0, AM59 / AM60, 0) -> 25348.50148 | AN61: =IF(AN59 > 0, AN59 / AN60, 0) -> 24163.98169 | AO61: =IF(AO59 > 0, AO59 / AO60, 0) -> 23034.82528 | AP61: =IF(AP59 > 0, AP59 / AP60, 0) -> 21958.44781 | AQ61: =IF(AQ59 > 0, AQ59 / AQ60, 0) -> 20932.34648 | AR61: =IF(AR59 > 0, AR59 / AR60, 0) -> 19954.18955 | AS61: =IF(AS59 > 0, AS59 / AS60, 0) -> 19021.76342 | AT61: =IF(AT59 > 0, AT59 / AT60, 0) -> 18132.89194 | AU61: =IF(AU59 > 0, AU59 / AU60, 0) -> 17285.56 | AV61: =IF(AV59 > 0, AV59 / AV60, 0) -> 16477.82758 | AW61: =IF(AW59 > 0, AW59 / AW60, 0) -> 0 | AX61: =IF(AX59 > 0, AX59 / AX60, 0) -> 0 | AY61: =IF(AY59 > 0, AY59 / AY60, 0) -> 0 | AZ61: =IF(AZ59 > 0, AZ59 / AZ60, 0) -> 0 | BA61: =IF(BA59 > 0, BA59 / BA60, 0) -> 0 | BB61: =IF(BB59 > 0, BB59 / BB60, 0) -> 0 | BC61: =IF(BC59 > 0, BC59 / BC60, 0) -> 0
B63: Total
E64: =E$51 -> Reduction in highway truck operating costs - Build - PV | F64: 0 | G64: US$ | H64: 16837721.49 | I64: 0 | J64: 0 | K64: 0 | L64: 0 | M64: 0 | N64: 0 | O64: 0 | P64: 0 | Q64: 0 | R64: 0 | S64: 935135.8041 | T64: 877312.0077 | U64: 891539.6531 | V64: 835685.5323 | W64: 849692.9109 | X64: 796350.8957 | Y64: 810116.0487 | Z64: 759157.839 | AA64: 723683.3578 | AB64: 689866.5976 | AC64: 657629.5189 | AD64: 626899.81 | AE64: 597604.9409 | AF64: 569679.7032 | AG64: 543059.2456 | AH64: 517682.3638 | AI64: 493491.6673 | AJ64: 470431.3182 | AK64: =AK$51 -> 448448.5293 | AL64: 427492.9109 | AM64: 407516.748 | AN64: 388473.7425 | AO64: 370320.7899 | AP64: 353016.341 | AQ64: 336520.1596 | AR64: 320794.7594 | AS64: 305804.5533 | AT64: 291514.556 | AU64: 277892.3719 | AV64: 264906.8117 | AW64: 0 | AX64: 0 | AY64: 0 | AZ64: 0 | BA64: 0 | BB64: 0 | BC64: 0
E65: =E$61 -> Reduction in highway maintenance costs - Build - PV | F65: 0 | G65: US$ | H65: 1047345.932 | I65: 0 | J65: 0 | K65: 0 | L65: 0 | M65: 0 | N65: 0 | O65: 0 | P65: 0 | Q65: 0 | R65: 0 | S65: 58167.64938 | T65: 54570.87306 | U65: 55455.86612 | V65: 51981.60826 | W65: 52852.9002 | X65: 49534.90122 | Y65: 50391.12616 | Z65: 47221.4055 | AA65: 45014.80922 | AB65: 42911.32709 | AC65: 40906.10488 | AD65: 38994.64461 | AE65: 37172.43476 | AF65: 35435.41921 | AG65: 33779.56405 | AH65: 32201.06224 | AI65: 30696.34395 | AJ65: 29261.93592 | AK65: =AK$61 -> 27894.55467 | AL65: 26591.06586 | AM65: 25348.50148 | AN65: 24163.98169 | AO65: 23034.82528 | AP65: 21958.44781 | AQ65: 20932.34648 | AR65: 19954.18955 | AS65: 19021.76342 | AT65: 18132.89194 | AU65: 17285.56 | AV65: 16477.82758 | AW65: 0 | AX65: 0 | AY65: 0 | AZ65: 0 | BA65: 0 | BB65: 0 | BC65: 0
E66: Economic vitality benefits - Truck mile reduction - Build - PV | G66: US$ | H66: =SUM(J66:BC66) -> 17885067.42 | J66: =SUM(J64:J65) -> 0 | K66: 0 | L66: 0 | M66: 0 | N66: 0 | O66: 0 | P66: 0 | Q66: 0 | R66: 0 | S66: 993303.4534 | T66: 931882.8807 | U66: 946995.5192 | V66: 887667.1405 | W66: 902545.8111 | X66: 845885.7969 | Y66: 860507.1749 | Z66: 806379.2444 | AA66: 768698.167 | AB66: 732777.9247 | AC66: 698535.6238 | AD66: 665894.4546 | AE66: 634777.3757 | AF66: 605115.1224 | AG66: 576838.8097 | AH66: 549883.426 | AI66: 524188.0113 | AJ66: 499693.2541 | AK66: 476343.0839 | AL66: 454083.9768 | AM66: 432865.2495 | AN66: 412637.7242 | AO66: 393355.6151 | AP66: =SUM(AP64:AP65) -> 374974.7889 | AQ66: 357452.5061 | AR66: 340748.949 | AS66: 324826.3167 | AT66: 309647.448 | AU66: 295177.9319 | AV66: 281384.6393 | AW66: 0 | AX66: 0 | AY66: 0 | AZ66: 0 | BA66: 0 | BB66: 0 | BC66: 0
A69: SAFETY BENEFITS - TRUCK MILE REDUCTIONS
B71: Property Damage Only Accidents
E72: =InpC!E$72 -> PDO rate per VMT - Vehicle | F72: =InpC!F$72 -> 141 | G72: =InpC!G$72 -> incident / 100 million VMT
E73: =Volume!E$57 -> Reduction in truck miles - Build | F73: =Volume!F$57 -> 0 | G73: =Volume!G$57 -> miles | H73: =Volume!H$57 -> 64137371.84 | I73: =Volume!I$57 -> 0 | J73: =Volume!J$57 -> 0 | K73: =Volume!K$57 -> 0 | L73: =Volume!L$57 -> 0 | M73: =Volume!M$57 -> 0 | N73: =Volume!N$57 -> 0 | O73: =Volume!O$57 -> 0 | P73: =Volume!P$57 -> 0 | Q73: =Volume!Q$57 -> 0 | R73: =Volume!R$57 -> 0 | S73: =Volume!S$57 -> 1410297.14 | T73: =Volume!T$57 -> 1415708.342 | U73: =Volume!U$57 -> 1539374.044 | V73: =Volume!V$57 -> 1543939.067 | W73: =Volume!W$57 -> 1679705.118 | X73: =Volume!X$57 -> 1684454.565 | Y73: =Volume!Y$57 -> 1833520.803 | Z73: =Volume!Z$57 -> 1838461.182 | AA73: =Volume!AA$57 -> 1875230.883 | AB73: =Volume!AB$57 -> 1912736.108 | AC73: =Volume!AC$57 -> 1950989.876 | AD73: =Volume!AD$57 -> 1990011.713 | AE73: =Volume!AE$57 -> 2029810.298 | AF73: =Volume!AF$57 -> 2070407.329 | AG73: =Volume!AG$57 -> 2111815.823 | AH73: =Volume!AH$57 -> 2154050.967 | AI73: =Volume!AI$57 -> 2197132.29 | AJ73: =Volume!AJ$57 -> 2241074.98 | AK73: =Volume!AK$57 -> 2285896.392 | AL73: =Volume!AL$57 -> 2331613.886 | AM73: =Volume!AM$57 -> 2378246.989 | AN73: =Volume!AN$57 -> 2425810.887 | AO73: =Volume!AO$57 -> 2474327.278 | AP73: =Volume!AP$57 -> 2523815.69 | AQ73: =Volume!AQ$57 -> 2574291.309 | AR73: =Volume!AR$57 -> 2625775.834 | AS73: =Volume!AS$57 -> 2678293.129 | AT73: =Volume!AT$57 -> 2731858.384 | AU73: =Volume!AU$57 -> 2786495.465 | AV73: =Volume!AV$57 -> 2842226.069 | AW73: =Volume!AW$57 -> 0 | AX73: =Volume!AX$57 -> 0 | AY73: =Volume!AY$57 -> 0 | AZ73: =Volume!AZ$57 -> 0 | BA73: =Volume!BA$57 -> 0 | BB73: =Volume!BB$57 -> 0 | BC73: =Volume!BC$57 -> 0
E74: =Time!E$46 -> Forecast period flag | F74: =Time!F$46 -> 0 | G74: =Time!G$46 -> flag | H74: =Time!H$46 -> 33 | I74: =Time!I$46 -> 0 | J74: =Time!J$46 -> 0 | K74: =Time!K$46 -> 0 | L74: =Time!L$46 -> 0 | M74: =Time!M$46 -> 0 | N74: =Time!N$46 -> 0 | O74: =Time!O$46 -> 0 | P74: =Time!P$46 -> 1 | Q74: =Time!Q$46 -> 1 | R74: =Time!R$46 -> 1 | S74: =Time!S$46 -> 1 | T74: =Time!T$46 -> 1 | U74: =Time!U$46 -> 1 | V74: =Time!V$46 -> 1 | W74: =Time!W$46 -> 1 | X74: =Time!X$46 -> 1 | Y74: =Time!Y$46 -> 1 | Z74: =Time!Z$46 -> 1 | AA74: =Time!AA$46 -> 1 | AB74: =Time!AB$46 -> 1 | AC74: =Time!AC$46 -> 1 | AD74: =Time!AD$46 -> 1 | AE74: =Time!AE$46 -> 1 | AF74: =Time!AF$46 -> 1 | AG74: =Time!AG$46 -> 1 | AH74: =Time!AH$46 -> 1 | AI74: =Time!AI$46 -> 1 | AJ74: =Time!AJ$46 -> 1 | AK74: =Time!AK$46 -> 1 | AL74: =Time!AL$46 -> 1 | AM74: =Time!AM$46 -> 1 | AN74: =Time!AN$46 -> 1 | AO74: =Time!AO$46 -> 1 | AP74: =Time!AP$46 -> 1 | AQ74: =Time!AQ$46 -> 1 | AR74: =Time!AR$46 -> 1 | AS74: =Time!AS$46 -> 1 | AT74: =Time!AT$46 -> 1 | AU74: =Time!AU$46 -> 1 | AV74: =Time!AV$46 -> 1 | AW74: =Time!AW$46 -> 0 | AX74: =Time!AX$46 -> 0 | AY74: =Time!AY$46 -> 0 | AZ74: =Time!AZ$46 -> 0 | BA74: =Time!BA$46 -> 0 | BB74: =Time!BB$46 -> 0 | BC74: =Time!BC$46 -> 0
E75: Reduction in highway PDO accidents - Build | G75: incidents | H75: =SUM(J75:BC75) -> 90.4336943 | J75: =J73 / 100000000 * $F72 * J74 -> 0 | K75: 0 | L75: 0 | M75: 0 | N75: 0 | O75: 0 | P75: 0 | Q75: 0 | R75: 0 | S75: 1.988518968 | T75: 1.996148762 | U75: 2.170517401 | V75: 2.176954084 | W75: 2.368384217 | X75: 2.375080937 | Y75: 2.585264332 | Z75: 2.592230267 | AA75: 2.644075545 | AB75: 2.696957913 | AC75: 2.750895725 | AD75: 2.805916515 | AE75: 2.862032521 | AF75: 2.919274334 | AG75: 2.97766031 | AH75: 3.037211864 | AI75: 3.09795653 | AJ75: 3.159915721 | AK75: 3.223113913 | AL75: 3.28757558 | AM75: 3.353328254 | AN75: 3.42039335 | AO75: 3.488801462 | AP75: =AP73 / 100000000 * $F72 * AP74 -> 3.558580122 | AQ75: 3.629750746 | AR75: 3.702343925 | AS75: 3.776393312 | AT75: 3.851920322 | AU75: 3.928958606 | AV75: 4.007538757 | AW75: 0 | AX75: 0 | AY75: 0 | AZ75: 0 | BA75: 0 | BB75: 0 | BC75: 0
E77: =InpC!E$73 -> Property damage only (PDO) crash monetized value - 2019 US$ | F77: =InpC!F$73 -> 4500 | G77: =InpC!G$73 -> US$ / crash
E78: =E75 -> Reduction in highway PDO accidents - Build | F78: 0 | G78: incidents | H78: 90.4336943 | I78: 0 | J78: 0 | K78: 0 | L78: 0 | M78: 0 | N78: 0 | O78: 0 | P78: 0 | Q78: 0 | R78: 0 | S78: 1.988518968 | T78: 1.996148762 | U78: 2.170517401 | V78: 2.176954084 | W78: 2.368384217 | X78: 2.375080937 | Y78: 2.585264332 | Z78: 2.592230267 | AA78: 2.644075545 | AB78: 2.696957913 | AC78: 2.750895725 | AD78: 2.805916515 | AE78: 2.862032521 | AF78: 2.919274334 | AG78: 2.97766031 | AH78: 3.037211864 | AI78: 3.09795653 | AJ78: 3.159915721 | AK78: =AK75 -> 3.223113913 | AL78: 3.28757558 | AM78: 3.353328254 | AN78: 3.42039335 | AO78: 3.488801462 | AP78: 3.558580122 | AQ78: 3.629750746 | AR78: 3.702343925 | AS78: 3.776393312 | AT78: 3.851920322 | AU78: 3.928958606 | AV78: 4.007538757 | AW78: 0 | AX78: 0 | AY78: 0 | AZ78: 0 | BA78: 0 | BB78: 0 | BC78: 0
E79: Reduction in highway PDO accident costs - Build | G79: US$ | H79: =SUM(J79:BC79) -> 406951.6243 | J79: =$F77 * J78 -> 0 | K79: 0 | L79: 0 | M79: 0 | N79: 0 | O79: 0 | P79: 0 | Q79: 0 | R79: 0 | S79: 8948.335355 | T79: 8982.669429 | U79: 9767.328307 | V79: 9796.29338 | W79: 10657.72897 | X79: 10687.86421 | Y79: 11633.68949 | Z79: 11665.0362 | AA79: 11898.33995 | AB79: 12136.31061 | AC79: 12379.03076 | AD79: 12626.62432 | AE79: 12879.14634 | AF79: 13136.7345 | AG79: 13399.47139 | AH79: 13667.45339 | AI79: 13940.80438 | AJ79: 14219.62075 | AK79: 14504.01261 | AL79: 14794.09011 | AM79: 15089.97714 | AN79: 15391.77008 | AO79: 15699.60658 | AP79: =$F77 * AP78 -> 16013.61055 | AQ79: 16333.87836 | AR79: 16660.54766 | AS79: 16993.76991 | AT79: 17333.64145 | AU79: 17680.31373 | AV79: 18033.92441 | AW79: 0 | AX79: 0 | AY79: 0 | AZ79: 0 | BA79: 0 | BB79: 0 | BC79: 0
E81: =E79 -> Reduction in highway PDO accident costs - Build | F81: 0 | G81: US$ | H81: 406951.6243 | I81: 0 | J81: 0 | K81: 0 | L81: 0 | M81: 0 | N81: 0 | O81: 0 | P81: 0 | Q81: 0 | R81: 0 | S81: 8948.335355 | T81: 8982.669429 | U81: 9767.328307 | V81: 9796.29338 | W81: 10657.72897 | X81: 10687.86421 | Y81: 11633.68949 | Z81: 11665.0362 | AA81: 11898.33995 | AB81: 12136.31061 | AC81: 12379.03076 | AD81: 12626.62432 | AE81: 12879.14634 | AF81: 13136.7345 | AG81: 13399.47139 | AH81: 13667.45339 | AI81: 13940.80438 | AJ81: 14219.62075 | AK81: 14504.01261 | AL81: 14794.09011 | AM81: 15089.97714 | AN81: 15391.77008 | AO81: 15699.60658 | AP81: 16013.61055 | AQ81: 16333.87836 | AR81: 16660.54766 | AS81: 16993.76991 | AT81: 17333.64145 | AU81: 17680.31373 | AV81: 18033.92441 | AW81: 0 | AX81: 0 | AY81: 0 | AZ81: 0 | BA81: 0 | BB81: 0 | BC81: 0
E82: =Time!E$73 -> Discount rate multiplier (excluding CO2 emissions) | F82: =Time!F$73 -> 0 | G82: =Time!G$73 -> factor | H82: =Time!H$73 -> 0 | I82: =Time!I$73 -> 0 | J82: =Time!J$73 -> 0.762895212 | K82: =Time!K$73 -> 0.8162978769 | L82: =Time!L$73 -> 0.8734387283 | M82: =Time!M$73 -> 0.9345794393 | N82: =Time!N$73 -> 1 | O82: =Time!O$73 -> 1.07 | P82: =Time!P$73 -> 1.1449 | Q82: =Time!Q$73 -> 1.225043 | R82: =Time!R$73 -> 1.31079601 | S82: =Time!S$73 -> 1.402551731 | T82: =Time!T$73 -> 1.500730352 | U82: =Time!U$73 -> 1.605781476 | V82: =Time!V$73 -> 1.71818618 | W82: =Time!W$73 -> 1.838459212 | X82: =Time!X$73 -> 1.967151357 | Y82: =Time!Y$73 -> 2.104851952 | Z82: =Time!Z$73 -> 2.252191589 | AA82: =Time!AA$73 -> 2.409845 | AB82: =Time!AB$73 -> 2.57853415 | AC82: =Time!AC$73 -> 2.759031541 | AD82: =Time!AD$73 -> 2.952163749 | AE82: =Time!AE$73 -> 3.158815211 | AF82: =Time!AF$73 -> 3.379932276 | AG82: =Time!AG$73 -> 3.616527535 | AH82: =Time!AH$73 -> 3.869684462 | AI82: =Time!AI$73 -> 4.140562375 | AJ82: =Time!AJ$73 -> 4.430401741 | AK82: =Time!AK$73 -> 4.740529863 | AL82: =Time!AL$73 -> 5.072366953 | AM82: =Time!AM$73 -> 5.42743264 | AN82: =Time!AN$73 -> 5.807352925 | AO82: =Time!AO$73 -> 6.21386763 | AP82: =Time!AP$73 -> 6.648838364 | AQ82: =Time!AQ$73 -> 7.114257049 | AR82: =Time!AR$73 -> 7.612255043 | AS82: =Time!AS$73 -> 8.145112896 | AT82: =Time!AT$73 -> 8.715270798 | AU82: =Time!AU$73 -> 9.325339754 | AV82: =Time!AV$73 -> 9.978113537 | AW82: =Time!AW$73 -> 10.67658148 | AX82: =Time!AX$73 -> 11.42394219 | AY82: =Time!AY$73 -> 12.22361814 | AZ82: =Time!AZ$73 -> 13.07927141 | BA82: =Time!BA$73 -> 13.99482041 | BB82: =Time!BB$73 -> 14.97445784 | BC82: =Time!BC$73 -> 16.02266989
E83: =E81 & " - PV" -> Reduction in highway PDO accident costs - Build - PV | G83: US$ | H83: =SUM(J83:BC83) -> 114876.7127 | J83: =IF(J81 > 0, J81 / J82, 0) -> 0 | K83: =IF(K81 > 0, K81 / K82, 0) -> 0 | L83: =IF(L81 > 0, L81 / L82, 0) -> 0 | M83: =IF(M81 > 0, M81 / M82, 0) -> 0 | N83: =IF(N81 > 0, N81 / N82, 0) -> 0 | O83: =IF(O81 > 0, O81 / O82, 0) -> 0 | P83: =IF(P81 > 0, P81 / P82, 0) -> 0 | Q83: =IF(Q81 > 0, Q81 / Q82, 0) -> 0 | R83: =IF(R81 > 0, R81 / R82, 0) -> 0 | S83: =IF(S81 > 0, S81 / S82, 0) -> 6380.039437 | T83: =IF(T81 > 0, T81 / T82, 0) -> 5985.531923 | U83: =IF(U81 > 0, U81 / U82, 0) -> 6082.601182 | V83: =IF(V81 > 0, V81 / V82, 0) -> 5701.531938 | W83: =IF(W81 > 0, W81 / W82, 0) -> 5797.098408 | X83: =IF(X81 > 0, X81 / X82, 0) -> 5433.168208 | Y83: =IF(Y81 > 0, Y81 / Y82, 0) -> 5527.082074 | Z83: =IF(Z81 > 0, Z81 / Z82, 0) -> 5179.415579 | AA83: =IF(AA81 > 0, AA81 / AA82, 0) -> 4937.38807 | AB83: =IF(AB81 > 0, AB81 / AB82, 0) -> 4706.670496 | AC83: =IF(AC81 > 0, AC81 / AC82, 0) -> 4486.730427 | AD83: =IF(AD81 > 0, AD81 / AD82, 0) -> 4277.07451 | AE83: =IF(AE81 > 0, AE81 / AE82, 0) -> 4077.207903 | AF83: =IF(AF81 > 0, AF81 / AF82, 0) -> 3886.685717 | AG83: =IF(AG81 > 0, AG81 / AG82, 0) -> 3705.065498 | AH83: =IF(AH81 > 0, AH81 / AH82, 0) -> 3531.929675 | AI83: =IF(AI81 > 0, AI81 / AI82, 0) -> 3366.886698 | AJ83: =IF(AJ81 > 0, AJ81 / AJ82, 0) -> 3209.555606 | AK83: =IF(AK81 > 0, AK81 / AK82, 0) -> 3059.576256 | AL83: =IF(AL81 > 0, AL81 / AL82, 0) -> 2916.60486 | AM83: =IF(AM81 > 0, AM81 / AM82, 0) -> 2780.315877 | AN83: =IF(AN81 > 0, AN81 / AN82, 0) -> 2650.393437 | AO83: =IF(AO81 > 0, AO81 / AO82, 0) -> 2526.543453 | AP83: =IF(AP81 > 0, AP81 / AP82, 0) -> 2408.482456 | AQ83: =IF(AQ81 > 0, AQ81 / AQ82, 0) -> 2295.935927 | AR83: =IF(AR81 > 0, AR81 / AR82, 0) -> 2188.648117 | AS83: =IF(AS81 > 0, AS81 / AS82, 0) -> 2086.376226 | AT83: =IF(AT81 > 0, AT81 / AT82, 0) -> 1988.881568 | AU83: =IF(AU81 > 0, AU81 / AU82, 0) -> 1895.943118 | AV83: =IF(AV81 > 0, AV81 / AV82, 0) -> 1807.348086 | AW83: =IF(AW81 > 0, AW81 / AW82, 0) -> 0 | AX83: =IF(AX81 > 0, AX81 / AX82, 0) -> 0 | AY83: =IF(AY81 > 0, AY81 / AY82, 0) -> 0 | AZ83: =IF(AZ81 > 0, AZ81 / AZ82, 0) -> 0 | BA83: =IF(BA81 > 0, BA81 / BA82, 0) -> 0 | BB83: =IF(BB81 > 0, BB81 / BB82, 0) -> 0 | BC83: =IF(BC81 > 0, BC81 / BC82, 0) -> 0
B85: Injury Accidents
E86: =InpC!E$76 -> Injury rate per VMT - Vehicle | F86: =InpC!F$76 -> 85 | G86: =InpC!G$76 -> person / 100 million VMT
E87: =Volume!E$57 -> Reduction in truck miles - Build | F87: =Volume!F$57 -> 0 | G87: =Volume!G$57 -> miles | H87: =Volume!H$57 -> 64137371.84 | I87: =Volume!I$57 -> 0 | J87: =Volume!J$57 -> 0 | K87: =Volume!K$57 -> 0 | L87: =Volume!L$57 -> 0 | M87: =Volume!M$57 -> 0 | N87: =Volume!N$57 -> 0 | O87: =Volume!O$57 -> 0 | P87: =Volume!P$57 -> 0 | Q87: =Volume!Q$57 -> 0 | R87: =Volume!R$57 -> 0 | S87: =Volume!S$57 -> 1410297.14 | T87: =Volume!T$57 -> 1415708.342 | U87: =Volume!U$57 -> 1539374.044 | V87: =Volume!V$57 -> 1543939.067 | W87: =Volume!W$57 -> 1679705.118 | X87: =Volume!X$57 -> 1684454.565 | Y87: =Volume!Y$57 -> 1833520.803 | Z87: =Volume!Z$57 -> 1838461.182 | AA87: =Volume!AA$57 -> 1875230.883 | AB87: =Volume!AB$57 -> 1912736.108 | AC87: =Volume!AC$57 -> 1950989.876 | AD87: =Volume!AD$57 -> 1990011.713 | AE87: =Volume!AE$57 -> 2029810.298 | AF87: =Volume!AF$57 -> 2070407.329 | AG87: =Volume!AG$57 -> 2111815.823 | AH87: =Volume!AH$57 -> 2154050.967 | AI87: =Volume!AI$57 -> 2197132.29 | AJ87: =Volume!AJ$57 -> 2241074.98 | AK87: =Volume!AK$57 -> 2285896.392 | AL87: =Volume!AL$57 -> 2331613.886 | AM87: =Volume!AM$57 -> 2378246.989 | AN87: =Volume!AN$57 -> 2425810.887 | AO87: =Volume!AO$57 -> 2474327.278 | AP87: =Volume!AP$57 -> 2523815.69 | AQ87: =Volume!AQ$57 -> 2574291.309 | AR87: =Volume!AR$57 -> 2625775.834 | AS87: =Volume!AS$57 -> 2678293.129 | AT87: =Volume!AT$57 -> 2731858.384 | AU87: =Volume!AU$57 -> 2786495.465 | AV87: =Volume!AV$57 -> 2842226.069 | AW87: =Volume!AW$57 -> 0 | AX87: =Volume!AX$57 -> 0 | AY87: =Volume!AY$57 -> 0 | AZ87: =Volume!AZ$57 -> 0 | BA87: =Volume!BA$57 -> 0 | BB87: =Volume!BB$57 -> 0 | BC87: =Volume!BC$57 -> 0
E88: =Time!E$46 -> Forecast period flag | F88: =Time!F$46 -> 0 | G88: =Time!G$46 -> flag | H88: =Time!H$46 -> 33 | I88: =Time!I$46 -> 0 | J88: =Time!J$46 -> 0 | K88: =Time!K$46 -> 0 | L88: =Time!L$46 -> 0 | M88: =Time!M$46 -> 0 | N88: =Time!N$46 -> 0 | O88: =Time!O$46 -> 0 | P88: =Time!P$46 -> 1 | Q88: =Time!Q$46 -> 1 | R88: =Time!R$46 -> 1 | S88: =Time!S$46 -> 1 | T88: =Time!T$46 -> 1 | U88: =Time!U$46 -> 1 | V88: =Time!V$46 -> 1 | W88: =Time!W$46 -> 1 | X88: =Time!X$46 -> 1 | Y88: =Time!Y$46 -> 1 | Z88: =Time!Z$46 -> 1 | AA88: =Time!AA$46 -> 1 | AB88: =Time!AB$46 -> 1 | AC88: =Time!AC$46 -> 1 | AD88: =Time!AD$46 -> 1 | AE88: =Time!AE$46 -> 1 | AF88: =Time!AF$46 -> 1 | AG88: =Time!AG$46 -> 1 | AH88: =Time!AH$46 -> 1 | AI88: =Time!AI$46 -> 1 | AJ88: =Time!AJ$46 -> 1 | AK88: =Time!AK$46 -> 1 | AL88: =Time!AL$46 -> 1 | AM88: =Time!AM$46 -> 1 | AN88: =Time!AN$46 -> 1 | AO88: =Time!AO$46 -> 1 | AP88: =Time!AP$46 -> 1 | AQ88: =Time!AQ$46 -> 1 | AR88: =Time!AR$46 -> 1 | AS88: =Time!AS$46 -> 1 | AT88: =Time!AT$46 -> 1 | AU88: =Time!AU$46 -> 1 | AV88: =Time!AV$46 -> 1 | AW88: =Time!AW$46 -> 0 | AX88: =Time!AX$46 -> 0 | AY88: =Time!AY$46 -> 0 | AZ88: =Time!AZ$46 -> 0 | BA88: =Time!BA$46 -> 0 | BB88: =Time!BB$46 -> 0 | BC88: =Time!BC$46 -> 0
E89: Reduction in highway injury accidents - Build | G89: incidents | H89: =SUM(J89:BC89) -> 54.51676607 | J89: =J87 / 100000000 * $F86 * J88 -> 0 | K89: =K87 / 100000000 * $F86 * K88 -> 0 | L89: =L87 / 100000000 * $F86 * L88 -> 0 | M89: =M87 / 100000000 * $F86 * M88 -> 0 | N89: =N87 / 100000000 * $F86 * N88 -> 0 | O89: =O87 / 100000000 * $F86 * O88 -> 0 | P89: =P87 / 100000000 * $F86 * P88 -> 0 | Q89: =Q87 / 100000000 * $F86 * Q88 -> 0 | R89: =R87 / 100000000 * $F86 * R88 -> 0 | S89: =S87 / 100000000 * $F86 * S88 -> 1.198752569 | T89: =T87 / 100000000 * $F86 * T88 -> 1.203352091 | U89: =U87 / 100000000 * $F86 * U88 -> 1.308467937 | V89: =V87 / 100000000 * $F86 * V88 -> 1.312348207 | W89: =W87 / 100000000 * $F86 * W88 -> 1.42774935 | X89: =X87 / 100000000 * $F86 * X88 -> 1.43178638 | Y89: =Y87 / 100000000 * $F86 * Y88 -> 1.558492683 | Z89: =Z87 / 100000000 * $F86 * Z88 -> 1.562692005 | AA89: =AA87 / 100000000 * $F86 * AA88 -> 1.593946251 | AB89: =AB87 / 100000000 * $F86 * AB88 -> 1.625825692 | AC89: =AC87 / 100000000 * $F86 * AC88 -> 1.658341395 | AD89: =AD87 / 100000000 * $F86 * AD88 -> 1.691509956 | AE89: =AE87 / 100000000 * $F86 * AE88 -> 1.725338754 | AF89: =AF87 / 100000000 * $F86 * AF88 -> 1.759846229 | AG89: =AG87 / 100000000 * $F86 * AG88 -> 1.795043449 | AH89: =AH87 / 100000000 * $F86 * AH88 -> 1.830943322 | AI89: =AI87 / 100000000 * $F86 * AI88 -> 1.867562447 | AJ89: =AJ87 / 100000000 * $F86 * AJ88 -> 1.904913733 | AK89: =AK87 / 100000000 * $F86 * AK88 -> 1.943011934 | AL89: =AL87 / 100000000 * $F86 * AL88 -> 1.981871803 | AM89: =AM87 / 100000000 * $F86 * AM88 -> 2.02150994 | AN89: =AN87 / 100000000 * $F86 * AN88 -> 2.061939254 | AO89: =AO87 / 100000000 * $F86 * AO88 -> 2.103178186 | AP89: =AP87 / 100000000 * $F86 * AP88 -> 2.145243336 | AQ89: =AQ87 / 100000000 * $F86 * AQ88 -> 2.188147613 | AR89: =AR87 / 100000000 * $F86 * AR88 -> 2.231909459 | AS89: =AS87 / 100000000 * $F86 * AS88 -> 2.27654916 | AT89: =AT87 / 100000000 * $F86 * AT88 -> 2.322079627 | AU89: =AU87 / 100000000 * $F86 * AU88 -> 2.368521146 | AV89: =AV87 / 100000000 * $F86 * AV88 -> 2.415892159 | AW89: =AW87 / 100000000 * $F86 * AW88 -> 0 | AX89: =AX87 / 100000000 * $F86 * AX88 -> 0 | AY89: =AY87 / 100000000 * $F86 * AY88 -> 0 | AZ89: =AZ87 / 100000000 * $F86 * AZ88 -> 0 | BA89: =BA87 / 100000000 * $F86 * BA88 -> 0 | BB89: =BB87 / 100000000 * $F86 * BB88 -> 0 | BC89: =BC87 / 100000000 * $F86 * BC88 -> 0
E91: =InpC!E$77 -> Unknown severity injury monetized value - 2019 US$ | F91: =InpC!F$77 -> 197600 | G91: =InpC!G$77 -> US$ / injury
E92: =E89 -> Reduction in highway injury accidents - Build | F92: 0 | G92: incidents | H92: 54.51676607 | I92: 0 | J92: 0 | K92: 0 | L92: 0 | M92: 0 | N92: 0 | O92: 0 | P92: 0 | Q92: 0 | R92: 0 | S92: 1.198752569 | T92: 1.203352091 | U92: 1.308467937 | V92: 1.312348207 | W92: 1.42774935 | X92: 1.43178638 | Y92: 1.558492683 | Z92: 1.562692005 | AA92: 1.593946251 | AB92: 1.625825692 | AC92: 1.658341395 | AD92: 1.691509956 | AE92: 1.725338754 | AF92: 1.759846229 | AG92: 1.795043449 | AH92: 1.830943322 | AI92: 1.867562447 | AJ92: 1.904913733 | AK92: 1.943011934 | AL92: 1.981871803 | AM92: 2.02150994 | AN92: 2.061939254 | AO92: 2.103178186 | AP92: 2.145243336 | AQ92: 2.188147613 | AR92: 2.231909459 | AS92: 2.27654916 | AT92: 2.322079627 | AU92: 2.368521146 | AV92: 2.415892159 | AW92: 0 | AX92: 0 | AY92: 0 | AZ92: 0 | BA92: 0 | BB92: 0 | BC92: 0
E93: Reduction in highway injury accident costs - Build | G93: US$ | H93: =SUM(J93:BC93) -> 10772512.97 | J93: =$F91 * J92 -> 0 | K93: =$F91 * K92 -> 0 | L93: =$F91 * L92 -> 0 | M93: =$F91 * M92 -> 0 | N93: =$F91 * N92 -> 0 | O93: =$F91 * O92 -> 0 | P93: =$F91 * P92 -> 0 | Q93: =$F91 * Q92 -> 0 | R93: =$F91 * R92 -> 0 | S93: =$F91 * S92 -> 236873.5077 | T93: =$F91 * T92 -> 237782.3731 | U93: =$F91 * U92 -> 258553.2644 | V93: =$F91 * V92 -> 259320.0057 | W93: =$F91 * W92 -> 282123.2716 | X93: =$F91 * X92 -> 282920.9887 | Y93: =$F91 * Y92 -> 307958.1541 | Z93: =$F91 * Z92 -> 308787.9402 | AA93: =$F91 * AA92 -> 314963.7792 | AB93: =$F91 * AB92 -> 321263.1568 | AC93: =$F91 * AC92 -> 327688.2596 | AD93: =$F91 * AD92 -> 334242.3673 | AE93: =$F91 * AE92 -> 340926.9377 | AF93: =$F91 * AF92 -> 347745.6149 | AG93: =$F91 * AG92 -> 354700.5855 | AH93: =$F91 * AH92 -> 361794.4005 | AI93: =$F91 * AI92 -> 369030.3395 | AJ93: =$F91 * AJ92 -> 376410.9536 | AK93: =$F91 * AK92 -> 383939.1581 | AL93: =$F91 * AL92 -> 391617.8684 | AM93: =$F91 * AM92 -> 399450.3642 | AN93: =$F91 * AN92 -> 407439.1966 | AO93: =$F91 * AO92 -> 415588.0096 | AP93: =$F91 * AP92 -> 423900.0832 | AQ93: =$F91 * AQ92 -> 432377.9683 | AR93: =$F91 * AR92 -> 441025.309 | AS93: =$F91 * AS92 -> 449846.114 | AT93: =$F91 * AT92 -> 458842.9342 | AU93: =$F91 * AU92 -> 468019.7784 | AV93: =$F91 * AV92 -> 477380.2905 | AW93: =$F91 * AW92 -> 0 | AX93: =$F91 * AX92 -> 0 | AY93: =$F91 * AY92 -> 0 | AZ93: =$F91 * AZ92 -> 0 | BA93: =$F91 * BA92 -> 0 | BB93: =$F91 * BB92 -> 0 | BC93: =$F91 * BC92 -> 0
E95: =E93 -> Reduction in highway injury accident costs - Build | F95: 0 | G95: US$ | H95: 10772512.97 | I95: 0 | J95: 0 | K95: 0 | L95: 0 | M95: 0 | N95: 0 | O95: 0 | P95: 0 | Q95: 0 | R95: 0 | S95: 236873.5077 | T95: 237782.3731 | U95: 258553.2644 | V95: 259320.0057 | W95: 282123.2716 | X95: 282920.9887 | Y95: 307958.1541 | Z95: 308787.9402 | AA95: 314963.7792 | AB95: 321263.1568 | AC95: 327688.2596 | AD95: 334242.3673 | AE95: 340926.9377 | AF95: 347745.6149 | AG95: 354700.5855 | AH95: 361794.4005 | AI95: 369030.3395 | AJ95: 376410.9536 | AK95: 383939.1581 | AL95: 391617.8684 | AM95: 399450.3642 | AN95: 407439.1966 | AO95: 415588.0096 | AP95: 423900.0832 | AQ95: 432377.9683 | AR95: 441025.309 | AS95: 449846.114 | AT95: 458842.9342 | AU95: 468019.7784 | AV95: 477380.2905 | AW95: 0 | AX95: 0 | AY95: 0 | AZ95: 0 | BA95: 0 | BB95: 0 | BC95: 0
E96: =Time!E$73 -> Discount rate multiplier (excluding CO2 emissions) | F96: =Time!F$73 -> 0 | G96: =Time!G$73 -> factor | H96: =Time!H$73 -> 0 | I96: =Time!I$73 -> 0 | J96: =Time!J$73 -> 0.762895212 | K96: =Time!K$73 -> 0.8162978769 | L96: =Time!L$73 -> 0.8734387283 | M96: =Time!M$73 -> 0.9345794393 | N96: =Time!N$73 -> 1 | O96: =Time!O$73 -> 1.07 | P96: =Time!P$73 -> 1.1449 | Q96: =Time!Q$73 -> 1.225043 | R96: =Time!R$73 -> 1.31079601 | S96: =Time!S$73 -> 1.402551731 | T96: =Time!T$73 -> 1.500730352 | U96: =Time!U$73 -> 1.605781476 | V96: =Time!V$73 -> 1.71818618 | W96: =Time!W$73 -> 1.838459212 | X96: =Time!X$73 -> 1.967151357 | Y96: =Time!Y$73 -> 2.104851952 | Z96: =Time!Z$73 -> 2.252191589 | AA96: =Time!AA$73 -> 2.409845 | AB96: =Time!AB$73 -> 2.57853415 | AC96: =Time!AC$73 -> 2.759031541 | AD96: =Time!AD$73 -> 2.952163749 | AE96: =Time!AE$73 -> 3.158815211 | AF96: =Time!AF$73 -> 3.379932276 | AG96: =Time!AG$73 -> 3.616527535 | AH96: =Time!AH$73 -> 3.869684462 | AI96: =Time!AI$73 -> 4.140562375 | AJ96: =Time!AJ$73 -> 4.430401741 | AK96: =Time!AK$73 -> 4.740529863 | AL96: =Time!AL$73 -> 5.072366953 | AM96: =Time!AM$73 -> 5.42743264 | AN96: =Time!AN$73 -> 5.807352925 | AO96: =Time!AO$73 -> 6.21386763 | AP96: =Time!AP$73 -> 6.648838364 | AQ96: =Time!AQ$73 -> 7.114257049 | AR96: =Time!AR$73 -> 7.612255043 | AS96: =Time!AS$73 -> 8.145112896 | AT96: =Time!AT$73 -> 8.715270798 | AU96: =Time!AU$73 -> 9.325339754 | AV96: =Time!AV$73 -> 9.978113537 | AW96: =Time!AW$73 -> 10.67658148 | AX96: =Time!AX$73 -> 11.42394219 | AY96: =Time!AY$73 -> 12.22361814 | AZ96: =Time!AZ$73 -> 13.07927141 | BA96: =Time!BA$73 -> 13.99482041 | BB96: =Time!BB$73 -> 14.97445784 | BC96: =Time!BC$73 -> 16.02266989
E97: =E95 & " - PV" -> Reduction in highway injury accident costs - Build - PV | G97: US$ | H97: =SUM(J97:BC97) -> 3040928.711 | J97: =IF(J95 > 0, J95 / J96, 0) -> 0 | K97: =IF(K95 > 0, K95 / K96, 0) -> 0 | L97: =IF(L95 > 0, L95 / L96, 0) -> 0 | M97: =IF(M95 > 0, M95 / M96, 0) -> 0 | N97: =IF(N95 > 0, N95 / N96, 0) -> 0 | O97: =IF(O95 > 0, O95 / O96, 0) -> 0 | P97: =IF(P95 > 0, P95 / P96, 0) -> 0 | Q97: =IF(Q95 > 0, Q95 / Q96, 0) -> 0 | R97: =IF(R95 > 0, R95 / R96, 0) -> 0 | S97: =IF(S95 > 0, S95 / S96, 0) -> 168887.5373 | T97: =IF(T95 > 0, T95 / T96, 0) -> 158444.4353 | U97: =IF(U95 > 0, U95 / U96, 0) -> 161013.9786 | V97: =IF(V95 > 0, V95 / V96, 0) -> 150926.6043 | W97: =IF(W95 > 0, W95 / W96, 0) -> 153456.367 | X97: =IF(X95 > 0, X95 / X96, 0) -> 143822.6843 | Y97: =IF(Y95 > 0, Y95 / Y96, 0) -> 146308.7006 | Z97: =IF(Z95 > 0, Z95 / Z96, 0) -> 137105.5383 | AA97: =IF(AA95 > 0, AA95 / AA96, 0) -> 130698.7707 | AB97: =IF(AB95 > 0, AB95 / AB96, 0) -> 124591.3911 | AC97: =IF(AC95 > 0, AC95 / AC96, 0) -> 118769.3054 | AD97: =IF(AD95 > 0, AD95 / AD96, 0) -> 113219.4539 | AE97: =IF(AE95 > 0, AE95 / AE96, 0) -> 107928.7375 | AF97: =IF(AF95 > 0, AF95 / AF96, 0) -> 102885.3795 | AG97: =IF(AG95 > 0, AG95 / AG96, 0) -> 98077.66763 | AH97: =IF(AH95 > 0, AH95 / AH96, 0) -> 93494.54819 | AI97: =IF(AI95 > 0, AI95 / AI96, 0) -> 89125.65639 | AJ97: =IF(AJ95 > 0, AJ95 / AJ96, 0) -> 84960.90774 | AK97: =IF(AK95 > 0, AK95 / AK96, 0) -> 80990.76879 | AL97: =IF(AL95 > 0, AL95 / AL96, 0) -> 77206.13906 | AM97: =IF(AM95 > 0, AM95 / AM96, 0) -> 73598.40106 | AN97: =IF(AN95 > 0, AN95 / AN96, 0) -> 70159.19332 | AO97: =IF(AO95 > 0, AO95 / AO96, 0) -> 66880.73104 | AP97: =IF(AP95 > 0, AP95 / AP96, 0) -> 63755.51037 | AQ97: =IF(AQ95 > 0, AQ95 / AQ96, 0) -> 60776.26452 | AR97: =IF(AR95 > 0, AR95 / AR96, 0) -> 57936.22344 | AS97: =IF(AS95 > 0, AS95 / AS96, 0) -> 55228.95996 | AT97: =IF(AT95 > 0, AT95 / AT96, 0) -> 52648.15573 | AU97: =IF(AU95 > 0, AU95 / AU96, 0) -> 50187.95998 | AV97: =IF(AV95 > 0, AV95 / AV96, 0) -> 47842.73989 | AW97: =IF(AW95 > 0, AW95 / AW96, 0) -> 0 | AX97: =IF(AX95 > 0, AX95 / AX96, 0) -> 0 | AY97: =IF(AY95 > 0, AY95 / AY96, 0) -> 0 | AZ97: =IF(AZ95 > 0, AZ95 / AZ96, 0) -> 0 | BA97: =IF(BA95 > 0, BA95 / BA96, 0) -> 0 | BB97: =IF(BB95 > 0, BB95 / BB96, 0) -> 0 | BC97: =IF(BC95 > 0, BC95 / BC96, 0) -> 0
B99: Fatal Accidents
E100: =InpC!E$80 -> Fatality per VMT - Vehicle | F100: =InpC!F$80 -> 1.16 | G100: =InpC!G$80 -> person / 100 million VMT
E101: =Volume!E$57 -> Reduction in truck miles - Build | F101: =Volume!F$57 -> 0 | G101: =Volume!G$57 -> miles | H101: =Volume!H$57 -> 64137371.84 | I101: =Volume!I$57 -> 0 | J101: =Volume!J$57 -> 0 | K101: =Volume!K$57 -> 0 | L101: =Volume!L$57 -> 0 | M101: =Volume!M$57 -> 0 | N101: =Volume!N$57 -> 0 | O101: =Volume!O$57 -> 0 | P101: =Volume!P$57 -> 0 | Q101: =Volume!Q$57 -> 0 | R101: =Volume!R$57 -> 0 | S101: =Volume!S$57 -> 1410297.14 | T101: =Volume!T$57 -> 1415708.342 | U101: =Volume!U$57 -> 1539374.044 | V101: =Volume!V$57 -> 1543939.067 | W101: =Volume!W$57 -> 1679705.118 | X101: =Volume!X$57 -> 1684454.565 | Y101: =Volume!Y$57 -> 1833520.803 | Z101: =Volume!Z$57 -> 1838461.182 | AA101: =Volume!AA$57 -> 1875230.883 | AB101: =Volume!AB$57 -> 1912736.108 | AC101: =Volume!AC$57 -> 1950989.876 | AD101: =Volume!AD$57 -> 1990011.713 | AE101: =Volume!AE$57 -> 2029810.298 | AF101: =Volume!AF$57 -> 2070407.329 | AG101: =Volume!AG$57 -> 2111815.823 | AH101: =Volume!AH$57 -> 2154050.967 | AI101: =Volume!AI$57 -> 2197132.29 | AJ101: =Volume!AJ$57 -> 2241074.98 | AK101: =Volume!AK$57 -> 2285896.392 | AL101: =Volume!AL$57 -> 2331613.886 | AM101: =Volume!AM$57 -> 2378246.989 | AN101: =Volume!AN$57 -> 2425810.887 | AO101: =Volume!AO$57 -> 2474327.278 | AP101: =Volume!AP$57 -> 2523815.69 | AQ101: =Volume!AQ$57 -> 2574291.309 | AR101: =Volume!AR$57 -> 2625775.834 | AS101: =Volume!AS$57 -> 2678293.129 | AT101: =Volume!AT$57 -> 2731858.384 | AU101: =Volume!AU$57 -> 2786495.465 | AV101: =Volume!AV$57 -> 2842226.069 | AW101: =Volume!AW$57 -> 0 | AX101: =Volume!AX$57 -> 0 | AY101: =Volume!AY$57 -> 0 | AZ101: =Volume!AZ$57 -> 0 | BA101: =Volume!BA$57 -> 0 | BB101: =Volume!BB$57 -> 0 | BC101: =Volume!BC$57 -> 0
E102: =Time!E$46 -> Forecast period flag | F102: =Time!F$46 -> 0 | G102: =Time!G$46 -> flag | H102: =Time!H$46 -> 33 | I102: =Time!I$46 -> 0 | J102: =Time!J$46 -> 0 | K102: =Time!K$46 -> 0 | L102: =Time!L$46 -> 0 | M102: =Time!M$46 -> 0 | N102: =Time!N$46 -> 0 | O102: =Time!O$46 -> 0 | P102: =Time!P$46 -> 1 | Q102: =Time!Q$46 -> 1 | R102: =Time!R$46 -> 1 | S102: =Time!S$46 -> 1 | T102: =Time!T$46 -> 1 | U102: =Time!U$46 -> 1 | V102: =Time!V$46 -> 1 | W102: =Time!W$46 -> 1 | X102: =Time!X$46 -> 1 | Y102: =Time!Y$46 -> 1 | Z102: =Time!Z$46 -> 1 | AA102: =Time!AA$46 -> 1 | AB102: =Time!AB$46 -> 1 | AC102: =Time!AC$46 -> 1 | AD102: =Time!AD$46 -> 1 | AE102: =Time!AE$46 -> 1 | AF102: =Time!AF$46 -> 1 | AG102: =Time!AG$46 -> 1 | AH102: =Time!AH$46 -> 1 | AI102: =Time!AI$46 -> 1 | AJ102: =Time!AJ$46 -> 1 | AK102: =Time!AK$46 -> 1 | AL102: =Time!AL$46 -> 1 | AM102: =Time!AM$46 -> 1 | AN102: =Time!AN$46 -> 1 | AO102: =Time!AO$46 -> 1 | AP102: =Time!AP$46 -> 1 | AQ102: =Time!AQ$46 -> 1 | AR102: =Time!AR$46 -> 1 | AS102: =Time!AS$46 -> 1 | AT102: =Time!AT$46 -> 1 | AU102: =Time!AU$46 -> 1 | AV102: =Time!AV$46 -> 1 | AW102: =Time!AW$46 -> 0 | AX102: =Time!AX$46 -> 0 | AY102: =Time!AY$46 -> 0 | AZ102: =Time!AZ$46 -> 0 | BA102: =Time!BA$46 -> 0 | BB102: =Time!BB$46 -> 0 | BC102: =Time!BC$46 -> 0
E103: Reduction in fatalities in highway accidents - Build | G103: fatalities | H103: =SUM(J103:BC103) -> 0.7439935134 | J103: =J101 / 100000000 * $F100 * J102 -> 0 | K103: =K101 / 100000000 * $F100 * K102 -> 0 | L103: =L101 / 100000000 * $F100 * L102 -> 0 | M103: =M101 / 100000000 * $F100 * M102 -> 0 | N103: =N101 / 100000000 * $F100 * N102 -> 0 | O103: =O101 / 100000000 * $F100 * O102 -> 0 | P103: =P101 / 100000000 * $F100 * P102 -> 0 | Q103: =Q101 / 100000000 * $F100 * Q102 -> 0 | R103: =R101 / 100000000 * $F100 * R102 -> 0 | S103: =S101 / 100000000 * $F100 * S102 -> 0.01635944683 | T103: =T101 / 100000000 * $F100 * T102 -> 0.01642221677 | U103: =U101 / 100000000 * $F100 * U102 -> 0.01785673891 | V103: =V101 / 100000000 * $F100 * V102 -> 0.01790969318 | W103: =W101 / 100000000 * $F100 * W102 -> 0.01948457937 | X103: =X101 / 100000000 * $F100 * X102 -> 0.01953967295 | Y103: =Y101 / 100000000 * $F100 * Y102 -> 0.02126884131 | Z103: =Z101 / 100000000 * $F100 * Z102 -> 0.02132614972 | AA103: =AA101 / 100000000 * $F100 * AA102 -> 0.02175267825 | AB103: =AB101 / 100000000 * $F100 * AB102 -> 0.02218773886 | AC103: =AC101 / 100000000 * $F100 * AC102 -> 0.02263148256 | AD103: =AD101 / 100000000 * $F100 * AD102 -> 0.02308413587 | AE103: =AE101 / 100000000 * $F100 * AE102 -> 0.02354579946 | AF103: =AF101 / 100000000 * $F100 * AF102 -> 0.02401672501 | AG103: =AG101 / 100000000 * $F100 * AG102 -> 0.02449706354 | AH103: =AH101 / 100000000 * $F100 * AH102 -> 0.02498699122 | AI103: =AI101 / 100000000 * $F100 * AI102 -> 0.02548673457 | AJ103: =AJ101 / 100000000 * $F100 * AJ102 -> 0.02599646976 | AK103: =AK101 / 100000000 * $F100 * AK102 -> 0.02651639815 | AL103: =AL101 / 100000000 * $F100 * AL102 -> 0.02704672108 | AM103: =AM101 / 100000000 * $F100 * AM102 -> 0.02758766507 | AN103: =AN101 / 100000000 * $F100 * AN102 -> 0.02813940629 | AO103: =AO101 / 100000000 * $F100 * AO102 -> 0.02870219643 | AP103: =AP101 / 100000000 * $F100 * AP102 -> 0.029276262 | AQ103: =AQ101 / 100000000 * $F100 * AQ102 -> 0.02986177919 | AR103: =AR101 / 100000000 * $F100 * AR102 -> 0.03045899967 | AS103: =AS101 / 100000000 * $F100 * AS102 -> 0.0310682003 | AT103: =AT101 / 100000000 * $F100 * AT102 -> 0.03168955726 | AU103: =AU101 / 100000000 * $F100 * AU102 -> 0.0323233474 | AV103: =AV101 / 100000000 * $F100 * AV102 -> 0.0329698224 | AW103: =AW101 / 100000000 * $F100 * AW102 -> 0 | AX103: =AX101 / 100000000 * $F100 * AX102 -> 0 | AY103: =AY101 / 100000000 * $F100 * AY102 -> 0 | AZ103: =AZ101 / 100000000 * $F100 * AZ102 -> 0 | BA103: =BA101 / 100000000 * $F100 * BA102 -> 0 | BB103: =BB101 / 100000000 * $F100 * BB102 -> 0 | BC103: =BC101 / 100000000 * $F100 * BC102 -> 0
E105: =InpC!E$82 -> Fatality monitized value - 2019 US$ | F105: =InpC!F$82 -> 10900000 | G105: =InpC!G$82 -> US$ / fatality
E106: =E103 -> Reduction in fatalities in highway accidents - Build | F106: 0 | G106: fatalities | H106: 0.7439935134 | I106: 0 | J106: 0 | K106: 0 | L106: 0 | M106: 0 | N106: 0 | O106: 0 | P106: 0 | Q106: 0 | R106: 0 | S106: 0.01635944683 | T106: 0.01642221677 | U106: 0.01785673891 | V106: 0.01790969318 | W106: 0.01948457937 | X106: 0.01953967295 | Y106: 0.02126884131 | Z106: 0.02132614972 | AA106: 0.02175267825 | AB106: 0.02218773886 | AC106: 0.02263148256 | AD106: 0.02308413587 | AE106: 0.02354579946 | AF106: 0.02401672501 | AG106: 0.02449706354 | AH106: 0.02498699122 | AI106: 0.02548673457 | AJ106: 0.02599646976 | AK106: 0.02651639815 | AL106: 0.02704672108 | AM106: 0.02758766507 | AN106: 0.02813940629 | AO106: 0.02870219643 | AP106: 0.029276262 | AQ106: 0.02986177919 | AR106: 0.03045899967 | AS106: 0.0310682003 | AT106: 0.03168955726 | AU106: 0.0323233474 | AV106: 0.0329698224 | AW106: 0 | AX106: 0 | AY106: 0 | AZ106: 0 | BA106: 0 | BB106: 0 | BC106: 0
E107: Reduction in fatalities in highway accident costs - Build | G107: US$ | H107: =SUM(J107:BC107) -> 8109529.296 | J107: =$F105 * J106 -> 0 | K107: =$F105 * K106 -> 0 | L107: =$F105 * L106 -> 0 | M107: =$F105 * M106 -> 0 | N107: =$F105 * N106 -> 0 | O107: =$F105 * O106 -> 0 | P107: =$F105 * P106 -> 0 | Q107: =$F105 * Q106 -> 0 | R107: =$F105 * R106 -> 0 | S107: =$F105 * S106 -> 178317.9704 | T107: =$F105 * T106 -> 179002.1627 | U107: =$F105 * U106 -> 194638.4541 | V107: =$F105 * V106 -> 195215.6556 | W107: =$F105 * W106 -> 212381.9151 | X107: =$F105 * X106 -> 212982.4352 | Y107: =$F105 * Y106 -> 231830.3703 | Z107: =$F105 * Z106 -> 232455.0319 | AA107: =$F105 * AA106 -> 237104.1929 | AB107: =$F105 * AB106 -> 241846.3536 | AC107: =$F105 * AC106 -> 246683.1599 | AD107: =$F105 * AD106 -> 251617.081 | AE107: =$F105 * AE106 -> 256649.2141 | AF107: =$F105 * AF106 -> 261782.3027 | AG107: =$F105 * AG106 -> 267017.9926 | AH107: =$F105 * AH106 -> 272358.2043 | AI107: =$F105 * AI106 -> 277805.4068 | AJ107: =$F105 * AJ106 -> 283361.5204 | AK107: =$F105 * AK106 -> 289028.7399 | AL107: =$F105 * AL106 -> 294809.2598 | AM107: =$F105 * AM106 -> 300705.5492 | AN107: =$F105 * AN106 -> 306719.5285 | AO107: =$F105 * AO106 -> 312853.9411 | AP107: =$F105 * AP106 -> 319111.2558 | AQ107: =$F105 * AQ106 -> 325493.3931 | AR107: =$F105 * AR106 -> 332003.0964 | AS107: =$F105 * AS106 -> 338643.3833 | AT107: =$F105 * AT106 -> 345416.1741 | AU107: =$F105 * AU106 -> 352324.4866 | AV107: =$F105 * AV106 -> 359371.0642 | AW107: =$F105 * AW106 -> 0 | AX107: =$F105 * AX106 -> 0 | AY107: =$F105 * AY106 -> 0 | AZ107: =$F105 * AZ106 -> 0 | BA107: =$F105 * BA106 -> 0 | BB107: =$F105 * BB106 -> 0 | BC107: =$F105 * BC106 -> 0
E109: =E107 -> Reduction in fatalities in highway accident costs - Build | F109: 0 | G109: US$ | H109: 8109529.296 | I109: 0 | J109: 0 | K109: 0 | L109: 0 | M109: 0 | N109: 0 | O109: 0 | P109: 0 | Q109: 0 | R109: 0 | S109: 178317.9704 | T109: 179002.1627 | U109: 194638.4541 | V109: 195215.6556 | W109: 212381.9151 | X109: 212982.4352 | Y109: 231830.3703 | Z109: 232455.0319 | AA109: 237104.1929 | AB109: 241846.3536 | AC109: 246683.1599 | AD109: 251617.081 | AE109: 256649.2141 | AF109: 261782.3027 | AG109: 267017.9926 | AH109: 272358.2043 | AI109: 277805.4068 | AJ109: 283361.5204 | AK109: 289028.7399 | AL109: 294809.2598 | AM109: 300705.5492 | AN109: 306719.5285 | AO109: 312853.9411 | AP109: 319111.2558 | AQ109: 325493.3931 | AR109: 332003.0964 | AS109: 338643.3833 | AT109: 345416.1741 | AU109: 352324.4866 | AV109: 359371.0642 | AW109: 0 | AX109: 0 | AY109: 0 | AZ109: 0 | BA109: 0 | BB109: 0 | BC109: 0
E110: =Time!E$73 -> Discount rate multiplier (excluding CO2 emissions) | F110: =Time!F$73 -> 0 | G110: =Time!G$73 -> factor | H110: =Time!H$73 -> 0 | I110: =Time!I$73 -> 0 | J110: =Time!J$73 -> 0.762895212 | K110: =Time!K$73 -> 0.8162978769 | L110: =Time!L$73 -> 0.8734387283 | M110: =Time!M$73 -> 0.9345794393 | N110: =Time!N$73 -> 1 | O110: =Time!O$73 -> 1.07 | P110: =Time!P$73 -> 1.1449 | Q110: =Time!Q$73 -> 1.225043 | R110: =Time!R$73 -> 1.31079601 | S110: =Time!S$73 -> 1.402551731 | T110: =Time!T$73 -> 1.500730352 | U110: =Time!U$73 -> 1.605781476 | V110: =Time!V$73 -> 1.71818618 | W110: =Time!W$73 -> 1.838459212 | X110: =Time!X$73 -> 1.967151357 | Y110: =Time!Y$73 -> 2.104851952 | Z110: =Time!Z$73 -> 2.252191589 | AA110: =Time!AA$73 -> 2.409845 | AB110: =Time!AB$73 -> 2.57853415 | AC110: =Time!AC$73 -> 2.759031541 | AD110: =Time!AD$73 -> 2.952163749 | AE110: =Time!AE$73 -> 3.158815211 | AF110: =Time!AF$73 -> 3.379932276 | AG110: =Time!AG$73 -> 3.616527535 | AH110: =Time!AH$73 -> 3.869684462 | AI110: =Time!AI$73 -> 4.140562375 | AJ110: =Time!AJ$73 -> 4.430401741 | AK110: =Time!AK$73 -> 4.740529863 | AL110: =Time!AL$73 -> 5.072366953 | AM110: =Time!AM$73 -> 5.42743264 | AN110: =Time!AN$73 -> 5.807352925 | AO110: =Time!AO$73 -> 6.21386763 | AP110: =Time!AP$73 -> 6.648838364 | AQ110: =Time!AQ$73 -> 7.114257049 | AR110: =Time!AR$73 -> 7.612255043 | AS110: =Time!AS$73 -> 8.145112896 | AT110: =Time!AT$73 -> 8.715270798 | AU110: =Time!AU$73 -> 9.325339754 | AV110: =Time!AV$73 -> 9.978113537 | AW110: =Time!AW$73 -> 10.67658148 | AX110: =Time!AX$73 -> 11.42394219 | AY110: =Time!AY$73 -> 12.22361814 | AZ110: =Time!AZ$73 -> 13.07927141 | BA110: =Time!BA$73 -> 13.99482041 | BB110: =Time!BB$73 -> 14.97445784 | BC110: =Time!BC$73 -> 16.02266989
E111: =E109 & " - PV" -> Reduction in fatalities in highway accident costs - Build - PV | G111: US$ | H111: =SUM(J111:BC111) -> 2289205.919 | J111: =IF(J109 > 0, J109 / J110, 0) -> 0 | K111: =IF(K109 > 0, K109 / K110, 0) -> 0 | L111: =IF(L109 > 0, L109 / L110, 0) -> 0 | M111: =IF(M109 > 0, M109 / M110, 0) -> 0 | N111: =IF(N109 > 0, N109 / N110, 0) -> 0 | O111: =IF(O109 > 0, O109 / O110, 0) -> 0 | P111: =IF(P109 > 0, P109 / P110, 0) -> 0 | Q111: =IF(Q109 > 0, Q109 / Q110, 0) -> 0 | R111: =IF(R109 > 0, R109 / R110, 0) -> 0 | S111: =IF(S109 > 0, S109 / S110, 0) -> 127138.2485 | T111: =IF(T109 > 0, T109 / T110, 0) -> 119276.6992 | U111: =IF(U109 > 0, U109 / U110, 0) -> 121211.047 | V111: =IF(V109 > 0, V109 / V110, 0) -> 113617.2889 | W111: =IF(W109 > 0, W109 / W110, 0) -> 115521.69 | X111: =IF(X109 > 0, X109 / X110, 0) -> 108269.4702 | Y111: =IF(Y109 > 0, Y109 / Y110, 0) -> 110140.9389 | Z111: =IF(Z109 > 0, Z109 / Z110, 0) -> 103212.8141 | AA111: =IF(AA109 > 0, AA109 / AA110, 0) -> 98389.81049 | AB111: =IF(AB109 > 0, AB109 / AB110, 0) -> 93792.18559 | AC111: =IF(AC109 > 0, AC109 / AC110, 0) -> 89409.32943 | AD111: =IF(AD109 > 0, AD109 / AD110, 0) -> 85231.41073 | AE111: =IF(AE109 > 0, AE109 / AE110, 0) -> 81248.56852 | AF111: =IF(AF109 > 0, AF109 / AF110, 0) -> 77451.93729 | AG111: =IF(AG109 > 0, AG109 / AG110, 0) -> 73832.70002 | AH111: =IF(AH109 > 0, AH109 / AH110, 0) -> 70382.53557 | AI111: =IF(AI109 > 0, AI109 / AI110, 0) -> 67093.64131 | AJ111: =IF(AJ109 > 0, AJ109 / AJ110, 0) -> 63958.42566 | AK111: =IF(AK109 > 0, AK109 / AK110, 0) -> 60969.71187 | AL111: =IF(AL109 > 0, AL109 / AL110, 0) -> 58120.6491 | AM111: =IF(AM109 > 0, AM109 / AM110, 0) -> 55404.75012 | AN111: =IF(AN109 > 0, AN109 / AN110, 0) -> 52815.72043 | AO111: =IF(AO109 > 0, AO109 / AO110, 0) -> 50347.69965 | AP111: =IF(AP109 > 0, AP109 / AP110, 0) -> 47995.03888 | AQ111: =IF(AQ109 > 0, AQ109 / AQ110, 0) -> 45752.26772 | AR111: =IF(AR109 > 0, AR109 / AR110, 0) -> 43614.28966 | AS111: =IF(AS109 > 0, AS109 / AS110, 0) -> 41576.26636 | AT111: =IF(AT109 > 0, AT109 / AT110, 0) -> 39633.44136 | AU111: =IF(AU109 > 0, AU109 / AU110, 0) -> 37781.41021 | AV111: =IF(AV109 > 0, AV109 / AV110, 0) -> 36015.93255 | AW111: =IF(AW109 > 0, AW109 / AW110, 0) -> 0 | AX111: =IF(AX109 > 0, AX109 / AX110, 0) -> 0 | AY111: =IF(AY109 > 0, AY109 / AY110, 0) -> 0 | AZ111: =IF(AZ109 > 0, AZ109 / AZ110, 0) -> 0 | BA111: =IF(BA109 > 0, BA109 / BA110, 0) -> 0 | BB111: =IF(BB109 > 0, BB109 / BB110, 0) -> 0 | BC111: =IF(BC109 > 0, BC109 / BC110, 0) -> 0
B113: Total
E114: =E$83 -> Reduction in highway PDO accident costs - Build - PV | F114: 0 | G114: US$ | H114: 114876.7127 | I114: 0 | J114: 0 | K114: 0 | L114: 0 | M114: 0 | N114: 0 | O114: 0 | P114: 0 | Q114: 0 | R114: 0 | S114: 6380.039437 | T114: 5985.531923 | U114: 6082.601182 | V114: 5701.531938 | W114: 5797.098408 | X114: 5433.168208 | Y114: 5527.082074 | Z114: 5179.415579 | AA114: 4937.38807 | AB114: 4706.670496 | AC114: 4486.730427 | AD114: 4277.07451 | AE114: 4077.207903 | AF114: 3886.685717 | AG114: 3705.065498 | AH114: 3531.929675 | AI114: 3366.886698 | AJ114: 3209.555606 | AK114: =AK$83 -> 3059.576256 | AL114: 2916.60486 | AM114: 2780.315877 | AN114: 2650.393437 | AO114: 2526.543453 | AP114: 2408.482456 | AQ114: 2295.935927 | AR114: 2188.648117 | AS114: 2086.376226 | AT114: 1988.881568 | AU114: 1895.943118 | AV114: 1807.348086 | AW114: 0 | AX114: 0 | AY114: 0 | AZ114: 0 | BA114: 0 | BB114: 0 | BC114: 0
E115: =E$97 -> Reduction in highway injury accident costs - Build - PV | F115: 0 | G115: US$ | H115: 3040928.711 | I115: 0 | J115: 0 | K115: 0 | L115: 0 | M115: 0 | N115: 0 | O115: 0 | P115: 0 | Q115: 0 | R115: 0 | S115: 168887.5373 | T115: 158444.4353 | U115: 161013.9786 | V115: 150926.6043 | W115: 153456.367 | X115: 143822.6843 | Y115: 146308.7006 | Z115: 137105.5383 | AA115: 130698.7707 | AB115: 124591.3911 | AC115: 118769.3054 | AD115: 113219.4539 | AE115: 107928.7375 | AF115: 102885.3795 | AG115: 98077.66763 | AH115: 93494.54819 | AI115: 89125.65639 | AJ115: 84960.90774 | AK115: =AK$97 -> 80990.76879 | AL115: 77206.13906 | AM115: 73598.40106 | AN115: 70159.19332 | AO115: 66880.73104 | AP115: 63755.51037 | AQ115: 60776.26452 | AR115: 57936.22344 | AS115: 55228.95996 | AT115: 52648.15573 | AU115: 50187.95998 | AV115: 47842.73989 | AW115: 0 | AX115: 0 | AY115: 0 | AZ115: 0 | BA115: 0 | BB115: 0 | BC115: 0
E116: =E$111 -> Reduction in fatalities in highway accident costs - Build - PV | F116: 0 | G116: US$ | H116: 2289205.919 | I116: 0 | J116: 0 | K116: 0 | L116: 0 | M116: 0 | N116: 0 | O116: 0 | P116: 0 | Q116: 0 | R116: 0 | S116: 127138.2485 | T116: 119276.6992 | U116: 121211.047 | V116: 113617.2889 | W116: 115521.69 | X116: 108269.4702 | Y116: 110140.9389 | Z116: 103212.8141 | AA116: 98389.81049 | AB116: 93792.18559 | AC116: 89409.32943 | AD116: 85231.41073 | AE116: 81248.56852 | AF116: 77451.93729 | AG116: 73832.70002 | AH116: 70382.53557 | AI116: 67093.64131 | AJ116: 63958.42566 | AK116: =AK$111 -> 60969.71187 | AL116: 58120.6491 | AM116: 55404.75012 | AN116: 52815.72043 | AO116: 50347.69965 | AP116: 47995.03888 | AQ116: 45752.26772 | AR116: 43614.28966 | AS116: 41576.26636 | AT116: 39633.44136 | AU116: 37781.41021 | AV116: 36015.93255 | AW116: 0 | AX116: 0 | AY116: 0 | AZ116: 0 | BA116: 0 | BB116: 0 | BC116: 0
E117: Safety benefits - Truck mile reduction - Build - PV | G117: US$ | H117: =SUM(J117:BC117) -> 5445011.343 | J117: =SUM(J114:J116) -> 0 | K117: 0 | L117: 0 | M117: 0 | N117: 0 | O117: 0 | P117: 0 | Q117: 0 | R117: 0 | S117: 302405.8252 | T117: 283706.6664 | U117: 288307.6269 | V117: 270245.4252 | W117: 274775.1554 | X117: 257525.3227 | Y117: 261976.7216 | Z117: 245497.768 | AA117: 234025.9693 | AB117: 223090.2472 | AC117: 212665.3652 | AD117: 202727.9391 | AE117: 193254.5139 | AF117: 184224.0025 | AG117: 175615.4331 | AH117: 167409.0134 | AI117: 159586.1844 | AJ117: 152128.889 | AK117: 145020.0569 | AL117: 138243.393 | AM117: 131783.4671 | AN117: 125625.3072 | AO117: 119754.9741 | AP117: =SUM(AP114:AP116) -> 114159.0317 | AQ117: 108824.4682 | AR117: 103739.1612 | AS117: 98891.60255 | AT117: 94270.47866 | AU117: 89865.31331 | AV117: 85666.02053 | AW117: 0 | AX117: 0 | AY117: 0 | AZ117: 0 | BA117: 0 | BB117: 0 | BC117: 0
A120: ENVIRONMENTAL BENEFITS - TRUCK MILE REDUCTIONS
B122: Fuel Reduction
E123: =InpC!E$49 -> Truck fuel efficiency - 2019 US$ | F123: =InpC!F$49 -> 6.5 | G123: =InpC!G$49 -> mpg
E124: =Volume!E$57 -> Reduction in truck miles - Build | F124: =Volume!F$57 -> 0 | G124: =Volume!G$57 -> miles | H124: =Volume!H$57 -> 64137371.84 | I124: =Volume!I$57 -> 0 | J124: =Volume!J$57 -> 0 | K124: =Volume!K$57 -> 0 | L124: =Volume!L$57 -> 0 | M124: =Volume!M$57 -> 0 | N124: =Volume!N$57 -> 0 | O124: =Volume!O$57 -> 0 | P124: =Volume!P$57 -> 0 | Q124: =Volume!Q$57 -> 0 | R124: =Volume!R$57 -> 0 | S124: =Volume!S$57 -> 1410297.14 | T124: =Volume!T$57 -> 1415708.342 | U124: =Volume!U$57 -> 1539374.044 | V124: =Volume!V$57 -> 1543939.067 | W124: =Volume!W$57 -> 1679705.118 | X124: =Volume!X$57 -> 1684454.565 | Y124: =Volume!Y$57 -> 1833520.803 | Z124: =Volume!Z$57 -> 1838461.182 | AA124: =Volume!AA$57 -> 1875230.883 | AB124: =Volume!AB$57 -> 1912736.108 | AC124: =Volume!AC$57 -> 1950989.876 | AD124: =Volume!AD$57 -> 1990011.713 | AE124: =Volume!AE$57 -> 2029810.298 | AF124: =Volume!AF$57 -> 2070407.329 | AG124: =Volume!AG$57 -> 2111815.823 | AH124: =Volume!AH$57 -> 2154050.967 | AI124: =Volume!AI$57 -> 2197132.29 | AJ124: =Volume!AJ$57 -> 2241074.98 | AK124: =Volume!AK$57 -> 2285896.392 | AL124: =Volume!AL$57 -> 2331613.886 | AM124: =Volume!AM$57 -> 2378246.989 | AN124: =Volume!AN$57 -> 2425810.887 | AO124: =Volume!AO$57 -> 2474327.278 | AP124: =Volume!AP$57 -> 2523815.69 | AQ124: =Volume!AQ$57 -> 2574291.309 | AR124: =Volume!AR$57 -> 2625775.834 | AS124: =Volume!AS$57 -> 2678293.129 | AT124: =Volume!AT$57 -> 2731858.384 | AU124: =Volume!AU$57 -> 2786495.465 | AV124: =Volume!AV$57 -> 2842226.069 | AW124: =Volume!AW$57 -> 0 | AX124: =Volume!AX$57 -> 0 | AY124: =Volume!AY$57 -> 0 | AZ124: =Volume!AZ$57 -> 0 | BA124: =Volume!BA$57 -> 0 | BB124: =Volume!BB$57 -> 0 | BC124: =Volume!BC$57 -> 0
E125: Reduction in truck fuel consumption - Build | G125: gal | J125: =J124 / $F123 -> 0 | K125: 0 | L125: 0 | M125: 0 | N125: 0 | O125: 0 | P125: 0 | Q125: 0 | R125: 0 | S125: 216968.7908 | T125: 217801.2834 | U125: 236826.7759 | V125: 237529.0872 | W125: 258416.172 | X125: 259146.8561 | Y125: 282080.1235 | Z125: 282840.1819 | AA125: 288497.059 | AB125: 294267.0936 | AC125: 300152.2886 | AD125: 306155.6482 | AE125: 312278.5074 | AF125: 318524.2044 | AG125: 324894.7419 | AH125: 331392.4565 | AI125: 338020.3524 | AJ125: 344780.7661 | AK125: 351676.3681 | AL125: 358709.8287 | AM125: 365884.1521 | AN125: 373201.6749 | AO125: 380665.7351 | AP125: 388279.3369 | AQ125: 396044.8168 | AR125: 403965.5129 | AS125: 412045.0968 | AT125: 420285.9053 | AU125: 428691.6101 | AV125: 437265.5491 | AW125: 0 | AX125: 0 | AY125: 0 | AZ125: 0 | BA125: 0 | BB125: 0 | BC125: 0
B127: CO2 Emissions
E128: =InpC!E$95 -> Grams per metric ton | F128: =InpC!F$95 -> 1000000 | G128: =InpC!G$95 -> gram / metric ton
E129: =InpC!E$87 -> CO2 emissions per gallon of diesel | F129: =InpC!F$87 -> 10180 | G129: =InpC!G$87 -> g / gal
E130: =E$125 -> Reduction in truck fuel consumption - Build | F130: 0 | G130: gal | H130: 0 | I130: 0 | J130: 0 | K130: 0 | L130: 0 | M130: 0 | N130: 0 | O130: 0 | P130: 0 | Q130: 0 | R130: 0 | S130: 216968.7908 | T130: 217801.2834 | U130: 236826.7759 | V130: 237529.0872 | W130: 258416.172 | X130: 259146.8561 | Y130: 282080.1235 | Z130: 282840.1819 | AA130: 288497.059 | AB130: 294267.0936 | AC130: 300152.2886 | AD130: 306155.6482 | AE130: 312278.5074 | AF130: 318524.2044 | AG130: 324894.7419 | AH130: 331392.4565 | AI130: 338020.3524 | AJ130: 344780.7661 | AK130: =AK$125 -> 351676.3681 | AL130: 358709.8287 | AM130: 365884.1521 | AN130: 373201.6749 | AO130: 380665.7351 | AP130: 388279.3369 | AQ130: 396044.8168 | AR130: 403965.5129 | AS130: 412045.0968 | AT130: 420285.9053 | AU130: 428691.6101 | AV130: 437265.5491 | AW130: 0 | AX130: 0 | AY130: 0 | AZ130: 0 | BA130: 0 | BB130: 0 | BC130: 0
E131: =Time!E$46 -> Forecast period flag | F131: =Time!F$46 -> 0 | G131: =Time!G$46 -> flag | H131: =Time!H$46 -> 33 | I131: =Time!I$46 -> 0 | J131: =Time!J$46 -> 0 | K131: =Time!K$46 -> 0 | L131: =Time!L$46 -> 0 | M131: =Time!M$46 -> 0 | N131: =Time!N$46 -> 0 | O131: =Time!O$46 -> 0 | P131: =Time!P$46 -> 1 | Q131: =Time!Q$46 -> 1 | R131: =Time!R$46 -> 1 | S131: =Time!S$46 -> 1 | T131: =Time!T$46 -> 1 | U131: =Time!U$46 -> 1 | V131: =Time!V$46 -> 1 | W131: =Time!W$46 -> 1 | X131: =Time!X$46 -> 1 | Y131: =Time!Y$46 -> 1 | Z131: =Time!Z$46 -> 1 | AA131: =Time!AA$46 -> 1 | AB131: =Time!AB$46 -> 1 | AC131: =Time!AC$46 -> 1 | AD131: =Time!AD$46 -> 1 | AE131: =Time!AE$46 -> 1 | AF131: =Time!AF$46 -> 1 | AG131: =Time!AG$46 -> 1 | AH131: =Time!AH$46 -> 1 | AI131: =Time!AI$46 -> 1 | AJ131: =Time!AJ$46 -> 1 | AK131: =Time!AK$46 -> 1 | AL131: =Time!AL$46 -> 1 | AM131: =Time!AM$46 -> 1 | AN131: =Time!AN$46 -> 1 | AO131: =Time!AO$46 -> 1 | AP131: =Time!AP$46 -> 1 | AQ131: =Time!AQ$46 -> 1 | AR131: =Time!AR$46 -> 1 | AS131: =Time!AS$46 -> 1 | AT131: =Time!AT$46 -> 1 | AU131: =Time!AU$46 -> 1 | AV131: =Time!AV$46 -> 1 | AW131: =Time!AW$46 -> 0 | AX131: =Time!AX$46 -> 0 | AY131: =Time!AY$46 -> 0 | AZ131: =Time!AZ$46 -> 0 | BA131: =Time!BA$46 -> 0 | BB131: =Time!BB$46 -> 0 | BC131: =Time!BC$46 -> 0
E132: Reduction in carbon dioxide emissions - Highway - Build | G132: metric tons | H132: =SUM(J132:BC132) -> 100448.9916 | J132: =J130 * $F129 / $F128 * J131 -> 0 | K132: 0 | L132: 0 | M132: 0 | N132: 0 | O132: 0 | P132: 0 | Q132: 0 | R132: 0 | S132: 2208.74229 | T132: 2217.217065 | U132: 2410.896579 | V132: 2418.046108 | W132: 2630.676631 | X132: 2638.114996 | Y132: 2871.575658 | Z132: 2879.313052 | AA132: 2936.90006 | AB132: 2995.639013 | AC132: 3055.550298 | AD132: 3116.664498 | AE132: 3178.995206 | AF132: 3242.576401 | AG132: 3307.428473 | AH132: 3373.575207 | AI132: 3441.047187 | AJ132: 3509.868199 | AK132: 3580.065427 | AL132: 3651.666056 | AM132: 3724.700668 | AN132: 3799.193051 | AO132: 3875.177183 | AP132: 3952.683649 | AQ132: 4031.736235 | AR132: 4112.368921 | AS132: 4194.619086 | AT132: 4278.510516 | AU132: 4364.08059 | AV132: 4451.36329 | AW132: 0 | AX132: 0 | AY132: 0 | AZ132: 0 | BA132: 0 | BB132: 0 | BC132: 0
E134: =E132 -> Reduction in carbon dioxide emissions - Highway - Build | F134: 0 | G134: metric tons | H134: 100448.9916 | I134: 0 | J134: 0 | K134: 0 | L134: 0 | M134: 0 | N134: 0 | O134: 0 | P134: 0 | Q134: 0 | R134: 0 | S134: 2208.74229 | T134: 2217.217065 | U134: 2410.896579 | V134: 2418.046108 | W134: 2630.676631 | X134: 2638.114996 | Y134: 2871.575658 | Z134: 2879.313052 | AA134: 2936.90006 | AB134: 2995.639013 | AC134: 3055.550298 | AD134: 3116.664498 | AE134: 3178.995206 | AF134: 3242.576401 | AG134: 3307.428473 | AH134: 3373.575207 | AI134: 3441.047187 | AJ134: 3509.868199 | AK134: =AK132 -> 3580.065427 | AL134: 3651.666056 | AM134: 3724.700668 | AN134: 3799.193051 | AO134: 3875.177183 | AP134: 3952.683649 | AQ134: 4031.736235 | AR134: 4112.368921 | AS134: 4194.619086 | AT134: 4278.510516 | AU134: 4364.08059 | AV134: 4451.36329 | AW134: 0 | AX134: 0 | AY134: 0 | AZ134: 0 | BA134: 0 | BB134: 0 | BC134: 0
E135: =InpV!E$34 -> Damage costs for emissions - CO2 - 2019 US$ | F135: =InpV!F$34 -> 0 | G135: =InpV!G$34 -> US$ / metric ton | H135: =InpV!H$34 -> https://www.transportation.gov/sites/dot.gov/files/2021-02/Benefit%20Cost%20Analysis%20Guidance%202021.pdf | I135: =InpV!I$34 -> 0 | J135: =InpV!J$34 -> 0 | K135: =InpV!K$34 -> 0 | L135: =InpV!L$34 -> 0 | M135: =InpV!M$34 -> 0 | N135: =InpV!N$34 -> 0 | O135: =InpV!O$34 -> 50 | P135: =InpV!P$34 -> 52 | Q135: =InpV!Q$34 -> 53 | R135: =InpV!R$34 -> 54 | S135: =InpV!S$34 -> 55 | T135: =InpV!T$34 -> 56 | U135: =InpV!U$34 -> 57 | V135: =InpV!V$34 -> 58 | W135: =InpV!W$34 -> 59 | X135: =InpV!X$34 -> 60 | Y135: =InpV!Y$34 -> 61 | Z135: =InpV!Z$34 -> 62 | AA135: =InpV!AA$34 -> 63 | AB135: =InpV!AB$34 -> 64 | AC135: =InpV!AC$34 -> 66 | AD135: =InpV!AD$34 -> 67 | AE135: =InpV!AE$34 -> 68 | AF135: =InpV!AF$34 -> 69 | AG135: =InpV!AG$34 -> 70 | AH135: =InpV!AH$34 -> 71 | AI135: =InpV!AI$34 -> 72 | AJ135: =InpV!AJ$34 -> 73 | AK135: =InpV!AK$34 -> 75 | AL135: =InpV!AL$34 -> 76 | AM135: =InpV!AM$34 -> 77 | AN135: =InpV!AN$34 -> 78 | AO135: =InpV!AO$34 -> 79 | AP135: =InpV!AP$34 -> 80 | AQ135: =InpV!AQ$34 -> 81 | AR135: =InpV!AR$34 -> 83 | AS135: =InpV!AS$34 -> 84 | AT135: =InpV!AT$34 -> 84 | AU135: =InpV!AU$34 -> 84 | AV135: =InpV!AV$34 -> 84 | AW135: =InpV!AW$34 -> 84 | AX135: =InpV!AX$34 -> 84 | AY135: =InpV!AY$34 -> 84 | AZ135: =InpV!AZ$34 -> 84 | BA135: =InpV!BA$34 -> 84 | BB135: =InpV!BB$34 -> 84 | BC135: =InpV!BC$34 -> 0
E136: Reduction in carbon dioxide emission costs - Highway - Build | G136: US$ | H136: =SUM(J136:BC136) -> 7264312.256 | J136: =J134 * J135 -> 0 | K136: 0 | L136: 0 | M136: 0 | N136: 0 | O136: 0 | P136: 0 | Q136: 0 | R136: 0 | S136: 121480.826 | T136: 124164.1556 | U136: 137421.105 | V136: 140246.6743 | W136: 155209.9212 | X136: 158286.8997 | Y136: 175166.1151 | Z136: 178517.4092 | AA136: 185024.7038 | AB136: 191720.8968 | AC136: 201666.3197 | AD136: 208816.5214 | AE136: 216171.674 | AF136: 223737.7717 | AG136: 231519.9931 | AH136: 239523.8397 | AI136: 247755.3975 | AJ136: 256220.3785 | AK136: 268504.907 | AL136: 277526.6202 | AM136: 286801.9515 | AN136: 296337.0579 | AO136: 306138.9975 | AP136: =AP134 * AP135 -> 316214.692 | AQ136: 326570.635 | AR136: 341326.6204 | AS136: 352348.0032 | AT136: 359394.8833 | AU136: 366582.7696 | AV136: 373914.5163 | AW136: 0 | AX136: 0 | AY136: 0 | AZ136: 0 | BA136: 0 | BB136: 0 | BC136: 0
E138: =E136 -> Reduction in carbon dioxide emission costs - Highway - Build | F138: 0 | G138: US$ | H138: 7264312.256 | I138: 0 | J138: 0 | K138: 0 | L138: 0 | M138: 0 | N138: 0 | O138: 0 | P138: 0 | Q138: 0 | R138: 0 | S138: 121480.826 | T138: 124164.1556 | U138: 137421.105 | V138: 140246.6743 | W138: 155209.9212 | X138: 158286.8997 | Y138: 175166.1151 | Z138: 178517.4092 | AA138: 185024.7038 | AB138: 191720.8968 | AC138: 201666.3197 | AD138: 208816.5214 | AE138: 216171.674 | AF138: 223737.7717 | AG138: 231519.9931 | AH138: 239523.8397 | AI138: 247755.3975 | AJ138: 256220.3785 | AK138: 268504.907 | AL138: 277526.6202 | AM138: 286801.9515 | AN138: 296337.0579 | AO138: 306138.9975 | AP138: 316214.692 | AQ138: 326570.635 | AR138: 341326.6204 | AS138: 352348.0032 | AT138: 359394.8833 | AU138: 366582.7696 | AV138: 373914.5163 | AW138: 0 | AX138: 0 | AY138: 0 | AZ138: 0 | BA138: 0 | BB138: 0 | BC138: 0
E139: =Time!E$78 -> Discount rate multiplier (for CO2 emissions) | F139: =Time!F$78 -> 0 | G139: =Time!G$78 -> factor | H139: =Time!H$78 -> 0 | I139: =Time!I$78 -> 0 | J139: =Time!J$78 -> 0.8884870479 | K139: =Time!K$78 -> 0.9151416594 | L139: =Time!L$78 -> 0.9425959091 | M139: =Time!M$78 -> 0.9708737864 | N139: =Time!N$78 -> 1 | O139: =Time!O$78 -> 1.03 | P139: =Time!P$78 -> 1.0609 | Q139: =Time!Q$78 -> 1.092727 | R139: =Time!R$78 -> 1.12550881 | S139: =Time!S$78 -> 1.159274074 | T139: =Time!T$78 -> 1.194052297 | U139: =Time!U$78 -> 1.229873865 | V139: =Time!V$78 -> 1.266770081 | W139: =Time!W$78 -> 1.304773184 | X139: =Time!X$78 -> 1.343916379 | Y139: =Time!Y$78 -> 1.384233871 | Z139: =Time!Z$78 -> 1.425760887 | AA139: =Time!AA$78 -> 1.468533713 | AB139: =Time!AB$78 -> 1.512589725 | AC139: =Time!AC$78 -> 1.557967417 | AD139: =Time!AD$78 -> 1.604706439 | AE139: =Time!AE$78 -> 1.652847632 | AF139: =Time!AF$78 -> 1.702433061 | AG139: =Time!AG$78 -> 1.753506053 | AH139: =Time!AH$78 -> 1.806111235 | AI139: =Time!AI$78 -> 1.860294572 | AJ139: =Time!AJ$78 -> 1.916103409 | AK139: =Time!AK$78 -> 1.973586511 | AL139: =Time!AL$78 -> 2.032794106 | AM139: =Time!AM$78 -> 2.09377793 | AN139: =Time!AN$78 -> 2.156591268 | AO139: =Time!AO$78 -> 2.221289006 | AP139: =Time!AP$78 -> 2.287927676 | AQ139: =Time!AQ$78 -> 2.356565506 | AR139: =Time!AR$78 -> 2.427262471 | AS139: =Time!AS$78 -> 2.500080345 | AT139: =Time!AT$78 -> 2.575082756 | AU139: =Time!AU$78 -> 2.652335238 | AV139: =Time!AV$78 -> 2.731905296 | AW139: =Time!AW$78 -> 2.813862454 | AX139: =Time!AX$78 -> 2.898278328 | AY139: =Time!AY$78 -> 2.985226678 | AZ139: =Time!AZ$78 -> 3.074783478 | BA139: =Time!BA$78 -> 3.167026983 | BB139: =Time!BB$78 -> 3.262037792 | BC139: =Time!BC$78 -> 3.359898926
E140: =E138 & " - PV" -> Reduction in carbon dioxide emission costs - Highway - Build - PV | G140: US$ | H140: =SUM(J140:BC140) -> 3883561.066 | J140: =IF(J138 > 0, J138 / J139, 0) -> 0 | K140: =IF(K138 > 0, K138 / K139, 0) -> 0 | L140: =IF(L138 > 0, L138 / L139, 0) -> 0 | M140: =IF(M138 > 0, M138 / M139, 0) -> 0 | N140: =IF(N138 > 0, N138 / N139, 0) -> 0 | O140: =IF(O138 > 0, O138 / O139, 0) -> 0 | P140: =IF(P138 > 0, P138 / P139, 0) -> 0 | Q140: =IF(Q138 > 0, Q138 / Q139, 0) -> 0 | R140: =IF(R138 > 0, R138 / R139, 0) -> 0 | S140: =IF(S138 > 0, S138 / S139, 0) -> 104790.4276 | T140: =IF(T138 > 0, T138 / T139, 0) -> 103985.5256 | U140: =IF(U138 > 0, U138 / U139, 0) -> 111735.934 | V140: =IF(V138 > 0, V138 / V139, 0) -> 110712.0197 | W140: =IF(W138 > 0, W138 / W139, 0) -> 118955.4807 | X140: =IF(X138 > 0, X138 / X139, 0) -> 117780.3189 | Y140: =IF(Y138 > 0, Y138 / Y139, 0) -> 126543.7285 | Z140: =IF(Z138 > 0, Z138 / Z139, 0) -> 125208.5191 | AA140: =IF(AA138 > 0, AA138 / AA139, 0) -> 125992.82 | AB140: =IF(AB138 > 0, AB138 / AB139, 0) -> 126750.0986 | AC140: =IF(AC138 > 0, AC138 / AC139, 0) -> 129441.9367 | AD140: =IF(AD138 > 0, AD138 / AD139, 0) -> 130127.5525 | AE140: =IF(AE138 > 0, AE138 / AE139, 0) -> 130787.4179 | AF140: =IF(AF138 > 0, AF138 / AF139, 0) -> 131422.3606 | AG140: =IF(AG138 > 0, AG138 / AG139, 0) -> 132032.617 | AH140: =IF(AH138 > 0, AH138 / AH139, 0) -> 132618.5426 | AI140: =IF(AI138 > 0, AI138 / AI139, 0) -> 133180.7345 | AJ140: =IF(AJ138 > 0, AJ138 / AJ139, 0) -> 133719.4941 | AK140: =IF(AK138 > 0, AK138 / AK139, 0) -> 136049.2208 | AL140: =IF(AL138 > 0, AL138 / AL139, 0) -> 136524.7072 | AM140: =IF(AM138 > 0, AM138 / AM139, 0) -> 136978.2093 | AN140: =IF(AN138 > 0, AN138 / AN139, 0) -> 137409.9313 | AO140: =IF(AO138 > 0, AO138 / AO139, 0) -> 137820.4262 | AP140: =IF(AP138 > 0, AP138 / AP139, 0) -> 138210.0909 | AQ140: =IF(AQ138 > 0, AQ138 / AQ139, 0) -> 138579.061 | AR140: =IF(AR138 > 0, AR138 / AR139, 0) -> 140622.0483 | AS140: =IF(AS138 > 0, AS138 / AS139, 0) -> 140934.6719 | AT140: =IF(AT138 > 0, AT138 / AT139, 0) -> 139566.3431 | AU140: =IF(AU138 > 0, AU138 / AU139, 0) -> 138211.3257 | AV140: =IF(AV138 > 0, AV138 / AV139, 0) -> 136869.5016 | AW140: =IF(AW138 > 0, AW138 / AW139, 0) -> 0 | AX140: =IF(AX138 > 0, AX138 / AX139, 0) -> 0 | AY140: =IF(AY138 > 0, AY138 / AY139, 0) -> 0 | AZ140: =IF(AZ138 > 0, AZ138 / AZ139, 0) -> 0 | BA140: =IF(BA138 > 0, BA138 / BA139, 0) -> 0 | BB140: =IF(BB138 > 0, BB138 / BB139, 0) -> 0 | BC140: =IF(BC138 > 0, BC138 / BC139, 0) -> 0
B142: NOx Emissions
E143: =InpC!E$95 -> Grams per metric ton | F143: =InpC!F$95 -> 1000000 | G143: =InpC!G$95 -> gram / metric ton
E144: =InpV!E$40 -> NOx emission rate - Truck | F144: =InpV!F$40 -> 0 | G144: =InpV!G$40 -> gram / mile | H144: =InpV!H$40 -> EMFAC 2021 | I144: =InpV!I$40 -> 0 | J144: =InpV!J$40 -> 0 | K144: =InpV!K$40 -> 0 | L144: =InpV!L$40 -> 0 | M144: =InpV!M$40 -> 0 | N144: =InpV!N$40 -> 3.060143973 | O144: =InpV!O$40 -> 2.150938349 | P144: =InpV!P$40 -> 1.634430482 | Q144: =InpV!Q$40 -> 1.344009622 | R144: =InpV!R$40 -> 0.9857988693 | S144: =InpV!S$40 -> 0.9332061524 | T144: =InpV!T$40 -> 0.8935409048 | U144: =InpV!U$40 -> 0.863991002 | V144: =InpV!V$40 -> 0.8426515309 | W144: =InpV!W$40 -> 0.8270444448 | X144: =InpV!X$40 -> 0.8154638831 | Y144: =InpV!Y$40 -> 0.8067413974 | Z144: =InpV!Z$40 -> 0.8000090139 | AA144: =InpV!AA$40 -> 0.794694945 | AB144: =InpV!AB$40 -> 0.7906596226 | AC144: =InpV!AC$40 -> 0.7874977385 | AD144: =InpV!AD$40 -> 0.7851110908 | AE144: =InpV!AE$40 -> 0.7830307291 | AF144: =InpV!AF$40 -> 0.7813279437 | AG144: =InpV!AG$40 -> 0.779620482 | AH144: =InpV!AH$40 -> 0.7781981361 | AI144: =InpV!AI$40 -> 0.776887869 | AJ144: =InpV!AJ$40 -> 0.7756664653 | AK144: =InpV!AK$40 -> 0.7746986254 | AL144: =InpV!AL$40 -> 0.773968949 | AM144: =InpV!AM$40 -> 0.773482062 | AN144: =InpV!AN$40 -> 0.7732570612 | AO144: =InpV!AO$40 -> 0.7732222238 | AP144: =InpV!AP$40 -> 0.7733177004 | AQ144: =InpV!AQ$40 -> 0.7734964474 | AR144: =InpV!AR$40 -> 0.7736827013 | AS144: =InpV!AS$40 -> 0.7738574834 | AT144: =InpV!AT$40 -> 0.7738574834 | AU144: =InpV!AU$40 -> 0.7738574834 | AV144: =InpV!AV$40 -> 0.7738574834 | AW144: =InpV!AW$40 -> 0.7738574834 | AX144: =InpV!AX$40 -> 0.7738574834 | AY144: =InpV!AY$40 -> 0.7738574834 | AZ144: =InpV!AZ$40 -> 0.7738574834 | BA144: =InpV!BA$40 -> 0.7738574834 | BB144: =InpV!BB$40 -> 0.7738574834 | BC144: =InpV!BC$40 -> 0
E145: =Volume!E$57 -> Reduction in truck miles - Build | F145: =Volume!F$57 -> 0 | G145: =Volume!G$57 -> miles | H145: =Volume!H$57 -> 64137371.84 | I145: =Volume!I$57 -> 0 | J145: =Volume!J$57 -> 0 | K145: =Volume!K$57 -> 0 | L145: =Volume!L$57 -> 0 | M145: =Volume!M$57 -> 0 | N145: =Volume!N$57 -> 0 | O145: =Volume!O$57 -> 0 | P145: =Volume!P$57 -> 0 | Q145: =Volume!Q$57 -> 0 | R145: =Volume!R$57 -> 0 | S145: =Volume!S$57 -> 1410297.14 | T145: =Volume!T$57 -> 1415708.342 | U145: =Volume!U$57 -> 1539374.044 | V145: =Volume!V$57 -> 1543939.067 | W145: =Volume!W$57 -> 1679705.118 | X145: =Volume!X$57 -> 1684454.565 | Y145: =Volume!Y$57 -> 1833520.803 | Z145: =Volume!Z$57 -> 1838461.182 | AA145: =Volume!AA$57 -> 1875230.883 | AB145: =Volume!AB$57 -> 1912736.108 | AC145: =Volume!AC$57 -> 1950989.876 | AD145: =Volume!AD$57 -> 1990011.713 | AE145: =Volume!AE$57 -> 2029810.298 | AF145: =Volume!AF$57 -> 2070407.329 | AG145: =Volume!AG$57 -> 2111815.823 | AH145: =Volume!AH$57 -> 2154050.967 | AI145: =Volume!AI$57 -> 2197132.29 | AJ145: =Volume!AJ$57 -> 2241074.98 | AK145: =Volume!AK$57 -> 2285896.392 | AL145: =Volume!AL$57 -> 2331613.886 | AM145: =Volume!AM$57 -> 2378246.989 | AN145: =Volume!AN$57 -> 2425810.887 | AO145: =Volume!AO$57 -> 2474327.278 | AP145: =Volume!AP$57 -> 2523815.69 | AQ145: =Volume!AQ$57 -> 2574291.309 | AR145: =Volume!AR$57 -> 2625775.834 | AS145: =Volume!AS$57 -> 2678293.129 | AT145: =Volume!AT$57 -> 2731858.384 | AU145: =Volume!AU$57 -> 2786495.465 | AV145: =Volume!AV$57 -> 2842226.069 | AW145: =Volume!AW$57 -> 0 | AX145: =Volume!AX$57 -> 0 | AY145: =Volume!AY$57 -> 0 | AZ145: =Volume!AZ$57 -> 0 | BA145: =Volume!BA$57 -> 0 | BB145: =Volume!BB$57 -> 0 | BC145: =Volume!BC$57 -> 0
E146: =Time!E$46 -> Forecast period flag | F146: =Time!F$46 -> 0 | G146: =Time!G$46 -> flag | H146: =Time!H$46 -> 33 | I146: =Time!I$46 -> 0 | J146: =Time!J$46 -> 0 | K146: =Time!K$46 -> 0 | L146: =Time!L$46 -> 0 | M146: =Time!M$46 -> 0 | N146: =Time!N$46 -> 0 | O146: =Time!O$46 -> 0 | P146: =Time!P$46 -> 1 | Q146: =Time!Q$46 -> 1 | R146: =Time!R$46 -> 1 | S146: =Time!S$46 -> 1 | T146: =Time!T$46 -> 1 | U146: =Time!U$46 -> 1 | V146: =Time!V$46 -> 1 | W146: =Time!W$46 -> 1 | X146: =Time!X$46 -> 1 | Y146: =Time!Y$46 -> 1 | Z146: =Time!Z$46 -> 1 | AA146: =Time!AA$46 -> 1 | AB146: =Time!AB$46 -> 1 | AC146: =Time!AC$46 -> 1 | AD146: =Time!AD$46 -> 1 | AE146: =Time!AE$46 -> 1 | AF146: =Time!AF$46 -> 1 | AG146: =Time!AG$46 -> 1 | AH146: =Time!AH$46 -> 1 | AI146: =Time!AI$46 -> 1 | AJ146: =Time!AJ$46 -> 1 | AK146: =Time!AK$46 -> 1 | AL146: =Time!AL$46 -> 1 | AM146: =Time!AM$46 -> 1 | AN146: =Time!AN$46 -> 1 | AO146: =Time!AO$46 -> 1 | AP146: =Time!AP$46 -> 1 | AQ146: =Time!AQ$46 -> 1 | AR146: =Time!AR$46 -> 1 | AS146: =Time!AS$46 -> 1 | AT146: =Time!AT$46 -> 1 | AU146: =Time!AU$46 -> 1 | AV146: =Time!AV$46 -> 1 | AW146: =Time!AW$46 -> 0 | AX146: =Time!AX$46 -> 0 | AY146: =Time!AY$46 -> 0 | AZ146: =Time!AZ$46 -> 0 | BA146: =Time!BA$46 -> 0 | BB146: =Time!BB$46 -> 0 | BC146: =Time!BC$46 -> 0
E147: Reduction in NOx emissions - Highway - Build | G147: metric tons | H147: =SUM(J147:BC147) -> 50.72215855 | J147: =J144 * J145 / $F143 * J146 -> 0 | K147: 0 | L147: 0 | M147: 0 | N147: 0 | O147: 0 | P147: 0 | Q147: 0 | R147: 0 | S147: 1.316097968 | T147: 1.264993313 | U147: 1.330005322 | V147: 1.301002618 | W147: 1.389190787 | X147: 1.37361186 | Y147: 1.479177135 | Z147: 1.470785518 | AA147: 1.490236504 | AB147: 1.51232321 | AC147: 1.536400115 | AD147: 1.562380267 | AE147: 1.589403838 | AF147: 1.617667101 | AG147: 1.646414869 | AH147: 1.676278448 | AI147: 1.706925423 | AJ147: 1.738326708 | AK147: 1.770880793 | AL147: 1.804596749 | AM147: 1.839531385 | AN147: 1.875775397 | AO147: 1.91320484 | AP147: 1.951711345 | AQ147: 1.991205182 | AR147: 2.03151734 | AS147: 2.072617181 | AT147: 2.114069054 | AU147: 2.156350368 | AV147: 2.199477913 | AW147: 0 | AX147: 0 | AY147: 0 | AZ147: 0 | BA147: 0 | BB147: 0 | BC147: 0
E149: =E147 -> Reduction in NOx emissions - Highway - Build | F149: 0 | G149: metric tons | H149: 50.72215855 | I149: 0 | J149: 0 | K149: 0 | L149: 0 | M149: 0 | N149: 0 | O149: 0 | P149: 0 | Q149: 0 | R149: 0 | S149: 1.316097968 | T149: 1.264993313 | U149: 1.330005322 | V149: 1.301002618 | W149: 1.389190787 | X149: 1.37361186 | Y149: 1.479177135 | Z149: 1.470785518 | AA149: 1.490236504 | AB149: 1.51232321 | AC149: 1.536400115 | AD149: 1.562380267 | AE149: 1.589403838 | AF149: 1.617667101 | AG149: 1.646414869 | AH149: 1.676278448 | AI149: 1.706925423 | AJ149: 1.738326708 | AK149: 1.770880793 | AL149: 1.804596749 | AM149: 1.839531385 | AN149: 1.875775397 | AO149: 1.91320484 | AP149: 1.951711345 | AQ149: 1.991205182 | AR149: 2.03151734 | AS149: 2.072617181 | AT149: 2.114069054 | AU149: 2.156350368 | AV149: 2.199477913 | AW149: 0 | AX149: 0 | AY149: 0 | AZ149: 0 | BA149: 0 | BB149: 0 | BC149: 0
E150: =InpV!E$35 -> Damage costs for emissions - NOx - 2019 US$ | F150: =InpV!F$35 -> 0 | G150: =InpV!G$35 -> US$ / metric ton | H150: =InpV!H$35 -> https://www.transportation.gov/sites/dot.gov/files/2021-02/Benefit%20Cost%20Analysis%20Guidance%202021.pdf | I150: =InpV!I$35 -> 0 | J150: =InpV!J$35 -> 0 | K150: =InpV!K$35 -> 0 | L150: =InpV!L$35 -> 0 | M150: =InpV!M$35 -> 0 | N150: =InpV!N$35 -> 0 | O150: =InpV!O$35 -> 15700 | P150: =InpV!P$35 -> 15900 | Q150: =InpV!Q$35 -> 16100 | R150: =InpV!R$35 -> 16400 | S150: =InpV!S$35 -> 16600 | T150: =InpV!T$35 -> 16800 | U150: =InpV!U$35 -> 17000 | V150: =InpV!V$35 -> 17300 | W150: =InpV!W$35 -> 17500 | X150: =InpV!X$35 -> 17700 | Y150: =InpV!Y$35 -> 18000 | Z150: =InpV!Z$35 -> 18000 | AA150: =InpV!AA$35 -> 18000 | AB150: =InpV!AB$35 -> 18000 | AC150: =InpV!AC$35 -> 18000 | AD150: =InpV!AD$35 -> 18000 | AE150: =InpV!AE$35 -> 18000 | AF150: =InpV!AF$35 -> 18000 | AG150: =InpV!AG$35 -> 18000 | AH150: =InpV!AH$35 -> 18000 | AI150: =InpV!AI$35 -> 18000 | AJ150: =InpV!AJ$35 -> 18000 | AK150: =InpV!AK$35 -> 18000 | AL150: =InpV!AL$35 -> 18000 | AM150: =InpV!AM$35 -> 18000 | AN150: =InpV!AN$35 -> 18000 | AO150: =InpV!AO$35 -> 18000 | AP150: =InpV!AP$35 -> 18000 | AQ150: =InpV!AQ$35 -> 18000 | AR150: =InpV!AR$35 -> 18000 | AS150: =InpV!AS$35 -> 18000 | AT150: =InpV!AT$35 -> 18000 | AU150: =InpV!AU$35 -> 18000 | AV150: =InpV!AV$35 -> 18000 | AW150: =InpV!AW$35 -> 18000 | AX150: =InpV!AX$35 -> 18000 | AY150: =InpV!AY$35 -> 18000 | AZ150: =InpV!AZ$35 -> 18000 | BA150: =InpV!BA$35 -> 18000 | BB150: =InpV!BB$35 -> 18000 | BC150: =InpV!BC$35 -> 0
E151: Reduction in NOx emission costs - Highway - Build | G151: US$ | H151: =SUM(J151:BC151) -> 906290.9387 | J151: =J149 * J150 -> 0 | K151: =K149 * K150 -> 0 | L151: =L149 * L150 -> 0 | M151: =M149 * M150 -> 0 | N151: =N149 * N150 -> 0 | O151: =O149 * O150 -> 0 | P151: =P149 * P150 -> 0 | Q151: =Q149 * Q150 -> 0 | R151: =R149 * R150 -> 0 | S151: =S149 * S150 -> 21847.22627 | T151: =T149 * T150 -> 21251.88765 | U151: =U149 * U150 -> 22610.09048 | V151: =V149 * V150 -> 22507.3453 | W151: =W149 * W150 -> 24310.83877 | X151: =X149 * X150 -> 24312.92993 | Y151: =Y149 * Y150 -> 26625.18842 | Z151: =Z149 * Z150 -> 26474.13932 | AA151: =AA149 * AA150 -> 26824.25707 | AB151: =AB149 * AB150 -> 27221.81777 | AC151: =AC149 * AC150 -> 27655.20207 | AD151: =AD149 * AD150 -> 28122.8448 | AE151: =AE149 * AE150 -> 28609.26908 | AF151: =AF149 * AF150 -> 29118.00781 | AG151: =AG149 * AG150 -> 29635.46765 | AH151: =AH149 * AH150 -> 30173.01206 | AI151: =AI149 * AI150 -> 30724.65762 | AJ151: =AJ149 * AJ150 -> 31289.88074 | AK151: =AK149 * AK150 -> 31875.85427 | AL151: =AL149 * AL150 -> 32482.74148 | AM151: =AM149 * AM150 -> 33111.56492 | AN151: =AN149 * AN150 -> 33763.95715 | AO151: =AO149 * AO150 -> 34437.68713 | AP151: =AP149 * AP150 -> 35130.80422 | AQ151: =AQ149 * AQ150 -> 35841.69328 | AR151: =AR149 * AR150 -> 36567.31212 | AS151: =AS149 * AS150 -> 37307.10926 | AT151: =AT149 * AT150 -> 38053.24298 | AU151: =AU149 * AU150 -> 38814.30663 | AV151: =AV149 * AV150 -> 39590.60244 | AW151: =AW149 * AW150 -> 0 | AX151: =AX149 * AX150 -> 0 | AY151: =AY149 * AY150 -> 0 | AZ151: =AZ149 * AZ150 -> 0 | BA151: =BA149 * BA150 -> 0 | BB151: =BB149 * BB150 -> 0 | BC151: =BC149 * BC150 -> 0
E153: =E151 -> Reduction in NOx emission costs - Highway - Build | F153: 0 | G153: US$ | H153: 906290.9387 | I153: 0 | J153: 0 | K153: 0 | L153: 0 | M153: 0 | N153: 0 | O153: 0 | P153: 0 | Q153: 0 | R153: 0 | S153: 21847.22627 | T153: 21251.88765 | U153: 22610.09048 | V153: 22507.3453 | W153: 24310.83877 | X153: 24312.92993 | Y153: 26625.18842 | Z153: 26474.13932 | AA153: 26824.25707 | AB153: 27221.81777 | AC153: 27655.20207 | AD153: 28122.8448 | AE153: 28609.26908 | AF153: 29118.00781 | AG153: 29635.46765 | AH153: 30173.01206 | AI153: 30724.65762 | AJ153: 31289.88074 | AK153: 31875.85427 | AL153: 32482.74148 | AM153: 33111.56492 | AN153: 33763.95715 | AO153: 34437.68713 | AP153: 35130.80422 | AQ153: 35841.69328 | AR153: 36567.31212 | AS153: 37307.10926 | AT153: 38053.24298 | AU153: 38814.30663 | AV153: 39590.60244 | AW153: 0 | AX153: 0 | AY153: 0 | AZ153: 0 | BA153: 0 | BB153: 0 | BC153: 0
E154: =Time!E$73 -> Discount rate multiplier (excluding CO2 emissions) | F154: =Time!F$73 -> 0 | G154: =Time!G$73 -> factor | H154: =Time!H$73 -> 0 | I154: =Time!I$73 -> 0 | J154: =Time!J$73 -> 0.762895212 | K154: =Time!K$73 -> 0.8162978769 | L154: =Time!L$73 -> 0.8734387283 | M154: =Time!M$73 -> 0.9345794393 | N154: =Time!N$73 -> 1 | O154: =Time!O$73 -> 1.07 | P154: =Time!P$73 -> 1.1449 | Q154: =Time!Q$73 -> 1.225043 | R154: =Time!R$73 -> 1.31079601 | S154: =Time!S$73 -> 1.402551731 | T154: =Time!T$73 -> 1.500730352 | U154: =Time!U$73 -> 1.605781476 | V154: =Time!V$73 -> 1.71818618 | W154: =Time!W$73 -> 1.838459212 | X154: =Time!X$73 -> 1.967151357 | Y154: =Time!Y$73 -> 2.104851952 | Z154: =Time!Z$73 -> 2.252191589 | AA154: =Time!AA$73 -> 2.409845 | AB154: =Time!AB$73 -> 2.57853415 | AC154: =Time!AC$73 -> 2.759031541 | AD154: =Time!AD$73 -> 2.952163749 | AE154: =Time!AE$73 -> 3.158815211 | AF154: =Time!AF$73 -> 3.379932276 | AG154: =Time!AG$73 -> 3.616527535 | AH154: =Time!AH$73 -> 3.869684462 | AI154: =Time!AI$73 -> 4.140562375 | AJ154: =Time!AJ$73 -> 4.430401741 | AK154: =Time!AK$73 -> 4.740529863 | AL154: =Time!AL$73 -> 5.072366953 | AM154: =Time!AM$73 -> 5.42743264 | AN154: =Time!AN$73 -> 5.807352925 | AO154: =Time!AO$73 -> 6.21386763 | AP154: =Time!AP$73 -> 6.648838364 | AQ154: =Time!AQ$73 -> 7.114257049 | AR154: =Time!AR$73 -> 7.612255043 | AS154: =Time!AS$73 -> 8.145112896 | AT154: =Time!AT$73 -> 8.715270798 | AU154: =Time!AU$73 -> 9.325339754 | AV154: =Time!AV$73 -> 9.978113537 | AW154: =Time!AW$73 -> 10.67658148 | AX154: =Time!AX$73 -> 11.42394219 | AY154: =Time!AY$73 -> 12.22361814 | AZ154: =Time!AZ$73 -> 13.07927141 | BA154: =Time!BA$73 -> 13.99482041 | BB154: =Time!BB$73 -> 14.97445784 | BC154: =Time!BC$73 -> 16.02266989
E155: =E153 & " - PV" -> Reduction in NOx emission costs - Highway - Build - PV | G155: US$ | H155: =SUM(J155:BC155) -> 259076.3235 | J155: =IF(J153 > 0, J153 / J154, 0) -> 0 | K155: =IF(K153 > 0, K153 / K154, 0) -> 0 | L155: =IF(L153 > 0, L153 / L154, 0) -> 0 | M155: =IF(M153 > 0, M153 / M154, 0) -> 0 | N155: =IF(N153 > 0, N153 / N154, 0) -> 0 | O155: =IF(O153 > 0, O153 / O154, 0) -> 0 | P155: =IF(P153 > 0, P153 / P154, 0) -> 0 | Q155: =IF(Q153 > 0, Q153 / Q154, 0) -> 0 | R155: =IF(R153 > 0, R153 / R154, 0) -> 0 | S155: =IF(S153 > 0, S153 / S154, 0) -> 15576.77039 | T155: =IF(T153 > 0, T153 / T154, 0) -> 14161.03008 | U155: =IF(U153 > 0, U153 / U154, 0) -> 14080.42801 | V155: =IF(V153 > 0, V153 / V154, 0) -> 13099.47988 | W155: =IF(W153 > 0, W153 / W154, 0) -> 13223.48552 | X155: =IF(X153 > 0, X153 / X154, 0) -> 12359.46072 | Y155: =IF(Y153 > 0, Y153 / Y154, 0) -> 12649.43522 | Z155: =IF(Z153 > 0, Z153 / Z154, 0) -> 11754.83447 | AA155: =IF(AA153 > 0, AA153 / AA154, 0) -> 11131.11302 | AB155: =IF(AB153 > 0, AB153 / AB154, 0) -> 10557.09026 | AC155: =IF(AC153 > 0, AC153 / AC154, 0) -> 10023.51791 | AD155: =IF(AD153 > 0, AD153 / AD154, 0) -> 9526.180523 | AE155: =IF(AE153 > 0, AE153 / AE154, 0) -> 9056.961921 | AF155: =IF(AF153 > 0, AF153 / AF154, 0) -> 8614.967828 | AG155: =IF(AG153 > 0, AG153 / AG154, 0) -> 8194.453758 | AH155: =IF(AH153 > 0, AH153 / AH154, 0) -> 7797.279689 | AI155: =IF(AI153 > 0, AI153 / AI154, 0) -> 7420.4069 | AJ155: =IF(AJ153 > 0, AJ153 / AJ154, 0) -> 7062.53802 | AK155: =IF(AK153 > 0, AK153 / AK154, 0) -> 6724.112113 | AL155: =IF(AL153 > 0, AL153 / AL154, 0) -> 6403.86269 | AM155: =IF(AM153 > 0, AM153 / AM154, 0) -> 6100.778603 | AN155: =IF(AN153 > 0, AN153 / AN154, 0) -> 5814.001248 | AO155: =IF(AO153 > 0, AO153 / AO154, 0) -> 5542.069638 | AP155: =IF(AP153 > 0, AP153 / AP154, 0) -> 5283.750679 | AQ155: =IF(AQ153 > 0, AQ153 / AQ154, 0) -> 5038.009315 | AR155: =IF(AR153 > 0, AR153 / AR154, 0) -> 4803.742375 | AS155: =IF(AS153 > 0, AS153 / AS154, 0) -> 4580.305974 | AT155: =IF(AT153 > 0, AT153 / AT154, 0) -> 4366.272014 | AU155: =IF(AU153 > 0, AU153 / AU154, 0) -> 4162.240482 | AV155: =IF(AV153 > 0, AV153 / AV154, 0) -> 3967.744232 | AW155: =IF(AW153 > 0, AW153 / AW154, 0) -> 0 | AX155: =IF(AX153 > 0, AX153 / AX154, 0) -> 0 | AY155: =IF(AY153 > 0, AY153 / AY154, 0) -> 0 | AZ155: =IF(AZ153 > 0, AZ153 / AZ154, 0) -> 0 | BA155: =IF(BA153 > 0, BA153 / BA154, 0) -> 0 | BB155: =IF(BB153 > 0, BB153 / BB154, 0) -> 0 | BC155: =IF(BC153 > 0, BC153 / BC154, 0) -> 0
B157: PM 2.5 Emissions
E158: =InpC!E$95 -> Grams per metric ton | F158: =InpC!F$95 -> 1000000 | G158: =InpC!G$95 -> gram / metric ton
E159: =InpV!E$41 -> PM 2.5 emission rate - Truck | F159: =InpV!F$41 -> 0 | G159: =InpV!G$41 -> gram / mile | H159: =InpV!H$41 -> EMFAC 2021 | I159: =InpV!I$41 -> 0 | J159: =InpV!J$41 -> 0 | K159: =InpV!K$41 -> 0 | L159: =InpV!L$41 -> 0 | M159: =InpV!M$41 -> 0 | N159: =InpV!N$41 -> 0.06076147619 | O159: =InpV!O$41 -> 0.0411773705 | P159: =InpV!P$41 -> 0.0310322708 | Q159: =InpV!Q$41 -> 0.02523896804 | R159: =InpV!R$41 -> 0.02392365422 | S159: =InpV!S$41 -> 0.02341398016 | T159: =InpV!T$41 -> 0.02284414656 | U159: =InpV!U$41 -> 0.02254002341 | V159: =InpV!V$41 -> 0.02230795164 | W159: =InpV!W$41 -> 0.02213352432 | X159: =InpV!X$41 -> 0.02199000082 | Y159: =InpV!Y$41 -> 0.02187107204 | Z159: =InpV!Z$41 -> 0.02176732668 | AA159: =InpV!AA$41 -> 0.02167402438 | AB159: =InpV!AB$41 -> 0.02159694475 | AC159: =InpV!AC$41 -> 0.02152942641 | AD159: =InpV!AD$41 -> 0.02147557702 | AE159: =InpV!AE$41 -> 0.02142293528 | AF159: =InpV!AF$41 -> 0.02137536 | AG159: =InpV!AG$41 -> 0.02133025521 | AH159: =InpV!AH$41 -> 0.02128082721 | AI159: =InpV!AI$41 -> 0.02123190778 | AJ159: =InpV!AJ$41 -> 0.02118338472 | AK159: =InpV!AK$41 -> 0.0211419052 | AL159: =InpV!AL$41 -> 0.0211086201 | AM159: =InpV!AM$41 -> 0.02108493213 | AN159: =InpV!AN$41 -> 0.02107252271 | AO159: =InpV!AO$41 -> 0.02106920337 | AP159: =InpV!AP$41 -> 0.02107265375 | AQ159: =InpV!AQ$41 -> 0.0210807581 | AR159: =InpV!AR$41 -> 0.02109015646 | AS159: =InpV!AS$41 -> 0.0210994913 | AT159: =InpV!AT$41 -> 0.0210994913 | AU159: =InpV!AU$41 -> 0.0210994913 | AV159: =InpV!AV$41 -> 0.0210994913 | AW159: =InpV!AW$41 -> 0.0210994913 | AX159: =InpV!AX$41 -> 0.0210994913 | AY159: =InpV!AY$41 -> 0.0210994913 | AZ159: =InpV!AZ$41 -> 0.0210994913 | BA159: =InpV!BA$41 -> 0.0210994913 | BB159: =InpV!BB$41 -> 0.0210994913 | BC159: =InpV!BC$41 -> 0
E160: =Volume!E$57 -> Reduction in truck miles - Build | F160: =Volume!F$57 -> 0 | G160: =Volume!G$57 -> miles | H160: =Volume!H$57 -> 64137371.84 | I160: =Volume!I$57 -> 0 | J160: =Volume!J$57 -> 0 | K160: =Volume!K$57 -> 0 | L160: =Volume!L$57 -> 0 | M160: =Volume!M$57 -> 0 | N160: =Volume!N$57 -> 0 | O160: =Volume!O$57 -> 0 | P160: =Volume!P$57 -> 0 | Q160: =Volume!Q$57 -> 0 | R160: =Volume!R$57 -> 0 | S160: =Volume!S$57 -> 1410297.14 | T160: =Volume!T$57 -> 1415708.342 | U160: =Volume!U$57 -> 1539374.044 | V160: =Volume!V$57 -> 1543939.067 | W160: =Volume!W$57 -> 1679705.118 | X160: =Volume!X$57 -> 1684454.565 | Y160: =Volume!Y$57 -> 1833520.803 | Z160: =Volume!Z$57 -> 1838461.182 | AA160: =Volume!AA$57 -> 1875230.883 | AB160: =Volume!AB$57 -> 1912736.108 | AC160: =Volume!AC$57 -> 1950989.876 | AD160: =Volume!AD$57 -> 1990011.713 | AE160: =Volume!AE$57 -> 2029810.298 | AF160: =Volume!AF$57 -> 2070407.329 | AG160: =Volume!AG$57 -> 2111815.823 | AH160: =Volume!AH$57 -> 2154050.967 | AI160: =Volume!AI$57 -> 2197132.29 | AJ160: =Volume!AJ$57 -> 2241074.98 | AK160: =Volume!AK$57 -> 2285896.392 | AL160: =Volume!AL$57 -> 2331613.886 | AM160: =Volume!AM$57 -> 2378246.989 | AN160: =Volume!AN$57 -> 2425810.887 | AO160: =Volume!AO$57 -> 2474327.278 | AP160: =Volume!AP$57 -> 2523815.69 | AQ160: =Volume!AQ$57 -> 2574291.309 | AR160: =Volume!AR$57 -> 2625775.834 | AS160: =Volume!AS$57 -> 2678293.129 | AT160: =Volume!AT$57 -> 2731858.384 | AU160: =Volume!AU$57 -> 2786495.465 | AV160: =Volume!AV$57 -> 2842226.069 | AW160: =Volume!AW$57 -> 0 | AX160: =Volume!AX$57 -> 0 | AY160: =Volume!AY$57 -> 0 | AZ160: =Volume!AZ$57 -> 0 | BA160: =Volume!BA$57 -> 0 | BB160: =Volume!BB$57 -> 0 | BC160: =Volume!BC$57 -> 0
E161: =Time!E$46 -> Forecast period flag | F161: =Time!F$46 -> 0 | G161: =Time!G$46 -> flag | H161: =Time!H$46 -> 33 | I161: =Time!I$46 -> 0 | J161: =Time!J$46 -> 0 | K161: =Time!K$46 -> 0 | L161: =Time!L$46 -> 0 | M161: =Time!M$46 -> 0 | N161: =Time!N$46 -> 0 | O161: =Time!O$46 -> 0 | P161: =Time!P$46 -> 1 | Q161: =Time!Q$46 -> 1 | R161: =Time!R$46 -> 1 | S161: =Time!S$46 -> 1 | T161: =Time!T$46 -> 1 | U161: =Time!U$46 -> 1 | V161: =Time!V$46 -> 1 | W161: =Time!W$46 -> 1 | X161: =Time!X$46 -> 1 | Y161: =Time!Y$46 -> 1 | Z161: =Time!Z$46 -> 1 | AA161: =Time!AA$46 -> 1 | AB161: =Time!AB$46 -> 1 | AC161: =Time!AC$46 -> 1 | AD161: =Time!AD$46 -> 1 | AE161: =Time!AE$46 -> 1 | AF161: =Time!AF$46 -> 1 | AG161: =Time!AG$46 -> 1 | AH161: =Time!AH$46 -> 1 | AI161: =Time!AI$46 -> 1 | AJ161: =Time!AJ$46 -> 1 | AK161: =Time!AK$46 -> 1 | AL161: =Time!AL$46 -> 1 | AM161: =Time!AM$46 -> 1 | AN161: =Time!AN$46 -> 1 | AO161: =Time!AO$46 -> 1 | AP161: =Time!AP$46 -> 1 | AQ161: =Time!AQ$46 -> 1 | AR161: =Time!AR$46 -> 1 | AS161: =Time!AS$46 -> 1 | AT161: =Time!AT$46 -> 1 | AU161: =Time!AU$46 -> 1 | AV161: =Time!AV$46 -> 1 | AW161: =Time!AW$46 -> 0 | AX161: =Time!AX$46 -> 0 | AY161: =Time!AY$46 -> 0 | AZ161: =Time!AZ$46 -> 0 | BA161: =Time!BA$46 -> 0 | BB161: =Time!BB$46 -> 0 | BC161: =Time!BC$46 -> 0
E162: Reduction in PM 2.5 emissions - Highway - Build | G162: metric tons | H162: =SUM(J162:BC162) -> 1.374966109 | J162: =J159 * J160 / $F158 * J161 -> 0 | K162: 0 | L162: 0 | M162: 0 | N162: 0 | O162: 0 | P162: 0 | Q162: 0 | R162: 0 | S162: 0.03302066926 | T162: 0.03234064885 | U162: 0.03469752697 | V162: 0.03444211804 | W162: 0.03717779409 | X162: 0.03704115726 | Y162: 0.04010106558 | Z162: 0.04001838515 | AA162: 0.04064379988 | AB162: 0.04130925605 | AC162: 0.04200369297 | AD162: 0.04273664981 | AE162: 0.04348449465 | AF162: 0.04425570201 | AG162: 0.04504557045 | AH162: 0.04583998644 | AI162: 0.04664931017 | AJ162: 0.04747355347 | AK162: 0.04832820483 | AL162: 0.04921715175 | AM162: 0.05014517633 | AN162: 0.051117955 | AO162: 0.05213210462 | AP162: 0.05318349415 | AQ162: 0.05426801236 | AR162: 0.05537802316 | AS162: 0.05651062259 | AT162: 0.05764082222 | AU162: 0.05879363683 | AV162: 0.05996952422 | AW162: 0 | AX162: 0 | AY162: 0 | AZ162: 0 | BA162: 0 | BB162: 0 | BC162: 0
E164: =E162 -> Reduction in PM 2.5 emissions - Highway - Build | F164: 0 | G164: metric tons | H164: 1.374966109 | I164: 0 | J164: 0 | K164: 0 | L164: 0 | M164: 0 | N164: 0 | O164: 0 | P164: 0 | Q164: 0 | R164: 0 | S164: 0.03302066926 | T164: 0.03234064885 | U164: 0.03469752697 | V164: 0.03444211804 | W164: 0.03717779409 | X164: 0.03704115726 | Y164: 0.04010106558 | Z164: 0.04001838515 | AA164: 0.04064379988 | AB164: 0.04130925605 | AC164: 0.04200369297 | AD164: 0.04273664981 | AE164: 0.04348449465 | AF164: 0.04425570201 | AG164: 0.04504557045 | AH164: 0.04583998644 | AI164: 0.04664931017 | AJ164: 0.04747355347 | AK164: 0.04832820483 | AL164: 0.04921715175 | AM164: 0.05014517633 | AN164: 0.051117955 | AO164: 0.05213210462 | AP164: 0.05318349415 | AQ164: 0.05426801236 | AR164: 0.05537802316 | AS164: 0.05651062259 | AT164: 0.05764082222 | AU164: 0.05879363683 | AV164: 0.05996952422 | AW164: 0 | AX164: 0 | AY164: 0 | AZ164: 0 | BA164: 0 | BB164: 0 | BC164: 0
E165: =InpV!E$36 -> Damage costs for emissions - PM 2.5 - 2019 US$ | F165: =InpV!F$36 -> 0 | G165: =InpV!G$36 -> US$ / metric ton | H165: =InpV!H$36 -> https://www.transportation.gov/sites/dot.gov/files/2021-02/Benefit%20Cost%20Analysis%20Guidance%202021.pdf | I165: =InpV!I$36 -> 0 | J165: =InpV!J$36 -> 0 | K165: =InpV!K$36 -> 0 | L165: =InpV!L$36 -> 0 | M165: =InpV!M$36 -> 0 | N165: =InpV!N$36 -> 0 | O165: =InpV!O$36 -> 729300 | P165: =InpV!P$36 -> 742300 | Q165: =InpV!Q$36 -> 755500 | R165: =InpV!R$36 -> 769000 | S165: =InpV!S$36 -> 782700 | T165: =InpV!T$36 -> 796600 | U165: =InpV!U$36 -> 807500 | V165: =InpV!V$36 -> 818600 | W165: =InpV!W$36 -> 829800 | X165: =InpV!X$36 -> 841200 | Y165: =InpV!Y$36 -> 852700 | Z165: =InpV!Z$36 -> 852700 | AA165: =InpV!AA$36 -> 852700 | AB165: =InpV!AB$36 -> 852700 | AC165: =InpV!AC$36 -> 852700 | AD165: =InpV!AD$36 -> 852700 | AE165: =InpV!AE$36 -> 852700 | AF165: =InpV!AF$36 -> 852700 | AG165: =InpV!AG$36 -> 852700 | AH165: =InpV!AH$36 -> 852700 | AI165: =InpV!AI$36 -> 852700 | AJ165: =InpV!AJ$36 -> 852700 | AK165: =InpV!AK$36 -> 852700 | AL165: =InpV!AL$36 -> 852700 | AM165: =InpV!AM$36 -> 852700 | AN165: =InpV!AN$36 -> 852700 | AO165: =InpV!AO$36 -> 852700 | AP165: =InpV!AP$36 -> 852700 | AQ165: =InpV!AQ$36 -> 852700 | AR165: =InpV!AR$36 -> 852700 | AS165: =InpV!AS$36 -> 852700 | AT165: =InpV!AT$36 -> 852700 | AU165: =InpV!AU$36 -> 852700 | AV165: =InpV!AV$36 -> 852700 | AW165: =InpV!AW$36 -> 852700 | AX165: =InpV!AX$36 -> 852700 | AY165: =InpV!AY$36 -> 852700 | AZ165: =InpV!AZ$36 -> 852700 | BA165: =InpV!BA$36 -> 852700 | BB165: =InpV!BB$36 -> 852700 | BC165: =InpV!BC$36 -> 0
E166: Reduction in PM 2.5 emission costs - Highway - Build | G166: US$ | H166: =SUM(J166:BC166) -> 1164287.695 | J166: =J164 * J165 -> 0 | K166: =K164 * K165 -> 0 | L166: =L164 * L165 -> 0 | M166: =M164 * M165 -> 0 | N166: =N164 * N165 -> 0 | O166: =O164 * O165 -> 0 | P166: =P164 * P165 -> 0 | Q166: =Q164 * Q165 -> 0 | R166: =R164 * R165 -> 0 | S166: =S164 * S165 -> 25845.27783 | T166: =T164 * T165 -> 25762.56088 | U166: =U164 * U165 -> 28018.25303 | V166: =V164 * V165 -> 28194.31783 | W166: =W164 * W165 -> 30850.13353 | X166: =X164 * X165 -> 31159.02149 | Y166: =Y164 * Y165 -> 34194.17862 | Z166: =Z164 * Z165 -> 34123.67702 | AA166: =AA164 * AA165 -> 34656.96816 | AB166: =AB164 * AB165 -> 35224.40263 | AC166: =AC164 * AC165 -> 35816.549 | AD166: =AD164 * AD165 -> 36441.54129 | AE166: =AE164 * AE165 -> 37079.22859 | AF166: =AF164 * AF165 -> 37736.8371 | AG166: =AG164 * AG165 -> 38410.35792 | AH166: =AH164 * AH165 -> 39087.75644 | AI166: =AI164 * AI165 -> 39777.86678 | AJ166: =AJ164 * AJ165 -> 40480.69905 | AK166: =AK164 * AK165 -> 41209.46026 | AL166: =AL164 * AL165 -> 41967.4653 | AM166: =AM164 * AM165 -> 42758.79186 | AN166: =AN164 * AN165 -> 43588.28023 | AO166: =AO164 * AO165 -> 44453.04561 | AP166: =AP164 * AP165 -> 45349.56546 | AQ166: =AQ164 * AQ165 -> 46274.33414 | AR166: =AR164 * AR165 -> 47220.84035 | AS166: =AS164 * AS165 -> 48186.60788 | AT166: =AT164 * AT165 -> 49150.32911 | AU166: =AU164 * AU165 -> 50133.33413 | AV166: =AV164 * AV165 -> 51136.0133 | AW166: =AW164 * AW165 -> 0 | AX166: =AX164 * AX165 -> 0 | AY166: =AY164 * AY165 -> 0 | AZ166: =AZ164 * AZ165 -> 0 | BA166: =BA164 * BA165 -> 0 | BB166: =BB164 * BB165 -> 0 | BC166: =BC164 * BC165 -> 0
E168: =E166 -> Reduction in PM 2.5 emission costs - Highway - Build | F168: 0 | G168: US$ | H168: 1164287.695 | I168: 0 | J168: 0 | K168: 0 | L168: 0 | M168: 0 | N168: 0 | O168: 0 | P168: 0 | Q168: 0 | R168: 0 | S168: 25845.27783 | T168: 25762.56088 | U168: 28018.25303 | V168: 28194.31783 | W168: 30850.13353 | X168: 31159.02149 | Y168: 34194.17862 | Z168: 34123.67702 | AA168: 34656.96816 | AB168: 35224.40263 | AC168: 35816.549 | AD168: 36441.54129 | AE168: 37079.22859 | AF168: 37736.8371 | AG168: 38410.35792 | AH168: 39087.75644 | AI168: 39777.86678 | AJ168: 40480.69905 | AK168: 41209.46026 | AL168: 41967.4653 | AM168: 42758.79186 | AN168: 43588.28023 | AO168: 44453.04561 | AP168: 45349.56546 | AQ168: 46274.33414 | AR168: 47220.84035 | AS168: 48186.60788 | AT168: 49150.32911 | AU168: 50133.33413 | AV168: 51136.0133 | AW168: 0 | AX168: 0 | AY168: 0 | AZ168: 0 | BA168: 0 | BB168: 0 | BC168: 0
E169: =Time!E$73 -> Discount rate multiplier (excluding CO2 emissions) | F169: =Time!F$73 -> 0 | G169: =Time!G$73 -> factor | H169: =Time!H$73 -> 0 | I169: =Time!I$73 -> 0 | J169: =Time!J$73 -> 0.762895212 | K169: =Time!K$73 -> 0.8162978769 | L169: =Time!L$73 -> 0.8734387283 | M169: =Time!M$73 -> 0.9345794393 | N169: =Time!N$73 -> 1 | O169: =Time!O$73 -> 1.07 | P169: =Time!P$73 -> 1.1449 | Q169: =Time!Q$73 -> 1.225043 | R169: =Time!R$73 -> 1.31079601 | S169: =Time!S$73 -> 1.402551731 | T169: =Time!T$73 -> 1.500730352 | U169: =Time!U$73 -> 1.605781476 | V169: =Time!V$73 -> 1.71818618 | W169: =Time!W$73 -> 1.838459212 | X169: =Time!X$73 -> 1.967151357 | Y169: =Time!Y$73 -> 2.104851952 | Z169: =Time!Z$73 -> 2.252191589 | AA169: =Time!AA$73 -> 2.409845 | AB169: =Time!AB$73 -> 2.57853415 | AC169: =Time!AC$73 -> 2.759031541 | AD169: =Time!AD$73 -> 2.952163749 | AE169: =Time!AE$73 -> 3.158815211 | AF169: =Time!AF$73 -> 3.379932276 | AG169: =Time!AG$73 -> 3.616527535 | AH169: =Time!AH$73 -> 3.869684462 | AI169: =Time!AI$73 -> 4.140562375 | AJ169: =Time!AJ$73 -> 4.430401741 | AK169: =Time!AK$73 -> 4.740529863 | AL169: =Time!AL$73 -> 5.072366953 | AM169: =Time!AM$73 -> 5.42743264 | AN169: =Time!AN$73 -> 5.807352925 | AO169: =Time!AO$73 -> 6.21386763 | AP169: =Time!AP$73 -> 6.648838364 | AQ169: =Time!AQ$73 -> 7.114257049 | AR169: =Time!AR$73 -> 7.612255043 | AS169: =Time!AS$73 -> 8.145112896 | AT169: =Time!AT$73 -> 8.715270798 | AU169: =Time!AU$73 -> 9.325339754 | AV169: =Time!AV$73 -> 9.978113537 | AW169: =Time!AW$73 -> 10.67658148 | AX169: =Time!AX$73 -> 11.42394219 | AY169: =Time!AY$73 -> 12.22361814 | AZ169: =Time!AZ$73 -> 13.07927141 | BA169: =Time!BA$73 -> 13.99482041 | BB169: =Time!BB$73 -> 14.97445784 | BC169: =Time!BC$73 -> 16.02266989
E170: =E168 & " - PV" -> Reduction in PM 2.5 emission costs - Highway - Build - PV | G170: US$ | H170: =SUM(J170:BC170) -> 330294.5605 | J170: =IF(J168 > 0, J168 / J169, 0) -> 0 | K170: =IF(K168 > 0, K168 / K169, 0) -> 0 | L170: =IF(L168 > 0, L168 / L169, 0) -> 0 | M170: =IF(M168 > 0, M168 / M169, 0) -> 0 | N170: =IF(N168 > 0, N168 / N169, 0) -> 0 | O170: =IF(O168 > 0, O168 / O169, 0) -> 0 | P170: =IF(P168 > 0, P168 / P169, 0) -> 0 | Q170: =IF(Q168 > 0, Q168 / Q169, 0) -> 0 | R170: =IF(R168 > 0, R168 / R169, 0) -> 0 | S170: =IF(S168 > 0, S168 / S169, 0) -> 18427.3259 | T170: =IF(T168 > 0, T168 / T169, 0) -> 17166.68211 | U170: =IF(U168 > 0, U168 / U169, 0) -> 17448.35984 | V170: =IF(V168 > 0, V168 / V169, 0) -> 16409.34967 | W170: =IF(W168 > 0, W168 / W169, 0) -> 16780.42859 | X170: =IF(X168 > 0, X168 / X169, 0) -> 15839.66652 | Y170: =IF(Y168 > 0, Y168 / Y169, 0) -> 16245.40794 | Z170: =IF(Z168 > 0, Z168 / Z169, 0) -> 15151.32069 | AA170: =IF(AA168 > 0, AA168 / AA169, 0) -> 14381.40966 | AB170: =IF(AB168 > 0, AB168 / AB169, 0) -> 13660.63065 | AC170: =IF(AC168 > 0, AC168 / AC169, 0) -> 12981.56562 | AD170: =IF(AD168 > 0, AD168 / AD169, 0) -> 12344.01083 | AE170: =IF(AE168 > 0, AE168 / AE169, 0) -> 11738.33419 | AF170: =IF(AF168 > 0, AF168 / AF169, 0) -> 11164.96841 | AG170: =IF(AG168 > 0, AG168 / AG169, 0) -> 10620.78404 | AH170: =IF(AH168 > 0, AH168 / AH169, 0) -> 10101.01904 | AI170: =IF(AI168 > 0, AI168 / AI169, 0) -> 9606.87539 | AJ170: =IF(AJ168 > 0, AJ168 / AJ169, 0) -> 9137.02671 | AK170: =IF(AK168 > 0, AK168 / AK169, 0) -> 8693.007206 | AL170: =IF(AL168 > 0, AL168 / AL169, 0) -> 8273.743932 | AM170: =IF(AM168 > 0, AM168 / AM169, 0) -> 7878.272232 | AN170: =IF(AN168 > 0, AN168 / AN169, 0) -> 7505.705404 | AO170: =IF(AO168 > 0, AO168 / AO169, 0) -> 7153.844958 | AP170: =IF(AP168 > 0, AP168 / AP169, 0) -> 6820.674978 | AQ170: =IF(AQ168 > 0, AQ168 / AQ169, 0) -> 6504.450685 | AR170: =IF(AR168 > 0, AR168 / AR169, 0) -> 6203.265666 | AS170: =IF(AS168 > 0, AS168 / AS169, 0) -> 5916.014731 | AT170: =IF(AT168 > 0, AT168 / AT169, 0) -> 5639.564191 | AU170: =IF(AU168 > 0, AU168 / AU169, 0) -> 5376.032986 | AV170: =IF(AV168 > 0, AV168 / AV169, 0) -> 5124.817744 | AW170: =IF(AW168 > 0, AW168 / AW169, 0) -> 0 | AX170: =IF(AX168 > 0, AX168 / AX169, 0) -> 0 | AY170: =IF(AY168 > 0, AY168 / AY169, 0) -> 0 | AZ170: =IF(AZ168 > 0, AZ168 / AZ169, 0) -> 0 | BA170: =IF(BA168 > 0, BA168 / BA169, 0) -> 0 | BB170: =IF(BB168 > 0, BB168 / BB169, 0) -> 0 | BC170: =IF(BC168 > 0, BC168 / BC169, 0) -> 0
B172: SO2 Emissions
E173: =InpC!E$95 -> Grams per metric ton | F173: =InpC!F$95 -> 1000000 | G173: =InpC!G$95 -> gram / metric ton
E174: =Volume!E$57 -> Reduction in truck miles - Build | F174: =Volume!F$57 -> 0 | G174: =Volume!G$57 -> miles | H174: =Volume!H$57 -> 64137371.84 | I174: =Volume!I$57 -> 0 | J174: =Volume!J$57 -> 0 | K174: =Volume!K$57 -> 0 | L174: =Volume!L$57 -> 0 | M174: =Volume!M$57 -> 0 | N174: =Volume!N$57 -> 0 | O174: =Volume!O$57 -> 0 | P174: =Volume!P$57 -> 0 | Q174: =Volume!Q$57 -> 0 | R174: =Volume!R$57 -> 0 | S174: =Volume!S$57 -> 1410297.14 | T174: =Volume!T$57 -> 1415708.342 | U174: =Volume!U$57 -> 1539374.044 | V174: =Volume!V$57 -> 1543939.067 | W174: =Volume!W$57 -> 1679705.118 | X174: =Volume!X$57 -> 1684454.565 | Y174: =Volume!Y$57 -> 1833520.803 | Z174: =Volume!Z$57 -> 1838461.182 | AA174: =Volume!AA$57 -> 1875230.883 | AB174: =Volume!AB$57 -> 1912736.108 | AC174: =Volume!AC$57 -> 1950989.876 | AD174: =Volume!AD$57 -> 1990011.713 | AE174: =Volume!AE$57 -> 2029810.298 | AF174: =Volume!AF$57 -> 2070407.329 | AG174: =Volume!AG$57 -> 2111815.823 | AH174: =Volume!AH$57 -> 2154050.967 | AI174: =Volume!AI$57 -> 2197132.29 | AJ174: =Volume!AJ$57 -> 2241074.98 | AK174: =Volume!AK$57 -> 2285896.392 | AL174: =Volume!AL$57 -> 2331613.886 | AM174: =Volume!AM$57 -> 2378246.989 | AN174: =Volume!AN$57 -> 2425810.887 | AO174: =Volume!AO$57 -> 2474327.278 | AP174: =Volume!AP$57 -> 2523815.69 | AQ174: =Volume!AQ$57 -> 2574291.309 | AR174: =Volume!AR$57 -> 2625775.834 | AS174: =Volume!AS$57 -> 2678293.129 | AT174: =Volume!AT$57 -> 2731858.384 | AU174: =Volume!AU$57 -> 2786495.465 | AV174: =Volume!AV$57 -> 2842226.069 | AW174: =Volume!AW$57 -> 0 | AX174: =Volume!AX$57 -> 0 | AY174: =Volume!AY$57 -> 0 | AZ174: =Volume!AZ$57 -> 0 | BA174: =Volume!BA$57 -> 0 | BB174: =Volume!BB$57 -> 0 | BC174: =Volume!BC$57 -> 0
E175: =InpV!E$42 -> SO2 emission rate - Truck | F175: =InpV!F$42 -> 0 | G175: =InpV!G$42 -> gram / mile | H175: =InpV!H$42 -> EMFAC 2021 | I175: =InpV!I$42 -> 0 | J175: =InpV!J$42 -> 0 | K175: =InpV!K$42 -> 0 | L175: =InpV!L$42 -> 0 | M175: =InpV!M$42 -> 0 | N175: =InpV!N$42 -> 0.01395255413 | O175: =InpV!O$42 -> 0.0139393537 | P175: =InpV!P$42 -> 0.01384248237 | Q175: =InpV!Q$42 -> 0.01374093108 | R175: =InpV!R$42 -> 0.01357342648 | S175: =InpV!S$42 -> 0.01337832458 | T175: =InpV!T$42 -> 0.01316577728 | U175: =InpV!U$42 -> 0.01293434088 | V175: =InpV!V$42 -> 0.01265852744 | W175: =InpV!W$42 -> 0.01237543218 | X175: =InpV!X$42 -> 0.01210510478 | Y175: =InpV!Y$42 -> 0.01185605527 | Z175: =InpV!Z$42 -> 0.01163397967 | AA175: =InpV!AA$42 -> 0.01144286982 | AB175: =InpV!AB$42 -> 0.01128209112 | AC175: =InpV!AC$42 -> 0.01114964552 | AD175: =InpV!AD$42 -> 0.01104481028 | AE175: =InpV!AE$42 -> 0.01096407182 | AF175: =InpV!AF$42 -> 0.01090380126 | AG175: =InpV!AG$42 -> 0.010860089 | AH175: =InpV!AH$42 -> 0.01082753552 | AI175: =InpV!AI$42 -> 0.0108037806 | AJ175: =InpV!AJ$42 -> 0.01078649413 | AK175: =InpV!AK$42 -> 0.01077393947 | AL175: =InpV!AL$42 -> 0.01076483488 | AM175: =InpV!AM$42 -> 0.01075825828 | AN175: =InpV!AN$42 -> 0.01075352816 | AO175: =InpV!AO$42 -> 0.01075012662 | AP175: =InpV!AP$42 -> 0.01074767917 | AQ175: =InpV!AQ$42 -> 0.01074592074 | AR175: =InpV!AR$42 -> 0.01074466702 | AS175: =InpV!AS$42 -> 0.01074377689 | AT175: =InpV!AT$42 -> 0.01074377689 | AU175: =InpV!AU$42 -> 0.01074377689 | AV175: =InpV!AV$42 -> 0.01074377689 | AW175: =InpV!AW$42 -> 0.01074377689 | AX175: =InpV!AX$42 -> 0.01074377689 | AY175: =InpV!AY$42 -> 0.01074377689 | AZ175: =InpV!AZ$42 -> 0.01074377689 | BA175: =InpV!BA$42 -> 0.01074377689 | BB175: =InpV!BB$42 -> 0.01074377689 | BC175: =InpV!BC$42 -> 0
E176: =Time!E$46 -> Forecast period flag | F176: =Time!F$46 -> 0 | G176: =Time!G$46 -> flag | H176: =Time!H$46 -> 33 | I176: =Time!I$46 -> 0 | J176: =Time!J$46 -> 0 | K176: =Time!K$46 -> 0 | L176: =Time!L$46 -> 0 | M176: =Time!M$46 -> 0 | N176: =Time!N$46 -> 0 | O176: =Time!O$46 -> 0 | P176: =Time!P$46 -> 1 | Q176: =Time!Q$46 -> 1 | R176: =Time!R$46 -> 1 | S176: =Time!S$46 -> 1 | T176: =Time!T$46 -> 1 | U176: =Time!U$46 -> 1 | V176: =Time!V$46 -> 1 | W176: =Time!W$46 -> 1 | X176: =Time!X$46 -> 1 | Y176: =Time!Y$46 -> 1 | Z176: =Time!Z$46 -> 1 | AA176: =Time!AA$46 -> 1 | AB176: =Time!AB$46 -> 1 | AC176: =Time!AC$46 -> 1 | AD176: =Time!AD$46 -> 1 | AE176: =Time!AE$46 -> 1 | AF176: =Time!AF$46 -> 1 | AG176: =Time!AG$46 -> 1 | AH176: =Time!AH$46 -> 1 | AI176: =Time!AI$46 -> 1 | AJ176: =Time!AJ$46 -> 1 | AK176: =Time!AK$46 -> 1 | AL176: =Time!AL$46 -> 1 | AM176: =Time!AM$46 -> 1 | AN176: =Time!AN$46 -> 1 | AO176: =Time!AO$46 -> 1 | AP176: =Time!AP$46 -> 1 | AQ176: =Time!AQ$46 -> 1 | AR176: =Time!AR$46 -> 1 | AS176: =Time!AS$46 -> 1 | AT176: =Time!AT$46 -> 1 | AU176: =Time!AU$46 -> 1 | AV176: =Time!AV$46 -> 1 | AW176: =Time!AW$46 -> 0 | AX176: =Time!AX$46 -> 0 | AY176: =Time!AY$46 -> 0 | AZ176: =Time!AZ$46 -> 0 | BA176: =Time!BA$46 -> 0 | BB176: =Time!BB$46 -> 0 | BC176: =Time!BC$46 -> 0
E177: Reduction in SO2 emissions - Highway - Build | G177: metric tons | H177: =SUM(J177:BC177) -> 0.716633263 | J177: =J174 * J175 / $F173 * J176 -> 0 | K177: =K174 * K175 / $F173 * K176 -> 0 | L177: =L174 * L175 / $F173 * L176 -> 0 | M177: =M174 * M175 / $F173 * M176 -> 0 | N177: =N174 * N175 / $F173 * N176 -> 0 | O177: =O174 * O175 / $F173 * O176 -> 0 | P177: =P174 * P175 / $F173 * P176 -> 0 | Q177: =Q174 * Q175 / $F173 * Q176 -> 0 | R177: =R174 * R175 / $F173 * R176 -> 0 | S177: =S174 * S175 / $F173 * S176 -> 0.0188674129 | T177: =T174 * T175 / $F173 * T176 -> 0.01863890072 | U177: =U174 * U175 / $F173 * U176 -> 0.01991078862 | V177: =V174 * V175 / $F173 * V176 -> 0.01954399504 | W177: =W174 * W175 / $F173 * W176 -> 0.02078707678 | X177: =X174 * X175 / $F173 * X176 -> 0.02039049901 | Y177: =Y174 * Y175 / $F173 * Y176 -> 0.02173832397 | Z177: =Z174 * Z175 / $F173 * Z176 -> 0.02138862001 | AA177: =AA174 * AA175 / $F173 * AA176 -> 0.02145802288 | AB177: =AB174 * AB175 / $F173 * AB176 -> 0.02157966307 | AC177: =AC174 * AC175 / $F173 * AC176 -> 0.02175284553 | AD177: =AD174 * AD175 / $F173 * AD176 -> 0.02197930182 | AE177: =AE174 * AE175 / $F173 * AE176 -> 0.02225498589 | AF177: =AF174 * AF175 / $F173 * AF176 -> 0.02257531004 | AG177: =AG174 * AG175 / $F173 * AG176 -> 0.02293450779 | AH177: =AH174 * AH175 / $F173 * AH176 -> 0.02332306336 | AI177: =AI174 * AI175 / $F173 * AI176 -> 0.02373733522 | AJ177: =AJ174 * AJ175 / $F173 * AJ176 -> 0.0241733421 | AK177: =AK174 * AK175 / $F173 * AK176 -> 0.02462810936 | AL177: =AL174 * AL175 / $F173 * AL176 -> 0.02509943848 | AM177: =AM174 * AM175 / $F173 * AM176 -> 0.02558579537 | AN177: =AN174 * AN175 / $F173 * AN176 -> 0.02608602567 | AO177: =AO174 * AO175 / $F173 * AO176 -> 0.02659933154 | AP177: =AP174 * AP175 / $F173 * AP176 -> 0.02712516133 | AQ177: =AQ174 * AQ175 / $F173 * AQ176 -> 0.02766313037 | AR177: =AR174 * AR175 / $F173 * AR176 -> 0.02821308699 | AS177: =AS174 * AS175 / $F173 * AS176 -> 0.02877498382 | AT177: =AT174 * AT175 / $F173 * AT176 -> 0.02935047697 | AU177: =AU174 * AU175 / $F173 * AU176 -> 0.02993748558 | AV177: =AV174 * AV175 / $F173 * AV176 -> 0.03053624275 | AW177: =AW174 * AW175 / $F173 * AW176 -> 0 | AX177: =AX174 * AX175 / $F173 * AX176 -> 0 | AY177: =AY174 * AY175 / $F173 * AY176 -> 0 | AZ177: =AZ174 * AZ175 / $F173 * AZ176 -> 0 | BA177: =BA174 * BA175 / $F173 * BA176 -> 0 | BB177: =BB174 * BB175 / $F173 * BB176 -> 0 | BC177: =BC174 * BC175 / $F173 * BC176 -> 0
E179: =E177 -> Reduction in SO2 emissions - Highway - Build | F179: 0 | G179: metric tons | H179: 0.716633263 | I179: 0 | J179: 0 | K179: 0 | L179: 0 | M179: 0 | N179: 0 | O179: 0 | P179: 0 | Q179: 0 | R179: 0 | S179: 0.0188674129 | T179: 0.01863890072 | U179: 0.01991078862 | V179: 0.01954399504 | W179: 0.02078707678 | X179: 0.02039049901 | Y179: 0.02173832397 | Z179: 0.02138862001 | AA179: 0.02145802288 | AB179: 0.02157966307 | AC179: 0.02175284553 | AD179: 0.02197930182 | AE179: 0.02225498589 | AF179: 0.02257531004 | AG179: 0.02293450779 | AH179: 0.02332306336 | AI179: 0.02373733522 | AJ179: 0.0241733421 | AK179: 0.02462810936 | AL179: 0.02509943848 | AM179: 0.02558579537 | AN179: 0.02608602567 | AO179: 0.02659933154 | AP179: 0.02712516133 | AQ179: 0.02766313037 | AR179: 0.02821308699 | AS179: 0.02877498382 | AT179: 0.02935047697 | AU179: 0.02993748558 | AV179: 0.03053624275 | AW179: 0 | AX179: 0 | AY179: 0 | AZ179: 0 | BA179: 0 | BB179: 0 | BC179: 0
E180: =InpV!E$37 -> Damage costs for emissions - SO2 - 2019 US$ | F180: =InpV!F$37 -> 0 | G180: =InpV!G$37 -> US$ / metric ton | H180: =InpV!H$37 -> https://www.transportation.gov/sites/dot.gov/files/2021-02/Benefit%20Cost%20Analysis%20Guidance%202021.pdf | I180: =InpV!I$37 -> 0 | J180: =InpV!J$37 -> 0 | K180: =InpV!K$37 -> 0 | L180: =InpV!L$37 -> 0 | M180: =InpV!M$37 -> 0 | N180: =InpV!N$37 -> 0 | O180: =InpV!O$37 -> 40400 | P180: =InpV!P$37 -> 41300 | Q180: =InpV!Q$37 -> 42100 | R180: =InpV!R$37 -> 43000 | S180: =InpV!S$37 -> 43900 | T180: =InpV!T$37 -> 44900 | U180: =InpV!U$37 -> 45500 | V180: =InpV!V$37 -> 46200 | W180: =InpV!W$37 -> 46900 | X180: =InpV!X$37 -> 47600 | Y180: =InpV!Y$37 -> 48200 | Z180: =InpV!Z$37 -> 48200 | AA180: =InpV!AA$37 -> 48200 | AB180: =InpV!AB$37 -> 48200 | AC180: =InpV!AC$37 -> 48200 | AD180: =InpV!AD$37 -> 48200 | AE180: =InpV!AE$37 -> 48200 | AF180: =InpV!AF$37 -> 48200 | AG180: =InpV!AG$37 -> 48200 | AH180: =InpV!AH$37 -> 48200 | AI180: =InpV!AI$37 -> 48200 | AJ180: =InpV!AJ$37 -> 48200 | AK180: =InpV!AK$37 -> 48200 | AL180: =InpV!AL$37 -> 48200 | AM180: =InpV!AM$37 -> 48200 | AN180: =InpV!AN$37 -> 48200 | AO180: =InpV!AO$37 -> 48200 | AP180: =InpV!AP$37 -> 48200 | AQ180: =InpV!AQ$37 -> 48200 | AR180: =InpV!AR$37 -> 48200 | AS180: =InpV!AS$37 -> 48200 | AT180: =InpV!AT$37 -> 48200 | AU180: =InpV!AU$37 -> 48200 | AV180: =InpV!AV$37 -> 48200 | AW180: =InpV!AW$37 -> 48200 | AX180: =InpV!AX$37 -> 48200 | AY180: =InpV!AY$37 -> 48200 | AZ180: =InpV!AZ$37 -> 48200 | BA180: =InpV!BA$37 -> 48200 | BB180: =InpV!BB$37 -> 48200 | BC180: =InpV!BC$37 -> 0
E181: Reduction in SO2 emission costs - Highway - Build | G181: US$ | H181: =SUM(J181:BC181) -> 34266.98041 | J181: =J179 * J180 -> 0 | K181: =K179 * K180 -> 0 | L181: =L179 * L180 -> 0 | M181: =M179 * M180 -> 0 | N181: =N179 * N180 -> 0 | O181: =O179 * O180 -> 0 | P181: =P179 * P180 -> 0 | Q181: =Q179 * Q180 -> 0 | R181: =R179 * R180 -> 0 | S181: =S179 * S180 -> 828.2794262 | T181: =T179 * T180 -> 836.8866425 | U181: =U179 * U180 -> 905.9408822 | V181: =V179 * V180 -> 902.932571 | W181: =W179 * W180 -> 974.9139008 | X181: =X179 * X180 -> 970.587753 | Y181: =Y179 * Y180 -> 1047.787216 | Z181: =Z179 * Z180 -> 1030.931485 | AA181: =AA179 * AA180 -> 1034.276703 | AB181: =AB179 * AB180 -> 1040.13976 | AC181: =AC179 * AC180 -> 1048.487155 | AD181: =AD179 * AD180 -> 1059.402348 | AE181: =AE179 * AE180 -> 1072.69032 | AF181: =AF179 * AF180 -> 1088.129944 | AG181: =AG179 * AG180 -> 1105.443275 | AH181: =AH179 * AH180 -> 1124.171654 | AI181: =AI179 * AI180 -> 1144.139558 | AJ181: =AJ179 * AJ180 -> 1165.155089 | AK181: =AK179 * AK180 -> 1187.074871 | AL181: =AL179 * AL180 -> 1209.792935 | AM181: =AM179 * AM180 -> 1233.235337 | AN181: =AN179 * AN180 -> 1257.346437 | AO181: =AO179 * AO180 -> 1282.08778 | AP181: =AP179 * AP180 -> 1307.432776 | AQ181: =AQ179 * AQ180 -> 1333.362884 | AR181: =AR179 * AR180 -> 1359.870793 | AS181: =AS179 * AS180 -> 1386.95422 | AT181: =AT179 * AT180 -> 1414.69299 | AU181: =AU179 * AU180 -> 1442.986805 | AV181: =AV179 * AV180 -> 1471.846901 | AW181: =AW179 * AW180 -> 0 | AX181: =AX179 * AX180 -> 0 | AY181: =AY179 * AY180 -> 0 | AZ181: =AZ179 * AZ180 -> 0 | BA181: =BA179 * BA180 -> 0 | BB181: =BB179 * BB180 -> 0 | BC181: =BC179 * BC180 -> 0
E183: =E181 -> Reduction in SO2 emission costs - Highway - Build | F183: 0 | G183: US$ | H183: 34266.98041 | I183: 0 | J183: 0 | K183: 0 | L183: 0 | M183: 0 | N183: 0 | O183: 0 | P183: 0 | Q183: 0 | R183: 0 | S183: 828.2794262 | T183: 836.8866425 | U183: 905.9408822 | V183: 902.932571 | W183: 974.9139008 | X183: 970.587753 | Y183: 1047.787216 | Z183: 1030.931485 | AA183: 1034.276703 | AB183: 1040.13976 | AC183: 1048.487155 | AD183: 1059.402348 | AE183: 1072.69032 | AF183: 1088.129944 | AG183: 1105.443275 | AH183: 1124.171654 | AI183: 1144.139558 | AJ183: 1165.155089 | AK183: 1187.074871 | AL183: 1209.792935 | AM183: 1233.235337 | AN183: 1257.346437 | AO183: 1282.08778 | AP183: 1307.432776 | AQ183: 1333.362884 | AR183: 1359.870793 | AS183: 1386.95422 | AT183: 1414.69299 | AU183: 1442.986805 | AV183: 1471.846901 | AW183: 0 | AX183: 0 | AY183: 0 | AZ183: 0 | BA183: 0 | BB183: 0 | BC183: 0
E184: =Time!E$73 -> Discount rate multiplier (excluding CO2 emissions) | F184: =Time!F$73 -> 0 | G184: =Time!G$73 -> factor | H184: =Time!H$73 -> 0 | I184: =Time!I$73 -> 0 | J184: =Time!J$73 -> 0.762895212 | K184: =Time!K$73 -> 0.8162978769 | L184: =Time!L$73 -> 0.8734387283 | M184: =Time!M$73 -> 0.9345794393 | N184: =Time!N$73 -> 1 | O184: =Time!O$73 -> 1.07 | P184: =Time!P$73 -> 1.1449 | Q184: =Time!Q$73 -> 1.225043 | R184: =Time!R$73 -> 1.31079601 | S184: =Time!S$73 -> 1.402551731 | T184: =Time!T$73 -> 1.500730352 | U184: =Time!U$73 -> 1.605781476 | V184: =Time!V$73 -> 1.71818618 | W184: =Time!W$73 -> 1.838459212 | X184: =Time!X$73 -> 1.967151357 | Y184: =Time!Y$73 -> 2.104851952 | Z184: =Time!Z$73 -> 2.252191589 | AA184: =Time!AA$73 -> 2.409845 | AB184: =Time!AB$73 -> 2.57853415 | AC184: =Time!AC$73 -> 2.759031541 | AD184: =Time!AD$73 -> 2.952163749 | AE184: =Time!AE$73 -> 3.158815211 | AF184: =Time!AF$73 -> 3.379932276 | AG184: =Time!AG$73 -> 3.616527535 | AH184: =Time!AH$73 -> 3.869684462 | AI184: =Time!AI$73 -> 4.140562375 | AJ184: =Time!AJ$73 -> 4.430401741 | AK184: =Time!AK$73 -> 4.740529863 | AL184: =Time!AL$73 -> 5.072366953 | AM184: =Time!AM$73 -> 5.42743264 | AN184: =Time!AN$73 -> 5.807352925 | AO184: =Time!AO$73 -> 6.21386763 | AP184: =Time!AP$73 -> 6.648838364 | AQ184: =Time!AQ$73 -> 7.114257049 | AR184: =Time!AR$73 -> 7.612255043 | AS184: =Time!AS$73 -> 8.145112896 | AT184: =Time!AT$73 -> 8.715270798 | AU184: =Time!AU$73 -> 9.325339754 | AV184: =Time!AV$73 -> 9.978113537 | AW184: =Time!AW$73 -> 10.67658148 | AX184: =Time!AX$73 -> 11.42394219 | AY184: =Time!AY$73 -> 12.22361814 | AZ184: =Time!AZ$73 -> 13.07927141 | BA184: =Time!BA$73 -> 13.99482041 | BB184: =Time!BB$73 -> 14.97445784 | BC184: =Time!BC$73 -> 16.02266989
E185: =E183 & " - PV" -> Reduction in SO2 emission costs - Highway - Build - PV | G185: US$ | H185: =SUM(J185:BC185) -> 9922.111851 | J185: =IF(J183 > 0, J183 / J184, 0) -> 0 | K185: =IF(K183 > 0, K183 / K184, 0) -> 0 | L185: =IF(L183 > 0, L183 / L184, 0) -> 0 | M185: =IF(M183 > 0, M183 / M184, 0) -> 0 | N185: =IF(N183 > 0, N183 / N184, 0) -> 0 | O185: =IF(O183 > 0, O183 / O184, 0) -> 0 | P185: =IF(P183 > 0, P183 / P184, 0) -> 0 | Q185: =IF(Q183 > 0, Q183 / Q184, 0) -> 0 | R185: =IF(R183 > 0, R183 / R184, 0) -> 0 | S185: =IF(S183 > 0, S183 / S184, 0) -> 590.5517836 | T185: =IF(T183 > 0, T183 / T184, 0) -> 557.6529065 | U185: =IF(U183 > 0, U183 / U184, 0) -> 564.1744506 | V185: =IF(V183 > 0, V183 / V184, 0) -> 525.5149772 | W185: =IF(W183 > 0, W183 / W184, 0) -> 530.2885667 | X185: =IF(X183 > 0, X183 / X184, 0) -> 493.3975972 | Y185: =IF(Y183 > 0, Y183 / Y184, 0) -> 497.7961582 | Z185: =IF(Z183 > 0, Z183 / Z184, 0) -> 457.7459083 | AA185: =IF(AA183 > 0, AA183 / AA184, 0) -> 429.188061 | AB185: =IF(AB183 > 0, AB183 / AB184, 0) -> 403.3841319 | AC185: =IF(AC183 > 0, AC183 / AC184, 0) -> 380.0199958 | AD185: =IF(AD183 > 0, AD183 / AD184, 0) -> 358.8562281 | AE185: =IF(AE183 > 0, AE183 / AE184, 0) -> 339.5862842 | AF185: =IF(AF183 > 0, AF183 / AF184, 0) -> 321.9383867 | AG185: =IF(AG183 > 0, AG183 / AG184, 0) -> 305.6642773 | AH185: =IF(AH183 > 0, AH183 / AH184, 0) -> 290.5073177 | AI185: =IF(AI183 > 0, AI183 / AI184, 0) -> 276.3246763 | AJ185: =IF(AJ183 > 0, AJ183 / AJ184, 0) -> 262.9908432 | AK185: =IF(AK183 > 0, AK183 / AK184, 0) -> 250.4097444 | AL185: =IF(AL183 > 0, AL183 / AL184, 0) -> 238.506588 | AM185: =IF(AM183 > 0, AM183 / AM184, 0) -> 227.2225965 | AN185: =IF(AN183 > 0, AN183 / AN184, 0) -> 216.5093897 | AO185: =IF(AO183 > 0, AO183 / AO184, 0) -> 206.3268574 | AP185: =IF(AP183 > 0, AP183 / AP184, 0) -> 196.6407821 | AQ185: =IF(AQ183 > 0, AQ183 / AQ184, 0) -> 187.4212409 | AR185: =IF(AR183 > 0, AR183 / AR184, 0) -> 178.6423058 | AS185: =IF(AS183 > 0, AS183 / AS184, 0) -> 170.2805398 | AT185: =IF(AT183 > 0, AT183 / AT184, 0) -> 162.3234691 | AU185: =IF(AU183 > 0, AU183 / AU184, 0) -> 154.7382554 | AV185: =IF(AV183 > 0, AV183 / AV184, 0) -> 147.5075319 | AW185: =IF(AW183 > 0, AW183 / AW184, 0) -> 0 | AX185: =IF(AX183 > 0, AX183 / AX184, 0) -> 0 | AY185: =IF(AY183 > 0, AY183 / AY184, 0) -> 0 | AZ185: =IF(AZ183 > 0, AZ183 / AZ184, 0) -> 0 | BA185: =IF(BA183 > 0, BA183 / BA184, 0) -> 0 | BB185: =IF(BB183 > 0, BB183 / BB184, 0) -> 0 | BC185: =IF(BC183 > 0, BC183 / BC184, 0) -> 0
B187: Total
E188: =E$140 -> Reduction in carbon dioxide emission costs - Highway - Build - PV | F188: 0 | G188: US$ | H188: 3883561.066 | I188: 0 | J188: 0 | K188: 0 | L188: 0 | M188: 0 | N188: 0 | O188: 0 | P188: 0 | Q188: 0 | R188: 0 | S188: 104790.4276 | T188: 103985.5256 | U188: 111735.934 | V188: 110712.0197 | W188: 118955.4807 | X188: 117780.3189 | Y188: 126543.7285 | Z188: 125208.5191 | AA188: 125992.82 | AB188: 126750.0986 | AC188: 129441.9367 | AD188: 130127.5525 | AE188: 130787.4179 | AF188: 131422.3606 | AG188: 132032.617 | AH188: 132618.5426 | AI188: 133180.7345 | AJ188: 133719.4941 | AK188: =AK$140 -> 136049.2208 | AL188: 136524.7072 | AM188: 136978.2093 | AN188: 137409.9313 | AO188: 137820.4262 | AP188: 138210.0909 | AQ188: 138579.061 | AR188: 140622.0483 | AS188: 140934.6719 | AT188: 139566.3431 | AU188: 138211.3257 | AV188: 136869.5016 | AW188: 0 | AX188: 0 | AY188: 0 | AZ188: 0 | BA188: 0 | BB188: 0 | BC188: 0
E189: =E$155 -> Reduction in NOx emission costs - Highway - Build - PV | F189: 0 | G189: US$ | H189: 259076.3235 | I189: 0 | J189: 0 | K189: 0 | L189: 0 | M189: 0 | N189: 0 | O189: 0 | P189: 0 | Q189: 0 | R189: 0 | S189: 15576.77039 | T189: 14161.03008 | U189: 14080.42801 | V189: 13099.47988 | W189: 13223.48552 | X189: 12359.46072 | Y189: 12649.43522 | Z189: 11754.83447 | AA189: 11131.11302 | AB189: 10557.09026 | AC189: 10023.51791 | AD189: 9526.180523 | AE189: 9056.961921 | AF189: 8614.967828 | AG189: 8194.453758 | AH189: 7797.279689 | AI189: 7420.4069 | AJ189: 7062.53802 | AK189: =AK$155 -> 6724.112113 | AL189: 6403.86269 | AM189: 6100.778603 | AN189: 5814.001248 | AO189: 5542.069638 | AP189: 5283.750679 | AQ189: 5038.009315 | AR189: 4803.742375 | AS189: 4580.305974 | AT189: 4366.272014 | AU189: 4162.240482 | AV189: 3967.744232 | AW189: 0 | AX189: 0 | AY189: 0 | AZ189: 0 | BA189: 0 | BB189: 0 | BC189: 0
E190: =E$170 -> Reduction in PM 2.5 emission costs - Highway - Build - PV | F190: 0 | G190: US$ | H190: 330294.5605 | I190: 0 | J190: 0 | K190: 0 | L190: 0 | M190: 0 | N190: 0 | O190: 0 | P190: 0 | Q190: 0 | R190: 0 | S190: 18427.3259 | T190: 17166.68211 | U190: 17448.35984 | V190: 16409.34967 | W190: 16780.42859 | X190: 15839.66652 | Y190: 16245.40794 | Z190: 15151.32069 | AA190: 14381.40966 | AB190: 13660.63065 | AC190: 12981.56562 | AD190: 12344.01083 | AE190: 11738.33419 | AF190: 11164.96841 | AG190: 10620.78404 | AH190: 10101.01904 | AI190: 9606.87539 | AJ190: 9137.02671 | AK190: =AK$170 -> 8693.007206 | AL190: 8273.743932 | AM190: 7878.272232 | AN190: 7505.705404 | AO190: 7153.844958 | AP190: 6820.674978 | AQ190: 6504.450685 | AR190: 6203.265666 | AS190: 5916.014731 | AT190: 5639.564191 | AU190: 5376.032986 | AV190: 5124.817744 | AW190: 0 | AX190: 0 | AY190: 0 | AZ190: 0 | BA190: 0 | BB190: 0 | BC190: 0
E191: =E$185 -> Reduction in SO2 emission costs - Highway - Build - PV | F191: 0 | G191: US$ | H191: 9922.111851 | I191: 0 | J191: 0 | K191: 0 | L191: 0 | M191: 0 | N191: 0 | O191: 0 | P191: 0 | Q191: 0 | R191: 0 | S191: 590.5517836 | T191: 557.6529065 | U191: 564.1744506 | V191: 525.5149772 | W191: 530.2885667 | X191: 493.3975972 | Y191: 497.7961582 | Z191: 457.7459083 | AA191: 429.188061 | AB191: 403.3841319 | AC191: 380.0199958 | AD191: 358.8562281 | AE191: 339.5862842 | AF191: 321.9383867 | AG191: 305.6642773 | AH191: 290.5073177 | AI191: 276.3246763 | AJ191: 262.9908432 | AK191: =AK$185 -> 250.4097444 | AL191: 238.506588 | AM191: 227.2225965 | AN191: 216.5093897 | AO191: 206.3268574 | AP191: 196.6407821 | AQ191: 187.4212409 | AR191: 178.6423058 | AS191: 170.2805398 | AT191: 162.3234691 | AU191: 154.7382554 | AV191: 147.5075319 | AW191: 0 | AX191: 0 | AY191: 0 | AZ191: 0 | BA191: 0 | BB191: 0 | BC191: 0
E192: Environmental benefits - Truck mile reduction - Build - PV | G192: US$ | H192: =SUM(J192:BC192) -> 4482854.062 | J192: =SUM(J188:J191) -> 0 | K192: 0 | L192: 0 | M192: 0 | N192: 0 | O192: 0 | P192: 0 | Q192: 0 | R192: 0 | S192: 139385.0757 | T192: 135870.8907 | U192: 143828.8963 | V192: 140746.3643 | W192: 149489.6833 | X192: 146472.8437 | Y192: 155936.3678 | Z192: 152572.4201 | AA192: 151934.5307 | AB192: 151371.2037 | AC192: 152827.0402 | AD192: 152356.6001 | AE192: 151922.3003 | AF192: 151524.2352 | AG192: 151153.5191 | AH192: 150807.3486 | AI192: 150484.3415 | AJ192: 150182.0497 | AK192: 151716.7499 | AL192: 151440.8204 | AM192: 151184.4827 | AN192: 150946.1474 | AO192: 150722.6677 | AP192: =SUM(AP188:AP191) -> 150511.1573 | AQ192: 150308.9423 | AR192: 151807.6986 | AS192: 151601.2731 | AT192: 149734.5028 | AU192: 147904.3375 | AV192: 146109.5711 | AW192: 0 | AX192: 0 | AY192: 0 | AZ192: 0 | BA192: 0 | BB192: 0 | BC192: 0
H193: =H183+H168+H153+H138 -> 9369157.87
B194: Summary
E195: =E$132 -> Reduction in carbon dioxide emissions - Highway - Build | F195: 0 | G195: metric tons | H195: 100448.9916 | I195: 0 | J195: 0 | K195: 0 | L195: 0 | M195: 0 | N195: 0 | O195: 0 | P195: 0 | Q195: 0 | R195: 0 | S195: 2208.74229 | T195: 2217.217065 | U195: 2410.896579 | V195: 2418.046108 | W195: 2630.676631 | X195: 2638.114996 | Y195: 2871.575658 | Z195: 2879.313052 | AA195: 2936.90006 | AB195: 2995.639013 | AC195: 3055.550298 | AD195: 3116.664498 | AE195: 3178.995206 | AF195: 3242.576401 | AG195: 3307.428473 | AH195: 3373.575207 | AI195: 3441.047187 | AJ195: 3509.868199 | AK195: =AK$132 -> 3580.065427 | AL195: 3651.666056 | AM195: 3724.700668 | AN195: 3799.193051 | AO195: 3875.177183 | AP195: 3952.683649 | AQ195: 4031.736235 | AR195: 4112.368921 | AS195: 4194.619086 | AT195: 4278.510516 | AU195: 4364.08059 | AV195: 4451.36329 | AW195: 0 | AX195: 0 | AY195: 0 | AZ195: 0 | BA195: 0 | BB195: 0 | BC195: 0
E196: CO2 emissions | G196: metric tons | H196: =SUM(J196:BC196) -> 100448.9916 | J196: =J195 -> 0 | K196: 0 | L196: 0 | M196: 0 | N196: 0 | O196: 0 | P196: 0 | Q196: 0 | R196: 0 | S196: 2208.74229 | T196: 2217.217065 | U196: 2410.896579 | V196: 2418.046108 | W196: 2630.676631 | X196: 2638.114996 | Y196: 2871.575658 | Z196: 2879.313052 | AA196: 2936.90006 | AB196: 2995.639013 | AC196: 3055.550298 | AD196: 3116.664498 | AE196: 3178.995206 | AF196: 3242.576401 | AG196: 3307.428473 | AH196: 3373.575207 | AI196: 3441.047187 | AJ196: 3509.868199 | AK196: 3580.065427 | AL196: 3651.666056 | AM196: 3724.700668 | AN196: 3799.193051 | AO196: 3875.177183 | AP196: 3952.683649 | AQ196: 4031.736235 | AR196: 4112.368921 | AS196: 4194.619086 | AT196: 4278.510516 | AU196: 4364.08059 | AV196: 4451.36329 | AW196: 0 | AX196: 0 | AY196: 0 | AZ196: 0 | BA196: 0 | BB196: 0 | BC196: 0
E198: =E$147 -> Reduction in NOx emissions - Highway - Build | F198: 0 | G198: metric tons | H198: 50.72215855 | I198: 0 | J198: 0 | K198: 0 | L198: 0 | M198: 0 | N198: 0 | O198: 0 | P198: 0 | Q198: 0 | R198: 0 | S198: 1.316097968 | T198: 1.264993313 | U198: 1.330005322 | V198: 1.301002618 | W198: 1.389190787 | X198: 1.37361186 | Y198: 1.479177135 | Z198: 1.470785518 | AA198: 1.490236504 | AB198: 1.51232321 | AC198: 1.536400115 | AD198: 1.562380267 | AE198: 1.589403838 | AF198: 1.617667101 | AG198: 1.646414869 | AH198: 1.676278448 | AI198: 1.706925423 | AJ198: 1.738326708 | AK198: =AK$147 -> 1.770880793 | AL198: 1.804596749 | AM198: 1.839531385 | AN198: 1.875775397 | AO198: 1.91320484 | AP198: 1.951711345 | AQ198: 1.991205182 | AR198: 2.03151734 | AS198: 2.072617181 | AT198: 2.114069054 | AU198: 2.156350368 | AV198: 2.199477913 | AW198: 0 | AX198: 0 | AY198: 0 | AZ198: 0 | BA198: 0 | BB198: 0 | BC198: 0
E199: NOx emissions | G199: metric tons | H199: =SUM(J199:BC199) -> 50.72215855 | J199: =J198 -> 0 | K199: =K198 -> 0 | L199: =L198 -> 0 | M199: =M198 -> 0 | N199: =N198 -> 0 | O199: =O198 -> 0 | P199: =P198 -> 0 | Q199: =Q198 -> 0 | R199: =R198 -> 0 | S199: =S198 -> 1.316097968 | T199: =T198 -> 1.264993313 | U199: =U198 -> 1.330005322 | V199: =V198 -> 1.301002618 | W199: =W198 -> 1.389190787 | X199: =X198 -> 1.37361186 | Y199: =Y198 -> 1.479177135 | Z199: =Z198 -> 1.470785518 | AA199: =AA198 -> 1.490236504 | AB199: =AB198 -> 1.51232321 | AC199: =AC198 -> 1.536400115 | AD199: =AD198 -> 1.562380267 | AE199: =AE198 -> 1.589403838 | AF199: =AF198 -> 1.617667101 | AG199: =AG198 -> 1.646414869 | AH199: =AH198 -> 1.676278448 | AI199: =AI198 -> 1.706925423 | AJ199: =AJ198 -> 1.738326708 | AK199: =AK198 -> 1.770880793 | AL199: =AL198 -> 1.804596749 | AM199: =AM198 -> 1.839531385 | AN199: =AN198 -> 1.875775397 | AO199: =AO198 -> 1.91320484 | AP199: =AP198 -> 1.951711345 | AQ199: =AQ198 -> 1.991205182 | AR199: =AR198 -> 2.03151734 | AS199: =AS198 -> 2.072617181 | AT199: =AT198 -> 2.114069054 | AU199: =AU198 -> 2.156350368 | AV199: =AV198 -> 2.199477913 | AW199: =AW198 -> 0 | AX199: =AX198 -> 0 | AY199: =AY198 -> 0 | AZ199: =AZ198 -> 0 | BA199: =BA198 -> 0 | BB199: =BB198 -> 0 | BC199: =BC198 -> 0
E201: =E$162 -> Reduction in PM 2.5 emissions - Highway - Build | F201: 0 | G201: metric tons | H201: 1.374966109 | I201: 0 | J201: 0 | K201: 0 | L201: 0 | M201: 0 | N201: 0 | O201: 0 | P201: 0 | Q201: 0 | R201: 0 | S201: 0.03302066926 | T201: 0.03234064885 | U201: 0.03469752697 | V201: 0.03444211804 | W201: 0.03717779409 | X201: 0.03704115726 | Y201: 0.04010106558 | Z201: 0.04001838515 | AA201: 0.04064379988 | AB201: 0.04130925605 | AC201: 0.04200369297 | AD201: 0.04273664981 | AE201: 0.04348449465 | AF201: 0.04425570201 | AG201: 0.04504557045 | AH201: 0.04583998644 | AI201: 0.04664931017 | AJ201: 0.04747355347 | AK201: =AK$162 -> 0.04832820483 | AL201: 0.04921715175 | AM201: 0.05014517633 | AN201: 0.051117955 | AO201: 0.05213210462 | AP201: 0.05318349415 | AQ201: 0.05426801236 | AR201: 0.05537802316 | AS201: 0.05651062259 | AT201: 0.05764082222 | AU201: 0.05879363683 | AV201: 0.05996952422 | AW201: 0 | AX201: 0 | AY201: 0 | AZ201: 0 | BA201: 0 | BB201: 0 | BC201: 0
E202: PM 2.5 emissions | G202: metric tons | H202: =SUM(J202:BC202) -> 1.374966109 | J202: =J201 -> 0 | K202: =K201 -> 0 | L202: =L201 -> 0 | M202: =M201 -> 0 | N202: =N201 -> 0 | O202: =O201 -> 0 | P202: =P201 -> 0 | Q202: =Q201 -> 0 | R202: =R201 -> 0 | S202: =S201 -> 0.03302066926 | T202: =T201 -> 0.03234064885 | U202: =U201 -> 0.03469752697 | V202: =V201 -> 0.03444211804 | W202: =W201 -> 0.03717779409 | X202: =X201 -> 0.03704115726 | Y202: =Y201 -> 0.04010106558 | Z202: =Z201 -> 0.04001838515 | AA202: =AA201 -> 0.04064379988 | AB202: =AB201 -> 0.04130925605 | AC202: =AC201 -> 0.04200369297 | AD202: =AD201 -> 0.04273664981 | AE202: =AE201 -> 0.04348449465 | AF202: =AF201 -> 0.04425570201 | AG202: =AG201 -> 0.04504557045 | AH202: =AH201 -> 0.04583998644 | AI202: =AI201 -> 0.04664931017 | AJ202: =AJ201 -> 0.04747355347 | AK202: =AK201 -> 0.04832820483 | AL202: =AL201 -> 0.04921715175 | AM202: =AM201 -> 0.05014517633 | AN202: =AN201 -> 0.051117955 | AO202: =AO201 -> 0.05213210462 | AP202: =AP201 -> 0.05318349415 | AQ202: =AQ201 -> 0.05426801236 | AR202: =AR201 -> 0.05537802316 | AS202: =AS201 -> 0.05651062259 | AT202: =AT201 -> 0.05764082222 | AU202: =AU201 -> 0.05879363683 | AV202: =AV201 -> 0.05996952422 | AW202: =AW201 -> 0 | AX202: =AX201 -> 0 | AY202: =AY201 -> 0 | AZ202: =AZ201 -> 0 | BA202: =BA201 -> 0 | BB202: =BB201 -> 0 | BC202: =BC201 -> 0
E204: =E$177 -> Reduction in SO2 emissions - Highway - Build | F204: 0 | G204: metric tons | H204: 0.716633263 | I204: 0 | J204: 0 | K204: 0 | L204: 0 | M204: 0 | N204: 0 | O204: 0 | P204: 0 | Q204: 0 | R204: 0 | S204: 0.0188674129 | T204: 0.01863890072 | U204: 0.01991078862 | V204: 0.01954399504 | W204: 0.02078707678 | X204: 0.02039049901 | Y204: 0.02173832397 | Z204: 0.02138862001 | AA204: 0.02145802288 | AB204: 0.02157966307 | AC204: 0.02175284553 | AD204: 0.02197930182 | AE204: 0.02225498589 | AF204: 0.02257531004 | AG204: 0.02293450779 | AH204: 0.02332306336 | AI204: 0.02373733522 | AJ204: 0.0241733421 | AK204: =AK$177 -> 0.02462810936 | AL204: 0.02509943848 | AM204: 0.02558579537 | AN204: 0.02608602567 | AO204: 0.02659933154 | AP204: 0.02712516133 | AQ204: 0.02766313037 | AR204: 0.02821308699 | AS204: 0.02877498382 | AT204: 0.02935047697 | AU204: 0.02993748558 | AV204: 0.03053624275 | AW204: 0 | AX204: 0 | AY204: 0 | AZ204: 0 | BA204: 0 | BB204: 0 | BC204: 0
E207: =E$140 -> Reduction in carbon dioxide emission costs - Highway - Build - PV | F207: 0 | G207: US$ | H207: 3883561.066 | I207: 0 | J207: 0 | K207: 0 | L207: 0 | M207: 0 | N207: 0 | O207: 0 | P207: 0 | Q207: 0 | R207: 0 | S207: 104790.4276 | T207: 103985.5256 | U207: 111735.934 | V207: 110712.0197 | W207: 118955.4807 | X207: 117780.3189 | Y207: 126543.7285 | Z207: 125208.5191 | AA207: 125992.82 | AB207: 126750.0986 | AC207: 129441.9367 | AD207: 130127.5525 | AE207: 130787.4179 | AF207: 131422.3606 | AG207: 132032.617 | AH207: 132618.5426 | AI207: 133180.7345 | AJ207: 133719.4941 | AK207: =AK$140 -> 136049.2208 | AL207: 136524.7072 | AM207: 136978.2093 | AN207: 137409.9313 | AO207: 137820.4262 | AP207: 138210.0909 | AQ207: 138579.061 | AR207: 140622.0483 | AS207: 140934.6719 | AT207: 139566.3431 | AU207: 138211.3257 | AV207: 136869.5016 | AW207: 0 | AX207: 0 | AY207: 0 | AZ207: 0 | BA207: 0 | BB207: 0 | BC207: 0
E208: CO2 emissions | G208: US$ | H208: =SUM(J208:BC208) -> 3883561.066 | J208: =J207 -> 0 | K208: =K207 -> 0 | L208: =L207 -> 0 | M208: =M207 -> 0 | N208: =N207 -> 0 | O208: =O207 -> 0 | P208: =P207 -> 0 | Q208: =Q207 -> 0 | R208: =R207 -> 0 | S208: =S207 -> 104790.4276 | T208: =T207 -> 103985.5256 | U208: =U207 -> 111735.934 | V208: =V207 -> 110712.0197 | W208: =W207 -> 118955.4807 | X208: =X207 -> 117780.3189 | Y208: =Y207 -> 126543.7285 | Z208: =Z207 -> 125208.5191 | AA208: =AA207 -> 125992.82 | AB208: =AB207 -> 126750.0986 | AC208: =AC207 -> 129441.9367 | AD208: =AD207 -> 130127.5525 | AE208: =AE207 -> 130787.4179 | AF208: =AF207 -> 131422.3606 | AG208: =AG207 -> 132032.617 | AH208: =AH207 -> 132618.5426 | AI208: =AI207 -> 133180.7345 | AJ208: =AJ207 -> 133719.4941 | AK208: =AK207 -> 136049.2208 | AL208: =AL207 -> 136524.7072 | AM208: =AM207 -> 136978.2093 | AN208: =AN207 -> 137409.9313 | AO208: =AO207 -> 137820.4262 | AP208: =AP207 -> 138210.0909 | AQ208: =AQ207 -> 138579.061 | AR208: =AR207 -> 140622.0483 | AS208: =AS207 -> 140934.6719 | AT208: =AT207 -> 139566.3431 | AU208: =AU207 -> 138211.3257 | AV208: =AV207 -> 136869.5016 | AW208: =AW207 -> 0 | AX208: =AX207 -> 0 | AY208: =AY207 -> 0 | AZ208: =AZ207 -> 0 | BA208: =BA207 -> 0 | BB208: =BB207 -> 0 | BC208: =BC207 -> 0
E210: =E$155 -> Reduction in NOx emission costs - Highway - Build - PV | F210: 0 | G210: US$ | H210: 259076.3235 | I210: 0 | J210: 0 | K210: 0 | L210: 0 | M210: 0 | N210: 0 | O210: 0 | P210: 0 | Q210: 0 | R210: 0 | S210: 15576.77039 | T210: 14161.03008 | U210: 14080.42801 | V210: 13099.47988 | W210: 13223.48552 | X210: 12359.46072 | Y210: 12649.43522 | Z210: 11754.83447 | AA210: 11131.11302 | AB210: 10557.09026 | AC210: 10023.51791 | AD210: 9526.180523 | AE210: 9056.961921 | AF210: 8614.967828 | AG210: 8194.453758 | AH210: 7797.279689 | AI210: 7420.4069 | AJ210: 7062.53802 | AK210: =AK$155 -> 6724.112113 | AL210: 6403.86269 | AM210: 6100.778603 | AN210: 5814.001248 | AO210: 5542.069638 | AP210: 5283.750679 | AQ210: 5038.009315 | AR210: 4803.742375 | AS210: 4580.305974 | AT210: 4366.272014 | AU210: 4162.240482 | AV210: 3967.744232 | AW210: 0 | AX210: 0 | AY210: 0 | AZ210: 0 | BA210: 0 | BB210: 0 | BC210: 0
E211: NOx emissions | G211: US$ | H211: =SUM(J211:BC211) -> 259076.3235 | J211: =J210 -> 0 | K211: =K210 -> 0 | L211: =L210 -> 0 | M211: =M210 -> 0 | N211: =N210 -> 0 | O211: =O210 -> 0 | P211: =P210 -> 0 | Q211: =Q210 -> 0 | R211: =R210 -> 0 | S211: =S210 -> 15576.77039 | T211: =T210 -> 14161.03008 | U211: =U210 -> 14080.42801 | V211: =V210 -> 13099.47988 | W211: =W210 -> 13223.48552 | X211: =X210 -> 12359.46072 | Y211: =Y210 -> 12649.43522 | Z211: =Z210 -> 11754.83447 | AA211: =AA210 -> 11131.11302 | AB211: =AB210 -> 10557.09026 | AC211: =AC210 -> 10023.51791 | AD211: =AD210 -> 9526.180523 | AE211: =AE210 -> 9056.961921 | AF211: =AF210 -> 8614.967828 | AG211: =AG210 -> 8194.453758 | AH211: =AH210 -> 7797.279689 | AI211: =AI210 -> 7420.4069 | AJ211: =AJ210 -> 7062.53802 | AK211: =AK210 -> 6724.112113 | AL211: =AL210 -> 6403.86269 | AM211: =AM210 -> 6100.778603 | AN211: =AN210 -> 5814.001248 | AO211: =AO210 -> 5542.069638 | AP211: =AP210 -> 5283.750679 | AQ211: =AQ210 -> 5038.009315 | AR211: =AR210 -> 4803.742375 | AS211: =AS210 -> 4580.305974 | AT211: =AT210 -> 4366.272014 | AU211: =AU210 -> 4162.240482 | AV211: =AV210 -> 3967.744232 | AW211: =AW210 -> 0 | AX211: =AX210 -> 0 | AY211: =AY210 -> 0 | AZ211: =AZ210 -> 0 | BA211: =BA210 -> 0 | BB211: =BB210 -> 0 | BC211: =BC210 -> 0
E213: =E$170 -> Reduction in PM 2.5 emission costs - Highway - Build - PV | F213: 0 | G213: US$ | H213: 330294.5605 | I213: 0 | J213: 0 | K213: 0 | L213: 0 | M213: 0 | N213: 0 | O213: 0 | P213: 0 | Q213: 0 | R213: 0 | S213: 18427.3259 | T213: 17166.68211 | U213: 17448.35984 | V213: 16409.34967 | W213: 16780.42859 | X213: 15839.66652 | Y213: 16245.40794 | Z213: 15151.32069 | AA213: 14381.40966 | AB213: 13660.63065 | AC213: 12981.56562 | AD213: 12344.01083 | AE213: 11738.33419 | AF213: 11164.96841 | AG213: 10620.78404 | AH213: 10101.01904 | AI213: 9606.87539 | AJ213: 9137.02671 | AK213: =AK$170 -> 8693.007206 | AL213: 8273.743932 | AM213: 7878.272232 | AN213: 7505.705404 | AO213: 7153.844958 | AP213: 6820.674978 | AQ213: 6504.450685 | AR213: 6203.265666 | AS213: 5916.014731 | AT213: 5639.564191 | AU213: 5376.032986 | AV213: 5124.817744 | AW213: 0 | AX213: 0 | AY213: 0 | AZ213: 0 | BA213: 0 | BB213: 0 | BC213: 0
E214: PM 2.5 emissions | G214: US$ | H214: =SUM(J214:BC214) -> 330294.5605 | J214: =J213 -> 0 | K214: =K213 -> 0 | L214: =L213 -> 0 | M214: =M213 -> 0 | N214: =N213 -> 0 | O214: =O213 -> 0 | P214: =P213 -> 0 | Q214: =Q213 -> 0 | R214: =R213 -> 0 | S214: =S213 -> 18427.3259 | T214: =T213 -> 17166.68211 | U214: =U213 -> 17448.35984 | V214: =V213 -> 16409.34967 | W214: =W213 -> 16780.42859 | X214: =X213 -> 15839.66652 | Y214: =Y213 -> 16245.40794 | Z214: =Z213 -> 15151.32069 | AA214: =AA213 -> 14381.40966 | AB214: =AB213 -> 13660.63065 | AC214: =AC213 -> 12981.56562 | AD214: =AD213 -> 12344.01083 | AE214: =AE213 -> 11738.33419 | AF214: =AF213 -> 11164.96841 | AG214: =AG213 -> 10620.78404 | AH214: =AH213 -> 10101.01904 | AI214: =AI213 -> 9606.87539 | AJ214: =AJ213 -> 9137.02671 | AK214: =AK213 -> 8693.007206 | AL214: =AL213 -> 8273.743932 | AM214: =AM213 -> 7878.272232 | AN214: =AN213 -> 7505.705404 | AO214: =AO213 -> 7153.844958 | AP214: =AP213 -> 6820.674978 | AQ214: =AQ213 -> 6504.450685 | AR214: =AR213 -> 6203.265666 | AS214: =AS213 -> 5916.014731 | AT214: =AT213 -> 5639.564191 | AU214: =AU213 -> 5376.032986 | AV214: =AV213 -> 5124.817744 | AW214: =AW213 -> 0 | AX214: =AX213 -> 0 | AY214: =AY213 -> 0 | AZ214: =AZ213 -> 0 | BA214: =BA213 -> 0 | BB214: =BB213 -> 0 | BC214: =BC213 -> 0
E216: =E$185 -> Reduction in SO2 emission costs - Highway - Build - PV | F216: 0 | G216: US$ | H216: 9922.111851 | I216: 0 | J216: 0 | K216: 0 | L216: 0 | M216: 0 | N216: 0 | O216: 0 | P216: 0 | Q216: 0 | R216: 0 | S216: 590.5517836 | T216: 557.6529065 | U216: 564.1744506 | V216: 525.5149772 | W216: 530.2885667 | X216: 493.3975972 | Y216: 497.7961582 | Z216: 457.7459083 | AA216: 429.188061 | AB216: 403.3841319 | AC216: 380.0199958 | AD216: 358.8562281 | AE216: 339.5862842 | AF216: 321.9383867 | AG216: 305.6642773 | AH216: 290.5073177 | AI216: 276.3246763 | AJ216: 262.9908432 | AK216: =AK$185 -> 250.4097444 | AL216: 238.506588 | AM216: 227.2225965 | AN216: 216.5093897 | AO216: 206.3268574 | AP216: 196.6407821 | AQ216: 187.4212409 | AR216: 178.6423058 | AS216: 170.2805398 | AT216: 162.3234691 | AU216: 154.7382554 | AV216: 147.5075319 | AW216: 0 | AX216: 0 | AY216: 0 | AZ216: 0 | BA216: 0 | BB216: 0 | BC216: 0
A220: ENVIRONMENTAL BENEFITS - SWITCHING TO ELECTRIC TRUCKS
B222: Fuel Consumption
E223: =InpC!E$49 -> Truck fuel efficiency - 2019 US$ | F223: =InpC!F$49 -> 6.5 | G223: =InpC!G$49 -> mpg
E224: =Volume!E$71 -> Truck Miles Switched from Diesel to Electric | F224: =Volume!F$71 -> 0 | G224: =Volume!G$71 -> miles | H224: =Volume!H$71 -> 6668613.363 | I224: =Volume!I$71 -> 0 | J224: =Volume!J$71 -> 0 | K224: =Volume!K$71 -> 0 | L224: =Volume!L$71 -> 0 | M224: =Volume!M$71 -> 0 | N224: =Volume!N$71 -> 0 | O224: =Volume!O$71 -> 0 | P224: =Volume!P$71 -> 0 | Q224: =Volume!Q$71 -> 0 | R224: =Volume!R$71 -> 0 | S224: =Volume!S$71 -> 146634.1087 | T224: =Volume!T$71 -> 147196.7325 | U224: =Volume!U$71 -> 160054.7391 | V224: =Volume!V$71 -> 160529.3824 | W224: =Volume!W$71 -> 174645.5097 | X224: =Volume!X$71 -> 175139.3283 | Y224: =Volume!Y$71 -> 190638.328 | Z224: =Volume!Z$71 -> 191151.9985 | AA224: =Volume!AA$71 -> 194975.0881 | AB224: =Volume!AB$71 -> 198874.6531 | AC224: =Volume!AC$71 -> 202852.0469 | AD224: =Volume!AD$71 -> 206909.2998 | AE224: =Volume!AE$71 -> 211047.3144 | AF224: =Volume!AF$71 -> 215268.3464 | AG224: =Volume!AG$71 -> 219573.7494 | AH224: =Volume!AH$71 -> 223965.1026 | AI224: =Volume!AI$71 -> 228444.4362 | AJ224: =Volume!AJ$71 -> 233013.3295 | AK224: =Volume!AK$71 -> 237673.587 | AL224: =Volume!AL$71 -> 242427.0137 | AM224: =Volume!AM$71 -> 247275.6397 | AN224: =Volume!AN$71 -> 252221.0442 | AO224: =Volume!AO$71 -> 257265.4831 | AP224: =Volume!AP$71 -> 262410.9868 | AQ224: =Volume!AQ$71 -> 267659.1343 | AR224: =Volume!AR$71 -> 273012.1816 | AS224: =Volume!AS$71 -> 278472.6103 | AT224: =Volume!AT$71 -> 284041.9993 | AU224: =Volume!AU$71 -> 289722.8303 | AV224: =Volume!AV$71 -> 295517.3591 | AW224: =Volume!AW$71 -> 0 | AX224: =Volume!AX$71 -> 0 | AY224: =Volume!AY$71 -> 0 | AZ224: =Volume!AZ$71 -> 0 | BA224: =Volume!BA$71 -> 0 | BB224: =Volume!BB$71 -> 0 | BC224: =Volume!BC$71 -> 0
E225: Truck fuel consumption - no-Build | G225: gal | J225: =J224 / $F223 -> 0 | K225: 0 | L225: 0 | M225: 0 | N225: 0 | O225: 0 | P225: 0 | Q225: 0 | R225: 0 | S225: 22559.09365 | T225: 22645.65115 | U225: 24623.80602 | V225: 24696.82807 | W225: 26868.53995 | X225: 26944.51204 | Y225: 29328.97353 | Z225: 29407.99977 | AA225: 29996.1674 | AB225: 30596.10047 | AC225: 31208.00721 | AD225: 31832.19998 | AE225: 32468.8176 | AF225: 33118.20714 | AG225: 33780.57684 | AH225: 34456.16963 | AI225: 35145.29788 | AJ225: 35848.20453 | AK225: 36565.16724 | AL225: 37296.46364 | AM225: 38042.4061 | AN225: 38803.23756 | AO225: 39579.30509 | AP225: 40370.92104 | AQ225: 41178.32836 | AR225: 42001.8741 | AS225: 42841.94004 | AT225: 43698.76912 | AU225: 44572.74312 | AV225: 45464.20909 | AW225: 0 | AX225: 0 | AY225: 0 | AZ225: 0 | BA225: 0 | BB225: 0 | BC225: 0
E227: =InpC!E$50 -> Electric Truck Fuel Consumption | F227: =InpC!F$50 -> 2 | G227: =InpC!G$50 -> kWh / mile
E228: =Volume!E$71 -> Truck Miles Switched from Diesel to Electric | F228: =Volume!F$71 -> 0 | G228: =Volume!G$71 -> miles | H228: =Volume!H$71 -> 6668613.363 | I228: =Volume!I$71 -> 0 | J228: =Volume!J$71 -> 0 | K228: =Volume!K$71 -> 0 | L228: =Volume!L$71 -> 0 | M228: =Volume!M$71 -> 0 | N228: =Volume!N$71 -> 0 | O228: =Volume!O$71 -> 0 | P228: =Volume!P$71 -> 0 | Q228: =Volume!Q$71 -> 0 | R228: =Volume!R$71 -> 0 | S228: =Volume!S$71 -> 146634.1087 | T228: =Volume!T$71 -> 147196.7325 | U228: =Volume!U$71 -> 160054.7391 | V228: =Volume!V$71 -> 160529.3824 | W228: =Volume!W$71 -> 174645.5097 | X228: =Volume!X$71 -> 175139.3283 | Y228: =Volume!Y$71 -> 190638.328 | Z228: =Volume!Z$71 -> 191151.9985 | AA228: =Volume!AA$71 -> 194975.0881 | AB228: =Volume!AB$71 -> 198874.6531 | AC228: =Volume!AC$71 -> 202852.0469 | AD228: =Volume!AD$71 -> 206909.2998 | AE228: =Volume!AE$71 -> 211047.3144 | AF228: =Volume!AF$71 -> 215268.3464 | AG228: =Volume!AG$71 -> 219573.7494 | AH228: =Volume!AH$71 -> 223965.1026 | AI228: =Volume!AI$71 -> 228444.4362 | AJ228: =Volume!AJ$71 -> 233013.3295 | AK228: =Volume!AK$71 -> 237673.587 | AL228: =Volume!AL$71 -> 242427.0137 | AM228: =Volume!AM$71 -> 247275.6397 | AN228: =Volume!AN$71 -> 252221.0442 | AO228: =Volume!AO$71 -> 257265.4831 | AP228: =Volume!AP$71 -> 262410.9868 | AQ228: =Volume!AQ$71 -> 267659.1343 | AR228: =Volume!AR$71 -> 273012.1816 | AS228: =Volume!AS$71 -> 278472.6103 | AT228: =Volume!AT$71 -> 284041.9993 | AU228: =Volume!AU$71 -> 289722.8303 | AV228: =Volume!AV$71 -> 295517.3591 | AW228: =Volume!AW$71 -> 0 | AX228: =Volume!AX$71 -> 0 | AY228: =Volume!AY$71 -> 0 | AZ228: =Volume!AZ$71 -> 0 | BA228: =Volume!BA$71 -> 0 | BB228: =Volume!BB$71 -> 0 | BC228: =Volume!BC$71 -> 0
E229: Truck electricity consumption - Build | F229: 0 | G229: kWh | H229: =SUM(J229:BC229) -> 13337226.73 | J229: =$F227 * J228 -> 0 | K229: =$F227 * K228 -> 0 | L229: 0 | M229: 0 | N229: 0 | O229: 0 | P229: 0 | Q229: 0 | R229: 0 | S229: 293268.2174 | T229: 294393.465 | U229: 320109.4782 | V229: 321058.7649 | W229: 349291.0194 | X229: 350278.6565 | Y229: 381276.6559 | Z229: 382303.997 | AA229: 389950.1762 | AB229: 397749.3061 | AC229: 405704.0937 | AD229: 413818.5997 | AE229: 422094.6288 | AF229: 430536.6928 | AG229: 439147.4989 | AH229: 447930.2052 | AI229: 456888.8725 | AJ229: 466026.6589 | AK229: 475347.1741 | AL229: 484854.0273 | AM229: 494551.2793 | AN229: 504442.0883 | AO229: 514530.9662 | AP229: 524821.9735 | AQ229: 535318.2686 | AR229: 546024.3633 | AS229: 556945.2205 | AT229: 568083.9986 | AU229: 579445.6605 | AV229: 591034.7181 | AW229: 0 | AX229: 0 | AY229: 0 | AZ229: 0 | BA229: 0 | BB229: 0 | BC229: 0
B232: CO2 Emissions
E233: =InpC!E$95 -> Grams per metric ton | F233: =InpC!F$95 -> 1000000 | G233: =InpC!G$95 -> gram / metric ton
E234: =InpC!E$87 -> CO2 emissions per gallon of diesel | F234: =InpC!F$87 -> 10180 | G234: =InpC!G$87 -> g / gal
E235: =E225 -> Truck fuel consumption - no-Build | F235: =F225 -> 0 | G235: gal | H235: 0 | I235: 0 | J235: 0 | K235: 0 | L235: 0 | M235: 0 | N235: 0 | O235: 0 | P235: 0 | Q235: 0 | R235: 0 | S235: 22559.09365 | T235: 22645.65115 | U235: 24623.80602 | V235: 24696.82807 | W235: 26868.53995 | X235: 26944.51204 | Y235: 29328.97353 | Z235: 29407.99977 | AA235: 29996.1674 | AB235: 30596.10047 | AC235: 31208.00721 | AD235: 31832.19998 | AE235: 32468.8176 | AF235: 33118.20714 | AG235: 33780.57684 | AH235: 34456.16963 | AI235: 35145.29788 | AJ235: 35848.20453 | AK235: 36565.16724 | AL235: 37296.46364 | AM235: 38042.4061 | AN235: 38803.23756 | AO235: 39579.30509 | AP235: 40370.92104 | AQ235: 41178.32836 | AR235: 42001.8741 | AS235: 42841.94004 | AT235: 43698.76912 | AU235: 44572.74312 | AV235: 45464.20909 | AW235: 0 | AX235: 0 | AY235: 0 | AZ235: 0 | BA235: 0 | BB235: 0 | BC235: 0
E236: =Time!E$46 -> Forecast period flag | F236: =Time!F$46 -> 0 | G236: =Time!G$46 -> flag | H236: =Time!H$46 -> 33 | I236: =Time!I$46 -> 0 | J236: =Time!J$46 -> 0 | K236: =Time!K$46 -> 0 | L236: =Time!L$46 -> 0 | M236: =Time!M$46 -> 0 | N236: =Time!N$46 -> 0 | O236: =Time!O$46 -> 0 | P236: =Time!P$46 -> 1 | Q236: =Time!Q$46 -> 1 | R236: =Time!R$46 -> 1 | S236: =Time!S$46 -> 1 | T236: =Time!T$46 -> 1 | U236: =Time!U$46 -> 1 | V236: =Time!V$46 -> 1 | W236: =Time!W$46 -> 1 | X236: =Time!X$46 -> 1 | Y236: =Time!Y$46 -> 1 | Z236: =Time!Z$46 -> 1 | AA236: =Time!AA$46 -> 1 | AB236: =Time!AB$46 -> 1 | AC236: =Time!AC$46 -> 1 | AD236: =Time!AD$46 -> 1 | AE236: =Time!AE$46 -> 1 | AF236: =Time!AF$46 -> 1 | AG236: =Time!AG$46 -> 1 | AH236: =Time!AH$46 -> 1 | AI236: =Time!AI$46 -> 1 | AJ236: =Time!AJ$46 -> 1 | AK236: =Time!AK$46 -> 1 | AL236: =Time!AL$46 -> 1 | AM236: =Time!AM$46 -> 1 | AN236: =Time!AN$46 -> 1 | AO236: =Time!AO$46 -> 1 | AP236: =Time!AP$46 -> 1 | AQ236: =Time!AQ$46 -> 1 | AR236: =Time!AR$46 -> 1 | AS236: =Time!AS$46 -> 1 | AT236: =Time!AT$46 -> 1 | AU236: =Time!AU$46 -> 1 | AV236: =Time!AV$46 -> 1 | AW236: =Time!AW$46 -> 0 | AX236: =Time!AX$46 -> 0 | AY236: =Time!AY$46 -> 0 | AZ236: =Time!AZ$46 -> 0 | BA236: =Time!BA$46 -> 0 | BB236: =Time!BB$46 -> 0 | BC236: =Time!BC$46 -> 0
E237: Diesel CO2 Emission - No-Build | F237: 0 | G237: metric ton | H237: =SUM(J237:BC237) -> 10444.07447 | J237: =J235 * $F234 / $F233 * J236 -> 0 | K237: =K235 * $F234 / $F233 * K236 -> 0 | L237: 0 | M237: 0 | N237: 0 | O237: 0 | P237: 0 | Q237: 0 | R237: 0 | S237: 229.6515733 | T237: 230.5327288 | U237: 250.6703453 | V237: 251.4137097 | W237: 273.5217367 | X237: 274.2951326 | Y237: 298.5689506 | Z237: 299.3734377 | AA237: 305.3609842 | AB237: 311.4683028 | AC237: 317.6975134 | AD237: 324.0517958 | AE237: 330.5325632 | AF237: 337.1433487 | AG237: 343.8862722 | AH237: 350.7638068 | AI237: 357.7791324 | AJ237: 364.9347222 | AK237: 372.2334025 | AL237: 379.6779999 | AM237: 387.2716941 | AN237: 395.0169584 | AO237: 402.9173258 | AP237: 410.9759762 | AQ237: 419.1953827 | AR237: 427.5790783 | AS237: 436.1309496 | AT237: 444.8534697 | AU237: 453.7505249 | AV237: 462.8256485 | AW237: 0 | AX237: 0 | AY237: 0 | AZ237: 0 | BA237: 0 | BB237: 0 | BC237: 0
E239: =InpC!E$95 -> Grams per metric ton | F239: =InpC!F$95 -> 1000000 | G239: =InpC!G$95 -> gram / metric ton
E240: =InpC!E$88 -> CO2 emissions per kwh of electricity (AL) | F240: =InpC!F$88 -> 356.334 | G240: =InpC!G$88 -> g / kwh
E241: =E229 -> Truck electricity consumption - Build | F241: =F229 -> 0 | G241: kWh | H241: 13337226.73 | I241: 0 | J241: 0 | K241: 0 | L241: 0 | M241: 0 | N241: 0 | O241: 0 | P241: 0 | Q241: 0 | R241: 0 | S241: 293268.2174 | T241: 294393.465 | U241: 320109.4782 | V241: 321058.7649 | W241: 349291.0194 | X241: 350278.6565 | Y241: 381276.6559 | Z241: 382303.997 | AA241: 389950.1762 | AB241: 397749.3061 | AC241: 405704.0937 | AD241: 413818.5997 | AE241: 422094.6288 | AF241: 430536.6928 | AG241: 439147.4989 | AH241: 447930.2052 | AI241: 456888.8725 | AJ241: 466026.6589 | AK241: 475347.1741 | AL241: 484854.0273 | AM241: 494551.2793 | AN241: 504442.0883 | AO241: 514530.9662 | AP241: 524821.9735 | AQ241: 535318.2686 | AR241: 546024.3633 | AS241: 556945.2205 | AT241: 568083.9986 | AU241: 579445.6605 | AV241: 591034.7181 | AW241: 0 | AX241: 0 | AY241: 0 | AZ241: 0 | BA241: 0 | BB241: 0 | BC241: 0
E242: =Time!E$46 -> Forecast period flag | F242: =Time!F$46 -> 0 | G242: =Time!G$46 -> flag | H242: =Time!H$46 -> 33 | I242: =Time!I$46 -> 0 | J242: =Time!J$46 -> 0 | K242: =Time!K$46 -> 0 | L242: =Time!L$46 -> 0 | M242: =Time!M$46 -> 0 | N242: =Time!N$46 -> 0 | O242: =Time!O$46 -> 0 | P242: =Time!P$46 -> 1 | Q242: =Time!Q$46 -> 1 | R242: =Time!R$46 -> 1 | S242: =Time!S$46 -> 1 | T242: =Time!T$46 -> 1 | U242: =Time!U$46 -> 1 | V242: =Time!V$46 -> 1 | W242: =Time!W$46 -> 1 | X242: =Time!X$46 -> 1 | Y242: =Time!Y$46 -> 1 | Z242: =Time!Z$46 -> 1 | AA242: =Time!AA$46 -> 1 | AB242: =Time!AB$46 -> 1 | AC242: =Time!AC$46 -> 1 | AD242: =Time!AD$46 -> 1 | AE242: =Time!AE$46 -> 1 | AF242: =Time!AF$46 -> 1 | AG242: =Time!AG$46 -> 1 | AH242: =Time!AH$46 -> 1 | AI242: =Time!AI$46 -> 1 | AJ242: =Time!AJ$46 -> 1 | AK242: =Time!AK$46 -> 1 | AL242: =Time!AL$46 -> 1 | AM242: =Time!AM$46 -> 1 | AN242: =Time!AN$46 -> 1 | AO242: =Time!AO$46 -> 1 | AP242: =Time!AP$46 -> 1 | AQ242: =Time!AQ$46 -> 1 | AR242: =Time!AR$46 -> 1 | AS242: =Time!AS$46 -> 1 | AT242: =Time!AT$46 -> 1 | AU242: =Time!AU$46 -> 1 | AV242: =Time!AV$46 -> 1 | AW242: =Time!AW$46 -> 0 | AX242: =Time!AX$46 -> 0 | AY242: =Time!AY$46 -> 0 | AZ242: =Time!AZ$46 -> 0 | BA242: =Time!BA$46 -> 0 | BB242: =Time!BB$46 -> 0 | BC242: =Time!BC$46 -> 0
E243: Truck Emission - Build | F243: 0 | G243: metric ton | H243: =SUM(J243:BC243) -> 4752.507348 | J243: =J241 * $F240 / $F239 * J242 -> 0 | K243: =K241 * $F240 / $F239 * K242 -> 0 | L243: =L241 * $F240 / $F239 * L242 -> 0 | M243: =M241 * $F240 / $F239 * M242 -> 0 | N243: =N241 * $F240 / $F239 * N242 -> 0 | O243: =O241 * $F240 / $F239 * O242 -> 0 | P243: =P241 * $F240 / $F239 * P242 -> 0 | Q243: =Q241 * $F240 / $F239 * Q242 -> 0 | R243: =R241 * $F240 / $F239 * R242 -> 0 | S243: =S241 * $F240 / $F239 * S242 -> 104.501437 | T243: =T241 * $F240 / $F239 * T242 -> 104.902401 | U243: =U241 * $F240 / $F239 * U242 -> 114.0658908 | V243: =V241 * $F240 / $F239 * V242 -> 114.4041539 | W243: =W241 * $F240 / $F239 * W242 -> 124.4642661 | X243: =X241 * $F240 / $F239 * X242 -> 124.8161948 | Y243: =Y241 * $F240 / $F239 * Y242 -> 135.8618359 | Z243: =Z241 * $F240 / $F239 * Z242 -> 136.2279125 | AA243: =AA241 * $F240 / $F239 * AA242 -> 138.9525061 | AB243: =AB241 * $F240 / $F239 * AB242 -> 141.7316012 | AC243: =AC241 * $F240 / $F239 * AC242 -> 144.5661625 | AD243: =AD241 * $F240 / $F239 * AD242 -> 147.4576369 | AE243: =AE241 * $F240 / $F239 * AE242 -> 150.4066675 | AF243: =AF241 * $F240 / $F239 * AF242 -> 153.4148619 | AG243: =AG241 * $F240 / $F239 * AG242 -> 156.4831849 | AH243: =AH241 * $F240 / $F239 * AH242 -> 159.6127617 | AI243: =AI241 * $F240 / $F239 * AI242 -> 162.8050395 | AJ243: =AJ241 * $F240 / $F239 * AJ242 -> 166.0611435 | AK243: =AK241 * $F240 / $F239 * AK242 -> 169.3823599 | AL243: =AL241 * $F240 / $F239 * AL242 -> 172.769975 | AM243: =AM241 * $F240 / $F239 * AM242 -> 176.2254356 | AN243: =AN241 * $F240 / $F239 * AN242 -> 179.7498671 | AO243: =AO241 * $F240 / $F239 * AO242 -> 183.3448773 | AP243: =AP241 * $F240 / $F239 * AP242 -> 187.0119131 | AQ243: =AQ241 * $F240 / $F239 * AQ242 -> 190.7520999 | AR243: =AR241 * $F240 / $F239 * AR242 -> 194.5670455 | AS243: =AS241 * $F240 / $F239 * AS242 -> 198.4585182 | AT243: =AT241 * $F240 / $F239 * AT242 -> 202.4276436 | AU243: =AU241 * $F240 / $F239 * AU242 -> 206.47619 | AV243: =AV241 * $F240 / $F239 * AV242 -> 210.6057652 | AW243: =AW241 * $F240 / $F239 * AW242 -> 0 | AX243: =AX241 * $F240 / $F239 * AX242 -> 0 | AY243: =AY241 * $F240 / $F239 * AY242 -> 0 | AZ243: =AZ241 * $F240 / $F239 * AZ242 -> 0 | BA243: =BA241 * $F240 / $F239 * BA242 -> 0 | BB243: =BB241 * $F240 / $F239 * BB242 -> 0 | BC243: =BC241 * $F240 / $F239 * BC242 -> 0
E245: =E237 -> Diesel CO2 Emission - No-Build | F245: =F237 -> 0 | G245: metric ton | H245: 10444.07447 | I245: 0 | J245: 0 | K245: 0 | L245: 0 | M245: 0 | N245: 0 | O245: 0 | P245: 0 | Q245: 0 | R245: 0 | S245: 229.6515733 | T245: 230.5327288 | U245: 250.6703453 | V245: 251.4137097 | W245: 273.5217367 | X245: 274.2951326 | Y245: 298.5689506 | Z245: 299.3734377 | AA245: 305.3609842 | AB245: 311.4683028 | AC245: 317.6975134 | AD245: 324.0517958 | AE245: 330.5325632 | AF245: 337.1433487 | AG245: 343.8862722 | AH245: 350.7638068 | AI245: 357.7791324 | AJ245: 364.9347222 | AK245: 372.2334025 | AL245: 379.6779999 | AM245: 387.2716941 | AN245: 395.0169584 | AO245: 402.9173258 | AP245: 410.9759762 | AQ245: 419.1953827 | AR245: 427.5790783 | AS245: 436.1309496 | AT245: 444.8534697 | AU245: 453.7505249 | AV245: 462.8256485 | AW245: 0 | AX245: 0 | AY245: 0 | AZ245: 0 | BA245: 0 | BB245: 0 | BC245: 0
E246: =E243 -> Truck Emission - Build | F246: =F243 -> 0 | G246: metric ton | H246: 4752.507348 | I246: 0 | J246: 0 | K246: 0 | L246: 0 | M246: 0 | N246: 0 | O246: 0 | P246: 0 | Q246: 0 | R246: 0 | S246: 104.501437 | T246: 104.902401 | U246: 114.0658908 | V246: 114.4041539 | W246: 124.4642661 | X246: 124.8161948 | Y246: 135.8618359 | Z246: 136.2279125 | AA246: 138.9525061 | AB246: 141.7316012 | AC246: 144.5661625 | AD246: 147.4576369 | AE246: 150.4066675 | AF246: 153.4148619 | AG246: 156.4831849 | AH246: 159.6127617 | AI246: 162.8050395 | AJ246: 166.0611435 | AK246: 169.3823599 | AL246: 172.769975 | AM246: 176.2254356 | AN246: 179.7498671 | AO246: 183.3448773 | AP246: 187.0119131 | AQ246: 190.7520999 | AR246: 194.5670455 | AS246: 198.4585182 | AT246: 202.4276436 | AU246: 206.47619 | AV246: 210.6057652 | AW246: 0 | AX246: 0 | AY246: 0 | AZ246: 0 | BA246: 0 | BB246: 0 | BC246: 0
E247: Reduction in carbon dioxide emissions - Highway - Build | G247: metric tons | H247: =SUM(J247:BC247) -> 5691.567119 | J247: =J245 - J246 -> 0 | K247: =K245 - K246 -> 0 | L247: 0 | M247: 0 | N247: 0 | O247: 0 | P247: 0 | Q247: 0 | R247: 0 | S247: 125.1501363 | T247: 125.6303278 | U247: 136.6044544 | V247: 137.0095558 | W247: 149.0574706 | X247: 149.4789378 | Y247: 162.7071146 | Z247: 163.1455252 | AA247: 166.4084781 | AB247: 169.7367015 | AC247: 173.1313509 | AD247: 176.5941589 | AE247: 180.1258957 | AF247: 183.7284868 | AG247: 187.4030873 | AH247: 191.1510451 | AI247: 194.974093 | AJ247: 198.8735787 | AK247: 202.8510425 | AL247: 206.9080249 | AM247: 211.0462585 | AN247: 215.2670913 | AO247: 219.5724485 | AP247: 223.9640631 | AQ247: 228.4432827 | AR247: 233.0120329 | AS247: 237.6724314 | AT247: 242.4258261 | AU247: 247.2743349 | AV247: 252.2198832 | AW247: 0 | AX247: 0 | AY247: 0 | AZ247: 0 | BA247: 0 | BB247: 0 | BC247: 0
E249: =E247 -> Reduction in carbon dioxide emissions - Highway - Build | F249: 0 | G249: metric tons | H249: 5691.567119 | I249: 0 | J249: 0 | K249: 0 | L249: 0 | M249: 0 | N249: 0 | O249: 0 | P249: 0 | Q249: 0 | R249: 0 | S249: 125.1501363 | T249: 125.6303278 | U249: 136.6044544 | V249: 137.0095558 | W249: 149.0574706 | X249: 149.4789378 | Y249: 162.7071146 | Z249: 163.1455252 | AA249: 166.4084781 | AB249: 169.7367015 | AC249: 173.1313509 | AD249: 176.5941589 | AE249: 180.1258957 | AF249: 183.7284868 | AG249: 187.4030873 | AH249: 191.1510451 | AI249: 194.974093 | AJ249: 198.8735787 | AK249: 202.8510425 | AL249: 206.9080249 | AM249: 211.0462585 | AN249: 215.2670913 | AO249: 219.5724485 | AP249: 223.9640631 | AQ249: 228.4432827 | AR249: 233.0120329 | AS249: 237.6724314 | AT249: 242.4258261 | AU249: 247.2743349 | AV249: 252.2198832 | AW249: 0 | AX249: 0 | AY249: 0 | AZ249: 0 | BA249: 0 | BB249: 0 | BC249: 0
E250: =InpV!E$34 -> Damage costs for emissions - CO2 - 2019 US$ | F250: =InpV!F$34 -> 0 | G250: =InpV!G$34 -> US$ / metric ton | H250: =InpV!H$34 -> https://www.transportation.gov/sites/dot.gov/files/2021-02/Benefit%20Cost%20Analysis%20Guidance%202021.pdf | I250: =InpV!I$34 -> 0 | J250: =InpV!J$34 -> 0 | K250: =InpV!K$34 -> 0 | L250: =InpV!L$34 -> 0 | M250: =InpV!M$34 -> 0 | N250: =InpV!N$34 -> 0 | O250: =InpV!O$34 -> 50 | P250: =InpV!P$34 -> 52 | Q250: =InpV!Q$34 -> 53 | R250: =InpV!R$34 -> 54 | S250: =InpV!S$34 -> 55 | T250: =InpV!T$34 -> 56 | U250: =InpV!U$34 -> 57 | V250: =InpV!V$34 -> 58 | W250: =InpV!W$34 -> 59 | X250: =InpV!X$34 -> 60 | Y250: =InpV!Y$34 -> 61 | Z250: =InpV!Z$34 -> 62 | AA250: =InpV!AA$34 -> 63 | AB250: =InpV!AB$34 -> 64 | AC250: =InpV!AC$34 -> 66 | AD250: =InpV!AD$34 -> 67 | AE250: =InpV!AE$34 -> 68 | AF250: =InpV!AF$34 -> 69 | AG250: =InpV!AG$34 -> 70 | AH250: =InpV!AH$34 -> 71 | AI250: =InpV!AI$34 -> 72 | AJ250: =InpV!AJ$34 -> 73 | AK250: =InpV!AK$34 -> 75 | AL250: =InpV!AL$34 -> 76 | AM250: =InpV!AM$34 -> 77 | AN250: =InpV!AN$34 -> 78 | AO250: =InpV!AO$34 -> 79 | AP250: =InpV!AP$34 -> 80 | AQ250: =InpV!AQ$34 -> 81 | AR250: =InpV!AR$34 -> 83 | AS250: =InpV!AS$34 -> 84 | AT250: =InpV!AT$34 -> 84 | AU250: =InpV!AU$34 -> 84 | AV250: =InpV!AV$34 -> 84 | AW250: =InpV!AW$34 -> 84 | AX250: =InpV!AX$34 -> 84 | AY250: =InpV!AY$34 -> 84 | AZ250: =InpV!AZ$34 -> 84 | BA250: =InpV!BA$34 -> 84 | BB250: =InpV!BB$34 -> 84 | BC250: =InpV!BC$34 -> 0
E251: Reduction in carbon dioxide emission costs - Highway - Build | G251: US$ | H251: =SUM(J251:BC251) -> 411605.1353 | J251: =J249 * J250 -> 0 | K251: 0 | L251: 0 | M251: 0 | N251: 0 | O251: 0 | P251: 0 | Q251: 0 | R251: 0 | S251: 6883.257499 | T251: 7035.298356 | U251: 7786.453903 | V251: 7946.554237 | W251: 8794.390767 | X251: 8968.736267 | Y251: 9925.133994 | Z251: 10115.02256 | AA251: 10483.73412 | AB251: 10863.1489 | AC251: 11426.66916 | AD251: 11831.80864 | AE251: 12248.56091 | AF251: 12677.26559 | AG251: 13118.21611 | AH251: 13571.7242 | AI251: 14038.13469 | AJ251: 14517.77124 | AK251: 15213.82819 | AL251: 15725.00989 | AM251: 16250.56191 | AN251: 16790.83312 | AO251: 17346.22343 | AP251: 17917.12505 | AQ251: 18503.9059 | AR251: 19339.99873 | AS251: 19964.48424 | AT251: 20363.76939 | AU251: 20771.04413 | AV251: 21186.47019 | AW251: 0 | AX251: 0 | AY251: 0 | AZ251: 0 | BA251: 0 | BB251: 0 | BC251: 0
E253: =E251 -> Reduction in carbon dioxide emission costs - Highway - Build | F253: 0 | G253: US$ | H253: 411605.1353 | I253: 0 | J253: 0 | K253: 0 | L253: 0 | M253: 0 | N253: 0 | O253: 0 | P253: 0 | Q253: 0 | R253: 0 | S253: 6883.257499 | T253: 7035.298356 | U253: 7786.453903 | V253: 7946.554237 | W253: 8794.390767 | X253: 8968.736267 | Y253: 9925.133994 | Z253: 10115.02256 | AA253: 10483.73412 | AB253: 10863.1489 | AC253: 11426.66916 | AD253: 11831.80864 | AE253: 12248.56091 | AF253: 12677.26559 | AG253: 13118.21611 | AH253: 13571.7242 | AI253: 14038.13469 | AJ253: 14517.77124 | AK253: 15213.82819 | AL253: 15725.00989 | AM253: 16250.56191 | AN253: 16790.83312 | AO253: 17346.22343 | AP253: 17917.12505 | AQ253: 18503.9059 | AR253: 19339.99873 | AS253: 19964.48424 | AT253: 20363.76939 | AU253: 20771.04413 | AV253: 21186.47019 | AW253: 0 | AX253: 0 | AY253: 0 | AZ253: 0 | BA253: 0 | BB253: 0 | BC253: 0
E254: =Time!E$78 -> Discount rate multiplier (for CO2 emissions) | F254: =Time!F$78 -> 0 | G254: =Time!G$78 -> factor | H254: =Time!H$78 -> 0 | I254: =Time!I$78 -> 0 | J254: =Time!J$78 -> 0.8884870479 | K254: =Time!K$78 -> 0.9151416594 | L254: =Time!L$78 -> 0.9425959091 | M254: =Time!M$78 -> 0.9708737864 | N254: =Time!N$78 -> 1 | O254: =Time!O$78 -> 1.03 | P254: =Time!P$78 -> 1.0609 | Q254: =Time!Q$78 -> 1.092727 | R254: =Time!R$78 -> 1.12550881 | S254: =Time!S$78 -> 1.159274074 | T254: =Time!T$78 -> 1.194052297 | U254: =Time!U$78 -> 1.229873865 | V254: =Time!V$78 -> 1.266770081 | W254: =Time!W$78 -> 1.304773184 | X254: =Time!X$78 -> 1.343916379 | Y254: =Time!Y$78 -> 1.384233871 | Z254: =Time!Z$78 -> 1.425760887 | AA254: =Time!AA$78 -> 1.468533713 | AB254: =Time!AB$78 -> 1.512589725 | AC254: =Time!AC$78 -> 1.557967417 | AD254: =Time!AD$78 -> 1.604706439 | AE254: =Time!AE$78 -> 1.652847632 | AF254: =Time!AF$78 -> 1.702433061 | AG254: =Time!AG$78 -> 1.753506053 | AH254: =Time!AH$78 -> 1.806111235 | AI254: =Time!AI$78 -> 1.860294572 | AJ254: =Time!AJ$78 -> 1.916103409 | AK254: =Time!AK$78 -> 1.973586511 | AL254: =Time!AL$78 -> 2.032794106 | AM254: =Time!AM$78 -> 2.09377793 | AN254: =Time!AN$78 -> 2.156591268 | AO254: =Time!AO$78 -> 2.221289006 | AP254: =Time!AP$78 -> 2.287927676 | AQ254: =Time!AQ$78 -> 2.356565506 | AR254: =Time!AR$78 -> 2.427262471 | AS254: =Time!AS$78 -> 2.500080345 | AT254: =Time!AT$78 -> 2.575082756 | AU254: =Time!AU$78 -> 2.652335238 | AV254: =Time!AV$78 -> 2.731905296 | AW254: =Time!AW$78 -> 2.813862454 | AX254: =Time!AX$78 -> 2.898278328 | AY254: =Time!AY$78 -> 2.985226678 | AZ254: =Time!AZ$78 -> 3.074783478 | BA254: =Time!BA$78 -> 3.167026983 | BB254: =Time!BB$78 -> 3.262037792 | BC254: =Time!BC$78 -> 3.359898926
E255: =E253 & " - PV" -> Reduction in carbon dioxide emission costs - Highway - Build - PV | G255: US$ | H255: =SUM(J255:BC255) -> 220047.4899 | J255: =J253 / J254 -> 0 | K255: =K253 / K254 -> 0 | L255: =L253 / L254 -> 0 | M255: =M253 / M254 -> 0 | N255: =N253 / N254 -> 0 | O255: =O253 / O254 -> 0 | P255: =P253 / P254 -> 0 | Q255: =Q253 / Q254 -> 0 | R255: =R253 / R254 -> 0 | S255: =S253 / S254 -> 5937.558384 | T255: =T253 / T254 -> 5891.951615 | U255: =U253 / U254 -> 6331.099572 | V255: =V253 / V254 -> 6273.083295 | W255: =W253 / W254 -> 6740.168234 | X255: =X253 / X254 -> 6673.58208 | Y255: =Y253 / Y254 -> 7170.12797 | Z255: =Z253 / Z254 -> 7094.473313 | AA255: =AA253 / AA254 -> 7138.912796 | AB255: =AB253 / AB254 -> 7181.821164 | AC255: =AC253 / AC254 -> 7334.344117 | AD255: =AD253 / AD254 -> 7373.191978 | AE255: =AE253 / AE254 -> 7410.580787 | AF255: =AF253 / AF254 -> 7446.557446 | AG255: =AG253 / AG254 -> 7481.135346 | AH255: =AH253 / AH254 -> 7514.334633 | AI255: =AI253 / AI254 -> 7546.189139 | AJ255: =AJ253 / AJ254 -> 7576.715941 | AK255: =AK253 / AK254 -> 7708.721206 | AL255: =AL253 / AL254 -> 7735.66287 | AM255: =AM253 / AM254 -> 7761.358871 | AN255: =AN253 / AN254 -> 7785.820788 | AO255: =AO253 / AO254 -> 7809.079949 | AP255: =AP253 / AP254 -> 7831.158841 | AQ255: =AQ253 / AQ254 -> 7852.065157 | AR255: =AR253 / AR254 -> 7967.823405 | AS255: =AS253 / AS254 -> 7985.537055 | AT255: =AT253 / AT254 -> 7908.00581 | AU255: =AU253 / AU254 -> 7831.228811 | AV255: =AV253 / AV254 -> 7755.199358 | AW255: =AW253 / AW254 -> 0 | AX255: =AX253 / AX254 -> 0 | AY255: =AY253 / AY254 -> 0 | AZ255: =AZ253 / AZ254 -> 0 | BA255: =BA253 / BA254 -> 0 | BB255: =BB253 / BB254 -> 0 | BC255: =BC253 / BC254 -> 0
B257: NOx Emissions
E258: =InpC!E$95 -> Grams per metric ton | F258: =InpC!F$95 -> 1000000 | G258: =InpC!G$95 -> gram / metric ton
E259: =InpV!E$40 -> NOx emission rate - Truck | F259: =InpV!F$40 -> 0 | G259: =InpV!G$40 -> gram / mile | H259: =InpV!H$40 -> EMFAC 2021 | I259: =InpV!I$40 -> 0 | J259: =InpV!J$40 -> 0 | K259: =InpV!K$40 -> 0 | L259: =InpV!L$40 -> 0 | M259: =InpV!M$40 -> 0 | N259: =InpV!N$40 -> 3.060143973 | O259: =InpV!O$40 -> 2.150938349 | P259: =InpV!P$40 -> 1.634430482 | Q259: =InpV!Q$40 -> 1.344009622 | R259: =InpV!R$40 -> 0.9857988693 | S259: =InpV!S$40 -> 0.9332061524 | T259: =InpV!T$40 -> 0.8935409048 | U259: =InpV!U$40 -> 0.863991002 | V259: =InpV!V$40 -> 0.8426515309 | W259: =InpV!W$40 -> 0.8270444448 | X259: =InpV!X$40 -> 0.8154638831 | Y259: =InpV!Y$40 -> 0.8067413974 | Z259: =InpV!Z$40 -> 0.8000090139 | AA259: =InpV!AA$40 -> 0.794694945 | AB259: =InpV!AB$40 -> 0.7906596226 | AC259: =InpV!AC$40 -> 0.7874977385 | AD259: =InpV!AD$40 -> 0.7851110908 | AE259: =InpV!AE$40 -> 0.7830307291 | AF259: =InpV!AF$40 -> 0.7813279437 | AG259: =InpV!AG$40 -> 0.779620482 | AH259: =InpV!AH$40 -> 0.7781981361 | AI259: =InpV!AI$40 -> 0.776887869 | AJ259: =InpV!AJ$40 -> 0.7756664653 | AK259: =InpV!AK$40 -> 0.7746986254 | AL259: =InpV!AL$40 -> 0.773968949 | AM259: =InpV!AM$40 -> 0.773482062 | AN259: =InpV!AN$40 -> 0.7732570612 | AO259: =InpV!AO$40 -> 0.7732222238 | AP259: =InpV!AP$40 -> 0.7733177004 | AQ259: =InpV!AQ$40 -> 0.7734964474 | AR259: =InpV!AR$40 -> 0.7736827013 | AS259: =InpV!AS$40 -> 0.7738574834 | AT259: =InpV!AT$40 -> 0.7738574834 | AU259: =InpV!AU$40 -> 0.7738574834 | AV259: =InpV!AV$40 -> 0.7738574834 | AW259: =InpV!AW$40 -> 0.7738574834 | AX259: =InpV!AX$40 -> 0.7738574834 | AY259: =InpV!AY$40 -> 0.7738574834 | AZ259: =InpV!AZ$40 -> 0.7738574834 | BA259: =InpV!BA$40 -> 0.7738574834 | BB259: =InpV!BB$40 -> 0.7738574834 | BC259: =InpV!BC$40 -> 0
E260: =Volume!E$71 -> Truck Miles Switched from Diesel to Electric | F260: =Volume!F$71 -> 0 | G260: =Volume!G$71 -> miles | H260: =Volume!H$71 -> 6668613.363 | I260: =Volume!I$71 -> 0 | J260: =Volume!J$71 -> 0 | K260: =Volume!K$71 -> 0 | L260: =Volume!L$71 -> 0 | M260: =Volume!M$71 -> 0 | N260: =Volume!N$71 -> 0 | O260: =Volume!O$71 -> 0 | P260: =Volume!P$71 -> 0 | Q260: =Volume!Q$71 -> 0 | R260: =Volume!R$71 -> 0 | S260: =Volume!S$71 -> 146634.1087 | T260: =Volume!T$71 -> 147196.7325 | U260: =Volume!U$71 -> 160054.7391 | V260: =Volume!V$71 -> 160529.3824 | W260: =Volume!W$71 -> 174645.5097 | X260: =Volume!X$71 -> 175139.3283 | Y260: =Volume!Y$71 -> 190638.328 | Z260: =Volume!Z$71 -> 191151.9985 | AA260: =Volume!AA$71 -> 194975.0881 | AB260: =Volume!AB$71 -> 198874.6531 | AC260: =Volume!AC$71 -> 202852.0469 | AD260: =Volume!AD$71 -> 206909.2998 | AE260: =Volume!AE$71 -> 211047.3144 | AF260: =Volume!AF$71 -> 215268.3464 | AG260: =Volume!AG$71 -> 219573.7494 | AH260: =Volume!AH$71 -> 223965.1026 | AI260: =Volume!AI$71 -> 228444.4362 | AJ260: =Volume!AJ$71 -> 233013.3295 | AK260: =Volume!AK$71 -> 237673.587 | AL260: =Volume!AL$71 -> 242427.0137 | AM260: =Volume!AM$71 -> 247275.6397 | AN260: =Volume!AN$71 -> 252221.0442 | AO260: =Volume!AO$71 -> 257265.4831 | AP260: =Volume!AP$71 -> 262410.9868 | AQ260: =Volume!AQ$71 -> 267659.1343 | AR260: =Volume!AR$71 -> 273012.1816 | AS260: =Volume!AS$71 -> 278472.6103 | AT260: =Volume!AT$71 -> 284041.9993 | AU260: =Volume!AU$71 -> 289722.8303 | AV260: =Volume!AV$71 -> 295517.3591 | AW260: =Volume!AW$71 -> 0 | AX260: =Volume!AX$71 -> 0 | AY260: =Volume!AY$71 -> 0 | AZ260: =Volume!AZ$71 -> 0 | BA260: =Volume!BA$71 -> 0 | BB260: =Volume!BB$71 -> 0 | BC260: =Volume!BC$71 -> 0
E261: =Time!E$46 -> Forecast period flag | F261: =Time!F$46 -> 0 | G261: =Time!G$46 -> flag | H261: =Time!H$46 -> 33 | I261: =Time!I$46 -> 0 | J261: =Time!J$46 -> 0 | K261: =Time!K$46 -> 0 | L261: =Time!L$46 -> 0 | M261: =Time!M$46 -> 0 | N261: =Time!N$46 -> 0 | O261: =Time!O$46 -> 0 | P261: =Time!P$46 -> 1 | Q261: =Time!Q$46 -> 1 | R261: =Time!R$46 -> 1 | S261: =Time!S$46 -> 1 | T261: =Time!T$46 -> 1 | U261: =Time!U$46 -> 1 | V261: =Time!V$46 -> 1 | W261: =Time!W$46 -> 1 | X261: =Time!X$46 -> 1 | Y261: =Time!Y$46 -> 1 | Z261: =Time!Z$46 -> 1 | AA261: =Time!AA$46 -> 1 | AB261: =Time!AB$46 -> 1 | AC261: =Time!AC$46 -> 1 | AD261: =Time!AD$46 -> 1 | AE261: =Time!AE$46 -> 1 | AF261: =Time!AF$46 -> 1 | AG261: =Time!AG$46 -> 1 | AH261: =Time!AH$46 -> 1 | AI261: =Time!AI$46 -> 1 | AJ261: =Time!AJ$46 -> 1 | AK261: =Time!AK$46 -> 1 | AL261: =Time!AL$46 -> 1 | AM261: =Time!AM$46 -> 1 | AN261: =Time!AN$46 -> 1 | AO261: =Time!AO$46 -> 1 | AP261: =Time!AP$46 -> 1 | AQ261: =Time!AQ$46 -> 1 | AR261: =Time!AR$46 -> 1 | AS261: =Time!AS$46 -> 1 | AT261: =Time!AT$46 -> 1 | AU261: =Time!AU$46 -> 1 | AV261: =Time!AV$46 -> 1 | AW261: =Time!AW$46 -> 0 | AX261: =Time!AX$46 -> 0 | AY261: =Time!AY$46 -> 0 | AZ261: =Time!AZ$46 -> 0 | BA261: =Time!BA$46 -> 0 | BB261: =Time!BB$46 -> 0 | BC261: =Time!BC$46 -> 0
E262: Diesel Nox Emission - No-Build | G262: metric tons | H262: =SUM(J262:BC262) -> 5.273781176 | J262: =J259 * J260 / $F258 * J261 -> 0 | K262: 0 | L262: 0 | M262: 0 | N262: 0 | O262: 0 | P262: 0 | Q262: 0 | R262: 0 | S262: 0.1368398524 | T262: 0.1315263015 | U262: 0.1382858544 | V262: 0.1352703299 | W262: 0.1444395986 | X262: 0.1428197967 | Y262: 0.1537958311 | Z262: 0.1529233218 | AA262: 0.1549457169 | AB262: 0.1572421581 | AC262: 0.1597455281 | AD262: 0.1624467861 | AE262: 0.1652565325 | AF262: 0.1681951744 | AG262: 0.1711841924 | AH262: 0.1742892254 | AI262: 0.1774757113 | AJ262: 0.1807406256 | AK262: 0.1841254012 | AL262: 0.187630981 | AM262: 0.1912632716 | AN262: 0.1950317034 | AO262: 0.1989233889 | AP262: 0.2029270608 | AQ262: 0.2070333895 | AR262: 0.2112248022 | AS262: 0.2154981134 | AT262: 0.2198080268 | AU262: 0.2242041803 | AV262: 0.2286883198 | AW262: 0 | AX262: 0 | AY262: 0 | AZ262: 0 | BA262: 0 | BB262: 0 | BC262: 0
E264: =InpC!E$95 -> Grams per metric ton | F264: =InpC!F$95 -> 1000000 | G264: =InpC!G$95 -> gram / metric ton
... 68 more rows

Sheet ProjectCosts
A1: Project Costs | F1: =InpC!$F$9 -> Case 1
E2: Model Period Ending | F2: =Check_Alert!F$2 -> 0 | G2: =Check_Alert!G$2 -> Error Checks | J2: =Time!J$2 -> 2015-12-31 | K2: =Time!K$2 -> 2016-12-31 | L2: =Time!L$2 -> 2017-12-31 | M2: =Time!M$2 -> 2018-12-31 | N2: =Time!N$2 -> 2019-12-31 | O2: =Time!O$2 -> 2020-12-31 | P2: =Time!P$2 -> 2021-12-31 | Q2: =Time!Q$2 -> 2022-12-31 | R2: =Time!R$2 -> 2023-12-31 | S2: =Time!S$2 -> 2024-12-31 | T2: =Time!T$2 -> 2025-12-31 | U2: =Time!U$2 -> 2026-12-31 | V2: =Time!V$2 -> 2027-12-31 | W2: =Time!W$2 -> 2028-12-31 | X2: =Time!X$2 -> 2029-12-31 | Y2: =Time!Y$2 -> 2030-12-31 | Z2: =Time!Z$2 -> 2031-12-31 | AA2: =Time!AA$2 -> 2032-12-31 | AB2: =Time!AB$2 -> 2033-12-31 | AC2: =Time!AC$2 -> 2034-12-31 | AD2: =Time!AD$2 -> 2035-12-31 | AE2: =Time!AE$2 -> 2036-12-31 | AF2: =Time!AF$2 -> 2037-12-31 | AG2: =Time!AG$2 -> 2038-12-31 | AH2: =Time!AH$2 -> 2039-12-31 | AI2: =Time!AI$2 -> 2040-12-31 | AJ2: =Time!AJ$2 -> 2041-12-31 | AK2: =Time!AK$2 -> 2042-12-31 | AL2: =Time!AL$2 -> 2043-12-31 | AM2: =Time!AM$2 -> 2044-12-31 | AN2: =Time!AN$2 -> 2045-12-31 | AO2: =Time!AO$2 -> 2046-12-31 | AP2: =Time!AP$2 -> 2047-12-31 | AQ2: =Time!AQ$2 -> 2048-12-31 | AR2: =Time!AR$2 -> 2049-12-31 | AS2: =Time!AS$2 -> 2050-12-31 | AT2: =Time!AT$2 -> 2051-12-31 | AU2: =Time!AU$2 -> 2052-12-31 | AV2: =Time!AV$2 -> 2053-12-31 | AW2: =Time!AW$2 -> 2054-12-31 | AX2: =Time!AX$2 -> 2055-12-31 | AY2: =Time!AY$2 -> 2056-12-31 | AZ2: =Time!AZ$2 -> 2057-12-31 | BA2: =Time!BA$2 -> 2058-12-31 | BB2: =Time!BB$2 -> 2059-12-31 | BC2: =Time!BC$2 -> 2060-12-31
E3: Pre-forecast vs Forecast | F3: =Check_Alert!F$3 -> 0 | G3: =Check_Alert!G$3 -> Alerts | J3: =Time!J$3 -> Pre-forecast | K3: =Time!K$3 -> Pre-forecast | L3: =Time!L$3 -> Pre-forecast | M3: =Time!M$3 -> Pre-forecast | N3: =Time!N$3 -> Pre-forecast | O3: =Time!O$3 -> Pre-forecast | P3: =Time!P$3 -> Forecast | Q3: =Time!Q$3 -> Forecast | R3: =Time!R$3 -> Forecast | S3: =Time!S$3 -> Forecast | T3: =Time!T$3 -> Forecast | U3: =Time!U$3 -> Forecast | V3: =Time!V$3 -> Forecast | W3: =Time!W$3 -> Forecast | X3: =Time!X$3 -> Forecast | Y3: =Time!Y$3 -> Forecast | Z3: =Time!Z$3 -> Forecast | AA3: =Time!AA$3 -> Forecast | AB3: =Time!AB$3 -> Forecast | AC3: =Time!AC$3 -> Forecast | AD3: =Time!AD$3 -> Forecast | AE3: =Time!AE$3 -> Forecast | AF3: =Time!AF$3 -> Forecast | AG3: =Time!AG$3 -> Forecast | AH3: =Time!AH$3 -> Forecast | AI3: =Time!AI$3 -> Forecast | AJ3: =Time!AJ$3 -> Forecast | AK3: =Time!AK$3 -> Forecast | AL3: =Time!AL$3 -> Forecast | AM3: =Time!AM$3 -> Forecast | AN3: =Time!AN$3 -> Forecast | AO3: =Time!AO$3 -> Forecast | AP3: =Time!AP$3 -> Forecast | AQ3: =Time!AQ$3 -> Forecast | AR3: =Time!AR$3 -> Forecast | AS3: =Time!AS$3 -> Forecast | AT3: =Time!AT$3 -> Forecast | AU3: =Time!AU$3 -> Forecast | AV3: =Time!AV$3 -> Forecast | AW3: =Time!AW$3 -> Post-forecast | AX3: =Time!AX$3 -> Post-forecast | AY3: =Time!AY$3 -> Post-forecast | AZ3: =Time!AZ$3 -> Post-forecast | BA3: =Time!BA$3 -> Post-forecast | BB3: =Time!BB$3 -> Post-forecast | BC3: =Time!BC$3 -> Post-forecast
E4: Financial Year Ending | J4: =Time!J$4 -> 2015 | K4: =Time!K$4 -> 2016 | L4: =Time!L$4 -> 2017 | M4: =Time!M$4 -> 2018 | N4: =Time!N$4 -> 2019 | O4: =Time!O$4 -> 2020 | P4: =Time!P$4 -> 2021 | Q4: =Time!Q$4 -> 2022 | R4: =Time!R$4 -> 2023 | S4: =Time!S$4 -> 2024 | T4: =Time!T$4 -> 2025 | U4: =Time!U$4 -> 2026 | V4: =Time!V$4 -> 2027 | W4: =Time!W$4 -> 2028 | X4: =Time!X$4 -> 2029 | Y4: =Time!Y$4 -> 2030 | Z4: =Time!Z$4 -> 2031 | AA4: =Time!AA$4 -> 2032 | AB4: =Time!AB$4 -> 2033 | AC4: =Time!AC$4 -> 2034 | AD4: =Time!AD$4 -> 2035 | AE4: =Time!AE$4 -> 2036 | AF4: =Time!AF$4 -> 2037 | AG4: =Time!AG$4 -> 2038 | AH4: =Time!AH$4 -> 2039 | AI4: =Time!AI$4 -> 2040 | AJ4: =Time!AJ$4 -> 2041 | AK4: =Time!AK$4 -> 2042 | AL4: =Time!AL$4 -> 2043 | AM4: =Time!AM$4 -> 2044 | AN4: =Time!AN$4 -> 2045 | AO4: =Time!AO$4 -> 2046 | AP4: =Time!AP$4 -> 2047 | AQ4: =Time!AQ$4 -> 2048 | AR4: =Time!AR$4 -> 2049 | AS4: =Time!AS$4 -> 2050 | AT4: =Time!AT$4 -> 2051 | AU4: =Time!AU$4 -> 2052 | AV4: =Time!AV$4 -> 2053 | AW4: =Time!AW$4 -> 2054 | AX4: =Time!AX$4 -> 2055 | AY4: =Time!AY$4 -> 2056 | AZ4: =Time!AZ$4 -> 2057 | BA4: =Time!BA$4 -> 2058 | BB4: =Time!BB$4 -> 2059 | BC4: =Time!BC$4 -> 2060
E5: Model Column counter | F5: Constant | G5: Unit | H5: Total | J5: =Time!J$5 -> 1 | K5: =Time!K$5 -> 2 | L5: =Time!L$5 -> 3 | M5: =Time!M$5 -> 4 | N5: =Time!N$5 -> 5 | O5: =Time!O$5 -> 6 | P5: =Time!P$5 -> 7 | Q5: =Time!Q$5 -> 8 | R5: =Time!R$5 -> 9 | S5: =Time!S$5 -> 10 | T5: =Time!T$5 -> 11 | U5: =Time!U$5 -> 12 | V5: =Time!V$5 -> 13 | W5: =Time!W$5 -> 14 | X5: =Time!X$5 -> 15 | Y5: =Time!Y$5 -> 16 | Z5: =Time!Z$5 -> 17 | AA5: =Time!AA$5 -> 18 | AB5: =Time!AB$5 -> 19 | AC5: =Time!AC$5 -> 20 | AD5: =Time!AD$5 -> 21 | AE5: =Time!AE$5 -> 22 | AF5: =Time!AF$5 -> 23 | AG5: =Time!AG$5 -> 24 | AH5: =Time!AH$5 -> 25 | AI5: =Time!AI$5 -> 26 | AJ5: =Time!AJ$5 -> 27 | AK5: =Time!AK$5 -> 28 | AL5: =Time!AL$5 -> 29 | AM5: =Time!AM$5 -> 30 | AN5: =Time!AN$5 -> 31 | AO5: =Time!AO$5 -> 32 | AP5: =Time!AP$5 -> 33 | AQ5: =Time!AQ$5 -> 34 | AR5: =Time!AR$5 -> 35 | AS5: =Time!AS$5 -> 36 | AT5: =Time!AT$5 -> 37 | AU5: =Time!AU$5 -> 38 | AV5: =Time!AV$5 -> 39 | AW5: =Time!AW$5 -> 40 | AX5: =Time!AX$5 -> 41 | AY5: =Time!AY$5 -> 42 | AZ5: =Time!AZ$5 -> 43 | BA5: =Time!BA$5 -> 44 | BB5: =Time!BB$5 -> 45 | BC5: =Time!BC$5 -> 46
A7: PROJECT COSTS
E9: =InpV!E$14 -> Project approval/environmental document - Current dollars | F9: =InpV!F$14 -> 0 | G9: =InpV!G$14 -> US$ | H9: =InpV!H$14 -> 0 | I9: =InpV!I$14 -> 0 | J9: =InpV!J$14 -> 0 | K9: =InpV!K$14 -> 0 | L9: =InpV!L$14 -> 0 | M9: =InpV!M$14 -> 0 | N9: =InpV!N$14 -> 0 | O9: =InpV!O$14 -> 0 | P9: =InpV!P$14 -> 0 | Q9: =InpV!Q$14 -> 0 | R9: =InpV!R$14 -> 0 | S9: =InpV!S$14 -> 0 | T9: =InpV!T$14 -> 0 | U9: =InpV!U$14 -> 0 | V9: =InpV!V$14 -> 0 | W9: =InpV!W$14 -> 0 | X9: =InpV!X$14 -> 0 | Y9: =InpV!Y$14 -> 0 | Z9: =InpV!Z$14 -> 0 | AA9: =InpV!AA$14 -> 0 | AB9: =InpV!AB$14 -> 0 | AC9: =InpV!AC$14 -> 0 | AD9: =InpV!AD$14 -> 0 | AE9: =InpV!AE$14 -> 0 | AF9: =InpV!AF$14 -> 0 | AG9: =InpV!AG$14 -> 0 | AH9: =InpV!AH$14 -> 0 | AI9: =InpV!AI$14 -> 0 | AJ9: =InpV!AJ$14 -> 0 | AK9: =InpV!AK$14 -> 0 | AL9: =InpV!AL$14 -> 0 | AM9: =InpV!AM$14 -> 0 | AN9: =InpV!AN$14 -> 0 | AO9: =InpV!AO$14 -> 0 | AP9: =InpV!AP$14 -> 0 | AQ9: =InpV!AQ$14 -> 0 | AR9: =InpV!AR$14 -> 0 | AS9: =InpV!AS$14 -> 0 | AT9: =InpV!AT$14 -> 0 | AU9: =InpV!AU$14 -> 0 | AV9: =InpV!AV$14 -> 0 | AW9: =InpV!AW$14 -> 0 | AX9: =InpV!AX$14 -> 0 | AY9: =InpV!AY$14 -> 0 | AZ9: =InpV!AZ$14 -> 0 | BA9: =InpV!BA$14 -> 0 | BB9: =InpV!BB$14 -> 0 | BC9: =InpV!BC$14 -> 0
E10: =InpV!E$9 -> CPI rate multiplier | F10: =InpV!F$9 -> 0 | G10: =InpV!G$9 -> multiplier | H10: =InpV!H$9 -> 0 | I10: =InpV!I$9 -> 0 | J10: =InpV!J$9 -> 0.9319664492 | K10: =InpV!K$9 -> 0.9417082588 | L10: =InpV!L$9 -> 0.9594166747 | M10: =InpV!M$9 -> 0.9824147755 | N10: =InpV!N$9 -> 1 | O10: =InpV!O$9 -> 1.014 | P10: =InpV!P$9 -> 1.03428 | Q10: =InpV!Q$9 -> 1.0549656 | R10: =InpV!R$9 -> 1.076064912 | S10: =InpV!S$9 -> 1.09758621 | T10: =InpV!T$9 -> 1.119537934 | U10: =InpV!U$9 -> 1.141928693 | V10: =InpV!V$9 -> 1.164767267 | W10: =InpV!W$9 -> 1.188062612 | X10: =InpV!X$9 -> 1.211823865 | Y10: =InpV!Y$9 -> 1.236060342 | Z10: =InpV!Z$9 -> 1.260781549 | AA10: =InpV!AA$9 -> 1.28599718 | AB10: =InpV!AB$9 -> 1.311717123 | AC10: =InpV!AC$9 -> 1.337951466 | AD10: =InpV!AD$9 -> 1.364710495 | AE10: =InpV!AE$9 -> 1.392004705 | AF10: =InpV!AF$9 -> 1.419844799 | AG10: =InpV!AG$9 -> 1.448241695 | AH10: =InpV!AH$9 -> 1.477206529 | AI10: =InpV!AI$9 -> 1.50675066 | AJ10: =InpV!AJ$9 -> 1.536885673 | AK10: =InpV!AK$9 -> 1.567623386 | AL10: =InpV!AL$9 -> 1.598975854 | AM10: =InpV!AM$9 -> 1.630955371 | AN10: =InpV!AN$9 -> 1.663574478 | AO10: =InpV!AO$9 -> 1.696845968 | AP10: =InpV!AP$9 -> 1.730782887 | AQ10: =InpV!AQ$9 -> 1.765398545 | AR10: =InpV!AR$9 -> 1.800706516 | AS10: =InpV!AS$9 -> 1.836720646 | AT10: =InpV!AT$9 -> 1.873455059 | AU10: =InpV!AU$9 -> 1.91092416 | AV10: =InpV!AV$9 -> 1.949142644 | AW10: =InpV!AW$9 -> 1.988125496 | AX10: =InpV!AX$9 -> 2.027888006 | AY10: =InpV!AY$9 -> 2.068445767 | AZ10: =InpV!AZ$9 -> 2.109814682 | BA10: =InpV!BA$9 -> 2.152010975 | BB10: =InpV!BB$9 -> 2.195051195 | BC10: =InpV!BC$9 -> 2.238952219
E11: =LEFT(E9, LEN(E9) - 15) & "Constant dollars" -> Project approval/environmental document - Constant dollars | G11: US$ | H11: =SUM(J11:BC11) -> 0 | J11: =J9 / J10 -> 0 | K11: 0 | L11: 0 | M11: 0 | N11: 0 | O11: 0 | P11: 0 | Q11: 0 | R11: 0 | S11: 0 | T11: 0 | U11: 0 | V11: 0 | W11: 0 | X11: 0 | Y11: 0 | Z11: 0 | AA11: 0 | AB11: 0 | AC11: 0 | AD11: 0 | AE11: 0 | AF11: 0 | AG11: 0 | AH11: 0 | AI11: 0 | AJ11: 0 | AK11: 0 | AL11: 0 | AM11: 0 | AN11: 0 | AO11: 0 | AP11: =AP9 / AP10 -> 0 | AQ11: 0 | AR11: 0 | AS11: 0 | AT11: 0 | AU11: 0 | AV11: 0 | AW11: 0 | AX11: 0 | AY11: 0 | AZ11: 0 | BA11: 0 | BB11: 0 | BC11: 0
